Workbook

Sheet INTRO
B2: Formulaire de Rapport Commun v.3
B4: Le but de ce formulaire de rapport commun - disponible sous forme de fichier Excel - est de mettre à disposition des autorités sanitaires nationales et des gestionnaires de données un outil standardisé qui réponde aux défis, facilite l'intégration et par conséquent contribue à améliorer la gestion de programme. Ce formulaire tend à standardiser le rapport de résultats des programmes nationaux, améliore la disponibilité et la coordination des données de chimioprévention à travers les Bureaux des Régions de l'Organisation mondiale de la Santé. Les autorités nationales sont priées de compléter ce formulaire et de le soumettre à l'Organisation mondiale de la Santé avant le 15 août de l'année en cours pour rapporter les données des activités de chimioprévention mises en oeuvre l'année précédente.
B6: Structure de l'application (feuilles de travail) :
B8: INTRO | C8: Cette feuille contient des instructions pour compléter le formulaire de rapport commun et des informations sur le statut de la chimioprévention pour les maladies d'endémie du pays.
B9: COUNTRY_INFO | C9: Cette feuille contient des informations sur la structure administrative du pays, la population par groupe d'âge, le statut d'endémicité pour chaque maladie, la population devant être traitée par chimioprévention, les interventions prévues et les interventions mises en oeuvre.
B10: MDA1, MDA2, MDA3, T1, T2 et T3 | C10: Ces feuilles contiennent des informations sur l'endémicité des districts ciblés pour le traitement aux médicaments spécifiques pour la chimioprévention, les plans de traitement, et le nombre de personnes traitées par groupe d'âge.
B11: DISTRICT | C11: Cette feuille contient un résumé sur les personnes traitées, par maladie, au niveau de mise en oeuvre. Si les données par genre (sexe) sont disponibles, merci de les saisir.
B12: SUMMARY | C12: Cette feuille contient un résumé sur les personnes traitées, par maladie et par type d'intervention de chimioprévention. Avant de générer le rapport (exécuter macro), veuillez sélectionner la maladie pour laquelle vous souhaitez un rapport. Veuillez suivre le même processus pour générer les divers rapports. Cette feuille doit être imprimée et soumise comme formulaire de rapport commun (voir les instructions pour la soumission du formulaire sous la feuille SUMMARY).
B14: Instructions pour la saisie des données
B16: La plupart des cellules des feuilles de travail mentionnées ci-dessus contiennent des formules calculées automatiquement en fonction du protocole de traitement recommandé par l'OMS pour chaque maladie. Voir : http://www.who.int/neglected_diseases/preventive_chemotherapy/pct_manual/en/index.html
B18: Veuillez entrer vos données dans les cellules en fonction de leur code de couleur :
C20: Blanc - la cellule n'est pas protégée. Veuillez entrer la valeur de l'indicateur demandé.
C22: Jaune - la cellule est protégée et inclut le nom de l'indicateur. Aucune entrée de données requise.
C24: Orange - la cellule n'est pas protégée et contient un menu déroulant. Veuillez sélectionner la valeur dans le menu déroulant.
C27: Vert - la cellule n'est pas protégée et contient des formules. Veuillez changer la valeur indiquée uniquement si vos données sont différentes de celles calculées automatiquement.
C30: Bleu - la cellule est protégée et contient des formules. Aucune entrée de données requise.
B32: Données pays
B34: PAYS | E34: Chad
B36: Année de rapport des données | E36: 2017
B38: Le pays est-il endémique à la filariose lymphatique (FL) ? | E38: Endémique
B40: Le pays est-il endémique à l'onchocercose (ONCHO) ? | E40: Endémique
B42: Le pays est-il endémique aux géohelminthiases (STH) ? | E42: Endémique
B44: Le pays est-il endémique à la schistosomiase (SCH) ? | E44: Endémique
B46: Combien d'unités administratives compte le pays ? | E46: 119
B47: Si les données démographiques par groupe d'âge ne sont pas disponibles au second niveau administratif, veuillez entrer la proportion (%) de population, par groupe d'âge, du pays. Si les données sont disponibles, veuillez laisser les cellules vierges.
B48: 1-4 ans | C48: Enfants d'âge pré-scolaire (EAPréS) | E48: 0.155
B49: 5-14 ans | C49: Enfants d'âge scolaire (EAS) | E49: 0.307
B50: 15 ans et plus | C50: Adultes | E50: 0.494

Sheet COUNTRY_INFO
A1: INFORMATIONS PAYS
A2: Structure administrative, population par groupe d'âge, statut d'endémicité, interventions planifiées et interventions mises en oeuvre
A4: TOTAL | D4: =SUM(D$9:D$1000) -> 15174208 | E4: =SUM(E$9:E$1000) -> 2223846 | F4: =SUM(F$9:F$1000) -> 5105281 | G4: =SUM(G$9:G$1000) -> 7430810 | L4: =SUM(L$9:L$1000) -> 4528441 | M4: =SUM(M$9:M$1000) -> 5641756 | N4: =SUM(N$9:N$1000) -> 488769 | O4: =SUM(O$9:O$1000) -> 3778401.71
A6: Structure administrative du pays | D6: Population | H6: Endémicité | L6: Population nécessitant la CP | P6: Nombre de tournées de traitement prévues pour l'année | T6: Mise en oeuvre de la chimioprévention | V6: Cliquer ci-dessous pour voir la stratégie recommandée
A7: Pays | B7: Région/Département | C7: District | D7: Total | E7: EAPréS | F7: EAS | G7: Adultes | H7: FL | I7: Oncho | J7: STH | K7: SCH | L7: FL | M7: Oncho | N7: STH | O7: SCH | P7: FL | Q7: Oncho | R7: STH | S7: SCH | T7: TOURNEE 1 | U7: TOURNEE 2 | X7: IU_ID | Y7: IU_Name
A9: =IF(INTRO!$E$34<>0,INTRO!$E$34,"") -> Chad | B9: Bahr El Gazel | C9: Chadra | D9: 87397 | E9: 13547 | F9: 29741 | G9: 42799 | H9: 0 | I9: 0 | J9: 2 | K9: 2 | L9: =IF(INTRO!$E$38="Endémique", IF($H9>0, IF($H9=4,"Inconnu", IF($H9=99,"Interrompu", $D9)), 0),"Non requis") -> 0 | M9: =IF(INTRO!$E$40="Endémique", IF($I9>0, IF($I9=4,"Inconnu",IF($I9=99,"Interrompu", $D9)), 0),"Non requis") -> 0 | N9: =IF(INTRO!$E$42="Endémique", IF(AND($J9>1,$J9<5), IF($J9=4, "Inconnu", E9+F9), 0),"Non requis") -> 43288 | O9: =IF(INTRO!$E$44="Endémique", IF(AND($K9>0,$K9<5), IF($K9=4,"Inconnu", IF($K9=1, $F9*0.33, IF($K9=2, $F9*0.5+$G9*0.2, SUM(F9:G9)))), 0),"Non requis") -> 23430.3 | P9: 0 | Q9: 0 | R9: 0 | S9: 0 | W9: T1 | X9: 10660 | Y9: Chadra | Z9: =Y9=C9 -> TRUE
A10: =IF(INTRO!$E$34<>0,INTRO!$E$34,"") -> Chad | B10: Bahr El Gazel | C10: Michemire | D10: 41951 | E10: 6502 | F10: 14276 | G10: 20543 | H10: 0 | I10: 0 | J10: 1 | K10: 2 | L10: =IF(INTRO!$E$38="Endémique", IF($H10>0, IF($H10=4,"Inconnu", IF($H10=99,"Interrompu", $D10)), 0),"Non requis") -> 0 | M10: =IF(INTRO!$E$40="Endémique", IF($I10>0, IF($I10=4,"Inconnu",IF($I10=99,"Interrompu", $D10)), 0),"Non requis") -> 0 | N10: =IF(INTRO!$E$42="Endémique", IF(AND($J10>1,$J10<5), IF($J10=4, "Inconnu", E10+F10), 0),"Non requis") -> 0 | O10: =IF(INTRO!$E$44="Endémique", IF(AND($K10>0,$K10<5), IF($K10=4,"Inconnu", IF($K10=1, $F10*0.33, IF($K10=2, $F10*0.5+$G10*0.2, SUM(F10:G10)))), 0),"Non requis") -> 11246.6 | P10: 0 | Q10: 0 | R10: 0 | S10: 0 | W10: T2 | X10: 10670 | Y10: Michemire | Z10: =Y10=C10 -> TRUE
A11: =IF(INTRO!$E$34<>0,INTRO!$E$34,"") -> Chad | B11: Bahr El Gazel | C11: Moussoro | D11: 174793 | E11: 27093 | F11: 59482 | G11: 85596 | H11: 0 | I11: 0 | J11: 1 | K11: 2 | L11: =IF(INTRO!$E$38="Endémique", IF($H11>0, IF($H11=4,"Inconnu", IF($H11=99,"Interrompu", $D11)), 0),"Non requis") -> 0 | M11: =IF(INTRO!$E$40="Endémique", IF($I11>0, IF($I11=4,"Inconnu",IF($I11=99,"Interrompu", $D11)), 0),"Non requis") -> 0 | N11: =IF(INTRO!$E$42="Endémique", IF(AND($J11>1,$J11<5), IF($J11=4, "Inconnu", E11+F11), 0),"Non requis") -> 0 | O11: =IF(INTRO!$E$44="Endémique", IF(AND($K11>0,$K11<5), IF($K11=4,"Inconnu", IF($K11=1, $F11*0.33, IF($K11=2, $F11*0.5+$G11*0.2, SUM(F11:G11)))), 0),"Non requis") -> 46860.2 | P11: 0 | Q11: 0 | R11: 0 | S11: 0 | W11: T2 | X11: 10661 | Y11: Moussoro | Z11: TRUE
A12: =IF(INTRO!$E$34<>0,INTRO!$E$34,"") -> Chad | B12: Bahr El Gazel | C12: Salal | D12: 45446 | E12: 7044 | F12: 15465 | G12: 22255 | H12: 0 | I12: 0 | J12: 1 | K12: 2 | L12: =IF(INTRO!$E$38="Endémique", IF($H12>0, IF($H12=4,"Inconnu", IF($H12=99,"Interrompu", $D12)), 0),"Non requis") -> 0 | M12: =IF(INTRO!$E$40="Endémique", IF($I12>0, IF($I12=4,"Inconnu",IF($I12=99,"Interrompu", $D12)), 0),"Non requis") -> 0 | N12: =IF(INTRO!$E$42="Endémique", IF(AND($J12>1,$J12<5), IF($J12=4, "Inconnu", E12+F12), 0),"Non requis") -> 0 | O12: =IF(INTRO!$E$44="Endémique", IF(AND($K12>0,$K12<5), IF($K12=4,"Inconnu", IF($K12=1, $F12*0.33, IF($K12=2, $F12*0.5+$G12*0.2, SUM(F12:G12)))), 0),"Non requis") -> 12183.5 | P12: 0 | Q12: 0 | R12: 0 | S12: 0 | W12: T2 | X12: 10711 | Y12: Salal | Z12: TRUE
A13: =IF(INTRO!$E$34<>0,INTRO!$E$34,"") -> Chad | B13: Batha | C13: Alifa | D13: 99561 | E13: 15432 | F13: 33881 | G13: 48755 | H13: 0 | I13: 0 | J13: 0 | K13: 2 | L13: =IF(INTRO!$E$38="Endémique", IF($H13>0, IF($H13=4,"Inconnu", IF($H13=99,"Interrompu", $D13)), 0),"Non requis") -> 0 | M13: =IF(INTRO!$E$40="Endémique", IF($I13>0, IF($I13=4,"Inconnu",IF($I13=99,"Interrompu", $D13)), 0),"Non requis") -> 0 | N13: =IF(INTRO!$E$42="Endémique", IF(AND($J13>1,$J13<5), IF($J13=4, "Inconnu", E13+F13), 0),"Non requis") -> 0 | O13: =IF(INTRO!$E$44="Endémique", IF(AND($K13>0,$K13<5), IF($K13=4,"Inconnu", IF($K13=1, $F13*0.33, IF($K13=2, $F13*0.5+$G13*0.2, SUM(F13:G13)))), 0),"Non requis") -> 26691.5 | P13: 0 | Q13: 0 | R13: 0 | S13: 0 | W13: T2 | X13: 10739 | Y13: Alifa | Z13: TRUE
A14: =IF(INTRO!$E$34<>0,INTRO!$E$34,"") -> Chad | B14: Batha | C14: Assinet | D14: 79648 | E14: 12345 | F14: 27104 | G14: 39004 | H14: 0 | I14: 0 | J14: 0 | K14: 2 | L14: =IF(INTRO!$E$38="Endémique", IF($H14>0, IF($H14=4,"Inconnu", IF($H14=99,"Interrompu", $D14)), 0),"Non requis") -> 0 | M14: =IF(INTRO!$E$40="Endémique", IF($I14>0, IF($I14=4,"Inconnu",IF($I14=99,"Interrompu", $D14)), 0),"Non requis") -> 0 | N14: =IF(INTRO!$E$42="Endémique", IF(AND($J14>1,$J14<5), IF($J14=4, "Inconnu", E14+F14), 0),"Non requis") -> 0 | O14: =IF(INTRO!$E$44="Endémique", IF(AND($K14>0,$K14<5), IF($K14=4,"Inconnu", IF($K14=1, $F14*0.33, IF($K14=2, $F14*0.5+$G14*0.2, SUM(F14:G14)))), 0),"Non requis") -> 21352.8 | P14: 0 | Q14: 0 | R14: 0 | S14: 0 | W14: T2 | X14: 10745 | Y14: Assinet | Z14: TRUE
A15: =IF(INTRO!$E$34<>0,INTRO!$E$34,"") -> Chad | B15: Batha | C15: Ati | D15: 51772 | E15: 8025 | F15: 17618 | G15: 25353 | H15: 0 | I15: 0 | J15: 0 | K15: 2 | L15: =IF(INTRO!$E$38="Endémique", IF($H15>0, IF($H15=4,"Inconnu", IF($H15=99,"Interrompu", $D15)), 0),"Non requis") -> 0 | M15: =IF(INTRO!$E$40="Endémique", IF($I15>0, IF($I15=4,"Inconnu",IF($I15=99,"Interrompu", $D15)), 0),"Non requis") -> 0 | N15: =IF(INTRO!$E$42="Endémique", IF(AND($J15>1,$J15<5), IF($J15=4, "Inconnu", E15+F15), 0),"Non requis") -> 0 | O15: =IF(INTRO!$E$44="Endémique", IF(AND($K15>0,$K15<5), IF($K15=4,"Inconnu", IF($K15=1, $F15*0.33, IF($K15=2, $F15*0.5+$G15*0.2, SUM(F15:G15)))), 0),"Non requis") -> 13879.6 | P15: 0 | Q15: 0 | R15: 0 | S15: 0 | W15: T2 | X15: 10662 | Y15: Ati | Z15: TRUE
A16: =IF(INTRO!$E$34<>0,INTRO!$E$34,"") -> Chad | B16: Batha | C16: Djedda | D16: 46594 | E16: 7222 | F16: 15856 | G16: 22817 | H16: 0 | I16: 0 | J16: 0 | K16: 2 | L16: =IF(INTRO!$E$38="Endémique", IF($H16>0, IF($H16=4,"Inconnu", IF($H16=99,"Interrompu", $D16)), 0),"Non requis") -> 0 | M16: =IF(INTRO!$E$40="Endémique", IF($I16>0, IF($I16=4,"Inconnu",IF($I16=99,"Interrompu", $D16)), 0),"Non requis") -> 0 | N16: =IF(INTRO!$E$42="Endémique", IF(AND($J16>1,$J16<5), IF($J16=4, "Inconnu", E16+F16), 0),"Non requis") -> 0 | O16: =IF(INTRO!$E$44="Endémique", IF(AND($K16>0,$K16<5), IF($K16=4,"Inconnu", IF($K16=1, $F16*0.33, IF($K16=2, $F16*0.5+$G16*0.2, SUM(F16:G16)))), 0),"Non requis") -> 12491.4 | P16: 0 | Q16: 0 | R16: 0 | S16: 0 | W16: T2 | X16: 10761 | Y16: Djedda | Z16: TRUE
A17: =IF(INTRO!$E$34<>0,INTRO!$E$34,"") -> Chad | B17: Batha | C17: Koundjourou | D17: 74206 | E17: 11502 | F17: 25252 | G17: 36339 | H17: 0 | I17: 0 | J17: 0 | K17: 2 | L17: =IF(INTRO!$E$38="Endémique", IF($H17>0, IF($H17=4,"Inconnu", IF($H17=99,"Interrompu", $D17)), 0),"Non requis") -> 0 | M17: =IF(INTRO!$E$40="Endémique", IF($I17>0, IF($I17=4,"Inconnu",IF($I17=99,"Interrompu", $D17)), 0),"Non requis") -> 0 | N17: =IF(INTRO!$E$42="Endémique", IF(AND($J17>1,$J17<5), IF($J17=4, "Inconnu", E17+F17), 0),"Non requis") -> 0 | O17: =IF(INTRO!$E$44="Endémique", IF(AND($K17>0,$K17<5), IF($K17=4,"Inconnu", IF($K17=1, $F17*0.33, IF($K17=2, $F17*0.5+$G17*0.2, SUM(F17:G17)))), 0),"Non requis") -> 19893.8 | P17: 0 | Q17: 0 | R17: 0 | S17: 0 | W17: T2 | X17: 10762 | Y17: Koundjourou | Z17: TRUE
A18: =IF(INTRO!$E$34<>0,INTRO!$E$34,"") -> Chad | B18: Batha | C18: Oum-Hadjer | D18: 159297 | E18: 24691 | F18: 54209 | G18: 78008 | H18: 0 | I18: 0 | J18: 0 | K18: 2 | L18: =IF(INTRO!$E$38="Endémique", IF($H18>0, IF($H18=4,"Inconnu", IF($H18=99,"Interrompu", $D18)), 0),"Non requis") -> 0 | M18: =IF(INTRO!$E$40="Endémique", IF($I18>0, IF($I18=4,"Inconnu",IF($I18=99,"Interrompu", $D18)), 0),"Non requis") -> 0 | N18: =IF(INTRO!$E$42="Endémique", IF(AND($J18>1,$J18<5), IF($J18=4, "Inconnu", E18+F18), 0),"Non requis") -> 0 | O18: =IF(INTRO!$E$44="Endémique", IF(AND($K18>0,$K18<5), IF($K18=4,"Inconnu", IF($K18=1, $F18*0.33, IF($K18=2, $F18*0.5+$G18*0.2, SUM(F18:G18)))), 0),"Non requis") -> 42706.1 | P18: 0 | Q18: 0 | R18: 0 | S18: 0 | W18: T2 | X18: 10663 | Y18: Oum-Hadjer | Z18: TRUE
A19: =IF(INTRO!$E$34<>0,INTRO!$E$34,"") -> Chad | B19: Batha | C19: Yao | D19: 152660 | E19: 23662 | F19: 51950 | G19: 74758 | H19: 0 | I19: 0 | J19: 1 | K19: 2 | L19: =IF(INTRO!$E$38="Endémique", IF($H19>0, IF($H19=4,"Inconnu", IF($H19=99,"Interrompu", $D19)), 0),"Non requis") -> 0 | M19: =IF(INTRO!$E$40="Endémique", IF($I19>0, IF($I19=4,"Inconnu",IF($I19=99,"Interrompu", $D19)), 0),"Non requis") -> 0 | N19: =IF(INTRO!$E$42="Endémique", IF(AND($J19>1,$J19<5), IF($J19=4, "Inconnu", E19+F19), 0),"Non requis") -> 0 | O19: =IF(INTRO!$E$44="Endémique", IF(AND($K19>0,$K19<5), IF($K19=4,"Inconnu", IF($K19=1, $F19*0.33, IF($K19=2, $F19*0.5+$G19*0.2, SUM(F19:G19)))), 0),"Non requis") -> 40926.6 | P19: 0 | Q19: 0 | R19: 0 | S19: 0 | W19: T2 | X19: 10664 | Y19: Yao | Z19: TRUE
A20: =IF(INTRO!$E$34<>0,INTRO!$E$34,"") -> Chad | B20: Borkou | C20: Faya | D20: 92768 | E20: 14379 | F20: 31569 | G20: 45428 | H20: 0 | I20: 0 | J20: 1 | K20: 1 | L20: =IF(INTRO!$E$38="Endémique", IF($H20>0, IF($H20=4,"Inconnu", IF($H20=99,"Interrompu", $D20)), 0),"Non requis") -> 0 | M20: =IF(INTRO!$E$40="Endémique", IF($I20>0, IF($I20=4,"Inconnu",IF($I20=99,"Interrompu", $D20)), 0),"Non requis") -> 0 | N20: =IF(INTRO!$E$42="Endémique", IF(AND($J20>1,$J20<5), IF($J20=4, "Inconnu", E20+F20), 0),"Non requis") -> 0 | O20: =IF(INTRO!$E$44="Endémique", IF(AND($K20>0,$K20<5), IF($K20=4,"Inconnu", IF($K20=1, $F20*0.33, IF($K20=2, $F20*0.5+$G20*0.2, SUM(F20:G20)))), 0),"Non requis") -> 10417.77 | P20: 0 | Q20: 0 | R20: 0 | S20: 0 | W20: T2 | X20: 10666 | Y20: Faya | Z20: TRUE
A21: =IF(INTRO!$E$34<>0,INTRO!$E$34,"") -> Chad | B21: Borkou | C21: Kirdimi | D21: 34334 | E21: 5322 | F21: 11684 | G21: 16813 | H21: 0 | I21: 0 | J21: 1 | K21: 1 | L21: =IF(INTRO!$E$38="Endémique", IF($H21>0, IF($H21=4,"Inconnu", IF($H21=99,"Interrompu", $D21)), 0),"Non requis") -> 0 | M21: =IF(INTRO!$E$40="Endémique", IF($I21>0, IF($I21=4,"Inconnu",IF($I21=99,"Interrompu", $D21)), 0),"Non requis") -> 0 | N21: =IF(INTRO!$E$42="Endémique", IF(AND($J21>1,$J21<5), IF($J21=4, "Inconnu", E21+F21), 0),"Non requis") -> 0 | O21: =IF(INTRO!$E$44="Endémique", IF(AND($K21>0,$K21<5), IF($K21=4,"Inconnu", IF($K21=1, $F21*0.33, IF($K21=2, $F21*0.5+$G21*0.2, SUM(F21:G21)))), 0),"Non requis") -> 3855.72 | P21: 0 | Q21: 0 | R21: 0 | S21: 0 | W21: T2 | X21: 10746 | Y21: Kirdimi | Z21: TRUE
A22: =IF(INTRO!$E$34<>0,INTRO!$E$34,"") -> Chad | B22: Chari Baguirmi | C22: Ba-Illi | D22: 87488 | E22: 13561 | F22: 30621 | G22: 42843 | H22: 0 | I22: 0 | J22: 1 | K22: 2 | L22: =IF(INTRO!$E$38="Endémique", IF($H22>0, IF($H22=4,"Inconnu", IF($H22=99,"Interrompu", $D22)), 0),"Non requis") -> 0 | M22: =IF(INTRO!$E$40="Endémique", IF($I22>0, IF($I22=4,"Inconnu",IF($I22=99,"Interrompu", $D22)), 0),"Non requis") -> 0 | N22: =IF(INTRO!$E$42="Endémique", IF(AND($J22>1,$J22<5), IF($J22=4, "Inconnu", E22+F22), 0),"Non requis") -> 0 | O22: =IF(INTRO!$E$44="Endémique", IF(AND($K22>0,$K22<5), IF($K22=4,"Inconnu", IF($K22=1, $F22*0.33, IF($K22=2, $F22*0.5+$G22*0.2, SUM(F22:G22)))), 0),"Non requis") -> 23879.1 | P22: 0 | Q22: 0 | R22: 1 | S22: 1 | T22: T1 (PZQ+ALB/MBD) | W22: T2 | X22: 10667 | Y22: Ba-Illi | Z22: TRUE
A23: =IF(INTRO!$E$34<>0,INTRO!$E$34,"") -> Chad | B23: Chari Baguirmi | C23: Bousso | D23: 141277 | E23: 21898 | F23: 50012 | G23: 69183 | H23: 0 | I23: 0 | J23: 1 | K23: 2 | L23: =IF(INTRO!$E$38="Endémique", IF($H23>0, IF($H23=4,"Inconnu", IF($H23=99,"Interrompu", $D23)), 0),"Non requis") -> 0 | M23: =IF(INTRO!$E$40="Endémique", IF($I23>0, IF($I23=4,"Inconnu",IF($I23=99,"Interrompu", $D23)), 0),"Non requis") -> 0 | N23: =IF(INTRO!$E$42="Endémique", IF(AND($J23>1,$J23<5), IF($J23=4, "Inconnu", E23+F23), 0),"Non requis") -> 0 | O23: =IF(INTRO!$E$44="Endémique", IF(AND($K23>0,$K23<5), IF($K23=4,"Inconnu", IF($K23=1, $F23*0.33, IF($K23=2, $F23*0.5+$G23*0.2, SUM(F23:G23)))), 0),"Non requis") -> 38842.6 | P23: 0 | Q23: 0 | R23: 1 | S23: 1 | T23: T1 (PZQ+ALB/MBD) | W23: T2 | X23: 10668 | Y23: Bousso | Z23: TRUE
A24: =IF(INTRO!$E$34<>0,INTRO!$E$34,"") -> Chad | B24: Chari Baguirmi | C24: Dourbali | D24: 151081 | E24: 19641 | F24: 54389 | G24: 73984 | H24: 0 | I24: 0 | J24: 1 | K24: 2 | L24: =IF(INTRO!$E$38="Endémique", IF($H24>0, IF($H24=4,"Inconnu", IF($H24=99,"Interrompu", $D24)), 0),"Non requis") -> 0 | M24: =IF(INTRO!$E$40="Endémique", IF($I24>0, IF($I24=4,"Inconnu",IF($I24=99,"Interrompu", $D24)), 0),"Non requis") -> 0 | N24: =IF(INTRO!$E$42="Endémique", IF(AND($J24>1,$J24<5), IF($J24=4, "Inconnu", E24+F24), 0),"Non requis") -> 0 | O24: =IF(INTRO!$E$44="Endémique", IF(AND($K24>0,$K24<5), IF($K24=4,"Inconnu", IF($K24=1, $F24*0.33, IF($K24=2, $F24*0.5+$G24*0.2, SUM(F24:G24)))), 0),"Non requis") -> 41991.3 | P24: 0 | Q24: 0 | R24: 0 | S24: 1 | T24: T2 (PZQ) | W24: T2 | X24: 10669 | Y24: Dourbali | Z24: TRUE
A25: =IF(INTRO!$E$34<>0,INTRO!$E$34,"") -> Chad | B25: Chari Baguirmi | C25: Kono | D25: 240533 | E25: 31269 | F25: 88752 | G25: 117789 | H25: 0 | I25: 0 | J25: 1 | K25: 2 | L25: =IF(INTRO!$E$38="Endémique", IF($H25>0, IF($H25=4,"Inconnu", IF($H25=99,"Interrompu", $D25)), 0),"Non requis") -> 0 | M25: =IF(INTRO!$E$40="Endémique", IF($I25>0, IF($I25=4,"Inconnu",IF($I25=99,"Interrompu", $D25)), 0),"Non requis") -> 0 | N25: =IF(INTRO!$E$42="Endémique", IF(AND($J25>1,$J25<5), IF($J25=4, "Inconnu", E25+F25), 0),"Non requis") -> 0 | O25: =IF(INTRO!$E$44="Endémique", IF(AND($K25>0,$K25<5), IF($K25=4,"Inconnu", IF($K25=1, $F25*0.33, IF($K25=2, $F25*0.5+$G25*0.2, SUM(F25:G25)))), 0),"Non requis") -> 67933.8 | P25: 0 | Q25: 0 | R25: 0 | S25: 1 | T25: T2 (PZQ) | W25: T2 | X25: 10747 | Y25: Koulno | Z25: FALSE
A26: =IF(INTRO!$E$34<>0,INTRO!$E$34,"") -> Chad | B26: Chari Baguirmi | C26: Mandélia | D26: 131633 | E26: 17112 | F26: 47388 | G26: 64460 | H26: 0 | I26: 0 | J26: 1 | K26: 2 | L26: =IF(INTRO!$E$38="Endémique", IF($H26>0, IF($H26=4,"Inconnu", IF($H26=99,"Interrompu", $D26)), 0),"Non requis") -> 0 | M26: =IF(INTRO!$E$40="Endémique", IF($I26>0, IF($I26=4,"Inconnu",IF($I26=99,"Interrompu", $D26)), 0),"Non requis") -> 0 | N26: =IF(INTRO!$E$42="Endémique", IF(AND($J26>1,$J26<5), IF($J26=4, "Inconnu", E26+F26), 0),"Non requis") -> 0 | O26: =IF(INTRO!$E$44="Endémique", IF(AND($K26>0,$K26<5), IF($K26=4,"Inconnu", IF($K26=1, $F26*0.33, IF($K26=2, $F26*0.5+$G26*0.2, SUM(F26:G26)))), 0),"Non requis") -> 36586 | P26: 0 | Q26: 0 | R26: 0 | S26: 1 | T26: T2 (PZQ) | W26: T2 | X26: 10671 | Y26: Mandélia | Z26: TRUE
A27: =IF(INTRO!$E$34<>0,INTRO!$E$34,"") -> Chad | B27: Chari Baguirmi | C27: Massenya | D27: 132348 | E27: 20514 | F27: 45038 | G27: 64811 | H27: 0 | I27: 0 | J27: 1 | K27: 2 | L27: =IF(INTRO!$E$38="Endémique", IF($H27>0, IF($H27=4,"Inconnu", IF($H27=99,"Interrompu", $D27)), 0),"Non requis") -> 0 | M27: =IF(INTRO!$E$40="Endémique", IF($I27>0, IF($I27=4,"Inconnu",IF($I27=99,"Interrompu", $D27)), 0),"Non requis") -> 0 | N27: =IF(INTRO!$E$42="Endémique", IF(AND($J27>1,$J27<5), IF($J27=4, "Inconnu", E27+F27), 0),"Non requis") -> 0 | O27: =IF(INTRO!$E$44="Endémique", IF(AND($K27>0,$K27<5), IF($K27=4,"Inconnu", IF($K27=1, $F27*0.33, IF($K27=2, $F27*0.5+$G27*0.2, SUM(F27:G27)))), 0),"Non requis") -> 35481.2 | P27: 0 | Q27: 0 | R27: 0 | S27: 0 | W27: T2 | X27: 10672 | Y27: Massenya | Z27: TRUE
A28: =IF(INTRO!$E$34<>0,INTRO!$E$34,"") -> Chad | B28: Ennedi Est | C28: Amdjarass | D28: 87390 | E28: 13545 | F28: 29739 | G28: 42795 | H28: 0 | I28: 0 | J28: 1 | K28: 0 | L28: =IF(INTRO!$E$38="Endémique", IF($H28>0, IF($H28=4,"Inconnu", IF($H28=99,"Interrompu", $D28)), 0),"Non requis") -> 0 | M28: =IF(INTRO!$E$40="Endémique", IF($I28>0, IF($I28=4,"Inconnu",IF($I28=99,"Interrompu", $D28)), 0),"Non requis") -> 0 | N28: =IF(INTRO!$E$42="Endémique", IF(AND($J28>1,$J28<5), IF($J28=4, "Inconnu", E28+F28), 0),"Non requis") -> 0 | O28: =IF(INTRO!$E$44="Endémique", IF(AND($K28>0,$K28<5), IF($K28=4,"Inconnu", IF($K28=1, $F28*0.33, IF($K28=2, $F28*0.5+$G28*0.2, SUM(F28:G28)))), 0),"Non requis") -> 0 | P28: 0 | Q28: 0 | R28: 0 | S28: 0 | X28: 10675 | Y28: Amdjarass | Z28: TRUE
A29: =IF(INTRO!$E$34<>0,INTRO!$E$34,"") -> Chad | B29: Ennedi Est | C29: Bahaï | D29: 37896 | E29: 5874 | F29: 12896 | G29: 18558 | H29: 0 | I29: 0 | J29: 1 | K29: 0 | L29: =IF(INTRO!$E$38="Endémique", IF($H29>0, IF($H29=4,"Inconnu", IF($H29=99,"Interrompu", $D29)), 0),"Non requis") -> 0 | M29: =IF(INTRO!$E$40="Endémique", IF($I29>0, IF($I29=4,"Inconnu",IF($I29=99,"Interrompu", $D29)), 0),"Non requis") -> 0 | N29: =IF(INTRO!$E$42="Endémique", IF(AND($J29>1,$J29<5), IF($J29=4, "Inconnu", E29+F29), 0),"Non requis") -> 0 | O29: =IF(INTRO!$E$44="Endémique", IF(AND($K29>0,$K29<5), IF($K29=4,"Inconnu", IF($K29=1, $F29*0.33, IF($K29=2, $F29*0.5+$G29*0.2, SUM(F29:G29)))), 0),"Non requis") -> 0 | P29: 0 | Q29: 0 | R29: 0 | S29: 0 | X29: 10676 | Y29: Bahaï | Z29: TRUE
A30: =IF(INTRO!$E$34<>0,INTRO!$E$34,"") -> Chad | B30: Ennedi Est | C30: Kaoura | D30: 20507 | E30: 3179 | F30: 6979 | G30: 10042 | H30: 0 | I30: 0 | J30: 1 | K30: 1 | L30: =IF(INTRO!$E$38="Endémique", IF($H30>0, IF($H30=4,"Inconnu", IF($H30=99,"Interrompu", $D30)), 0),"Non requis") -> 0 | M30: =IF(INTRO!$E$40="Endémique", IF($I30>0, IF($I30=4,"Inconnu",IF($I30=99,"Interrompu", $D30)), 0),"Non requis") -> 0 | N30: =IF(INTRO!$E$42="Endémique", IF(AND($J30>1,$J30<5), IF($J30=4, "Inconnu", E30+F30), 0),"Non requis") -> 0 | O30: =IF(INTRO!$E$44="Endémique", IF(AND($K30>0,$K30<5), IF($K30=4,"Inconnu", IF($K30=1, $F30*0.33, IF($K30=2, $F30*0.5+$G30*0.2, SUM(F30:G30)))), 0),"Non requis") -> 2303.07 | P30: 0 | Q30: 0 | R30: 0 | S30: 0 | W30: T2 | X30: 10678 | Y30: Kaoura | Z30: TRUE
A31: =IF(INTRO!$E$34<>0,INTRO!$E$34,"") -> Chad | B31: Ennedi Ouest | C31: Fada | D31: 53408 | E31: 8278 | F31: 18175 | G31: 26154 | H31: 0 | I31: 0 | J31: 1 | K31: 1 | L31: =IF(INTRO!$E$38="Endémique", IF($H31>0, IF($H31=4,"Inconnu", IF($H31=99,"Interrompu", $D31)), 0),"Non requis") -> 0 | M31: =IF(INTRO!$E$40="Endémique", IF($I31>0, IF($I31=4,"Inconnu",IF($I31=99,"Interrompu", $D31)), 0),"Non requis") -> 0 | N31: =IF(INTRO!$E$42="Endémique", IF(AND($J31>1,$J31<5), IF($J31=4, "Inconnu", E31+F31), 0),"Non requis") -> 0 | O31: =IF(INTRO!$E$44="Endémique", IF(AND($K31>0,$K31<5), IF($K31=4,"Inconnu", IF($K31=1, $F31*0.33, IF($K31=2, $F31*0.5+$G31*0.2, SUM(F31:G31)))), 0),"Non requis") -> 5997.75 | P31: 0 | Q31: 0 | R31: 0 | S31: 0 | W31: T2 | X31: 10665 | Y31: Fada | Z31: TRUE
A32: =IF(INTRO!$E$34<>0,INTRO!$E$34,"") -> Chad | B32: Ennedi Ouest | C32: Kalaït | D32: 28961 | E32: 4489 | F32: 9856 | G32: 14182 | H32: 0 | I32: 0 | J32: 1 | K32: 1 | L32: =IF(INTRO!$E$38="Endémique", IF($H32>0, IF($H32=4,"Inconnu", IF($H32=99,"Interrompu", $D32)), 0),"Non requis") -> 0 | M32: =IF(INTRO!$E$40="Endémique", IF($I32>0, IF($I32=4,"Inconnu",IF($I32=99,"Interrompu", $D32)), 0),"Non requis") -> 0 | N32: =IF(INTRO!$E$42="Endémique", IF(AND($J32>1,$J32<5), IF($J32=4, "Inconnu", E32+F32), 0),"Non requis") -> 0 | O32: =IF(INTRO!$E$44="Endémique", IF(AND($K32>0,$K32<5), IF($K32=4,"Inconnu", IF($K32=1, $F32*0.33, IF($K32=2, $F32*0.5+$G32*0.2, SUM(F32:G32)))), 0),"Non requis") -> 3252.48 | P32: 0 | Q32: 0 | R32: 0 | S32: 0 | W32: T2 | X32: 10677 | Y32: Kalaït | Z32: TRUE
A33: =IF(INTRO!$E$34<>0,INTRO!$E$34,"") -> Chad | B33: Guéra | C33: Barou | D33: 60925 | E33: 9443 | F33: 20733 | G33: 29835 | H33: 0 | I33: 0 | J33: 0 | K33: 2 | L33: =IF(INTRO!$E$38="Endémique", IF($H33>0, IF($H33=4,"Inconnu", IF($H33=99,"Interrompu", $D33)), 0),"Non requis") -> 0 | M33: =IF(INTRO!$E$40="Endémique", IF($I33>0, IF($I33=4,"Inconnu",IF($I33=99,"Interrompu", $D33)), 0),"Non requis") -> 0 | N33: =IF(INTRO!$E$42="Endémique", IF(AND($J33>1,$J33<5), IF($J33=4, "Inconnu", E33+F33), 0),"Non requis") -> 0 | O33: =IF(INTRO!$E$44="Endémique", IF(AND($K33>0,$K33<5), IF($K33=4,"Inconnu", IF($K33=1, $F33*0.33, IF($K33=2, $F33*0.5+$G33*0.2, SUM(F33:G33)))), 0),"Non requis") -> 16333.5 | P33: 0 | Q33: 0 | R33: 0 | S33: 0 | W33: T2 | X33: 10763 | Y33: Barou | Z33: TRUE
A34: =IF(INTRO!$E$34<>0,INTRO!$E$34,"") -> Chad | B34: Guéra | C34: Bitkine | D34: 227515 | E34: 35265 | F34: 77423 | G34: 111414 | H34: 0 | I34: 0 | J34: 1 | K34: 2 | L34: =IF(INTRO!$E$38="Endémique", IF($H34>0, IF($H34=4,"Inconnu", IF($H34=99,"Interrompu", $D34)), 0),"Non requis") -> 0 | M34: =IF(INTRO!$E$40="Endémique", IF($I34>0, IF($I34=4,"Inconnu",IF($I34=99,"Interrompu", $D34)), 0),"Non requis") -> 0 | N34: =IF(INTRO!$E$42="Endémique", IF(AND($J34>1,$J34<5), IF($J34=4, "Inconnu", E34+F34), 0),"Non requis") -> 0 | O34: =IF(INTRO!$E$44="Endémique", IF(AND($K34>0,$K34<5), IF($K34=4,"Inconnu", IF($K34=1, $F34*0.33, IF($K34=2, $F34*0.5+$G34*0.2, SUM(F34:G34)))), 0),"Non requis") -> 60994.3 | P34: 0 | Q34: 0 | R34: 0 | S34: 0 | W34: T2 | X34: 10679 | Y34: Bitkine | Z34: TRUE
A35: =IF(INTRO!$E$34<>0,INTRO!$E$34,"") -> Chad | B35: Guéra | C35: Mangalmé | D35: 128964 | E35: 19989 | F35: 43886 | G35: 63154 | H35: 0 | I35: 0 | J35: 0 | K35: 2 | L35: =IF(INTRO!$E$38="Endémique", IF($H35>0, IF($H35=4,"Inconnu", IF($H35=99,"Interrompu", $D35)), 0),"Non requis") -> 0 | M35: =IF(INTRO!$E$40="Endémique", IF($I35>0, IF($I35=4,"Inconnu",IF($I35=99,"Interrompu", $D35)), 0),"Non requis") -> 0 | N35: =IF(INTRO!$E$42="Endémique", IF(AND($J35>1,$J35<5), IF($J35=4, "Inconnu", E35+F35), 0),"Non requis") -> 0 | O35: =IF(INTRO!$E$44="Endémique", IF(AND($K35>0,$K35<5), IF($K35=4,"Inconnu", IF($K35=1, $F35*0.33, IF($K35=2, $F35*0.5+$G35*0.2, SUM(F35:G35)))), 0),"Non requis") -> 34573.8 | P35: 0 | Q35: 0 | R35: 0 | S35: 0 | W35: T2 | X35: 10680 | Y35: Mangalmé | Z35: TRUE
A36: =IF(INTRO!$E$34<>0,INTRO!$E$34,"") -> Chad | B36: Guéra | C36: Melfi | D36: 140738 | E36: 21814 | F36: 47893 | G36: 68920 | H36: 0 | I36: 0 | J36: 1 | K36: 2 | L36: =IF(INTRO!$E$38="Endémique", IF($H36>0, IF($H36=4,"Inconnu", IF($H36=99,"Interrompu", $D36)), 0),"Non requis") -> 0 | M36: =IF(INTRO!$E$40="Endémique", IF($I36>0, IF($I36=4,"Inconnu",IF($I36=99,"Interrompu", $D36)), 0),"Non requis") -> 0 | N36: =IF(INTRO!$E$42="Endémique", IF(AND($J36>1,$J36<5), IF($J36=4, "Inconnu", E36+F36), 0),"Non requis") -> 0 | O36: =IF(INTRO!$E$44="Endémique", IF(AND($K36>0,$K36<5), IF($K36=4,"Inconnu", IF($K36=1, $F36*0.33, IF($K36=2, $F36*0.5+$G36*0.2, SUM(F36:G36)))), 0),"Non requis") -> 37730.5 | P36: 0 | Q36: 0 | R36: 0 | S36: 0 | W36: T2 | X36: 10681 | Y36: Melfi | Z36: TRUE
A37: =IF(INTRO!$E$34<>0,INTRO!$E$34,"") -> Chad | B37: Guéra | C37: Mongo | D37: 173403 | E37: 26877 | F37: 59009 | G37: 84915 | H37: 0 | I37: 0 | J37: 0 | K37: 2 | L37: =IF(INTRO!$E$38="Endémique", IF($H37>0, IF($H37=4,"Inconnu", IF($H37=99,"Interrompu", $D37)), 0),"Non requis") -> 0 | M37: =IF(INTRO!$E$40="Endémique", IF($I37>0, IF($I37=4,"Inconnu",IF($I37=99,"Interrompu", $D37)), 0),"Non requis") -> 0 | N37: =IF(INTRO!$E$42="Endémique", IF(AND($J37>1,$J37<5), IF($J37=4, "Inconnu", E37+F37), 0),"Non requis") -> 0 | O37: =IF(INTRO!$E$44="Endémique", IF(AND($K37>0,$K37<5), IF($K37=4,"Inconnu", IF($K37=1, $F37*0.33, IF($K37=2, $F37*0.5+$G37*0.2, SUM(F37:G37)))), 0),"Non requis") -> 46487.5 | P37: 0 | Q37: 0 | R37: 0 | S37: 0 | W37: T2 | X37: 10682 | Y37: Mongo | Z37: TRUE
A38: =IF(INTRO!$E$34<>0,INTRO!$E$34,"") -> Chad | B38: Hadjer Lamis | C38: Bokoro | D38: 220393 | E38: 34161 | F38: 75000 | G38: 107926 | H38: 0 | I38: 0 | J38: 1 | K38: 3 | L38: =IF(INTRO!$E$38="Endémique", IF($H38>0, IF($H38=4,"Inconnu", IF($H38=99,"Interrompu", $D38)), 0),"Non requis") -> 0 | M38: =IF(INTRO!$E$40="Endémique", IF($I38>0, IF($I38=4,"Inconnu",IF($I38=99,"Interrompu", $D38)), 0),"Non requis") -> 0 | N38: =IF(INTRO!$E$42="Endémique", IF(AND($J38>1,$J38<5), IF($J38=4, "Inconnu", E38+F38), 0),"Non requis") -> 0 | O38: =IF(INTRO!$E$44="Endémique", IF(AND($K38>0,$K38<5), IF($K38=4,"Inconnu", IF($K38=1, $F38*0.33, IF($K38=2, $F38*0.5+$G38*0.2, SUM(F38:G38)))), 0),"Non requis") -> 182926 | P38: 0 | Q38: 0 | R38: 0 | S38: 0 | W38: T2 | X38: 10683 | Y38: Bokoro | Z38: TRUE
A39: =IF(INTRO!$E$34<>0,INTRO!$E$34,"") -> Chad | B39: Hadjer Lamis | C39: Gama | D39: 90042 | E39: 13957 | F39: 30641 | G39: 44094 | H39: 0 | I39: 0 | J39: 1 | K39: 3 | L39: =IF(INTRO!$E$38="Endémique", IF($H39>0, IF($H39=4,"Inconnu", IF($H39=99,"Interrompu", $D39)), 0),"Non requis") -> 0 | M39: =IF(INTRO!$E$40="Endémique", IF($I39>0, IF($I39=4,"Inconnu",IF($I39=99,"Interrompu", $D39)), 0),"Non requis") -> 0 | N39: =IF(INTRO!$E$42="Endémique", IF(AND($J39>1,$J39<5), IF($J39=4, "Inconnu", E39+F39), 0),"Non requis") -> 0 | O39: =IF(INTRO!$E$44="Endémique", IF(AND($K39>0,$K39<5), IF($K39=4,"Inconnu", IF($K39=1, $F39*0.33, IF($K39=2, $F39*0.5+$G39*0.2, SUM(F39:G39)))), 0),"Non requis") -> 74735 | P39: 0 | Q39: 0 | R39: 0 | S39: 0 | W39: T2 | X39: 10748 | Y39: Gama | Z39: TRUE
A40: =IF(INTRO!$E$34<>0,INTRO!$E$34,"") -> Chad | B40: Hadjer Lamis | C40: Mani | D40: 133063 | E40: 20625 | F40: 45281 | G40: 65161 | H40: 0 | I40: 0 | J40: 1 | K40: 2 | L40: =IF(INTRO!$E$38="Endémique", IF($H40>0, IF($H40=4,"Inconnu", IF($H40=99,"Interrompu", $D40)), 0),"Non requis") -> 0 | M40: =IF(INTRO!$E$40="Endémique", IF($I40>0, IF($I40=4,"Inconnu",IF($I40=99,"Interrompu", $D40)), 0),"Non requis") -> 0 | N40: =IF(INTRO!$E$42="Endémique", IF(AND($J40>1,$J40<5), IF($J40=4, "Inconnu", E40+F40), 0),"Non requis") -> 0 | O40: =IF(INTRO!$E$44="Endémique", IF(AND($K40>0,$K40<5), IF($K40=4,"Inconnu", IF($K40=1, $F40*0.33, IF($K40=2, $F40*0.5+$G40*0.2, SUM(F40:G40)))), 0),"Non requis") -> 35672.7 | P40: 0 | Q40: 0 | R40: 0 | S40: 0 | W40: T2 | X40: 10684 | Y40: Mani | Z40: TRUE
A41: =IF(INTRO!$E$34<>0,INTRO!$E$34,"") -> Chad | B41: Hadjer Lamis | C41: Massaguet | D41: 70858 | E41: 10983 | F41: 24113 | G41: 34699 | H41: 0 | I41: 0 | J41: 1 | K41: 2 | L41: =IF(INTRO!$E$38="Endémique", IF($H41>0, IF($H41=4,"Inconnu", IF($H41=99,"Interrompu", $D41)), 0),"Non requis") -> 0 | M41: =IF(INTRO!$E$40="Endémique", IF($I41>0, IF($I41=4,"Inconnu",IF($I41=99,"Interrompu", $D41)), 0),"Non requis") -> 0 | N41: =IF(INTRO!$E$42="Endémique", IF(AND($J41>1,$J41<5), IF($J41=4, "Inconnu", E41+F41), 0),"Non requis") -> 0 | O41: =IF(INTRO!$E$44="Endémique", IF(AND($K41>0,$K41<5), IF($K41=4,"Inconnu", IF($K41=1, $F41*0.33, IF($K41=2, $F41*0.5+$G41*0.2, SUM(F41:G41)))), 0),"Non requis") -> 18996.3 | P41: 0 | Q41: 0 | R41: 0 | S41: 0 | W41: T2 | X41: 10685 | Y41: Massaguet | Z41: TRUE
A42: =IF(INTRO!$E$34<>0,INTRO!$E$34,"") -> Chad | B42: Hadjer Lamis | C42: Massakory | D42: 255936 | E42: 39670 | F42: 87095 | G42: 125332 | H42: 0 | I42: 0 | J42: 1 | K42: 2 | L42: =IF(INTRO!$E$38="Endémique", IF($H42>0, IF($H42=4,"Inconnu", IF($H42=99,"Interrompu", $D42)), 0),"Non requis") -> 0 | M42: =IF(INTRO!$E$40="Endémique", IF($I42>0, IF($I42=4,"Inconnu",IF($I42=99,"Interrompu", $D42)), 0),"Non requis") -> 0 | N42: =IF(INTRO!$E$42="Endémique", IF(AND($J42>1,$J42<5), IF($J42=4, "Inconnu", E42+F42), 0),"Non requis") -> 0 | O42: =IF(INTRO!$E$44="Endémique", IF(AND($K42>0,$K42<5), IF($K42=4,"Inconnu", IF($K42=1, $F42*0.33, IF($K42=2, $F42*0.5+$G42*0.2, SUM(F42:G42)))), 0),"Non requis") -> 68613.9 | P42: 0 | Q42: 0 | R42: 0 | S42: 0 | W42: T2 | X42: 10686 | Y42: Massakory | Z42: TRUE
A43: =IF(INTRO!$E$34<>0,INTRO!$E$34,"") -> Chad | B43: Kanem | C43: Mao | D43: 160270 | E43: 24842 | F43: 54540 | G43: 78484 | H43: 0 | I43: 0 | J43: 1 | K43: 1 | L43: =IF(INTRO!$E$38="Endémique", IF($H43>0, IF($H43=4,"Inconnu", IF($H43=99,"Interrompu", $D43)), 0),"Non requis") -> 0 | M43: =IF(INTRO!$E$40="Endémique", IF($I43>0, IF($I43=4,"Inconnu",IF($I43=99,"Interrompu", $D43)), 0),"Non requis") -> 0 | N43: =IF(INTRO!$E$42="Endémique", IF(AND($J43>1,$J43<5), IF($J43=4, "Inconnu", E43+F43), 0),"Non requis") -> 0 | O43: =IF(INTRO!$E$44="Endémique", IF(AND($K43>0,$K43<5), IF($K43=4,"Inconnu", IF($K43=1, $F43*0.33, IF($K43=2, $F43*0.5+$G43*0.2, SUM(F43:G43)))), 0),"Non requis") -> 17998.2 | P43: 0 | Q43: 0 | R43: 0 | S43: 0 | W43: T2 | X43: 10687 | Y43: Mao | Z43: TRUE
A44: =IF(INTRO!$E$34<>0,INTRO!$E$34,"") -> Chad | B44: Kanem | C44: Mondo | D44: 121271 | E44: 18797 | F44: 41269 | G44: 59386 | H44: 0 | I44: 0 | J44: 0 | K44: 1 | L44: =IF(INTRO!$E$38="Endémique", IF($H44>0, IF($H44=4,"Inconnu", IF($H44=99,"Interrompu", $D44)), 0),"Non requis") -> 0 | M44: =IF(INTRO!$E$40="Endémique", IF($I44>0, IF($I44=4,"Inconnu",IF($I44=99,"Interrompu", $D44)), 0),"Non requis") -> 0 | N44: =IF(INTRO!$E$42="Endémique", IF(AND($J44>1,$J44<5), IF($J44=4, "Inconnu", E44+F44), 0),"Non requis") -> 0 | O44: =IF(INTRO!$E$44="Endémique", IF(AND($K44>0,$K44<5), IF($K44=4,"Inconnu", IF($K44=1, $F44*0.33, IF($K44=2, $F44*0.5+$G44*0.2, SUM(F44:G44)))), 0),"Non requis") -> 13618.77 | P44: 0 | Q44: 0 | R44: 0 | S44: 0 | W44: T2 | X44: 10688 | Y44: Mondo | Z44: TRUE
A45: =IF(INTRO!$E$34<>0,INTRO!$E$34,"") -> Chad | B45: Kanem | C45: Nokou | D45: 80806 | E45: 12525 | F45: 27498 | G45: 39571 | H45: 0 | I45: 0 | J45: 0 | K45: 0 | L45: =IF(INTRO!$E$38="Endémique", IF($H45>0, IF($H45=4,"Inconnu", IF($H45=99,"Interrompu", $D45)), 0),"Non requis") -> 0 | M45: =IF(INTRO!$E$40="Endémique", IF($I45>0, IF($I45=4,"Inconnu",IF($I45=99,"Interrompu", $D45)), 0),"Non requis") -> 0 | N45: =IF(INTRO!$E$42="Endémique", IF(AND($J45>1,$J45<5), IF($J45=4, "Inconnu", E45+F45), 0),"Non requis") -> 0 | O45: =IF(INTRO!$E$44="Endémique", IF(AND($K45>0,$K45<5), IF($K45=4,"Inconnu", IF($K45=1, $F45*0.33, IF($K45=2, $F45*0.5+$G45*0.2, SUM(F45:G45)))), 0),"Non requis") -> 0 | P45: 0 | Q45: 0 | R45: 0 | S45: 0 | X45: 10689 | Y45: Nokou | Z45: TRUE
A46: =IF(INTRO!$E$34<>0,INTRO!$E$34,"") -> Chad | B46: Kanem | C46: Ntiona | D46: 47873 | E46: 7420 | F46: 16291 | G46: 23444 | H46: 0 | I46: 0 | J46: 1 | K46: 1 | L46: =IF(INTRO!$E$38="Endémique", IF($H46>0, IF($H46=4,"Inconnu", IF($H46=99,"Interrompu", $D46)), 0),"Non requis") -> 0 | M46: =IF(INTRO!$E$40="Endémique", IF($I46>0, IF($I46=4,"Inconnu",IF($I46=99,"Interrompu", $D46)), 0),"Non requis") -> 0 | N46: =IF(INTRO!$E$42="Endémique", IF(AND($J46>1,$J46<5), IF($J46=4, "Inconnu", E46+F46), 0),"Non requis") -> 0 | O46: =IF(INTRO!$E$44="Endémique", IF(AND($K46>0,$K46<5), IF($K46=4,"Inconnu", IF($K46=1, $F46*0.33, IF($K46=2, $F46*0.5+$G46*0.2, SUM(F46:G46)))), 0),"Non requis") -> 5376.03 | P46: 0 | Q46: 0 | R46: 0 | S46: 0 | W46: T2 | X46: 10764 | Y46: Ntiona | Z46: TRUE
A47: =IF(INTRO!$E$34<>0,INTRO!$E$34,"") -> Chad | B47: Kanem | C47: Rig-Rig | D47: 42802 | E47: 6634 | F47: 14566 | G47: 20960 | H47: 0 | I47: 0 | J47: 0 | K47: 0 | L47: =IF(INTRO!$E$38="Endémique", IF($H47>0, IF($H47=4,"Inconnu", IF($H47=99,"Interrompu", $D47)), 0),"Non requis") -> 0 | M47: =IF(INTRO!$E$40="Endémique", IF($I47>0, IF($I47=4,"Inconnu",IF($I47=99,"Interrompu", $D47)), 0),"Non requis") -> 0 | N47: =IF(INTRO!$E$42="Endémique", IF(AND($J47>1,$J47<5), IF($J47=4, "Inconnu", E47+F47), 0),"Non requis") -> 0 | O47: =IF(INTRO!$E$44="Endémique", IF(AND($K47>0,$K47<5), IF($K47=4,"Inconnu", IF($K47=1, $F47*0.33, IF($K47=2, $F47*0.5+$G47*0.2, SUM(F47:G47)))), 0),"Non requis") -> 0 | P47: 0 | Q47: 0 | R47: 0 | S47: 0 | X47: 10690 | Y47: Rig-Rig | Z47: TRUE
A48: =IF(INTRO!$E$34<>0,INTRO!$E$34,"") -> Chad | B48: Lac | C48: Bagassola | D48: 81189 | E48: 12584 | F48: 27629 | G48: 39758 | H48: 0 | I48: 0 | J48: 1 | K48: 2 | L48: =IF(INTRO!$E$38="Endémique", IF($H48>0, IF($H48=4,"Inconnu", IF($H48=99,"Interrompu", $D48)), 0),"Non requis") -> 0 | M48: =IF(INTRO!$E$40="Endémique", IF($I48>0, IF($I48=4,"Inconnu",IF($I48=99,"Interrompu", $D48)), 0),"Non requis") -> 0 | N48: =IF(INTRO!$E$42="Endémique", IF(AND($J48>1,$J48<5), IF($J48=4, "Inconnu", E48+F48), 0),"Non requis") -> 0 | O48: =IF(INTRO!$E$44="Endémique", IF(AND($K48>0,$K48<5), IF($K48=4,"Inconnu", IF($K48=1, $F48*0.33, IF($K48=2, $F48*0.5+$G48*0.2, SUM(F48:G48)))), 0),"Non requis") -> 21766.1 | P48: 0 | Q48: 0 | R48: 0 | S48: 0 | W48: T2 | X48: 10691 | Y48: Bagassola | Z48: TRUE
A49: =IF(INTRO!$E$34<>0,INTRO!$E$34,"") -> Chad | B49: Lac | C49: Bol | D49: 168807 | E49: 26165 | F49: 57445 | G49: 82665 | H49: 0 | I49: 0 | J49: 1 | K49: 2 | L49: =IF(INTRO!$E$38="Endémique", IF($H49>0, IF($H49=4,"Inconnu", IF($H49=99,"Interrompu", $D49)), 0),"Non requis") -> 0 | M49: =IF(INTRO!$E$40="Endémique", IF($I49>0, IF($I49=4,"Inconnu",IF($I49=99,"Interrompu", $D49)), 0),"Non requis") -> 0 | N49: =IF(INTRO!$E$42="Endémique", IF(AND($J49>1,$J49<5), IF($J49=4, "Inconnu", E49+F49), 0),"Non requis") -> 0 | O49: =IF(INTRO!$E$44="Endémique", IF(AND($K49>0,$K49<5), IF($K49=4,"Inconnu", IF($K49=1, $F49*0.33, IF($K49=2, $F49*0.5+$G49*0.2, SUM(F49:G49)))), 0),"Non requis") -> 45255.5 | P49: 0 | Q49: 0 | R49: 0 | S49: 0 | W49: T2 | X49: 10692 | Y49: Bol | Z49: TRUE
A50: =IF(INTRO!$E$34<>0,INTRO!$E$34,"") -> Chad | B50: Lac | C50: Isserom | D50: 58261 | E50: 9030 | F50: 19826 | G50: 28531 | H50: 0 | I50: 0 | J50: 1 | K50: 1 | L50: =IF(INTRO!$E$38="Endémique", IF($H50>0, IF($H50=4,"Inconnu", IF($H50=99,"Interrompu", $D50)), 0),"Non requis") -> 0 | M50: =IF(INTRO!$E$40="Endémique", IF($I50>0, IF($I50=4,"Inconnu",IF($I50=99,"Interrompu", $D50)), 0),"Non requis") -> 0 | N50: =IF(INTRO!$E$42="Endémique", IF(AND($J50>1,$J50<5), IF($J50=4, "Inconnu", E50+F50), 0),"Non requis") -> 0 | O50: =IF(INTRO!$E$44="Endémique", IF(AND($K50>0,$K50<5), IF($K50=4,"Inconnu", IF($K50=1, $F50*0.33, IF($K50=2, $F50*0.5+$G50*0.2, SUM(F50:G50)))), 0),"Non requis") -> 6542.58 | P50: 0 | Q50: 0 | R50: 0 | S50: 0 | W50: T2 | X50: 10749 | Y50: Isserom | Z50: TRUE
A51: =IF(INTRO!$E$34<>0,INTRO!$E$34,"") -> Chad | B51: Lac | C51: Kouloudia | D51: 70788 | E51: 10972 | F51: 24089 | G51: 34665 | H51: 0 | I51: 0 | J51: 1 | K51: 2 | L51: =IF(INTRO!$E$38="Endémique", IF($H51>0, IF($H51=4,"Inconnu", IF($H51=99,"Interrompu", $D51)), 0),"Non requis") -> 0 | M51: =IF(INTRO!$E$40="Endémique", IF($I51>0, IF($I51=4,"Inconnu",IF($I51=99,"Interrompu", $D51)), 0),"Non requis") -> 0 | N51: =IF(INTRO!$E$42="Endémique", IF(AND($J51>1,$J51<5), IF($J51=4, "Inconnu", E51+F51), 0),"Non requis") -> 0 | O51: =IF(INTRO!$E$44="Endémique", IF(AND($K51>0,$K51<5), IF($K51=4,"Inconnu", IF($K51=1, $F51*0.33, IF($K51=2, $F51*0.5+$G51*0.2, SUM(F51:G51)))), 0),"Non requis") -> 18977.5 | P51: 0 | Q51: 0 | R51: 0 | S51: 0 | W51: T2 | X51: 10693 | Y51: Kouloudia | Z51: TRUE
A52: =IF(INTRO!$E$34<>0,INTRO!$E$34,"") -> Chad | B52: Lac | C52: Liwa | D52: 52882 | E52: 8197 | F52: 17996 | G52: 25896 | H52: 0 | I52: 0 | J52: 1 | K52: 1 | L52: =IF(INTRO!$E$38="Endémique", IF($H52>0, IF($H52=4,"Inconnu", IF($H52=99,"Interrompu", $D52)), 0),"Non requis") -> 0 | M52: =IF(INTRO!$E$40="Endémique", IF($I52>0, IF($I52=4,"Inconnu",IF($I52=99,"Interrompu", $D52)), 0),"Non requis") -> 0 | N52: =IF(INTRO!$E$42="Endémique", IF(AND($J52>1,$J52<5), IF($J52=4, "Inconnu", E52+F52), 0),"Non requis") -> 0 | O52: =IF(INTRO!$E$44="Endémique", IF(AND($K52>0,$K52<5), IF($K52=4,"Inconnu", IF($K52=1, $F52*0.33, IF($K52=2, $F52*0.5+$G52*0.2, SUM(F52:G52)))), 0),"Non requis") -> 5938.68 | P52: 0 | Q52: 0 | R52: 0 | S52: 0 | W52: T2 | X52: 10694 | Y52: Liwa | Z52: TRUE
A53: =IF(INTRO!$E$34<>0,INTRO!$E$34,"") -> Chad | B53: Lac | C53: Ngouri | D53: 157520 | E53: 24416 | F53: 53604 | G53: 77138 | H53: 0 | I53: 0 | J53: 1 | K53: 1 | L53: =IF(INTRO!$E$38="Endémique", IF($H53>0, IF($H53=4,"Inconnu", IF($H53=99,"Interrompu", $D53)), 0),"Non requis") -> 0 | M53: =IF(INTRO!$E$40="Endémique", IF($I53>0, IF($I53=4,"Inconnu",IF($I53=99,"Interrompu", $D53)), 0),"Non requis") -> 0 | N53: =IF(INTRO!$E$42="Endémique", IF(AND($J53>1,$J53<5), IF($J53=4, "Inconnu", E53+F53), 0),"Non requis") -> 0 | O53: =IF(INTRO!$E$44="Endémique", IF(AND($K53>0,$K53<5), IF($K53=4,"Inconnu", IF($K53=1, $F53*0.33, IF($K53=2, $F53*0.5+$G53*0.2, SUM(F53:G53)))), 0),"Non requis") -> 17689.32 | P53: 0 | Q53: 0 | R53: 0 | S53: 0 | W53: T2 | X53: 10695 | Y53: Ngouri | Z53: TRUE
A54: =IF(INTRO!$E$34<>0,INTRO!$E$34,"") -> Chad | B54: Logone Occidental | C54: Benamar | D54: 122456 | E54: 15919 | F54: 43717 | G54: 59966 | H54: 1 | I54: 1 | J54: 1 | K54: 2 | L54: =IF(INTRO!$E$38="Endémique", IF($H54>0, IF($H54=4,"Inconnu", IF($H54=99,"Interrompu", $D54)), 0),"Non requis") -> 122456 | M54: =IF(INTRO!$E$40="Endémique", IF($I54>0, IF($I54=4,"Inconnu",IF($I54=99,"Interrompu", $D54)), 0),"Non requis") -> 122456 | N54: =IF(INTRO!$E$42="Endémique", IF(AND($J54>1,$J54<5), IF($J54=4, "Inconnu", E54+F54), 0),"Non requis") -> 0 | O54: =IF(INTRO!$E$44="Endémique", IF(AND($K54>0,$K54<5), IF($K54=4,"Inconnu", IF($K54=1, $F54*0.33, IF($K54=2, $F54*0.5+$G54*0.2, SUM(F54:G54)))), 0),"Non requis") -> 33851.7 | P54: 1 | Q54: 1 | R54: 0 | S54: 1 | T54: MDA1 (IVM+ALB) | U54: T2 (PZQ) | V54: MDA 1 | W54: T2 | X54: 10765 | Y54: Benamar | Z54: TRUE
A55: =IF(INTRO!$E$34<>0,INTRO!$E$34,"") -> Chad | B55: Logone Occidental | C55: Benoye | D55: 290776 | E55: 45070 | F55: 59432 | G55: 142393 | H55: 1 | I55: 0 | J55: 1 | K55: 2 | L55: =IF(INTRO!$E$38="Endémique", IF($H55>0, IF($H55=4,"Inconnu", IF($H55=99,"Interrompu", $D55)), 0),"Non requis") -> 290776 | M55: =IF(INTRO!$E$40="Endémique", IF($I55>0, IF($I55=4,"Inconnu",IF($I55=99,"Interrompu", $D55)), 0),"Non requis") -> 0 | N55: =IF(INTRO!$E$42="Endémique", IF(AND($J55>1,$J55<5), IF($J55=4, "Inconnu", E55+F55), 0),"Non requis") -> 0 | O55: =IF(INTRO!$E$44="Endémique", IF(AND($K55>0,$K55<5), IF($K55=4,"Inconnu", IF($K55=1, $F55*0.33, IF($K55=2, $F55*0.5+$G55*0.2, SUM(F55:G55)))), 0),"Non requis") -> 58194.6 | P55: 1 | Q55: 0 | R55: 0 | S55: 1 | T55: MDA1 (IVM+ALB) | U55: T2 (PZQ) | V55: MDA 1 | W55: T2 | X55: 10696 | Y55: Benoye | Z55: TRUE
A56: =IF(INTRO!$E$34<>0,INTRO!$E$34,"") -> Chad | B56: Logone Occidental | C56: Laokassy | D56: 177414 | E56: 23064 | F56: 63869 | G56: 86880 | H56: 1 | I56: 1 | J56: 1 | K56: 2 | L56: =IF(INTRO!$E$38="Endémique", IF($H56>0, IF($H56=4,"Inconnu", IF($H56=99,"Interrompu", $D56)), 0),"Non requis") -> 177414 | M56: =IF(INTRO!$E$40="Endémique", IF($I56>0, IF($I56=4,"Inconnu",IF($I56=99,"Interrompu", $D56)), 0),"Non requis") -> 177414 | N56: =IF(INTRO!$E$42="Endémique", IF(AND($J56>1,$J56<5), IF($J56=4, "Inconnu", E56+F56), 0),"Non requis") -> 0 | O56: =IF(INTRO!$E$44="Endémique", IF(AND($K56>0,$K56<5), IF($K56=4,"Inconnu", IF($K56=1, $F56*0.33, IF($K56=2, $F56*0.5+$G56*0.2, SUM(F56:G56)))), 0),"Non requis") -> 49310.5 | P56: 1 | Q56: 1 | R56: 0 | S56: 1 | T56: MDA1 (IVM+ALB) | U56: T2 (PZQ) | V56: MDA 1 | W56: T2 | X56: 10697 | Y56: Laokassy | Z56: TRUE
A57: =IF(INTRO!$E$34<>0,INTRO!$E$34,"") -> Chad | B57: Logone Occidental | C57: Moundou | D57: 433245 | E57: 56322 | F57: 155557 | G57: 212160 | H57: 1 | I57: 1 | J57: 1 | K57: 1 | L57: =IF(INTRO!$E$38="Endémique", IF($H57>0, IF($H57=4,"Inconnu", IF($H57=99,"Interrompu", $D57)), 0),"Non requis") -> 433245 | M57: =IF(INTRO!$E$40="Endémique", IF($I57>0, IF($I57=4,"Inconnu",IF($I57=99,"Interrompu", $D57)), 0),"Non requis") -> 433245 | N57: =IF(INTRO!$E$42="Endémique", IF(AND($J57>1,$J57<5), IF($J57=4, "Inconnu", E57+F57), 0),"Non requis") -> 0 | O57: =IF(INTRO!$E$44="Endémique", IF(AND($K57>0,$K57<5), IF($K57=4,"Inconnu", IF($K57=1, $F57*0.33, IF($K57=2, $F57*0.5+$G57*0.2, SUM(F57:G57)))), 0),"Non requis") -> 51333.81 | P57: 1 | Q57: 1 | R57: 0 | S57: 1 | T57: MDA1 (IVM+ALB) | U57: T2 (PZQ) | V57: MDA 1 | W57: T2 | X57: 10698 | Y57: Moundou | Z57: TRUE
A58: =IF(INTRO!$E$34<>0,INTRO!$E$34,"") -> Chad | B58: Logone Orientlal | C58: Baibokoum | D58: 78387 | E58: 12150 | F58: 26675 | G58: 38386 | H58: 1 | I58: 1 | J58: 1 | K58: 2 | L58: =IF(INTRO!$E$38="Endémique", IF($H58>0, IF($H58=4,"Inconnu", IF($H58=99,"Interrompu", $D58)), 0),"Non requis") -> 78387 | M58: =IF(INTRO!$E$40="Endémique", IF($I58>0, IF($I58=4,"Inconnu",IF($I58=99,"Interrompu", $D58)), 0),"Non requis") -> 78387 | N58: =IF(INTRO!$E$42="Endémique", IF(AND($J58>1,$J58<5), IF($J58=4, "Inconnu", E58+F58), 0),"Non requis") -> 0 | O58: =IF(INTRO!$E$44="Endémique", IF(AND($K58>0,$K58<5), IF($K58=4,"Inconnu", IF($K58=1, $F58*0.33, IF($K58=2, $F58*0.5+$G58*0.2, SUM(F58:G58)))), 0),"Non requis") -> 21014.7 | P58: 0 | Q58: 0 | R58: 0 | S58: 0 | T58: MDA1 (IVM+ALB) | V58: MDA 1 | W58: T2 | X58: 10766 | Y58: Baibokoum | Z58: TRUE
A59: =IF(INTRO!$E$34<>0,INTRO!$E$34,"") -> Chad | B59: Logone Orientlal | C59: Bebedja | D59: 164021 | E59: 21323 | F59: 58555 | G59: 80321 | H59: 1 | I59: 1 | J59: 1 | K59: 2 | L59: =IF(INTRO!$E$38="Endémique", IF($H59>0, IF($H59=4,"Inconnu", IF($H59=99,"Interrompu", $D59)), 0),"Non requis") -> 164021 | M59: =IF(INTRO!$E$40="Endémique", IF($I59>0, IF($I59=4,"Inconnu",IF($I59=99,"Interrompu", $D59)), 0),"Non requis") -> 164021 | N59: =IF(INTRO!$E$42="Endémique", IF(AND($J59>1,$J59<5), IF($J59=4, "Inconnu", E59+F59), 0),"Non requis") -> 0 | O59: =IF(INTRO!$E$44="Endémique", IF(AND($K59>0,$K59<5), IF($K59=4,"Inconnu", IF($K59=1, $F59*0.33, IF($K59=2, $F59*0.5+$G59*0.2, SUM(F59:G59)))), 0),"Non requis") -> 45341.7 | P59: 1 | Q59: 1 | R59: 0 | S59: 1 | T59: MDA1 (IVM+ALB) | U59: T2 (PZQ) | V59: MDA 1 | W59: T2 | X59: 10699 | Y59: Bebedja | Z59: TRUE
A60: =IF(INTRO!$E$34<>0,INTRO!$E$34,"") -> Chad | B60: Logone Orientlal | C60: Beboto | D60: 89755 | E60: 11668 | F60: 32043 | G60: 43953 | H60: 1 | I60: 1 | J60: 1 | K60: 2 | L60: =IF(INTRO!$E$38="Endémique", IF($H60>0, IF($H60=4,"Inconnu", IF($H60=99,"Interrompu", $D60)), 0),"Non requis") -> 89755 | M60: =IF(INTRO!$E$40="Endémique", IF($I60>0, IF($I60=4,"Inconnu",IF($I60=99,"Interrompu", $D60)), 0),"Non requis") -> 89755 | N60: =IF(INTRO!$E$42="Endémique", IF(AND($J60>1,$J60<5), IF($J60=4, "Inconnu", E60+F60), 0),"Non requis") -> 0 | O60: =IF(INTRO!$E$44="Endémique", IF(AND($K60>0,$K60<5), IF($K60=4,"Inconnu", IF($K60=1, $F60*0.33, IF($K60=2, $F60*0.5+$G60*0.2, SUM(F60:G60)))), 0),"Non requis") -> 24812.1 | P60: 1 | Q60: 1 | R60: 0 | S60: 1 | T60: MDA1 (IVM+ALB) | U60: T2 (PZQ) | V60: MDA 1 | W60: T2 | X60: 10700 | Y60: Beboto | Z60: TRUE
A61: =IF(INTRO!$E$34<>0,INTRO!$E$34,"") -> Chad | B61: Logone Orientlal | C61: Bessao | D61: 158428 | E61: 20596 | F61: 56558 | G61: 77582 | H61: 1 | I61: 1 | J61: 1 | K61: 2 | L61: =IF(INTRO!$E$38="Endémique", IF($H61>0, IF($H61=4,"Inconnu", IF($H61=99,"Interrompu", $D61)), 0),"Non requis") -> 158428 | M61: =IF(INTRO!$E$40="Endémique", IF($I61>0, IF($I61=4,"Inconnu",IF($I61=99,"Interrompu", $D61)), 0),"Non requis") -> 158428 | N61: =IF(INTRO!$E$42="Endémique", IF(AND($J61>1,$J61<5), IF($J61=4, "Inconnu", E61+F61), 0),"Non requis") -> 0 | O61: =IF(INTRO!$E$44="Endémique", IF(AND($K61>0,$K61<5), IF($K61=4,"Inconnu", IF($K61=1, $F61*0.33, IF($K61=2, $F61*0.5+$G61*0.2, SUM(F61:G61)))), 0),"Non requis") -> 43795.4 | P61: 1 | Q61: 1 | R61: 0 | S61: 1 | T61: MDA1 (IVM+ALB) | U61: T2 (PZQ) | V61: MDA 1 | W61: T2 | X61: 10701 | Y61: Bessao | Z61: TRUE
A62: =IF(INTRO!$E$34<>0,INTRO!$E$34,"") -> Chad | B62: Logone Orientlal | C62: Bodo | D62: 89646 | E62: 11654 | F62: 32003 | G62: 43900 | H62: 1 | I62: 0 | J62: 1 | K62: 2 | L62: =IF(INTRO!$E$38="Endémique", IF($H62>0, IF($H62=4,"Inconnu", IF($H62=99,"Interrompu", $D62)), 0),"Non requis") -> 89646 | M62: =IF(INTRO!$E$40="Endémique", IF($I62>0, IF($I62=4,"Inconnu",IF($I62=99,"Interrompu", $D62)), 0),"Non requis") -> 0 | N62: =IF(INTRO!$E$42="Endémique", IF(AND($J62>1,$J62<5), IF($J62=4, "Inconnu", E62+F62), 0),"Non requis") -> 0 | O62: =IF(INTRO!$E$44="Endémique", IF(AND($K62>0,$K62<5), IF($K62=4,"Inconnu", IF($K62=1, $F62*0.33, IF($K62=2, $F62*0.5+$G62*0.2, SUM(F62:G62)))), 0),"Non requis") -> 24781.5 | P62: 1 | Q62: 0 | R62: 0 | S62: 1 | T62: MDA1 (IVM+ALB) | U62: T2 (PZQ) | V62: MDA 1 | W62: T2 | X62: 10702 | Y62: Bodo | Z62: TRUE
A63: =IF(INTRO!$E$34<>0,INTRO!$E$34,"") -> Chad | B63: Logone Orientlal | C63: Doba | D63: 199255 | E63: 30885 | F63: 65972 | G63: 97575 | H63: 1 | I63: 1 | J63: 1 | K63: 1 | L63: =IF(INTRO!$E$38="Endémique", IF($H63>0, IF($H63=4,"Inconnu", IF($H63=99,"Interrompu", $D63)), 0),"Non requis") -> 199255 | M63: =IF(INTRO!$E$40="Endémique", IF($I63>0, IF($I63=4,"Inconnu",IF($I63=99,"Interrompu", $D63)), 0),"Non requis") -> 199255 | N63: =IF(INTRO!$E$42="Endémique", IF(AND($J63>1,$J63<5), IF($J63=4, "Inconnu", E63+F63), 0),"Non requis") -> 0 | O63: =IF(INTRO!$E$44="Endémique", IF(AND($K63>0,$K63<5), IF($K63=4,"Inconnu", IF($K63=1, $F63*0.33, IF($K63=2, $F63*0.5+$G63*0.2, SUM(F63:G63)))), 0),"Non requis") -> 21770.76 | P63: 1 | Q63: 1 | R63: 0 | S63: 1 | T63: MDA1 (IVM+ALB) | U63: T2 (PZQ) | V63: MDA 1 | W63: T2 | X63: 10703 | Y63: Doba | Z63: TRUE
A64: =IF(INTRO!$E$34<>0,INTRO!$E$34,"") -> Chad | B64: Logone Orientlal | C64: DONIA | D64: 76423 | E64: 9935 | F64: 27283 | G64: 37424 | H64: 1 | I64: 1 | J64: 1 | K64: 2 | L64: =IF(INTRO!$E$38="Endémique", IF($H64>0, IF($H64=4,"Inconnu", IF($H64=99,"Interrompu", $D64)), 0),"Non requis") -> 76423 | M64: =IF(INTRO!$E$40="Endémique", IF($I64>0, IF($I64=4,"Inconnu",IF($I64=99,"Interrompu", $D64)), 0),"Non requis") -> 76423 | N64: =IF(INTRO!$E$42="Endémique", IF(AND($J64>1,$J64<5), IF($J64=4, "Inconnu", E64+F64), 0),"Non requis") -> 0 | O64: =IF(INTRO!$E$44="Endémique", IF(AND($K64>0,$K64<5), IF($K64=4,"Inconnu", IF($K64=1, $F64*0.33, IF($K64=2, $F64*0.5+$G64*0.2, SUM(F64:G64)))), 0),"Non requis") -> 21126.3 | P64: 1 | Q64: 1 | R64: 0 | S64: 1 | T64: MDA1 (IVM+ALB) | U64: T2 (PZQ) | V64: MDA 1 | W64: T2 | X64: 10767 | Y64: DONIA | Z64: TRUE
A65: =IF(INTRO!$E$34<>0,INTRO!$E$34,"") -> Chad | B65: Logone Orientlal | C65: Goré | D65: 146604 | E65: 22724 | F65: 50977 | G65: 71792 | H65: 1 | I65: 1 | J65: 1 | K65: 2 | L65: =IF(INTRO!$E$38="Endémique", IF($H65>0, IF($H65=4,"Inconnu", IF($H65=99,"Interrompu", $D65)), 0),"Non requis") -> 146604 | M65: =IF(INTRO!$E$40="Endémique", IF($I65>0, IF($I65=4,"Inconnu",IF($I65=99,"Interrompu", $D65)), 0),"Non requis") -> 146604 | N65: =IF(INTRO!$E$42="Endémique", IF(AND($J65>1,$J65<5), IF($J65=4, "Inconnu", E65+F65), 0),"Non requis") -> 0 | O65: =IF(INTRO!$E$44="Endémique", IF(AND($K65>0,$K65<5), IF($K65=4,"Inconnu", IF($K65=1, $F65*0.33, IF($K65=2, $F65*0.5+$G65*0.2, SUM(F65:G65)))), 0),"Non requis") -> 39846.9 | P65: 1 | Q65: 1 | R65: 0 | S65: 1 | T65: MDA1 (IVM+ALB) | U65: T2 (PZQ) | V65: MDA 1 | W65: T2 | X65: 10704 | Y65: Goré | Z65: TRUE
A66: =IF(INTRO!$E$34<>0,INTRO!$E$34,"") -> Chad | B66: Logone Orientlal | C66: Kara | D66: 56944 | E66: 7403 | F66: 20329 | G66: 27886 | H66: 1 | I66: 1 | J66: 1 | K66: 1 | L66: =IF(INTRO!$E$38="Endémique", IF($H66>0, IF($H66=4,"Inconnu", IF($H66=99,"Interrompu", $D66)), 0),"Non requis") -> 56944 | M66: =IF(INTRO!$E$40="Endémique", IF($I66>0, IF($I66=4,"Inconnu",IF($I66=99,"Interrompu", $D66)), 0),"Non requis") -> 56944 | N66: =IF(INTRO!$E$42="Endémique", IF(AND($J66>1,$J66<5), IF($J66=4, "Inconnu", E66+F66), 0),"Non requis") -> 0 | O66: =IF(INTRO!$E$44="Endémique", IF(AND($K66>0,$K66<5), IF($K66=4,"Inconnu", IF($K66=1, $F66*0.33, IF($K66=2, $F66*0.5+$G66*0.2, SUM(F66:G66)))), 0),"Non requis") -> 6708.57 | P66: 1 | Q66: 1 | R66: 0 | S66: 1 | T66: MDA1 (IVM+ALB) | U66: T2 (PZQ) | V66: MDA 1 | W66: T2 | X66: 10768 | Y66: Kara | Z66: TRUE
A67: =IF(INTRO!$E$34<>0,INTRO!$E$34,"") -> Chad | B67: Logone Orientlal | C67: Larmanaye | D67: 73072 | E67: 9499 | F67: 26088 | G67: 35784 | H67: 1 | I67: 1 | J67: 2 | K67: 2 | L67: =IF(INTRO!$E$38="Endémique", IF($H67>0, IF($H67=4,"Inconnu", IF($H67=99,"Interrompu", $D67)), 0),"Non requis") -> 73072 | M67: =IF(INTRO!$E$40="Endémique", IF($I67>0, IF($I67=4,"Inconnu",IF($I67=99,"Interrompu", $D67)), 0),"Non requis") -> 73072 | N67: =IF(INTRO!$E$42="Endémique", IF(AND($J67>1,$J67<5), IF($J67=4, "Inconnu", E67+F67), 0),"Non requis") -> 35587 | O67: =IF(INTRO!$E$44="Endémique", IF(AND($K67>0,$K67<5), IF($K67=4,"Inconnu", IF($K67=1, $F67*0.33, IF($K67=2, $F67*0.5+$G67*0.2, SUM(F67:G67)))), 0),"Non requis") -> 20200.8 | P67: 1 | Q67: 1 | R67: 0 | S67: 1 | T67: MDA1 (IVM+ALB) | U67: T2 (PZQ) | V67: MDA 1 | W67: T2 | X67: 10705 | Y67: Larmanaye | Z67: TRUE
A68: =IF(INTRO!$E$34<>0,INTRO!$E$34,"") -> Chad | B68: Mandoul | C68: Bedaya | D68: 94515 | E68: 14650 | F68: 32306 | G68: 46284 | H68: 1 | I68: 1 | J68: 1 | K68: 1 | L68: =IF(INTRO!$E$38="Endémique", IF($H68>0, IF($H68=4,"Inconnu", IF($H68=99,"Interrompu", $D68)), 0),"Non requis") -> 94515 | M68: =IF(INTRO!$E$40="Endémique", IF($I68>0, IF($I68=4,"Inconnu",IF($I68=99,"Interrompu", $D68)), 0),"Non requis") -> 94515 | N68: =IF(INTRO!$E$42="Endémique", IF(AND($J68>1,$J68<5), IF($J68=4, "Inconnu", E68+F68), 0),"Non requis") -> 0 | O68: =IF(INTRO!$E$44="Endémique", IF(AND($K68>0,$K68<5), IF($K68=4,"Inconnu", IF($K68=1, $F68*0.33, IF($K68=2, $F68*0.5+$G68*0.2, SUM(F68:G68)))), 0),"Non requis") -> 10660.98 | P68: 0 | Q68: 1 | R68: 1 | S68: 1 | T68: MDA3 (IVM) | U68: T1 (PZQ+ALB/MBD) | V68: MDA 1 | W68: T2 | X68: 10769 | Y68: Bedaya | Z68: TRUE
A69: =IF(INTRO!$E$34<>0,INTRO!$E$34,"") -> Chad | B69: Mandoul | C69: Bedjondo | D69: 110081 | E69: 14311 | F69: 39629 | G69: 53907 | H69: 0 | I69: 1 | J69: 0 | K69: 1 | L69: =IF(INTRO!$E$38="Endémique", IF($H69>0, IF($H69=4,"Inconnu", IF($H69=99,"Interrompu", $D69)), 0),"Non requis") -> 0 | M69: =IF(INTRO!$E$40="Endémique", IF($I69>0, IF($I69=4,"Inconnu",IF($I69=99,"Interrompu", $D69)), 0),"Non requis") -> 110081 | N69: =IF(INTRO!$E$42="Endémique", IF(AND($J69>1,$J69<5), IF($J69=4, "Inconnu", E69+F69), 0),"Non requis") -> 0 | O69: =IF(INTRO!$E$44="Endémique", IF(AND($K69>0,$K69<5), IF($K69=4,"Inconnu", IF($K69=1, $F69*0.33, IF($K69=2, $F69*0.5+$G69*0.2, SUM(F69:G69)))), 0),"Non requis") -> 13077.57 | P69: 0 | Q69: 1 | R69: 1 | S69: 1 | T69: MDA3 (IVM) | U69: T1 (PZQ+ALB/MBD) | V69: MDA 3 | W69: T2 | X69: 10706 | Y69: Bedjondo | Z69: TRUE
A70: =IF(INTRO!$E$34<>0,INTRO!$E$34,"") -> Chad | B70: Mandoul | C70: Bekourou | D70: 80358 | E70: 12455 | F70: 27346 | G70: 39351 | H70: 0 | I70: 1 | J70: 0 | K70: 0 | L70: =IF(INTRO!$E$38="Endémique", IF($H70>0, IF($H70=4,"Inconnu", IF($H70=99,"Interrompu", $D70)), 0),"Non requis") -> 0 | M70: =IF(INTRO!$E$40="Endémique", IF($I70>0, IF($I70=4,"Inconnu",IF($I70=99,"Interrompu", $D70)), 0),"Non requis") -> 80358 | N70: =IF(INTRO!$E$42="Endémique", IF(AND($J70>1,$J70<5), IF($J70=4, "Inconnu", E70+F70), 0),"Non requis") -> 0 | O70: =IF(INTRO!$E$44="Endémique", IF(AND($K70>0,$K70<5), IF($K70=4,"Inconnu", IF($K70=1, $F70*0.33, IF($K70=2, $F70*0.5+$G70*0.2, SUM(F70:G70)))), 0),"Non requis") -> 0 | P70: 0 | Q70: 1 | R70: 0 | S70: 0 | T70: MDA3 (IVM) | U70: T2 (PZQ) | V70: MDA 3 | X70: 10770 | Y70: Bekourou | Z70: TRUE
A71: =IF(INTRO!$E$34<>0,INTRO!$E$34,"") -> Chad | B71: Mandoul | C71: Bouna | D71: 94515 | E71: 12287 | F71: 33741 | G71: 46284 | H71: 0 | I71: 1 | J71: 1 | K71: 0 | L71: =IF(INTRO!$E$38="Endémique", IF($H71>0, IF($H71=4,"Inconnu", IF($H71=99,"Interrompu", $D71)), 0),"Non requis") -> 0 | M71: =IF(INTRO!$E$40="Endémique", IF($I71>0, IF($I71=4,"Inconnu",IF($I71=99,"Interrompu", $D71)), 0),"Non requis") -> 94515 | N71: =IF(INTRO!$E$42="Endémique", IF(AND($J71>1,$J71<5), IF($J71=4, "Inconnu", E71+F71), 0),"Non requis") -> 0 | O71: =IF(INTRO!$E$44="Endémique", IF(AND($K71>0,$K71<5), IF($K71=4,"Inconnu", IF($K71=1, $F71*0.33, IF($K71=2, $F71*0.5+$G71*0.2, SUM(F71:G71)))), 0),"Non requis") -> 0 | P71: 0 | Q71: 1 | R71: 1 | S71: 0 | T71: MDA3 (IVM) | U71: T1 (PZQ+ALB/MBD) | V71: MDA 3 | X71: 10707 | Y71: Bouna | Z71: TRUE
A72: =IF(INTRO!$E$34<>0,INTRO!$E$34,"") -> Chad | B72: Mandoul | C72: Goundi | D72: 180049 | E72: 27908 | F72: 61271 | G72: 88170 | H72: 0 | I72: 0 | J72: 1 | K72: 1 | L72: =IF(INTRO!$E$38="Endémique", IF($H72>0, IF($H72=4,"Inconnu", IF($H72=99,"Interrompu", $D72)), 0),"Non requis") -> 0 | M72: =IF(INTRO!$E$40="Endémique", IF($I72>0, IF($I72=4,"Inconnu",IF($I72=99,"Interrompu", $D72)), 0),"Non requis") -> 0 | N72: =IF(INTRO!$E$42="Endémique", IF(AND($J72>1,$J72<5), IF($J72=4, "Inconnu", E72+F72), 0),"Non requis") -> 0 | O72: =IF(INTRO!$E$44="Endémique", IF(AND($K72>0,$K72<5), IF($K72=4,"Inconnu", IF($K72=1, $F72*0.33, IF($K72=2, $F72*0.5+$G72*0.2, SUM(F72:G72)))), 0),"Non requis") -> 20219.43 | P72: 0 | Q72: 0 | R72: 0 | S72: 0 | W72: T2 | X72: 10708 | Y72: Goundi | Z72: TRUE
A73: =IF(INTRO!$E$34<>0,INTRO!$E$34,"") -> Chad | B73: Mandoul | C73: Koumra | D73: 213415 | E73: 27744 | F73: 76189 | G73: 104509 | H73: 1 | I73: 1 | J73: 1 | K73: 1 | L73: =IF(INTRO!$E$38="Endémique", IF($H73>0, IF($H73=4,"Inconnu", IF($H73=99,"Interrompu", $D73)), 0),"Non requis") -> 213415 | M73: =IF(INTRO!$E$40="Endémique", IF($I73>0, IF($I73=4,"Inconnu",IF($I73=99,"Interrompu", $D73)), 0),"Non requis") -> 213415 | N73: =IF(INTRO!$E$42="Endémique", IF(AND($J73>1,$J73<5), IF($J73=4, "Inconnu", E73+F73), 0),"Non requis") -> 0 | O73: =IF(INTRO!$E$44="Endémique", IF(AND($K73>0,$K73<5), IF($K73=4,"Inconnu", IF($K73=1, $F73*0.33, IF($K73=2, $F73*0.5+$G73*0.2, SUM(F73:G73)))), 0),"Non requis") -> 25142.37 | P73: 1 | Q73: 1 | R73: 0 | S73: 1 | T73: MDA1 (IVM+ALB) | U73: T2 (PZQ) | V73: MDA 1 | W73: T2 | X73: 10709 | Y73: Koumra | Z73: TRUE
A74: =IF(INTRO!$E$34<>0,INTRO!$E$34,"") -> Chad | B74: Mandoul | C74: Moissala | D74: 178511 | E74: 23206 | F74: 63728 | G74: 87417 | H74: 0 | I74: 1 | J74: 0 | K74: 0 | L74: =IF(INTRO!$E$38="Endémique", IF($H74>0, IF($H74=4,"Inconnu", IF($H74=99,"Interrompu", $D74)), 0),"Non requis") -> 0 | M74: =IF(INTRO!$E$40="Endémique", IF($I74>0, IF($I74=4,"Inconnu",IF($I74=99,"Interrompu", $D74)), 0),"Non requis") -> 178511 | N74: =IF(INTRO!$E$42="Endémique", IF(AND($J74>1,$J74<5), IF($J74=4, "Inconnu", E74+F74), 0),"Non requis") -> 0 | O74: =IF(INTRO!$E$44="Endémique", IF(AND($K74>0,$K74<5), IF($K74=4,"Inconnu", IF($K74=1, $F74*0.33, IF($K74=2, $F74*0.5+$G74*0.2, SUM(F74:G74)))), 0),"Non requis") -> 0 | P74: 0 | Q74: 1 | R74: 1 | S74: 0 | T74: MDA3 (IVM) | U74: T1 (PZQ+ALB/MBD) | V74: MDA 3 | X74: 10710 | Y74: Moissala | Z74: =Y74=C74 -> TRUE
A75: =IF(INTRO!$E$34<>0,INTRO!$E$34,"") -> Chad | B75: Mayo Kebbi Est | C75: Bongor | D75: 144525 | E75: 18788 | F75: 51596 | G75: 70774 | H75: 0 | I75: 0 | J75: 1 | K75: 2 | L75: =IF(INTRO!$E$38="Endémique", IF($H75>0, IF($H75=4,"Inconnu", IF($H75=99,"Interrompu", $D75)), 0),"Non requis") -> 0 | M75: =IF(INTRO!$E$40="Endémique", IF($I75>0, IF($I75=4,"Inconnu",IF($I75=99,"Interrompu", $D75)), 0),"Non requis") -> 0 | N75: =IF(INTRO!$E$42="Endémique", IF(AND($J75>1,$J75<5), IF($J75=4, "Inconnu", E75+F75), 0),"Non requis") -> 0 | O75: =IF(INTRO!$E$44="Endémique", IF(AND($K75>0,$K75<5), IF($K75=4,"Inconnu", IF($K75=1, $F75*0.33, IF($K75=2, $F75*0.5+$G75*0.2, SUM(F75:G75)))), 0),"Non requis") -> 39952.8 | P75: 0 | Q75: 0 | R75: 1 | S75: 1 | T75: T1 (PZQ+ALB/MBD) | W75: T2 | X75: 10753 | Y75: Bongor | Z75: TRUE
A76: =IF(INTRO!$E$34<>0,INTRO!$E$34,"") -> Chad | B76: Mayo Kebbi Est | C76: Fianga | D76: 131245 | E76: 17062 | F76: 46856 | G76: 64270 | H76: 0 | I76: 1 | J76: 1 | K76: 3 | L76: =IF(INTRO!$E$38="Endémique", IF($H76>0, IF($H76=4,"Inconnu", IF($H76=99,"Interrompu", $D76)), 0),"Non requis") -> 0 | M76: =IF(INTRO!$E$40="Endémique", IF($I76>0, IF($I76=4,"Inconnu",IF($I76=99,"Interrompu", $D76)), 0),"Non requis") -> 131245 | N76: =IF(INTRO!$E$42="Endémique", IF(AND($J76>1,$J76<5), IF($J76=4, "Inconnu", E76+F76), 0),"Non requis") -> 0 | O76: =IF(INTRO!$E$44="Endémique", IF(AND($K76>0,$K76<5), IF($K76=4,"Inconnu", IF($K76=1, $F76*0.33, IF($K76=2, $F76*0.5+$G76*0.2, SUM(F76:G76)))), 0),"Non requis") -> 111126 | P76: 0 | Q76: 1 | R76: 0 | S76: 1 | T76: MDA3 (IVM) | U76: T2 (PZQ) | V76: MDA 3 | W76: T2 | X76: 10712 | Y76: Fianga | Z76: TRUE
A77: =IF(INTRO!$E$34<>0,INTRO!$E$34,"") -> Chad | B77: Mayo Kebbi Est | C77: Gounou Gaya | D77: 112345 | E77: 14605 | F77: 40107 | G77: 55015 | H77: 0 | I77: 1 | J77: 2 | K77: 2 | L77: =IF(INTRO!$E$38="Endémique", IF($H77>0, IF($H77=4,"Inconnu", IF($H77=99,"Interrompu", $D77)), 0),"Non requis") -> 0 | M77: =IF(INTRO!$E$40="Endémique", IF($I77>0, IF($I77=4,"Inconnu",IF($I77=99,"Interrompu", $D77)), 0),"Non requis") -> 112345 | N77: =IF(INTRO!$E$42="Endémique", IF(AND($J77>1,$J77<5), IF($J77=4, "Inconnu", E77+F77), 0),"Non requis") -> 54712 | O77: =IF(INTRO!$E$44="Endémique", IF(AND($K77>0,$K77<5), IF($K77=4,"Inconnu", IF($K77=1, $F77*0.33, IF($K77=2, $F77*0.5+$G77*0.2, SUM(F77:G77)))), 0),"Non requis") -> 31056.5 | P77: 0 | Q77: 1 | R77: 1 | S77: 1 | T77: MDA3 (IVM) | U77: T1 (PZQ+ALB/MBD) | V77: MDA 1 | W77: T2 | X77: 10713 | Y77: Gounou Gaya | Z77: TRUE
A78: =IF(INTRO!$E$34<>0,INTRO!$E$34,"") -> Chad | B78: Mayo Kebbi Est | C78: Guelinding | D78: 79243 | E78: 10302 | F78: 28291 | G78: 38805 | H78: 1 | I78: 0 | J78: 1 | K78: 1 | L78: =IF(INTRO!$E$38="Endémique", IF($H78>0, IF($H78=4,"Inconnu", IF($H78=99,"Interrompu", $D78)), 0),"Non requis") -> 79243 | M78: =IF(INTRO!$E$40="Endémique", IF($I78>0, IF($I78=4,"Inconnu",IF($I78=99,"Interrompu", $D78)), 0),"Non requis") -> 0 | N78: =IF(INTRO!$E$42="Endémique", IF(AND($J78>1,$J78<5), IF($J78=4, "Inconnu", E78+F78), 0),"Non requis") -> 0 | O78: =IF(INTRO!$E$44="Endémique", IF(AND($K78>0,$K78<5), IF($K78=4,"Inconnu", IF($K78=1, $F78*0.33, IF($K78=2, $F78*0.5+$G78*0.2, SUM(F78:G78)))), 0),"Non requis") -> 9336.03 | P78: 1 | Q78: 0 | R78: 0 | S78: 1 | T78: MDA1 (IVM+ALB) | U78: T2 (PZQ) | V78: MDA 1 | W78: T2 | X78: 10714 | Y78: Guelinding | Z78: TRUE
A79: =IF(INTRO!$E$34<>0,INTRO!$E$34,"") -> Chad | B79: Mayo Kebbi Est | C79: Moulkou | D79: 66286 | E79: 8617 | F79: 23802 | G79: 32460 | H79: 1 | I79: 0 | J79: 1 | K79: 1 | L79: =IF(INTRO!$E$38="Endémique", IF($H79>0, IF($H79=4,"Inconnu", IF($H79=99,"Interrompu", $D79)), 0),"Non requis") -> 66286 | M79: =IF(INTRO!$E$40="Endémique", IF($I79>0, IF($I79=4,"Inconnu",IF($I79=99,"Interrompu", $D79)), 0),"Non requis") -> 0 | N79: =IF(INTRO!$E$42="Endémique", IF(AND($J79>1,$J79<5), IF($J79=4, "Inconnu", E79+F79), 0),"Non requis") -> 0 | O79: =IF(INTRO!$E$44="Endémique", IF(AND($K79>0,$K79<5), IF($K79=4,"Inconnu", IF($K79=1, $F79*0.33, IF($K79=2, $F79*0.5+$G79*0.2, SUM(F79:G79)))), 0),"Non requis") -> 7854.66 | P79: 1 | Q79: 0 | R79: 1 | S79: 1 | T79: MDA1 (IVM+ALB) | U79: T2 (PZQ) | V79: MDA 1 | W79: T2 | X79: 10750 | Y79: Moulkou | Z79: TRUE
A80: =IF(INTRO!$E$34<>0,INTRO!$E$34,"") -> Chad | B80: Mayo Kebbi Est | C80: Pont Carol | D80: 73533 | E80: 9559 | F80: 26461 | G80: 36009 | H80: 0 | I80: 1 | J80: 2 | K80: 2 | L80: =IF(INTRO!$E$38="Endémique", IF($H80>0, IF($H80=4,"Inconnu", IF($H80=99,"Interrompu", $D80)), 0),"Non requis") -> 0 | M80: =IF(INTRO!$E$40="Endémique", IF($I80>0, IF($I80=4,"Inconnu",IF($I80=99,"Interrompu", $D80)), 0),"Non requis") -> 73533 | N80: =IF(INTRO!$E$42="Endémique", IF(AND($J80>1,$J80<5), IF($J80=4, "Inconnu", E80+F80), 0),"Non requis") -> 36020 | O80: =IF(INTRO!$E$44="Endémique", IF(AND($K80>0,$K80<5), IF($K80=4,"Inconnu", IF($K80=1, $F80*0.33, IF($K80=2, $F80*0.5+$G80*0.2, SUM(F80:G80)))), 0),"Non requis") -> 20432.3 | P80: 0 | Q80: 1 | R80: 1 | S80: 1 | T80: MDA3 (IVM) | U80: T1 (PZQ+ALB/MBD) | V80: MDA 1 | W80: T2 | X80: 10751 | Y80: Pont Carol | Z80: TRUE
A81: =IF(INTRO!$E$34<>0,INTRO!$E$34,"") -> Chad | B81: Mayo Kebbi Est | C81: Youé | D81: 128962 | E81: 19989 | F81: 21586 | G81: 63152 | H81: 0 | I81: 1 | J81: 1 | K81: 3 | L81: =IF(INTRO!$E$38="Endémique", IF($H81>0, IF($H81=4,"Inconnu", IF($H81=99,"Interrompu", $D81)), 0),"Non requis") -> 0 | M81: =IF(INTRO!$E$40="Endémique", IF($I81>0, IF($I81=4,"Inconnu",IF($I81=99,"Interrompu", $D81)), 0),"Non requis") -> 128962 | N81: =IF(INTRO!$E$42="Endémique", IF(AND($J81>1,$J81<5), IF($J81=4, "Inconnu", E81+F81), 0),"Non requis") -> 0 | O81: =IF(INTRO!$E$44="Endémique", IF(AND($K81>0,$K81<5), IF($K81=4,"Inconnu", IF($K81=1, $F81*0.33, IF($K81=2, $F81*0.5+$G81*0.2, SUM(F81:G81)))), 0),"Non requis") -> 84738 | P81: 0 | Q81: 1 | R81: 1 | S81: 1 | T81: MDA3 (IVM) | U81: T1 (PZQ+ALB/MBD) | V81: MDA 3 | W81: T2 | X81: 10752 | Y81: Youé | Z81: TRUE
A82: =IF(INTRO!$E$34<>0,INTRO!$E$34,"") -> Chad | B82: Mayo Kebbi Ouest | C82: Binder | D82: 72364 | E82: 11216 | F82: 25531 | G82: 35437 | H82: 0 | I82: 1 | J82: 1 | K82: 3 | L82: =IF(INTRO!$E$38="Endémique", IF($H82>0, IF($H82=4,"Inconnu", IF($H82=99,"Interrompu", $D82)), 0),"Non requis") -> 0 | M82: =IF(INTRO!$E$40="Endémique", IF($I82>0, IF($I82=4,"Inconnu",IF($I82=99,"Interrompu", $D82)), 0),"Non requis") -> 72364 | N82: =IF(INTRO!$E$42="Endémique", IF(AND($J82>1,$J82<5), IF($J82=4, "Inconnu", E82+F82), 0),"Non requis") -> 0 | O82: =IF(INTRO!$E$44="Endémique", IF(AND($K82>0,$K82<5), IF($K82=4,"Inconnu", IF($K82=1, $F82*0.33, IF($K82=2, $F82*0.5+$G82*0.2, SUM(F82:G82)))), 0),"Non requis") -> 60968 | P82: 0 | Q82: 1 | R82: 1 | S82: 1 | T82: MDA3 (IVM) | U82: T1 (PZQ+ALB/MBD) | V82: MDA 3 | W82: T2 | X82: 10754 | Y82: Binder | Z82: TRUE
A83: =IF(INTRO!$E$34<>0,INTRO!$E$34,"") -> Chad | B83: Mayo Kebbi Ouest | C83: Gagal | D83: 131056 | E83: 17037 | F83: 47181 | G83: 64178 | H83: 0 | I83: 1 | J83: 1 | K83: 2 | L83: =IF(INTRO!$E$38="Endémique", IF($H83>0, IF($H83=4,"Inconnu", IF($H83=99,"Interrompu", $D83)), 0),"Non requis") -> 0 | M83: =IF(INTRO!$E$40="Endémique", IF($I83>0, IF($I83=4,"Inconnu",IF($I83=99,"Interrompu", $D83)), 0),"Non requis") -> 131056 | N83: =IF(INTRO!$E$42="Endémique", IF(AND($J83>1,$J83<5), IF($J83=4, "Inconnu", E83+F83), 0),"Non requis") -> 0 | O83: =IF(INTRO!$E$44="Endémique", IF(AND($K83>0,$K83<5), IF($K83=4,"Inconnu", IF($K83=1, $F83*0.33, IF($K83=2, $F83*0.5+$G83*0.2, SUM(F83:G83)))), 0),"Non requis") -> 36426.1 | P83: 0 | Q83: 1 | R83: 1 | S83: 1 | T83: MDA3 (IVM) | U83: T1 (PZQ+ALB/MBD) | V83: MDA 3 | W83: T2 | X83: 10755 | Y83: Gagal | Z83: TRUE
A84: =IF(INTRO!$E$34<>0,INTRO!$E$34,"") -> Chad | B84: Mayo Kebbi Ouest | C84: Guegou | D84: 36526 | E84: 5662 | F84: 12430 | G84: 17887 | H84: 0 | I84: 1 | J84: 1 | K84: 3 | L84: =IF(INTRO!$E$38="Endémique", IF($H84>0, IF($H84=4,"Inconnu", IF($H84=99,"Interrompu", $D84)), 0),"Non requis") -> 0 | M84: =IF(INTRO!$E$40="Endémique", IF($I84>0, IF($I84=4,"Inconnu",IF($I84=99,"Interrompu", $D84)), 0),"Non requis") -> 36526 | N84: =IF(INTRO!$E$42="Endémique", IF(AND($J84>1,$J84<5), IF($J84=4, "Inconnu", E84+F84), 0),"Non requis") -> 0 | O84: =IF(INTRO!$E$44="Endémique", IF(AND($K84>0,$K84<5), IF($K84=4,"Inconnu", IF($K84=1, $F84*0.33, IF($K84=2, $F84*0.5+$G84*0.2, SUM(F84:G84)))), 0),"Non requis") -> 30317 | P84: 0 | Q84: 0 | R84: 0 | S84: 0 | T84: MDA3 (IVM) | U84: T2 (PZQ) | V84: MDA 3 | W84: T2 | X84: 10771 | Y84: Guegou | Z84: TRUE
A85: =IF(INTRO!$E$34<>0,INTRO!$E$34,"") -> Chad | B85: Mayo Kebbi Ouest | C85: GUELO | D85: 46097 | E85: 7145 | F85: 15687 | G85: 22574 | H85: 0 | I85: 1 | J85: 1 | K85: 3 | L85: =IF(INTRO!$E$38="Endémique", IF($H85>0, IF($H85=4,"Inconnu", IF($H85=99,"Interrompu", $D85)), 0),"Non requis") -> 0 | M85: =IF(INTRO!$E$40="Endémique", IF($I85>0, IF($I85=4,"Inconnu",IF($I85=99,"Interrompu", $D85)), 0),"Non requis") -> 46097 | N85: =IF(INTRO!$E$42="Endémique", IF(AND($J85>1,$J85<5), IF($J85=4, "Inconnu", E85+F85), 0),"Non requis") -> 0 | O85: =IF(INTRO!$E$44="Endémique", IF(AND($K85>0,$K85<5), IF($K85=4,"Inconnu", IF($K85=1, $F85*0.33, IF($K85=2, $F85*0.5+$G85*0.2, SUM(F85:G85)))), 0),"Non requis") -> 38261 | P85: 0 | Q85: 0 | R85: 0 | S85: 0 | T85: MDA3 (IVM) | U85: T2 (PZQ) | V85: MDA 3 | W85: T2 | X85: 10772 | Y85: GUELO | Z85: TRUE
A86: =IF(INTRO!$E$34<>0,INTRO!$E$34,"") -> Chad | B86: Mayo Kebbi Ouest | C86: Lagon | D86: 73254 | E86: 9523 | F86: 26371 | G86: 35873 | H86: 0 | I86: 1 | J86: 1 | K86: 3 | L86: =IF(INTRO!$E$38="Endémique", IF($H86>0, IF($H86=4,"Inconnu", IF($H86=99,"Interrompu", $D86)), 0),"Non requis") -> 0 | M86: =IF(INTRO!$E$40="Endémique", IF($I86>0, IF($I86=4,"Inconnu",IF($I86=99,"Interrompu", $D86)), 0),"Non requis") -> 73254 | N86: =IF(INTRO!$E$42="Endémique", IF(AND($J86>1,$J86<5), IF($J86=4, "Inconnu", E86+F86), 0),"Non requis") -> 0 | O86: =IF(INTRO!$E$44="Endémique", IF(AND($K86>0,$K86<5), IF($K86=4,"Inconnu", IF($K86=1, $F86*0.33, IF($K86=2, $F86*0.5+$G86*0.2, SUM(F86:G86)))), 0),"Non requis") -> 62244 | P86: 0 | Q86: 1 | R86: 1 | S86: 1 | T86: MDA3 (IVM) | U86: T1 (PZQ+ALB/MBD) | V86: MDA 3 | W86: T2 | X86: 10756 | Y86: Lagon | Z86: TRUE
A87: =IF(INTRO!$E$34<>0,INTRO!$E$34,"") -> Chad | B87: Mayo Kebbi Ouest | C87: Lamé | D87: 78204 | E87: 10167 | F87: 28163 | G87: 38296 | H87: 0 | I87: 1 | J87: 1 | K87: 2 | L87: =IF(INTRO!$E$38="Endémique", IF($H87>0, IF($H87=4,"Inconnu", IF($H87=99,"Interrompu", $D87)), 0),"Non requis") -> 0 | M87: =IF(INTRO!$E$40="Endémique", IF($I87>0, IF($I87=4,"Inconnu",IF($I87=99,"Interrompu", $D87)), 0),"Non requis") -> 78204 | N87: =IF(INTRO!$E$42="Endémique", IF(AND($J87>1,$J87<5), IF($J87=4, "Inconnu", E87+F87), 0),"Non requis") -> 0 | O87: =IF(INTRO!$E$44="Endémique", IF(AND($K87>0,$K87<5), IF($K87=4,"Inconnu", IF($K87=1, $F87*0.33, IF($K87=2, $F87*0.5+$G87*0.2, SUM(F87:G87)))), 0),"Non requis") -> 21740.7 | P87: 0 | Q87: 1 | R87: 1 | S87: 1 | T87: MDA3 (IVM) | U87: T1 (PZQ+ALB/MBD) | V87: MDA 3 | W87: T2 | X87: 10757 | Y87: Lamé | Z87: TRUE
A88: =IF(INTRO!$E$34<>0,INTRO!$E$34,"") -> Chad | B88: Mayo Kebbi Ouest | C88: Lere | D88: 132165 | E88: 17181 | F88: 47183 | G88: 64721 | H88: 0 | I88: 1 | J88: 1 | K88: 3 | L88: =IF(INTRO!$E$38="Endémique", IF($H88>0, IF($H88=4,"Inconnu", IF($H88=99,"Interrompu", $D88)), 0),"Non requis") -> 0 | M88: =IF(INTRO!$E$40="Endémique", IF($I88>0, IF($I88=4,"Inconnu",IF($I88=99,"Interrompu", $D88)), 0),"Non requis") -> 132165 | N88: =IF(INTRO!$E$42="Endémique", IF(AND($J88>1,$J88<5), IF($J88=4, "Inconnu", E88+F88), 0),"Non requis") -> 0 | O88: =IF(INTRO!$E$44="Endémique", IF(AND($K88>0,$K88<5), IF($K88=4,"Inconnu", IF($K88=1, $F88*0.33, IF($K88=2, $F88*0.5+$G88*0.2, SUM(F88:G88)))), 0),"Non requis") -> 111904 | P88: 0 | Q88: 1 | R88: 1 | S88: 1 | T88: MDA3 (IVM) | U88: T1 (PZQ+ALB/MBD) | V88: MDA 3 | W88: T2 | X88: 10715 | Y88: Lere | Z88: TRUE
A89: =IF(INTRO!$E$34<>0,INTRO!$E$34,"") -> Chad | B89: Mayo Kebbi Ouest | C89: Pala | D89: 413222 | E89: 64049 | F89: 43894 | G89: 202355 | H89: 0 | I89: 1 | J89: 1 | K89: 2 | L89: =IF(INTRO!$E$38="Endémique", IF($H89>0, IF($H89=4,"Inconnu", IF($H89=99,"Interrompu", $D89)), 0),"Non requis") -> 0 | M89: =IF(INTRO!$E$40="Endémique", IF($I89>0, IF($I89=4,"Inconnu",IF($I89=99,"Interrompu", $D89)), 0),"Non requis") -> 413222 | N89: =IF(INTRO!$E$42="Endémique", IF(AND($J89>1,$J89<5), IF($J89=4, "Inconnu", E89+F89), 0),"Non requis") -> 0 | O89: =IF(INTRO!$E$44="Endémique", IF(AND($K89>0,$K89<5), IF($K89=4,"Inconnu", IF($K89=1, $F89*0.33, IF($K89=2, $F89*0.5+$G89*0.2, SUM(F89:G89)))), 0),"Non requis") -> 62418 | P89: 0 | Q89: 1 | R89: 1 | S89: 1 | T89: MDA3 (IVM) | U89: T1 (PZQ+ALB/MBD) | V89: MDA 3 | W89: T2 | X89: 10716 | Y89: Pala | Z89: TRUE
A90: =IF(INTRO!$E$34<>0,INTRO!$E$34,"") -> Chad | B90: Mayo Kebbi Ouest | C90: Torrock | D90: 67552 | E90: 10471 | F90: 23054 | G90: 33080 | H90: 0 | I90: 1 | J90: 1 | K90: 2 | L90: =IF(INTRO!$E$38="Endémique", IF($H90>0, IF($H90=4,"Inconnu", IF($H90=99,"Interrompu", $D90)), 0),"Non requis") -> 0 | M90: =IF(INTRO!$E$40="Endémique", IF($I90>0, IF($I90=4,"Inconnu",IF($I90=99,"Interrompu", $D90)), 0),"Non requis") -> 67552 | N90: =IF(INTRO!$E$42="Endémique", IF(AND($J90>1,$J90<5), IF($J90=4, "Inconnu", E90+F90), 0),"Non requis") -> 0 | O90: =IF(INTRO!$E$44="Endémique", IF(AND($K90>0,$K90<5), IF($K90=4,"Inconnu", IF($K90=1, $F90*0.33, IF($K90=2, $F90*0.5+$G90*0.2, SUM(F90:G90)))), 0),"Non requis") -> 18143 | P90: 0 | Q90: 1 | R90: 1 | S90: 1 | T90: MDA3 (IVM) | U90: T1 (PZQ+ALB/MBD) | V90: MDA 3 | W90: T2 | X90: 10758 | Y90: Torrock | Z90: TRUE
A91: =IF(INTRO!$E$34<>0,INTRO!$E$34,"") -> Chad | B91: Moyen Chari | C91: Biobe Singako | D91: 79642 | E91: 10353 | F91: 28671 | G91: 39001 | H91: 1 | I91: 1 | J91: 1 | K91: 2 | L91: =IF(INTRO!$E$38="Endémique", IF($H91>0, IF($H91=4,"Inconnu", IF($H91=99,"Interrompu", $D91)), 0),"Non requis") -> 79642 | M91: =IF(INTRO!$E$40="Endémique", IF($I91>0, IF($I91=4,"Inconnu",IF($I91=99,"Interrompu", $D91)), 0),"Non requis") -> 79642 | N91: =IF(INTRO!$E$42="Endémique", IF(AND($J91>1,$J91<5), IF($J91=4, "Inconnu", E91+F91), 0),"Non requis") -> 0 | O91: =IF(INTRO!$E$44="Endémique", IF(AND($K91>0,$K91<5), IF($K91=4,"Inconnu", IF($K91=1, $F91*0.33, IF($K91=2, $F91*0.5+$G91*0.2, SUM(F91:G91)))), 0),"Non requis") -> 22135.7 | P91: 1 | Q91: 1 | R91: 0 | S91: 1 | T91: MDA1 (IVM+ALB) | U91: T2 (PZQ) | V91: MDA 1 | W91: T2 | X91: 10717 | Y91: Biobe Singako | Z91: TRUE
A92: =IF(INTRO!$E$34<>0,INTRO!$E$34,"") -> Chad | B92: Moyen Chari | C92: Danamadji | D92: 268066 | E92: 34849 | F92: 96504 | G92: 131272 | H92: 1 | I92: 1 | J92: 1 | K92: 1 | L92: =IF(INTRO!$E$38="Endémique", IF($H92>0, IF($H92=4,"Inconnu", IF($H92=99,"Interrompu", $D92)), 0),"Non requis") -> 268066 | M92: =IF(INTRO!$E$40="Endémique", IF($I92>0, IF($I92=4,"Inconnu",IF($I92=99,"Interrompu", $D92)), 0),"Non requis") -> 268066 | N92: =IF(INTRO!$E$42="Endémique", IF(AND($J92>1,$J92<5), IF($J92=4, "Inconnu", E92+F92), 0),"Non requis") -> 0 | O92: =IF(INTRO!$E$44="Endémique", IF(AND($K92>0,$K92<5), IF($K92=4,"Inconnu", IF($K92=1, $F92*0.33, IF($K92=2, $F92*0.5+$G92*0.2, SUM(F92:G92)))), 0),"Non requis") -> 31846.32 | P92: 1 | Q92: 1 | R92: 0 | S92: 1 | T92: MDA1 (IVM+ALB) | U92: T2 (PZQ) | V92: MDA 1 | W92: T2 | X92: 10718 | Y92: Danamadji | Z92: TRUE
A93: =IF(INTRO!$E$34<>0,INTRO!$E$34,"") -> Chad | B93: Moyen Chari | C93: Korbol | D93: 131462 | E93: 17090 | F93: 48326 | G93: 64377 | H93: 1 | I93: 1 | J93: 2 | K93: 2 | L93: =IF(INTRO!$E$38="Endémique", IF($H93>0, IF($H93=4,"Inconnu", IF($H93=99,"Interrompu", $D93)), 0),"Non requis") -> 131462 | M93: =IF(INTRO!$E$40="Endémique", IF($I93>0, IF($I93=4,"Inconnu",IF($I93=99,"Interrompu", $D93)), 0),"Non requis") -> 131462 | N93: =IF(INTRO!$E$42="Endémique", IF(AND($J93>1,$J93<5), IF($J93=4, "Inconnu", E93+F93), 0),"Non requis") -> 65416 | O93: =IF(INTRO!$E$44="Endémique", IF(AND($K93>0,$K93<5), IF($K93=4,"Inconnu", IF($K93=1, $F93*0.33, IF($K93=2, $F93*0.5+$G93*0.2, SUM(F93:G93)))), 0),"Non requis") -> 37038.4 | P93: 0 | Q93: 0 | R93: 0 | S93: 1 | T93: MDA1 (IVM+ALB) | U93: T2 (PZQ) | V93: MDA 1 | W93: T2 | X93: 10773 | Y93: Korbol | Z93: TRUE
A94: =IF(INTRO!$E$34<>0,INTRO!$E$34,"") -> Chad | B94: Moyen Chari | C94: Kyabe | D94: 107703 | E94: 14001 | F94: 38773 | G94: 52742 | H94: 1 | I94: 1 | J94: 1 | K94: 2 | L94: =IF(INTRO!$E$38="Endémique", IF($H94>0, IF($H94=4,"Inconnu", IF($H94=99,"Interrompu", $D94)), 0),"Non requis") -> 107703 | M94: =IF(INTRO!$E$40="Endémique", IF($I94>0, IF($I94=4,"Inconnu",IF($I94=99,"Interrompu", $D94)), 0),"Non requis") -> 107703 | N94: =IF(INTRO!$E$42="Endémique", IF(AND($J94>1,$J94<5), IF($J94=4, "Inconnu", E94+F94), 0),"Non requis") -> 0 | O94: =IF(INTRO!$E$44="Endémique", IF(AND($K94>0,$K94<5), IF($K94=4,"Inconnu", IF($K94=1, $F94*0.33, IF($K94=2, $F94*0.5+$G94*0.2, SUM(F94:G94)))), 0),"Non requis") -> 29934.9 | P94: 1 | Q94: 1 | R94: 0 | S94: 1 | T94: MDA1 (IVM+ALB) | U94: T2 (PZQ) | V94: MDA 1 | W94: T2 | X94: 10719 | Y94: Kyabe | Z94: TRUE
A95: =IF(INTRO!$E$34<>0,INTRO!$E$34,"") -> Chad | B95: Moyen Chari | C95: Maro | D95: 231647 | E95: 30114 | F95: 82698 | G95: 113438 | H95: 1 | I95: 1 | J95: 1 | K95: 1 | L95: =IF(INTRO!$E$38="Endémique", IF($H95>0, IF($H95=4,"Inconnu", IF($H95=99,"Interrompu", $D95)), 0),"Non requis") -> 231647 | M95: =IF(INTRO!$E$40="Endémique", IF($I95>0, IF($I95=4,"Inconnu",IF($I95=99,"Interrompu", $D95)), 0),"Non requis") -> 231647 | N95: =IF(INTRO!$E$42="Endémique", IF(AND($J95>1,$J95<5), IF($J95=4, "Inconnu", E95+F95), 0),"Non requis") -> 0 | O95: =IF(INTRO!$E$44="Endémique", IF(AND($K95>0,$K95<5), IF($K95=4,"Inconnu", IF($K95=1, $F95*0.33, IF($K95=2, $F95*0.5+$G95*0.2, SUM(F95:G95)))), 0),"Non requis") -> 27290.34 | P95: 1 | Q95: 1 | R95: 0 | S95: 1 | T95: MDA1 (IVM+ALB) | U95: T2 (PZQ) | V95: MDA 1 | W95: T2 | X95: 10774 | Y95: Maro | Z95: TRUE
A96: =IF(INTRO!$E$34<>0,INTRO!$E$34,"") -> Chad | B96: Moyen Chari | C96: Sarh | D96: 176827 | E96: 27408 | F96: 60174 | G96: 86592 | H96: 1 | I96: 1 | J96: 2 | K96: 2 | L96: =IF(INTRO!$E$38="Endémique", IF($H96>0, IF($H96=4,"Inconnu", IF($H96=99,"Interrompu", $D96)), 0),"Non requis") -> 176827 | M96: =IF(INTRO!$E$40="Endémique", IF($I96>0, IF($I96=4,"Inconnu",IF($I96=99,"Interrompu", $D96)), 0),"Non requis") -> 176827 | N96: =IF(INTRO!$E$42="Endémique", IF(AND($J96>1,$J96<5), IF($J96=4, "Inconnu", E96+F96), 0),"Non requis") -> 87582 | O96: =IF(INTRO!$E$44="Endémique", IF(AND($K96>0,$K96<5), IF($K96=4,"Inconnu", IF($K96=1, $F96*0.33, IF($K96=2, $F96*0.5+$G96*0.2, SUM(F96:G96)))), 0),"Non requis") -> 47405.4 | P96: 0 | Q96: 0 | R96: 0 | S96: 0 | V96: MDA 1 | W96: T2 | X96: 10720 | Y96: Sarh | Z96: TRUE
A97: =IF(INTRO!$E$34<>0,INTRO!$E$34,"") -> Chad | B97: N'Djaména | C97: N'Djaména Centre | D97: 411767 | E97: 63824 | F97: 140124 | G97: 201643 | H97: 0 | I97: 0 | J97: 1 | K97: 1 | L97: =IF(INTRO!$E$38="Endémique", IF($H97>0, IF($H97=4,"Inconnu", IF($H97=99,"Interrompu", $D97)), 0),"Non requis") -> 0 | M97: =IF(INTRO!$E$40="Endémique", IF($I97>0, IF($I97=4,"Inconnu",IF($I97=99,"Interrompu", $D97)), 0),"Non requis") -> 0 | N97: =IF(INTRO!$E$42="Endémique", IF(AND($J97>1,$J97<5), IF($J97=4, "Inconnu", E97+F97), 0),"Non requis") -> 0 | O97: =IF(INTRO!$E$44="Endémique", IF(AND($K97>0,$K97<5), IF($K97=4,"Inconnu", IF($K97=1, $F97*0.33, IF($K97=2, $F97*0.5+$G97*0.2, SUM(F97:G97)))), 0),"Non requis") -> 46240.92 | P97: 0 | Q97: 0 | R97: 0 | S97: 0 | W97: T2 | X97: 10721 | Y97: N'Djaména Centre | Z97: TRUE
A98: =IF(INTRO!$E$34<>0,INTRO!$E$34,"") -> Chad | B98: N'Djaména | C98: N'Djaména Est | D98: 151002 | E98: 23405 | F98: 51386 | G98: 73946 | H98: 0 | I98: 0 | J98: 0 | K98: 1 | L98: =IF(INTRO!$E$38="Endémique", IF($H98>0, IF($H98=4,"Inconnu", IF($H98=99,"Interrompu", $D98)), 0),"Non requis") -> 0 | M98: =IF(INTRO!$E$40="Endémique", IF($I98>0, IF($I98=4,"Inconnu",IF($I98=99,"Interrompu", $D98)), 0),"Non requis") -> 0 | N98: =IF(INTRO!$E$42="Endémique", IF(AND($J98>1,$J98<5), IF($J98=4, "Inconnu", E98+F98), 0),"Non requis") -> 0 | O98: =IF(INTRO!$E$44="Endémique", IF(AND($K98>0,$K98<5), IF($K98=4,"Inconnu", IF($K98=1, $F98*0.33, IF($K98=2, $F98*0.5+$G98*0.2, SUM(F98:G98)))), 0),"Non requis") -> 16957.38 | P98: 0 | Q98: 0 | R98: 0 | S98: 0 | W98: T2 | X98: 10722 | Y98: N'Djaména Est | Z98: TRUE
A99: =IF(INTRO!$E$34<>0,INTRO!$E$34,"") -> Chad | B99: N'Djaména | C99: N'Djaména Nord | D99: 146349 | E99: 22684 | F99: 49803 | G99: 71667 | H99: 0 | I99: 0 | J99: 0 | K99: 1 | L99: =IF(INTRO!$E$38="Endémique", IF($H99>0, IF($H99=4,"Inconnu", IF($H99=99,"Interrompu", $D99)), 0),"Non requis") -> 0 | M99: =IF(INTRO!$E$40="Endémique", IF($I99>0, IF($I99=4,"Inconnu",IF($I99=99,"Interrompu", $D99)), 0),"Non requis") -> 0 | N99: =IF(INTRO!$E$42="Endémique", IF(AND($J99>1,$J99<5), IF($J99=4, "Inconnu", E99+F99), 0),"Non requis") -> 0 | O99: =IF(INTRO!$E$44="Endémique", IF(AND($K99>0,$K99<5), IF($K99=4,"Inconnu", IF($K99=1, $F99*0.33, IF($K99=2, $F99*0.5+$G99*0.2, SUM(F99:G99)))), 0),"Non requis") -> 16434.99 | P99: 0 | Q99: 0 | R99: 0 | S99: 0 | W99: T2 | X99: 10723 | Y99: N'Djaména Nord | Z99: TRUE
A100: =IF(INTRO!$E$34<>0,INTRO!$E$34,"") -> Chad | B100: N'Djaména | C100: N'Djaména Sud | D100: 583711 | E100: 90475 | F100: 198637 | G100: 285843 | H100: 0 | I100: 0 | J100: 1 | K100: 1 | L100: =IF(INTRO!$E$38="Endémique", IF($H100>0, IF($H100=4,"Inconnu", IF($H100=99,"Interrompu", $D100)), 0),"Non requis") -> 0 | M100: =IF(INTRO!$E$40="Endémique", IF($I100>0, IF($I100=4,"Inconnu",IF($I100=99,"Interrompu", $D100)), 0),"Non requis") -> 0 | N100: =IF(INTRO!$E$42="Endémique", IF(AND($J100>1,$J100<5), IF($J100=4, "Inconnu", E100+F100), 0),"Non requis") -> 0 | O100: =IF(INTRO!$E$44="Endémique", IF(AND($K100>0,$K100<5), IF($K100=4,"Inconnu", IF($K100=1, $F100*0.33, IF($K100=2, $F100*0.5+$G100*0.2, SUM(F100:G100)))), 0),"Non requis") -> 65550.21 | P100: 0 | Q100: 0 | R100: 0 | S100: 0 | W100: T2 | X100: 10724 | Y100: N'Djaména Sud | Z100: TRUE
A101: =IF(INTRO!$E$34<>0,INTRO!$E$34,"") -> Chad | B101: Ouaddai | C101: Abdi | D101: 145235 | E101: 22511 | F101: 49423 | G101: 71122 | H101: 0 | I101: 0 | J101: 1 | K101: 2 | L101: =IF(INTRO!$E$38="Endémique", IF($H101>0, IF($H101=4,"Inconnu", IF($H101=99,"Interrompu", $D101)), 0),"Non requis") -> 0 | M101: =IF(INTRO!$E$40="Endémique", IF($I101>0, IF($I101=4,"Inconnu",IF($I101=99,"Interrompu", $D101)), 0),"Non requis") -> 0 | N101: =IF(INTRO!$E$42="Endémique", IF(AND($J101>1,$J101<5), IF($J101=4, "Inconnu", E101+F101), 0),"Non requis") -> 0 | O101: =IF(INTRO!$E$44="Endémique", IF(AND($K101>0,$K101<5), IF($K101=4,"Inconnu", IF($K101=1, $F101*0.33, IF($K101=2, $F101*0.5+$G101*0.2, SUM(F101:G101)))), 0),"Non requis") -> 38935.9 | P101: 0 | Q101: 0 | R101: 0 | S101: 0 | W101: T2 | X101: 10727 | Y101: Abdi | Z101: TRUE
A102: =IF(INTRO!$E$34<>0,INTRO!$E$34,"") -> Chad | B102: Ouaddai | C102: Abeche | D102: 327688 | E102: 50792 | F102: 111512 | G102: 160469 | H102: 0 | I102: 0 | J102: 1 | K102: 2 | L102: =IF(INTRO!$E$38="Endémique", IF($H102>0, IF($H102=4,"Inconnu", IF($H102=99,"Interrompu", $D102)), 0),"Non requis") -> 0 | M102: =IF(INTRO!$E$40="Endémique", IF($I102>0, IF($I102=4,"Inconnu",IF($I102=99,"Interrompu", $D102)), 0),"Non requis") -> 0 | N102: =IF(INTRO!$E$42="Endémique", IF(AND($J102>1,$J102<5), IF($J102=4, "Inconnu", E102+F102), 0),"Non requis") -> 0 | O102: =IF(INTRO!$E$44="Endémique", IF(AND($K102>0,$K102<5), IF($K102=4,"Inconnu", IF($K102=1, $F102*0.33, IF($K102=2, $F102*0.5+$G102*0.2, SUM(F102:G102)))), 0),"Non requis") -> 87849.8 | P102: 0 | Q102: 0 | R102: 0 | S102: 0 | W102: T2 | X102: 10728 | Y102: Abeche | Z102: TRUE
A103: =IF(INTRO!$E$34<>0,INTRO!$E$34,"") -> Chad | B103: Ouaddai | C103: Abougoudam | D103: 118891 | E103: 18428 | F103: 40459 | G103: 58221 | H103: 0 | I103: 0 | J103: 0 | K103: 2 | L103: =IF(INTRO!$E$38="Endémique", IF($H103>0, IF($H103=4,"Inconnu", IF($H103=99,"Interrompu", $D103)), 0),"Non requis") -> 0 | M103: =IF(INTRO!$E$40="Endémique", IF($I103>0, IF($I103=4,"Inconnu",IF($I103=99,"Interrompu", $D103)), 0),"Non requis") -> 0 | N103: =IF(INTRO!$E$42="Endémique", IF(AND($J103>1,$J103<5), IF($J103=4, "Inconnu", E103+F103), 0),"Non requis") -> 0 | O103: =IF(INTRO!$E$44="Endémique", IF(AND($K103>0,$K103<5), IF($K103=4,"Inconnu", IF($K103=1, $F103*0.33, IF($K103=2, $F103*0.5+$G103*0.2, SUM(F103:G103)))), 0),"Non requis") -> 31873.7 | P103: 0 | Q103: 0 | R103: 0 | S103: 0 | W103: T2 | X103: 10729 | Y103: Abougoudam | Z103: TRUE
A104: =IF(INTRO!$E$34<>0,INTRO!$E$34,"") -> Chad | B104: Ouaddai | C104: Adré | D104: 388137 | E104: 60161 | F104: 132083 | G104: 190071 | H104: 0 | I104: 0 | J104: 1 | K104: 2 | L104: =IF(INTRO!$E$38="Endémique", IF($H104>0, IF($H104=4,"Inconnu", IF($H104=99,"Interrompu", $D104)), 0),"Non requis") -> 0 | M104: =IF(INTRO!$E$40="Endémique", IF($I104>0, IF($I104=4,"Inconnu",IF($I104=99,"Interrompu", $D104)), 0),"Non requis") -> 0 | N104: =IF(INTRO!$E$42="Endémique", IF(AND($J104>1,$J104<5), IF($J104=4, "Inconnu", E104+F104), 0),"Non requis") -> 0 | O104: =IF(INTRO!$E$44="Endémique", IF(AND($K104>0,$K104<5), IF($K104=4,"Inconnu", IF($K104=1, $F104*0.33, IF($K104=2, $F104*0.5+$G104*0.2, SUM(F104:G104)))), 0),"Non requis") -> 104055.7 | P104: 0 | Q104: 0 | R104: 0 | S104: 0 | W104: T2 | X104: 10730 | Y104: Adré | Z104: TRUE
A105: =IF(INTRO!$E$34<>0,INTRO!$E$34,"") -> Chad | B105: Salamat | C105: Aboudeia | D105: 87889 | E105: 13623 | F105: 29909 | G105: 43039 | H105: 0 | I105: 0 | J105: 2 | K105: 3 | L105: =IF(INTRO!$E$38="Endémique", IF($H105>0, IF($H105=4,"Inconnu", IF($H105=99,"Interrompu", $D105)), 0),"Non requis") -> 0 | M105: =IF(INTRO!$E$40="Endémique", IF($I105>0, IF($I105=4,"Inconnu",IF($I105=99,"Interrompu", $D105)), 0),"Non requis") -> 0 | N105: =IF(INTRO!$E$42="Endémique", IF(AND($J105>1,$J105<5), IF($J105=4, "Inconnu", E105+F105), 0),"Non requis") -> 43532 | O105: =IF(INTRO!$E$44="Endémique", IF(AND($K105>0,$K105<5), IF($K105=4,"Inconnu", IF($K105=1, $F105*0.33, IF($K105=2, $F105*0.5+$G105*0.2, SUM(F105:G105)))), 0),"Non requis") -> 72948 | P105: 0 | Q105: 0 | R105: 0 | S105: 0 | W105: T1 | X105: 10731 | Y105: Aboudeia | Z105: TRUE
A106: =IF(INTRO!$E$34<>0,INTRO!$E$34,"") -> Chad | B106: Salamat | C106: Am-Timan | D106: 247591 | E106: 38377 | F106: 84255 | G106: 121246 | H106: 0 | I106: 0 | J106: 2 | K106: 1 | L106: =IF(INTRO!$E$38="Endémique", IF($H106>0, IF($H106=4,"Inconnu", IF($H106=99,"Interrompu", $D106)), 0),"Non requis") -> 0 | M106: =IF(INTRO!$E$40="Endémique", IF($I106>0, IF($I106=4,"Inconnu",IF($I106=99,"Interrompu", $D106)), 0),"Non requis") -> 0 | N106: =IF(INTRO!$E$42="Endémique", IF(AND($J106>1,$J106<5), IF($J106=4, "Inconnu", E106+F106), 0),"Non requis") -> 122632 | O106: =IF(INTRO!$E$44="Endémique", IF(AND($K106>0,$K106<5), IF($K106=4,"Inconnu", IF($K106=1, $F106*0.33, IF($K106=2, $F106*0.5+$G106*0.2, SUM(F106:G106)))), 0),"Non requis") -> 27804.15 | P106: 0 | Q106: 0 | R106: 0 | S106: 0 | W106: T1 | X106: 10732 | Y106: Am-Timan | Z106: TRUE
A107: =IF(INTRO!$E$34<>0,INTRO!$E$34,"") -> Chad | B107: Salamat | C107: Haraze | D107: 75300 | E107: 11672 | F107: 25625 | G107: 36874 | H107: 0 | I107: 0 | J107: 1 | K107: 2 | L107: =IF(INTRO!$E$38="Endémique", IF($H107>0, IF($H107=4,"Inconnu", IF($H107=99,"Interrompu", $D107)), 0),"Non requis") -> 0 | M107: =IF(INTRO!$E$40="Endémique", IF($I107>0, IF($I107=4,"Inconnu",IF($I107=99,"Interrompu", $D107)), 0),"Non requis") -> 0 | N107: =IF(INTRO!$E$42="Endémique", IF(AND($J107>1,$J107<5), IF($J107=4, "Inconnu", E107+F107), 0),"Non requis") -> 0 | O107: =IF(INTRO!$E$44="Endémique", IF(AND($K107>0,$K107<5), IF($K107=4,"Inconnu", IF($K107=1, $F107*0.33, IF($K107=2, $F107*0.5+$G107*0.2, SUM(F107:G107)))), 0),"Non requis") -> 20187.3 | P107: 0 | Q107: 0 | R107: 0 | S107: 0 | W107: T2 | X107: 10733 | Y107: Haraze | Z107: TRUE
A108: =IF(INTRO!$E$34<>0,INTRO!$E$34,"") -> Chad | B108: Sila | C108: Am-dam | D108: 4633 | E108: 718 | F108: 1576 | G108: 2269 | H108: 0 | I108: 0 | J108: 0 | K108: 2 | L108: =IF(INTRO!$E$38="Endémique", IF($H108>0, IF($H108=4,"Inconnu", IF($H108=99,"Interrompu", $D108)), 0),"Non requis") -> 0 | M108: =IF(INTRO!$E$40="Endémique", IF($I108>0, IF($I108=4,"Inconnu",IF($I108=99,"Interrompu", $D108)), 0),"Non requis") -> 0 | N108: =IF(INTRO!$E$42="Endémique", IF(AND($J108>1,$J108<5), IF($J108=4, "Inconnu", E108+F108), 0),"Non requis") -> 0 | O108: =IF(INTRO!$E$44="Endémique", IF(AND($K108>0,$K108<5), IF($K108=4,"Inconnu", IF($K108=1, $F108*0.33, IF($K108=2, $F108*0.5+$G108*0.2, SUM(F108:G108)))), 0),"Non requis") -> 1241.8 | P108: 0 | Q108: 0 | R108: 0 | S108: 0 | W108: T2 | X108: 10725 | Y108: Am-dam | Z108: TRUE
A109: =IF(INTRO!$E$34<>0,INTRO!$E$34,"") -> Chad | B109: Sila | C109: Goz-beida | D109: 226816 | E109: 35156 | F109: 77185 | G109: 111072 | H109: 0 | I109: 0 | J109: 1 | K109: 2 | L109: =IF(INTRO!$E$38="Endémique", IF($H109>0, IF($H109=4,"Inconnu", IF($H109=99,"Interrompu", $D109)), 0),"Non requis") -> 0 | M109: =IF(INTRO!$E$40="Endémique", IF($I109>0, IF($I109=4,"Inconnu",IF($I109=99,"Interrompu", $D109)), 0),"Non requis") -> 0 | N109: =IF(INTRO!$E$42="Endémique", IF(AND($J109>1,$J109<5), IF($J109=4, "Inconnu", E109+F109), 0),"Non requis") -> 0 | O109: =IF(INTRO!$E$44="Endémique", IF(AND($K109>0,$K109<5), IF($K109=4,"Inconnu", IF($K109=1, $F109*0.33, IF($K109=2, $F109*0.5+$G109*0.2, SUM(F109:G109)))), 0),"Non requis") -> 60806.9 | P109: 0 | Q109: 0 | R109: 0 | S109: 0 | W109: T2 | X109: 10726 | Y109: Goz-beida | Z109: TRUE
A110: =IF(INTRO!$E$34<>0,INTRO!$E$34,"") -> Chad | B110: Sila | C110: Koukou | D110: 71137 | E110: 11026 | F110: 24208 | G110: 34836 | H110: 0 | I110: 0 | J110: 1 | K110: 2 | L110: =IF(INTRO!$E$38="Endémique", IF($H110>0, IF($H110=4,"Inconnu", IF($H110=99,"Interrompu", $D110)), 0),"Non requis") -> 0 | M110: =IF(INTRO!$E$40="Endémique", IF($I110>0, IF($I110=4,"Inconnu",IF($I110=99,"Interrompu", $D110)), 0),"Non requis") -> 0 | N110: =IF(INTRO!$E$42="Endémique", IF(AND($J110>1,$J110<5), IF($J110=4, "Inconnu", E110+F110), 0),"Non requis") -> 0 | O110: =IF(INTRO!$E$44="Endémique", IF(AND($K110>0,$K110<5), IF($K110=4,"Inconnu", IF($K110=1, $F110*0.33, IF($K110=2, $F110*0.5+$G110*0.2, SUM(F110:G110)))), 0),"Non requis") -> 19071.2 | P110: 0 | Q110: 0 | R110: 0 | S110: 0 | W110: T2 | X110: 10673 | Y110: Koukou | Z110: TRUE
A111: =IF(INTRO!$E$34<>0,INTRO!$E$34,"") -> Chad | B111: Sila | C111: Tissi | D111: 120969 | E111: 18750 | F111: 41166 | G111: 59238 | H111: 0 | I111: 0 | J111: 4 | K111: 4 | L111: =IF(INTRO!$E$38="Endémique", IF($H111>0, IF($H111=4,"Inconnu", IF($H111=99,"Interrompu", $D111)), 0),"Non requis") -> 0 | M111: =IF(INTRO!$E$40="Endémique", IF($I111>0, IF($I111=4,"Inconnu",IF($I111=99,"Interrompu", $D111)), 0),"Non requis") -> 0 | N111: =IF(INTRO!$E$42="Endémique", IF(AND($J111>1,$J111<5), IF($J111=4, "Inconnu", E111+F111), 0),"Non requis") -> Inconnu | O111: =IF(INTRO!$E$44="Endémique", IF(AND($K111>0,$K111<5), IF($K111=4,"Inconnu", IF($K111=1, $F111*0.33, IF($K111=2, $F111*0.5+$G111*0.2, SUM(F111:G111)))), 0),"Non requis") -> Inconnu | P111: 0 | Q111: 0 | R111: 0 | S111: 0 | X111: 10674 | Y111: Tissi | Z111: TRUE
A112: =IF(INTRO!$E$34<>0,INTRO!$E$34,"") -> Chad | B112: Tandjile | C112: Batchoro | D112: 87987 | E112: 13638 | F112: 29942 | G112: 43087 | H112: 1 | I112: 1 | J112: 1 | K112: 2 | L112: =IF(INTRO!$E$38="Endémique", IF($H112>0, IF($H112=4,"Inconnu", IF($H112=99,"Interrompu", $D112)), 0),"Non requis") -> 87987 | M112: =IF(INTRO!$E$40="Endémique", IF($I112>0, IF($I112=4,"Inconnu",IF($I112=99,"Interrompu", $D112)), 0),"Non requis") -> 87987 | N112: =IF(INTRO!$E$42="Endémique", IF(AND($J112>1,$J112<5), IF($J112=4, "Inconnu", E112+F112), 0),"Non requis") -> 0 | O112: =IF(INTRO!$E$44="Endémique", IF(AND($K112>0,$K112<5), IF($K112=4,"Inconnu", IF($K112=1, $F112*0.33, IF($K112=2, $F112*0.5+$G112*0.2, SUM(F112:G112)))), 0),"Non requis") -> 23588.4 | P112: 0 | Q112: 0 | R112: 0 | S112: 0 | V112: MDA 1 | W112: T2 | X112: 10775 | Y112: Batchoro | Z112: TRUE
A113: =IF(INTRO!$E$34<>0,INTRO!$E$34,"") -> Chad | B113: Tandjile | C113: Bere | D113: 154812 | E113: 20126 | F113: 55732 | G113: 75811 | H113: 1 | I113: 1 | J113: 1 | K113: 3 | L113: =IF(INTRO!$E$38="Endémique", IF($H113>0, IF($H113=4,"Inconnu", IF($H113=99,"Interrompu", $D113)), 0),"Non requis") -> 154812 | M113: =IF(INTRO!$E$40="Endémique", IF($I113>0, IF($I113=4,"Inconnu",IF($I113=99,"Interrompu", $D113)), 0),"Non requis") -> 154812 | N113: =IF(INTRO!$E$42="Endémique", IF(AND($J113>1,$J113<5), IF($J113=4, "Inconnu", E113+F113), 0),"Non requis") -> 0 | O113: =IF(INTRO!$E$44="Endémique", IF(AND($K113>0,$K113<5), IF($K113=4,"Inconnu", IF($K113=1, $F113*0.33, IF($K113=2, $F113*0.5+$G113*0.2, SUM(F113:G113)))), 0),"Non requis") -> 131543 | P113: 1 | Q113: 1 | R113: 0 | S113: 1 | T113: MDA1 (IVM+ALB) | U113: T2 (PZQ) | V113: MDA 1 | W113: T2 | X113: 10734 | Y113: Bere | Z113: TRUE
A114: =IF(INTRO!$E$34<>0,INTRO!$E$34,"") -> Chad | B114: Tandjile | C114: Dafra | D114: 82534 | E114: 10729 | F114: 29712 | G114: 40417 | H114: 1 | I114: 1 | J114: 1 | K114: 2 | L114: =IF(INTRO!$E$38="Endémique", IF($H114>0, IF($H114=4,"Inconnu", IF($H114=99,"Interrompu", $D114)), 0),"Non requis") -> 82534 | M114: =IF(INTRO!$E$40="Endémique", IF($I114>0, IF($I114=4,"Inconnu",IF($I114=99,"Interrompu", $D114)), 0),"Non requis") -> 82534 | N114: =IF(INTRO!$E$42="Endémique", IF(AND($J114>1,$J114<5), IF($J114=4, "Inconnu", E114+F114), 0),"Non requis") -> 0 | O114: =IF(INTRO!$E$44="Endémique", IF(AND($K114>0,$K114<5), IF($K114=4,"Inconnu", IF($K114=1, $F114*0.33, IF($K114=2, $F114*0.5+$G114*0.2, SUM(F114:G114)))), 0),"Non requis") -> 22939.4 | P114: 1 | Q114: 0 | R114: 0 | S114: 1 | T114: MDA1 (IVM+ALB) | U114: T2 (PZQ) | V114: MDA 1 | W114: T2 | X114: 10759 | Y114: Dafra | Z114: TRUE
A115: =IF(INTRO!$E$34<>0,INTRO!$E$34,"") -> Chad | B115: Tandjile | C115: Donamanga | D115: 112366 | E115: 14608 | F115: 40114 | G115: 55026 | H115: 1 | I115: 0 | J115: 1 | K115: 2 | L115: =IF(INTRO!$E$38="Endémique", IF($H115>0, IF($H115=4,"Inconnu", IF($H115=99,"Interrompu", $D115)), 0),"Non requis") -> 112366 | M115: =IF(INTRO!$E$40="Endémique", IF($I115>0, IF($I115=4,"Inconnu",IF($I115=99,"Interrompu", $D115)), 0),"Non requis") -> 0 | N115: =IF(INTRO!$E$42="Endémique", IF(AND($J115>1,$J115<5), IF($J115=4, "Inconnu", E115+F115), 0),"Non requis") -> 0 | O115: =IF(INTRO!$E$44="Endémique", IF(AND($K115>0,$K115<5), IF($K115=4,"Inconnu", IF($K115=1, $F115*0.33, IF($K115=2, $F115*0.5+$G115*0.2, SUM(F115:G115)))), 0),"Non requis") -> 31062.2 | P115: 1 | Q115: 0 | R115: 0 | S115: 1 | T115: MDA1 (IVM+ALB) | U115: T2 (PZQ) | V115: MDA 1 | W115: T2 | X115: 10735 | Y115: Donamanga | Z115: TRUE
A116: =IF(INTRO!$E$34<>0,INTRO!$E$34,"") -> Chad | B116: Tandjile | C116: Guidari | D116: 37174 | E116: 5762 | F116: 12650 | G116: 18204 | H116: 1 | I116: 0 | J116: 1 | K116: 2 | L116: =IF(INTRO!$E$38="Endémique", IF($H116>0, IF($H116=4,"Inconnu", IF($H116=99,"Interrompu", $D116)), 0),"Non requis") -> 37174 | M116: =IF(INTRO!$E$40="Endémique", IF($I116>0, IF($I116=4,"Inconnu",IF($I116=99,"Interrompu", $D116)), 0),"Non requis") -> 0 | N116: =IF(INTRO!$E$42="Endémique", IF(AND($J116>1,$J116<5), IF($J116=4, "Inconnu", E116+F116), 0),"Non requis") -> 0 | O116: =IF(INTRO!$E$44="Endémique", IF(AND($K116>0,$K116<5), IF($K116=4,"Inconnu", IF($K116=1, $F116*0.33, IF($K116=2, $F116*0.5+$G116*0.2, SUM(F116:G116)))), 0),"Non requis") -> 9965.8 | P116: 0 | Q116: 0 | R116: 0 | S116: 0 | T116: MDA1 (IVM+ALB) | U116: T2 (PZQ) | V116: MDA 1 | W116: T2 | X116: 10776 | Y116: Guidari | Z116: TRUE
A117: =IF(INTRO!$E$34<>0,INTRO!$E$34,"") -> Chad | B117: Tandjile | C117: Kelo | D117: 203672 | E117: 26477 | F117: 73322 | G117: 99738 | H117: 1 | I117: 1 | J117: 1 | K117: 2 | L117: =IF(INTRO!$E$38="Endémique", IF($H117>0, IF($H117=4,"Inconnu", IF($H117=99,"Interrompu", $D117)), 0),"Non requis") -> 203672 | M117: =IF(INTRO!$E$40="Endémique", IF($I117>0, IF($I117=4,"Inconnu",IF($I117=99,"Interrompu", $D117)), 0),"Non requis") -> 203672 | N117: =IF(INTRO!$E$42="Endémique", IF(AND($J117>1,$J117<5), IF($J117=4, "Inconnu", E117+F117), 0),"Non requis") -> 0 | O117: =IF(INTRO!$E$44="Endémique", IF(AND($K117>0,$K117<5), IF($K117=4,"Inconnu", IF($K117=1, $F117*0.33, IF($K117=2, $F117*0.5+$G117*0.2, SUM(F117:G117)))), 0),"Non requis") -> 56608.6 | P117: 1 | Q117: 1 | R117: 0 | S117: 1 | T117: MDA1 (IVM+ALB) | U117: T2 (PZQ) | V117: MDA 1 | W117: T2 | X117: 10736 | Y117: Kelo | Z117: TRUE
A118: =IF(INTRO!$E$34<>0,INTRO!$E$34,"") -> Chad | B118: Tandjile | C118: Kolon | D118: 73480 | E118: 11389 | F118: 25005 | G118: 35983 | H118: 1 | I118: 1 | J118: 1 | K118: 3 | L118: =IF(INTRO!$E$38="Endémique", IF($H118>0, IF($H118=4,"Inconnu", IF($H118=99,"Interrompu", $D118)), 0),"Non requis") -> 73480 | M118: =IF(INTRO!$E$40="Endémique", IF($I118>0, IF($I118=4,"Inconnu",IF($I118=99,"Interrompu", $D118)), 0),"Non requis") -> 73480 | N118: =IF(INTRO!$E$42="Endémique", IF(AND($J118>1,$J118<5), IF($J118=4, "Inconnu", E118+F118), 0),"Non requis") -> 0 | O118: =IF(INTRO!$E$44="Endémique", IF(AND($K118>0,$K118<5), IF($K118=4,"Inconnu", IF($K118=1, $F118*0.33, IF($K118=2, $F118*0.5+$G118*0.2, SUM(F118:G118)))), 0),"Non requis") -> 60988 | P118: 0 | Q118: 0 | R118: 0 | S118: 0 | T118: MDA2 (DEC+ALB) | U118: T2 (PZQ) | V118: MDA 1 | W118: T2 | X118: 10777 | Y118: Kolon | Z118: TRUE
A119: =IF(INTRO!$E$34<>0,INTRO!$E$34,"") -> Chad | B119: Tandjile | C119: Lai | D119: 171184 | E119: 22254 | F119: 61626 | G119: 83829 | H119: 1 | I119: 0 | J119: 1 | K119: 2 | L119: =IF(INTRO!$E$38="Endémique", IF($H119>0, IF($H119=4,"Inconnu", IF($H119=99,"Interrompu", $D119)), 0),"Non requis") -> 171184 | M119: =IF(INTRO!$E$40="Endémique", IF($I119>0, IF($I119=4,"Inconnu",IF($I119=99,"Interrompu", $D119)), 0),"Non requis") -> 0 | N119: =IF(INTRO!$E$42="Endémique", IF(AND($J119>1,$J119<5), IF($J119=4, "Inconnu", E119+F119), 0),"Non requis") -> 0 | O119: =IF(INTRO!$E$44="Endémique", IF(AND($K119>0,$K119<5), IF($K119=4,"Inconnu", IF($K119=1, $F119*0.33, IF($K119=2, $F119*0.5+$G119*0.2, SUM(F119:G119)))), 0),"Non requis") -> 47578.8 | P119: 1 | Q119: 0 | R119: 0 | S119: 1 | T119: MDA1 (IVM+ALB) | U119: T2 (PZQ) | V119: MDA 1 | W119: T2 | X119: 10737 | Y119: Lai | Z119: TRUE
A120: =IF(INTRO!$E$34<>0,INTRO!$E$34,"") -> Chad | B120: Tibesti | C120: Bardaï | D120: 19550 | E120: 3030 | F120: 6653 | G120: 9574 | H120: 0 | I120: 0 | J120: 0 | K120: 0 | L120: =IF(INTRO!$E$38="Endémique", IF($H120>0, IF($H120=4,"Inconnu", IF($H120=99,"Interrompu", $D120)), 0),"Non requis") -> 0 | M120: =IF(INTRO!$E$40="Endémique", IF($I120>0, IF($I120=4,"Inconnu",IF($I120=99,"Interrompu", $D120)), 0),"Non requis") -> 0 | N120: =IF(INTRO!$E$42="Endémique", IF(AND($J120>1,$J120<5), IF($J120=4, "Inconnu", E120+F120), 0),"Non requis") -> 0 | O120: =IF(INTRO!$E$44="Endémique", IF(AND($K120>0,$K120<5), IF($K120=4,"Inconnu", IF($K120=1, $F120*0.33, IF($K120=2, $F120*0.5+$G120*0.2, SUM(F120:G120)))), 0),"Non requis") -> 0 | P120: 0 | Q120: 0 | R120: 0 | S120: 0 | X120: 10738 | Y120: Bardaï | Z120: TRUE
A121: =IF(INTRO!$E$34<>0,INTRO!$E$34,"") -> Chad | B121: Tibesti | C121: Zouar | D121: 15077 | E121: 2337 | F121: 5131 | G121: 7383 | H121: 0 | I121: 0 | J121: 0 | K121: 0 | L121: =IF(INTRO!$E$38="Endémique", IF($H121>0, IF($H121=4,"Inconnu", IF($H121=99,"Interrompu", $D121)), 0),"Non requis") -> 0 | M121: =IF(INTRO!$E$40="Endémique", IF($I121>0, IF($I121=4,"Inconnu",IF($I121=99,"Interrompu", $D121)), 0),"Non requis") -> 0 | N121: =IF(INTRO!$E$42="Endémique", IF(AND($J121>1,$J121<5), IF($J121=4, "Inconnu", E121+F121), 0),"Non requis") -> 0 | O121: =IF(INTRO!$E$44="Endémique", IF(AND($K121>0,$K121<5), IF($K121=4,"Inconnu", IF($K121=1, $F121*0.33, IF($K121=2, $F121*0.5+$G121*0.2, SUM(F121:G121)))), 0),"Non requis") -> 0 | P121: 0 | Q121: 0 | R121: 0 | S121: 0 | X121: 10760 | Y121: Zouar | Z121: TRUE
A122: =IF(INTRO!$E$34<>0,INTRO!$E$34,"") -> Chad | B122: Wadi Fira | C122: amzoer | D122: 51816 | E122: 8031 | F122: 17633 | G122: 25374 | H122: 0 | I122: 0 | J122: 1 | K122: 1 | L122: =IF(INTRO!$E$38="Endémique", IF($H122>0, IF($H122=4,"Inconnu", IF($H122=99,"Interrompu", $D122)), 0),"Non requis") -> 0 | M122: =IF(INTRO!$E$40="Endémique", IF($I122>0, IF($I122=4,"Inconnu",IF($I122=99,"Interrompu", $D122)), 0),"Non requis") -> 0 | N122: =IF(INTRO!$E$42="Endémique", IF(AND($J122>1,$J122<5), IF($J122=4, "Inconnu", E122+F122), 0),"Non requis") -> 0 | O122: =IF(INTRO!$E$44="Endémique", IF(AND($K122>0,$K122<5), IF($K122=4,"Inconnu", IF($K122=1, $F122*0.33, IF($K122=2, $F122*0.5+$G122*0.2, SUM(F122:G122)))), 0),"Non requis") -> 5818.89 | P122: 0 | Q122: 0 | R122: 0 | S122: 0 | W122: T2 | X122: 10778 | Y122: amzoer | Z122: TRUE
A123: =IF(INTRO!$E$34<>0,INTRO!$E$34,"") -> Chad | B123: Wadi Fira | C123: Arada | D123: 36703 | E123: 5689 | F123: 12490 | G123: 17973 | H123: 0 | I123: 0 | J123: 1 | K123: 1 | L123: =IF(INTRO!$E$38="Endémique", IF($H123>0, IF($H123=4,"Inconnu", IF($H123=99,"Interrompu", $D123)), 0),"Non requis") -> 0 | M123: =IF(INTRO!$E$40="Endémique", IF($I123>0, IF($I123=4,"Inconnu",IF($I123=99,"Interrompu", $D123)), 0),"Non requis") -> 0 | N123: =IF(INTRO!$E$42="Endémique", IF(AND($J123>1,$J123<5), IF($J123=4, "Inconnu", E123+F123), 0),"Non requis") -> 0 | O123: =IF(INTRO!$E$44="Endémique", IF(AND($K123>0,$K123<5), IF($K123=4,"Inconnu", IF($K123=1, $F123*0.33, IF($K123=2, $F123*0.5+$G123*0.2, SUM(F123:G123)))), 0),"Non requis") -> 4121.7 | P123: 0 | Q123: 0 | R123: 0 | S123: 0 | W123: T2 | X123: 10779 | Y123: Arada | Z123: TRUE
A124: =IF(INTRO!$E$34<>0,INTRO!$E$34,"") -> Chad | B124: Wadi Fira | C124: Biltine | D124: 127380 | E124: 19744 | F124: 43347 | G124: 62378 | H124: 0 | I124: 0 | J124: 1 | K124: 1 | L124: =IF(INTRO!$E$38="Endémique", IF($H124>0, IF($H124=4,"Inconnu", IF($H124=99,"Interrompu", $D124)), 0),"Non requis") -> 0 | M124: =IF(INTRO!$E$40="Endémique", IF($I124>0, IF($I124=4,"Inconnu",IF($I124=99,"Interrompu", $D124)), 0),"Non requis") -> 0 | N124: =IF(INTRO!$E$42="Endémique", IF(AND($J124>1,$J124<5), IF($J124=4, "Inconnu", E124+F124), 0),"Non requis") -> 0 | O124: =IF(INTRO!$E$44="Endémique", IF(AND($K124>0,$K124<5), IF($K124=4,"Inconnu", IF($K124=1, $F124*0.33, IF($K124=2, $F124*0.5+$G124*0.2, SUM(F124:G124)))), 0),"Non requis") -> 14304.51 | P124: 0 | Q124: 0 | R124: 0 | S124: 0 | W124: T2 | X124: 10740 | Y124: Biltine | Z124: TRUE
A125: =IF(INTRO!$E$34<>0,INTRO!$E$34,"") -> Chad | B125: Wadi Fira | C125: Guéréda | D125: 94824 | E125: 14698 | F125: 32269 | G125: 46435 | H125: 0 | I125: 0 | J125: 1 | K125: 1 | L125: =IF(INTRO!$E$38="Endémique", IF($H125>0, IF($H125=4,"Inconnu", IF($H125=99,"Interrompu", $D125)), 0),"Non requis") -> 0 | M125: =IF(INTRO!$E$40="Endémique", IF($I125>0, IF($I125=4,"Inconnu",IF($I125=99,"Interrompu", $D125)), 0),"Non requis") -> 0 | N125: =IF(INTRO!$E$42="Endémique", IF(AND($J125>1,$J125<5), IF($J125=4, "Inconnu", E125+F125), 0),"Non requis") -> 0 | O125: =IF(INTRO!$E$44="Endémique", IF(AND($K125>0,$K125<5), IF($K125=4,"Inconnu", IF($K125=1, $F125*0.33, IF($K125=2, $F125*0.5+$G125*0.2, SUM(F125:G125)))), 0),"Non requis") -> 10648.77 | P125: 0 | Q125: 0 | R125: 0 | S125: 0 | W125: T2 | X125: 10741 | Y125: Guéréda | Z125: TRUE
A126: =IF(INTRO!$E$34<>0,INTRO!$E$34,"") -> Chad | B126: Wadi Fira | C126: Iriba | D126: 83990 | E126: 13018 | F126: 28582 | G126: 41130 | H126: 0 | I126: 0 | J126: 1 | K126: 0 | L126: =IF(INTRO!$E$38="Endémique", IF($H126>0, IF($H126=4,"Inconnu", IF($H126=99,"Interrompu", $D126)), 0),"Non requis") -> 0 | M126: =IF(INTRO!$E$40="Endémique", IF($I126>0, IF($I126=4,"Inconnu",IF($I126=99,"Interrompu", $D126)), 0),"Non requis") -> 0 | N126: =IF(INTRO!$E$42="Endémique", IF(AND($J126>1,$J126<5), IF($J126=4, "Inconnu", E126+F126), 0),"Non requis") -> 0 | O126: =IF(INTRO!$E$44="Endémique", IF(AND($K126>0,$K126<5), IF($K126=4,"Inconnu", IF($K126=1, $F126*0.33, IF($K126=2, $F126*0.5+$G126*0.2, SUM(F126:G126)))), 0),"Non requis") -> 0 | P126: 0 | Q126: 0 | R126: 0 | S126: 0 | X126: 10742 | Y126: Iriba | Z126: TRUE
A127: =IF(INTRO!$E$34<>0,INTRO!$E$34,"") -> Chad | B127: Wadi Fira | C127: Matadjana | D127: 27493 | E127: 4261 | F127: 9356 | G127: 13463 | H127: 0 | I127: 0 | J127: 1 | K127: 1 | L127: =IF(INTRO!$E$38="Endémique", IF($H127>0, IF($H127=4,"Inconnu", IF($H127=99,"Interrompu", $D127)), 0),"Non requis") -> 0 | M127: =IF(INTRO!$E$40="Endémique", IF($I127>0, IF($I127=4,"Inconnu",IF($I127=99,"Interrompu", $D127)), 0),"Non requis") -> 0 | N127: =IF(INTRO!$E$42="Endémique", IF(AND($J127>1,$J127<5), IF($J127=4, "Inconnu", E127+F127), 0),"Non requis") -> 0 | O127: =IF(INTRO!$E$44="Endémique", IF(AND($K127>0,$K127<5), IF($K127=4,"Inconnu", IF($K127=1, $F127*0.33, IF($K127=2, $F127*0.5+$G127*0.2, SUM(F127:G127)))), 0),"Non requis") -> 3087.48 | P127: 0 | Q127: 0 | R127: 0 | S127: 0 | W127: T2 | X127: 10743 | Y127: Matadjana | Z127: TRUE

Sheet MDA1
A1: MDA 1 - Ivermectine (IVM) et Albendazole (ALB)
A2: Structure administrative, population nécessitant une chimioprévention par groupe d'âge, population traitée par groupe d'âge et couverture
A4: TOTAL | G4: =SUM(G$9:G$1000) -> 1327817 | H4: =SUM(H$9:H$1000) -> 1884664 | I4: =SUM(I$9:I$1000) -> 3212481 | K4: =SUM(K$9:K$1000) -> 1178503.628 | L4: =SUM(L$9:L$1000) -> 1896354.372 | M4: =SUM(M$9:M$1000) -> 3074858 | O4: =IF(G4<>0, IF(K4/G4*100=0, "-", K4/G4*100), " ") -> 88.75497361 | P4: =IF(H4<>0, IF(L4/H4*100=0, "-", L4/H4*100), " ") -> 100.6202895 | Q4: =IF(I4<>0, IF(M4/I4*100=0, "-", M4/I4*100), " ") -> 95.71599023
A6: Structure administrative du pays | D6: Mise en oeuvre de la CP | E6: Date | F6: Population ciblée pour MDA 1 | J6: Population traitée | N6: Couverture du Programme (%)
A7: Pays | B7: Région/Département | C7: District | F7: EAPréS | G7: EAS | H7: Adultes | I7: Total | J7: EAPréS | K7: EAS | L7: Adultes | M7: Total | N7: EAPréS | O7: EAS | P7: Adultes | Q7: Total
A9: =IF(COUNTRY_INFO!A9=0," ",COUNTRY_INFO!A9) -> Chad | B9: =IF(COUNTRY_INFO!B9=0," ",COUNTRY_INFO!B9) -> Bahr El Gazel | C9: =IF(COUNTRY_INFO!C9=0," ",COUNTRY_INFO!C9) -> Chadra | D9: =IF(COUNTRY_INFO!$T$9:$T$1000="MDA1 (IVM+ALB)", COUNTRY_INFO!$T$9:$T$1000, " ") ->  | I9: =SUM(F9:H9) -> 0 | O9: =IF(G9<>0, IF(K9/G9*100=0, "-", K9/G9*100), " ") ->  | P9: =IF(H9<>0, IF(L9/H9*100=0, "-", L9/H9*100), " ") -> 
A10: =IF(COUNTRY_INFO!A10=0," ",COUNTRY_INFO!A10) -> Chad | B10: =IF(COUNTRY_INFO!B10=0," ",COUNTRY_INFO!B10) -> Bahr El Gazel | C10: =IF(COUNTRY_INFO!C10=0," ",COUNTRY_INFO!C10) -> Michemire | D10: =IF(COUNTRY_INFO!$T$9:$T$1000="MDA1 (IVM+ALB)", COUNTRY_INFO!$T$9:$T$1000, " ") ->  | I10: =SUM(F10:H10) -> 0 | O10: =IF(G10<>0, IF(K10/G10*100=0, "-", K10/G10*100), " ") ->  | P10: =IF(H10<>0, IF(L10/H10*100=0, "-", L10/H10*100), " ") ->  | Q10: =IF(I10<>0, IF(M10/I10*100=0, "-", M10/I10*100), " ") -> 
A11: =IF(COUNTRY_INFO!A11=0," ",COUNTRY_INFO!A11) -> Chad | B11: =IF(COUNTRY_INFO!B11=0," ",COUNTRY_INFO!B11) -> Bahr El Gazel | C11: =IF(COUNTRY_INFO!C11=0," ",COUNTRY_INFO!C11) -> Moussoro | D11: =IF(COUNTRY_INFO!$T$9:$T$1000="MDA1 (IVM+ALB)", COUNTRY_INFO!$T$9:$T$1000, " ") ->  | I11: 0
A12: =IF(COUNTRY_INFO!A12=0," ",COUNTRY_INFO!A12) -> Chad | B12: =IF(COUNTRY_INFO!B12=0," ",COUNTRY_INFO!B12) -> Bahr El Gazel | C12: =IF(COUNTRY_INFO!C12=0," ",COUNTRY_INFO!C12) -> Salal | D12: =IF(COUNTRY_INFO!$T$9:$T$1000="MDA1 (IVM+ALB)", COUNTRY_INFO!$T$9:$T$1000, " ") ->  | I12: 0
A13: =IF(COUNTRY_INFO!A13=0," ",COUNTRY_INFO!A13) -> Chad | B13: =IF(COUNTRY_INFO!B13=0," ",COUNTRY_INFO!B13) -> Batha | C13: =IF(COUNTRY_INFO!C13=0," ",COUNTRY_INFO!C13) -> Alifa | D13: =IF(COUNTRY_INFO!$T$9:$T$1000="MDA1 (IVM+ALB)", COUNTRY_INFO!$T$9:$T$1000, " ") ->  | I13: 0
A14: =IF(COUNTRY_INFO!A14=0," ",COUNTRY_INFO!A14) -> Chad | B14: =IF(COUNTRY_INFO!B14=0," ",COUNTRY_INFO!B14) -> Batha | C14: =IF(COUNTRY_INFO!C14=0," ",COUNTRY_INFO!C14) -> Assinet | D14: =IF(COUNTRY_INFO!$T$9:$T$1000="MDA1 (IVM+ALB)", COUNTRY_INFO!$T$9:$T$1000, " ") ->  | I14: 0
A15: =IF(COUNTRY_INFO!A15=0," ",COUNTRY_INFO!A15) -> Chad | B15: =IF(COUNTRY_INFO!B15=0," ",COUNTRY_INFO!B15) -> Batha | C15: =IF(COUNTRY_INFO!C15=0," ",COUNTRY_INFO!C15) -> Ati | D15: =IF(COUNTRY_INFO!$T$9:$T$1000="MDA1 (IVM+ALB)", COUNTRY_INFO!$T$9:$T$1000, " ") ->  | I15: 0
A16: =IF(COUNTRY_INFO!A16=0," ",COUNTRY_INFO!A16) -> Chad | B16: =IF(COUNTRY_INFO!B16=0," ",COUNTRY_INFO!B16) -> Batha | C16: =IF(COUNTRY_INFO!C16=0," ",COUNTRY_INFO!C16) -> Djedda | D16: =IF(COUNTRY_INFO!$T$9:$T$1000="MDA1 (IVM+ALB)", COUNTRY_INFO!$T$9:$T$1000, " ") ->  | I16: 0
A17: =IF(COUNTRY_INFO!A17=0," ",COUNTRY_INFO!A17) -> Chad | B17: =IF(COUNTRY_INFO!B17=0," ",COUNTRY_INFO!B17) -> Batha | C17: =IF(COUNTRY_INFO!C17=0," ",COUNTRY_INFO!C17) -> Koundjourou | D17: =IF(COUNTRY_INFO!$T$9:$T$1000="MDA1 (IVM+ALB)", COUNTRY_INFO!$T$9:$T$1000, " ") ->  | I17: 0
A18: =IF(COUNTRY_INFO!A18=0," ",COUNTRY_INFO!A18) -> Chad | B18: =IF(COUNTRY_INFO!B18=0," ",COUNTRY_INFO!B18) -> Batha | C18: =IF(COUNTRY_INFO!C18=0," ",COUNTRY_INFO!C18) -> Oum-Hadjer | D18: =IF(COUNTRY_INFO!$T$9:$T$1000="MDA1 (IVM+ALB)", COUNTRY_INFO!$T$9:$T$1000, " ") ->  | I18: 0
A19: =IF(COUNTRY_INFO!A19=0," ",COUNTRY_INFO!A19) -> Chad | B19: =IF(COUNTRY_INFO!B19=0," ",COUNTRY_INFO!B19) -> Batha | C19: =IF(COUNTRY_INFO!C19=0," ",COUNTRY_INFO!C19) -> Yao | D19: =IF(COUNTRY_INFO!$T$9:$T$1000="MDA1 (IVM+ALB)", COUNTRY_INFO!$T$9:$T$1000, " ") ->  | I19: 0
A20: =IF(COUNTRY_INFO!A20=0," ",COUNTRY_INFO!A20) -> Chad | B20: =IF(COUNTRY_INFO!B20=0," ",COUNTRY_INFO!B20) -> Borkou | C20: =IF(COUNTRY_INFO!C20=0," ",COUNTRY_INFO!C20) -> Faya | D20: =IF(COUNTRY_INFO!$T$9:$T$1000="MDA1 (IVM+ALB)", COUNTRY_INFO!$T$9:$T$1000, " ") ->  | I20: 0
A21: =IF(COUNTRY_INFO!A21=0," ",COUNTRY_INFO!A21) -> Chad | B21: =IF(COUNTRY_INFO!B21=0," ",COUNTRY_INFO!B21) -> Borkou | C21: =IF(COUNTRY_INFO!C21=0," ",COUNTRY_INFO!C21) -> Kirdimi | D21: =IF(COUNTRY_INFO!$T$9:$T$1000="MDA1 (IVM+ALB)", COUNTRY_INFO!$T$9:$T$1000, " ") ->  | I21: 0
A22: =IF(COUNTRY_INFO!A22=0," ",COUNTRY_INFO!A22) -> Chad | B22: =IF(COUNTRY_INFO!B22=0," ",COUNTRY_INFO!B22) -> Chari Baguirmi | C22: =IF(COUNTRY_INFO!C22=0," ",COUNTRY_INFO!C22) -> Ba-Illi | D22: =IF(COUNTRY_INFO!$T$9:$T$1000="MDA1 (IVM+ALB)", COUNTRY_INFO!$T$9:$T$1000, " ") ->  | I22: 0
A23: =IF(COUNTRY_INFO!A23=0," ",COUNTRY_INFO!A23) -> Chad | B23: =IF(COUNTRY_INFO!B23=0," ",COUNTRY_INFO!B23) -> Chari Baguirmi | C23: =IF(COUNTRY_INFO!C23=0," ",COUNTRY_INFO!C23) -> Bousso | D23: =IF(COUNTRY_INFO!$T$9:$T$1000="MDA1 (IVM+ALB)", COUNTRY_INFO!$T$9:$T$1000, " ") ->  | I23: 0
A24: =IF(COUNTRY_INFO!A24=0," ",COUNTRY_INFO!A24) -> Chad | B24: =IF(COUNTRY_INFO!B24=0," ",COUNTRY_INFO!B24) -> Chari Baguirmi | C24: =IF(COUNTRY_INFO!C24=0," ",COUNTRY_INFO!C24) -> Dourbali | D24: =IF(COUNTRY_INFO!$T$9:$T$1000="MDA1 (IVM+ALB)", COUNTRY_INFO!$T$9:$T$1000, " ") ->  | I24: 0
A25: =IF(COUNTRY_INFO!A25=0," ",COUNTRY_INFO!A25) -> Chad | B25: =IF(COUNTRY_INFO!B25=0," ",COUNTRY_INFO!B25) -> Chari Baguirmi | C25: =IF(COUNTRY_INFO!C25=0," ",COUNTRY_INFO!C25) -> Kono | D25: =IF(COUNTRY_INFO!$T$9:$T$1000="MDA1 (IVM+ALB)", COUNTRY_INFO!$T$9:$T$1000, " ") ->  | I25: 0
A26: =IF(COUNTRY_INFO!A26=0," ",COUNTRY_INFO!A26) -> Chad | B26: =IF(COUNTRY_INFO!B26=0," ",COUNTRY_INFO!B26) -> Chari Baguirmi | C26: =IF(COUNTRY_INFO!C26=0," ",COUNTRY_INFO!C26) -> Mandélia | D26: =IF(COUNTRY_INFO!$T$9:$T$1000="MDA1 (IVM+ALB)", COUNTRY_INFO!$T$9:$T$1000, " ") ->  | I26: 0
A27: =IF(COUNTRY_INFO!A27=0," ",COUNTRY_INFO!A27) -> Chad | B27: =IF(COUNTRY_INFO!B27=0," ",COUNTRY_INFO!B27) -> Chari Baguirmi | C27: =IF(COUNTRY_INFO!C27=0," ",COUNTRY_INFO!C27) -> Massenya | D27: =IF(COUNTRY_INFO!$T$9:$T$1000="MDA1 (IVM+ALB)", COUNTRY_INFO!$T$9:$T$1000, " ") ->  | I27: 0
A28: =IF(COUNTRY_INFO!A28=0," ",COUNTRY_INFO!A28) -> Chad | B28: =IF(COUNTRY_INFO!B28=0," ",COUNTRY_INFO!B28) -> Ennedi Est | C28: =IF(COUNTRY_INFO!C28=0," ",COUNTRY_INFO!C28) -> Amdjarass | D28: =IF(COUNTRY_INFO!$T$9:$T$1000="MDA1 (IVM+ALB)", COUNTRY_INFO!$T$9:$T$1000, " ") ->  | I28: 0
A29: =IF(COUNTRY_INFO!A29=0," ",COUNTRY_INFO!A29) -> Chad | B29: =IF(COUNTRY_INFO!B29=0," ",COUNTRY_INFO!B29) -> Ennedi Est | C29: =IF(COUNTRY_INFO!C29=0," ",COUNTRY_INFO!C29) -> Bahaï | D29: =IF(COUNTRY_INFO!$T$9:$T$1000="MDA1 (IVM+ALB)", COUNTRY_INFO!$T$9:$T$1000, " ") ->  | I29: 0
A30: =IF(COUNTRY_INFO!A30=0," ",COUNTRY_INFO!A30) -> Chad | B30: =IF(COUNTRY_INFO!B30=0," ",COUNTRY_INFO!B30) -> Ennedi Est | C30: =IF(COUNTRY_INFO!C30=0," ",COUNTRY_INFO!C30) -> Kaoura | D30: =IF(COUNTRY_INFO!$T$9:$T$1000="MDA1 (IVM+ALB)", COUNTRY_INFO!$T$9:$T$1000, " ") ->  | I30: 0
A31: =IF(COUNTRY_INFO!A31=0," ",COUNTRY_INFO!A31) -> Chad | B31: =IF(COUNTRY_INFO!B31=0," ",COUNTRY_INFO!B31) -> Ennedi Ouest | C31: =IF(COUNTRY_INFO!C31=0," ",COUNTRY_INFO!C31) -> Fada | D31: =IF(COUNTRY_INFO!$T$9:$T$1000="MDA1 (IVM+ALB)", COUNTRY_INFO!$T$9:$T$1000, " ") ->  | I31: 0
A32: =IF(COUNTRY_INFO!A32=0," ",COUNTRY_INFO!A32) -> Chad | B32: =IF(COUNTRY_INFO!B32=0," ",COUNTRY_INFO!B32) -> Ennedi Ouest | C32: =IF(COUNTRY_INFO!C32=0," ",COUNTRY_INFO!C32) -> Kalaït | D32: =IF(COUNTRY_INFO!$T$9:$T$1000="MDA1 (IVM+ALB)", COUNTRY_INFO!$T$9:$T$1000, " ") ->  | I32: 0
A33: =IF(COUNTRY_INFO!A33=0," ",COUNTRY_INFO!A33) -> Chad | B33: =IF(COUNTRY_INFO!B33=0," ",COUNTRY_INFO!B33) -> Guéra | C33: =IF(COUNTRY_INFO!C33=0," ",COUNTRY_INFO!C33) -> Barou | D33: =IF(COUNTRY_INFO!$T$9:$T$1000="MDA1 (IVM+ALB)", COUNTRY_INFO!$T$9:$T$1000, " ") ->  | I33: 0
A34: =IF(COUNTRY_INFO!A34=0," ",COUNTRY_INFO!A34) -> Chad | B34: =IF(COUNTRY_INFO!B34=0," ",COUNTRY_INFO!B34) -> Guéra | C34: =IF(COUNTRY_INFO!C34=0," ",COUNTRY_INFO!C34) -> Bitkine | D34: =IF(COUNTRY_INFO!$T$9:$T$1000="MDA1 (IVM+ALB)", COUNTRY_INFO!$T$9:$T$1000, " ") ->  | I34: 0
A35: =IF(COUNTRY_INFO!A35=0," ",COUNTRY_INFO!A35) -> Chad | B35: =IF(COUNTRY_INFO!B35=0," ",COUNTRY_INFO!B35) -> Guéra | C35: =IF(COUNTRY_INFO!C35=0," ",COUNTRY_INFO!C35) -> Mangalmé | D35: =IF(COUNTRY_INFO!$T$9:$T$1000="MDA1 (IVM+ALB)", COUNTRY_INFO!$T$9:$T$1000, " ") ->  | I35: 0
A36: =IF(COUNTRY_INFO!A36=0," ",COUNTRY_INFO!A36) -> Chad | B36: =IF(COUNTRY_INFO!B36=0," ",COUNTRY_INFO!B36) -> Guéra | C36: =IF(COUNTRY_INFO!C36=0," ",COUNTRY_INFO!C36) -> Melfi | D36: =IF(COUNTRY_INFO!$T$9:$T$1000="MDA1 (IVM+ALB)", COUNTRY_INFO!$T$9:$T$1000, " ") ->  | I36: 0
A37: =IF(COUNTRY_INFO!A37=0," ",COUNTRY_INFO!A37) -> Chad | B37: =IF(COUNTRY_INFO!B37=0," ",COUNTRY_INFO!B37) -> Guéra | C37: =IF(COUNTRY_INFO!C37=0," ",COUNTRY_INFO!C37) -> Mongo | D37: =IF(COUNTRY_INFO!$T$9:$T$1000="MDA1 (IVM+ALB)", COUNTRY_INFO!$T$9:$T$1000, " ") ->  | I37: 0
A38: =IF(COUNTRY_INFO!A38=0," ",COUNTRY_INFO!A38) -> Chad | B38: =IF(COUNTRY_INFO!B38=0," ",COUNTRY_INFO!B38) -> Hadjer Lamis | C38: =IF(COUNTRY_INFO!C38=0," ",COUNTRY_INFO!C38) -> Bokoro | D38: =IF(COUNTRY_INFO!$T$9:$T$1000="MDA1 (IVM+ALB)", COUNTRY_INFO!$T$9:$T$1000, " ") ->  | I38: 0
A39: =IF(COUNTRY_INFO!A39=0," ",COUNTRY_INFO!A39) -> Chad | B39: =IF(COUNTRY_INFO!B39=0," ",COUNTRY_INFO!B39) -> Hadjer Lamis | C39: =IF(COUNTRY_INFO!C39=0," ",COUNTRY_INFO!C39) -> Gama | D39: =IF(COUNTRY_INFO!$T$9:$T$1000="MDA1 (IVM+ALB)", COUNTRY_INFO!$T$9:$T$1000, " ") ->  | I39: 0
A40: =IF(COUNTRY_INFO!A40=0," ",COUNTRY_INFO!A40) -> Chad | B40: =IF(COUNTRY_INFO!B40=0," ",COUNTRY_INFO!B40) -> Hadjer Lamis | C40: =IF(COUNTRY_INFO!C40=0," ",COUNTRY_INFO!C40) -> Mani | D40: =IF(COUNTRY_INFO!$T$9:$T$1000="MDA1 (IVM+ALB)", COUNTRY_INFO!$T$9:$T$1000, " ") ->  | I40: 0
A41: =IF(COUNTRY_INFO!A41=0," ",COUNTRY_INFO!A41) -> Chad | B41: =IF(COUNTRY_INFO!B41=0," ",COUNTRY_INFO!B41) -> Hadjer Lamis | C41: =IF(COUNTRY_INFO!C41=0," ",COUNTRY_INFO!C41) -> Massaguet | D41: =IF(COUNTRY_INFO!$T$9:$T$1000="MDA1 (IVM+ALB)", COUNTRY_INFO!$T$9:$T$1000, " ") ->  | I41: 0
A42: =IF(COUNTRY_INFO!A42=0," ",COUNTRY_INFO!A42) -> Chad | B42: =IF(COUNTRY_INFO!B42=0," ",COUNTRY_INFO!B42) -> Hadjer Lamis | C42: =IF(COUNTRY_INFO!C42=0," ",COUNTRY_INFO!C42) -> Massakory | D42: =IF(COUNTRY_INFO!$T$9:$T$1000="MDA1 (IVM+ALB)", COUNTRY_INFO!$T$9:$T$1000, " ") ->  | I42: 0
A43: =IF(COUNTRY_INFO!A43=0," ",COUNTRY_INFO!A43) -> Chad | B43: =IF(COUNTRY_INFO!B43=0," ",COUNTRY_INFO!B43) -> Kanem | C43: =IF(COUNTRY_INFO!C43=0," ",COUNTRY_INFO!C43) -> Mao | D43: =IF(COUNTRY_INFO!$T$9:$T$1000="MDA1 (IVM+ALB)", COUNTRY_INFO!$T$9:$T$1000, " ") ->  | I43: 0
A44: =IF(COUNTRY_INFO!A44=0," ",COUNTRY_INFO!A44) -> Chad | B44: =IF(COUNTRY_INFO!B44=0," ",COUNTRY_INFO!B44) -> Kanem | C44: =IF(COUNTRY_INFO!C44=0," ",COUNTRY_INFO!C44) -> Mondo | D44: =IF(COUNTRY_INFO!$T$9:$T$1000="MDA1 (IVM+ALB)", COUNTRY_INFO!$T$9:$T$1000, " ") ->  | I44: 0
A45: =IF(COUNTRY_INFO!A45=0," ",COUNTRY_INFO!A45) -> Chad | B45: =IF(COUNTRY_INFO!B45=0," ",COUNTRY_INFO!B45) -> Kanem | C45: =IF(COUNTRY_INFO!C45=0," ",COUNTRY_INFO!C45) -> Nokou | D45: =IF(COUNTRY_INFO!$T$9:$T$1000="MDA1 (IVM+ALB)", COUNTRY_INFO!$T$9:$T$1000, " ") ->  | I45: 0
A46: =IF(COUNTRY_INFO!A46=0," ",COUNTRY_INFO!A46) -> Chad | B46: =IF(COUNTRY_INFO!B46=0," ",COUNTRY_INFO!B46) -> Kanem | C46: =IF(COUNTRY_INFO!C46=0," ",COUNTRY_INFO!C46) -> Ntiona | D46: =IF(COUNTRY_INFO!$T$9:$T$1000="MDA1 (IVM+ALB)", COUNTRY_INFO!$T$9:$T$1000, " ") ->  | I46: 0
A47: =IF(COUNTRY_INFO!A47=0," ",COUNTRY_INFO!A47) -> Chad | B47: =IF(COUNTRY_INFO!B47=0," ",COUNTRY_INFO!B47) -> Kanem | C47: =IF(COUNTRY_INFO!C47=0," ",COUNTRY_INFO!C47) -> Rig-Rig | D47: =IF(COUNTRY_INFO!$T$9:$T$1000="MDA1 (IVM+ALB)", COUNTRY_INFO!$T$9:$T$1000, " ") ->  | I47: 0
A48: =IF(COUNTRY_INFO!A48=0," ",COUNTRY_INFO!A48) -> Chad | B48: =IF(COUNTRY_INFO!B48=0," ",COUNTRY_INFO!B48) -> Lac | C48: =IF(COUNTRY_INFO!C48=0," ",COUNTRY_INFO!C48) -> Bagassola | D48: =IF(COUNTRY_INFO!$T$9:$T$1000="MDA1 (IVM+ALB)", COUNTRY_INFO!$T$9:$T$1000, " ") ->  | I48: 0
A49: =IF(COUNTRY_INFO!A49=0," ",COUNTRY_INFO!A49) -> Chad | B49: =IF(COUNTRY_INFO!B49=0," ",COUNTRY_INFO!B49) -> Lac | C49: =IF(COUNTRY_INFO!C49=0," ",COUNTRY_INFO!C49) -> Bol | D49: =IF(COUNTRY_INFO!$T$9:$T$1000="MDA1 (IVM+ALB)", COUNTRY_INFO!$T$9:$T$1000, " ") ->  | I49: 0
A50: =IF(COUNTRY_INFO!A50=0," ",COUNTRY_INFO!A50) -> Chad | B50: =IF(COUNTRY_INFO!B50=0," ",COUNTRY_INFO!B50) -> Lac | C50: =IF(COUNTRY_INFO!C50=0," ",COUNTRY_INFO!C50) -> Isserom | D50: =IF(COUNTRY_INFO!$T$9:$T$1000="MDA1 (IVM+ALB)", COUNTRY_INFO!$T$9:$T$1000, " ") ->  | I50: 0
A51: =IF(COUNTRY_INFO!A51=0," ",COUNTRY_INFO!A51) -> Chad | B51: =IF(COUNTRY_INFO!B51=0," ",COUNTRY_INFO!B51) -> Lac | C51: =IF(COUNTRY_INFO!C51=0," ",COUNTRY_INFO!C51) -> Kouloudia | D51: =IF(COUNTRY_INFO!$T$9:$T$1000="MDA1 (IVM+ALB)", COUNTRY_INFO!$T$9:$T$1000, " ") ->  | I51: 0
A52: =IF(COUNTRY_INFO!A52=0," ",COUNTRY_INFO!A52) -> Chad | B52: =IF(COUNTRY_INFO!B52=0," ",COUNTRY_INFO!B52) -> Lac | C52: =IF(COUNTRY_INFO!C52=0," ",COUNTRY_INFO!C52) -> Liwa | D52: =IF(COUNTRY_INFO!$T$9:$T$1000="MDA1 (IVM+ALB)", COUNTRY_INFO!$T$9:$T$1000, " ") ->  | I52: 0
A53: =IF(COUNTRY_INFO!A53=0," ",COUNTRY_INFO!A53) -> Chad | B53: =IF(COUNTRY_INFO!B53=0," ",COUNTRY_INFO!B53) -> Lac | C53: =IF(COUNTRY_INFO!C53=0," ",COUNTRY_INFO!C53) -> Ngouri | D53: =IF(COUNTRY_INFO!$T$9:$T$1000="MDA1 (IVM+ALB)", COUNTRY_INFO!$T$9:$T$1000, " ") ->  | I53: 0
A54: =IF(COUNTRY_INFO!A54=0," ",COUNTRY_INFO!A54) -> Chad | B54: =IF(COUNTRY_INFO!B54=0," ",COUNTRY_INFO!B54) -> Logone Occidental | C54: =IF(COUNTRY_INFO!C54=0," ",COUNTRY_INFO!C54) -> Benamar | D54: =IF(COUNTRY_INFO!$T$9:$T$1000="MDA1 (IVM+ALB)", COUNTRY_INFO!$T$9:$T$1000, " ") -> MDA1 (IVM+ALB) | E54: 06-2017 | G54: 43717 | H54: 59966 | I54: 103683 | K54: 39435.89388 | L54: 63457.10612 | M54: 102893 | O54: 90.20722804 | P54: 105.8218092 | Q54: 99.23806217
A55: =IF(COUNTRY_INFO!A55=0," ",COUNTRY_INFO!A55) -> Chad | B55: =IF(COUNTRY_INFO!B55=0," ",COUNTRY_INFO!B55) -> Logone Occidental | C55: =IF(COUNTRY_INFO!C55=0," ",COUNTRY_INFO!C55) -> Benoye | D55: =IF(COUNTRY_INFO!$T$9:$T$1000="MDA1 (IVM+ALB)", COUNTRY_INFO!$T$9:$T$1000, " ") -> MDA1 (IVM+ALB) | E55: 06-2017 | G55: 59432 | H55: 142393 | I55: 201825 | K55: 91753.13983 | L55: 147641.8602 | M55: 239395 | O55: 154.3833959 | P55: 103.6861785 | Q55: 118.6151369
A56: =IF(COUNTRY_INFO!A56=0," ",COUNTRY_INFO!A56) -> Chad | B56: =IF(COUNTRY_INFO!B56=0," ",COUNTRY_INFO!B56) -> Logone Occidental | C56: =IF(COUNTRY_INFO!C56=0," ",COUNTRY_INFO!C56) -> Laokassy | D56: =IF(COUNTRY_INFO!$T$9:$T$1000="MDA1 (IVM+ALB)", COUNTRY_INFO!$T$9:$T$1000, " ") -> MDA1 (IVM+ALB) | E56: 06-2017 | G56: 63869 | H56: 86880 | I56: 150749 | K56: 57204.33333 | L56: 92048.66667 | M56: 149253 | O56: 89.5650994 | P56: 105.949202 | Q56: 99.00762194
A57: =IF(COUNTRY_INFO!A57=0," ",COUNTRY_INFO!A57) -> Chad | B57: =IF(COUNTRY_INFO!B57=0," ",COUNTRY_INFO!B57) -> Logone Occidental | C57: =IF(COUNTRY_INFO!C57=0," ",COUNTRY_INFO!C57) -> Moundou | D57: =IF(COUNTRY_INFO!$T$9:$T$1000="MDA1 (IVM+ALB)", COUNTRY_INFO!$T$9:$T$1000, " ") -> MDA1 (IVM+ALB) | E57: 06-2017 | G57: 155557 | H57: 212160 | I57: 367717 | K57: 94687.46192 | L57: 152363.5381 | M57: 247051 | O57: 60.86994602 | P57: 71.81539314 | Q57: 67.18509071
A58: =IF(COUNTRY_INFO!A58=0," ",COUNTRY_INFO!A58) -> Chad | B58: =IF(COUNTRY_INFO!B58=0," ",COUNTRY_INFO!B58) -> Logone Orientlal | C58: =IF(COUNTRY_INFO!C58=0," ",COUNTRY_INFO!C58) -> Baibokoum | D58: =IF(COUNTRY_INFO!$T$9:$T$1000="MDA1 (IVM+ALB)", COUNTRY_INFO!$T$9:$T$1000, " ") -> MDA1 (IVM+ALB) | I58: 0
A59: =IF(COUNTRY_INFO!A59=0," ",COUNTRY_INFO!A59) -> Chad | B59: =IF(COUNTRY_INFO!B59=0," ",COUNTRY_INFO!B59) -> Logone Orientlal | C59: =IF(COUNTRY_INFO!C59=0," ",COUNTRY_INFO!C59) -> Bebedja | D59: =IF(COUNTRY_INFO!$T$9:$T$1000="MDA1 (IVM+ALB)", COUNTRY_INFO!$T$9:$T$1000, " ") -> MDA1 (IVM+ALB) | E59: 06-2017 | G59: 58555 | H59: 80321 | I59: 138876 | K59: 51794.08115 | L59: 83342.91885 | M59: 135137 | O59: 88.45372923 | P59: 103.7623023 | Q59: 97.30767015
A60: =IF(COUNTRY_INFO!A60=0," ",COUNTRY_INFO!A60) -> Chad | B60: =IF(COUNTRY_INFO!B60=0," ",COUNTRY_INFO!B60) -> Logone Orientlal | C60: =IF(COUNTRY_INFO!C60=0," ",COUNTRY_INFO!C60) -> Beboto | D60: =IF(COUNTRY_INFO!$T$9:$T$1000="MDA1 (IVM+ALB)", COUNTRY_INFO!$T$9:$T$1000, " ") -> MDA1 (IVM+ALB) | E60: 06-2017 | G60: 32043 | H60: 43953 | I60: 75996 | K60: 28846.1186 | L60: 46416.8814 | M60: 75263 | O60: 90.02315202 | P60: 105.6057184 | Q60: 99.03547555
A61: =IF(COUNTRY_INFO!A61=0," ",COUNTRY_INFO!A61) -> Chad | B61: =IF(COUNTRY_INFO!B61=0," ",COUNTRY_INFO!B61) -> Logone Orientlal | C61: =IF(COUNTRY_INFO!C61=0," ",COUNTRY_INFO!C61) -> Bessao | D61: =IF(COUNTRY_INFO!$T$9:$T$1000="MDA1 (IVM+ALB)", COUNTRY_INFO!$T$9:$T$1000, " ") -> MDA1 (IVM+ALB) | E61: 06-2017 | G61: 56558 | H61: 77582 | I61: 134140 | K61: 50351.44944 | L61: 81021.55056 | M61: 131373 | O61: 89.02621988 | P61: 104.4334389 | Q61: 97.93722976
A62: =IF(COUNTRY_INFO!A62=0," ",COUNTRY_INFO!A62) -> Chad | B62: =IF(COUNTRY_INFO!B62=0," ",COUNTRY_INFO!B62) -> Logone Orientlal | C62: =IF(COUNTRY_INFO!C62=0," ",COUNTRY_INFO!C62) -> Bodo | D62: =IF(COUNTRY_INFO!$T$9:$T$1000="MDA1 (IVM+ALB)", COUNTRY_INFO!$T$9:$T$1000, " ") -> MDA1 (IVM+ALB) | E62: 06-2017 | G62: 32003 | H62: 43900 | I62: 75903 | K62: 29252.76904 | L62: 47071.23096 | M62: 76324 | O62: 91.4063339 | P62: 107.2237607 | Q62: 100.5546553
A63: =IF(COUNTRY_INFO!A63=0," ",COUNTRY_INFO!A63) -> Chad | B63: =IF(COUNTRY_INFO!B63=0," ",COUNTRY_INFO!B63) -> Logone Orientlal | C63: =IF(COUNTRY_INFO!C63=0," ",COUNTRY_INFO!C63) -> Doba | D63: =IF(COUNTRY_INFO!$T$9:$T$1000="MDA1 (IVM+ALB)", COUNTRY_INFO!$T$9:$T$1000, " ") -> MDA1 (IVM+ALB) | E63: 06-2017 | G63: 65972 | H63: 97575 | I63: 163547 | K63: 58799.50687 | L63: 94615.49313 | M63: 153415 | O63: 89.12797379 | P63: 96.96694146 | Q63: 93.80483898
A64: =IF(COUNTRY_INFO!A64=0," ",COUNTRY_INFO!A64) -> Chad | B64: =IF(COUNTRY_INFO!B64=0," ",COUNTRY_INFO!B64) -> Logone Orientlal | C64: =IF(COUNTRY_INFO!C64=0," ",COUNTRY_INFO!C64) -> DONIA | D64: =IF(COUNTRY_INFO!$T$9:$T$1000="MDA1 (IVM+ALB)", COUNTRY_INFO!$T$9:$T$1000, " ") -> MDA1 (IVM+ALB) | E64: 06-2017 | G64: 27283 | H64: 37424 | I64: 64707 | K64: 20071.89763 | L64: 32298.10237 | M64: 52370 | O64: 73.56924689 | P64: 86.30318077 | Q64: 80.93405659
A65: =IF(COUNTRY_INFO!A65=0," ",COUNTRY_INFO!A65) -> Chad | B65: =IF(COUNTRY_INFO!B65=0," ",COUNTRY_INFO!B65) -> Logone Orientlal | C65: =IF(COUNTRY_INFO!C65=0," ",COUNTRY_INFO!C65) -> Goré | D65: =IF(COUNTRY_INFO!$T$9:$T$1000="MDA1 (IVM+ALB)", COUNTRY_INFO!$T$9:$T$1000, " ") -> MDA1 (IVM+ALB) | E65: 06-2017 | G65: 50977 | H65: 71792 | I65: 122769 | K65: 45515.33708 | L65: 73239.66292 | M65: 118755 | O65: 89.28602522 | P65: 102.0164683 | Q65: 96.73044498
A66: =IF(COUNTRY_INFO!A66=0," ",COUNTRY_INFO!A66) -> Chad | B66: =IF(COUNTRY_INFO!B66=0," ",COUNTRY_INFO!B66) -> Logone Orientlal | C66: =IF(COUNTRY_INFO!C66=0," ",COUNTRY_INFO!C66) -> Kara | D66: =IF(COUNTRY_INFO!$T$9:$T$1000="MDA1 (IVM+ALB)", COUNTRY_INFO!$T$9:$T$1000, " ") -> MDA1 (IVM+ALB) | E66: 06-2017 | G66: 20329 | H66: 27886 | I66: 48215 | K66: 18485.15605 | L66: 29744.84395 | M66: 48230 | O66: 90.92998207 | P66: 106.665868 | Q66: 100.0311107
A67: =IF(COUNTRY_INFO!A67=0," ",COUNTRY_INFO!A67) -> Chad | B67: =IF(COUNTRY_INFO!B67=0," ",COUNTRY_INFO!B67) -> Logone Orientlal | C67: =IF(COUNTRY_INFO!C67=0," ",COUNTRY_INFO!C67) -> Larmanaye | D67: =IF(COUNTRY_INFO!$T$9:$T$1000="MDA1 (IVM+ALB)", COUNTRY_INFO!$T$9:$T$1000, " ") -> MDA1 (IVM+ALB) | E67: 06-2017 | G67: 26088 | H67: 35784 | I67: 61872 | K67: 23407.88764 | L67: 37666.11236 | M67: 61074 | O67: 89.72664689 | P67: 105.2596478 | Q67: 98.7102405
A68: =IF(COUNTRY_INFO!A68=0," ",COUNTRY_INFO!A68) -> Chad | B68: =IF(COUNTRY_INFO!B68=0," ",COUNTRY_INFO!B68) -> Mandoul | C68: =IF(COUNTRY_INFO!C68=0," ",COUNTRY_INFO!C68) -> Bedaya | D68: =IF(COUNTRY_INFO!$T$9:$T$1000="MDA1 (IVM+ALB)", COUNTRY_INFO!$T$9:$T$1000, " ") ->  | I68: 0
A69: =IF(COUNTRY_INFO!A69=0," ",COUNTRY_INFO!A69) -> Chad | B69: =IF(COUNTRY_INFO!B69=0," ",COUNTRY_INFO!B69) -> Mandoul | C69: =IF(COUNTRY_INFO!C69=0," ",COUNTRY_INFO!C69) -> Bedjondo | D69: =IF(COUNTRY_INFO!$T$9:$T$1000="MDA1 (IVM+ALB)", COUNTRY_INFO!$T$9:$T$1000, " ") ->  | I69: 0
A70: =IF(COUNTRY_INFO!A70=0," ",COUNTRY_INFO!A70) -> Chad | B70: =IF(COUNTRY_INFO!B70=0," ",COUNTRY_INFO!B70) -> Mandoul | C70: =IF(COUNTRY_INFO!C70=0," ",COUNTRY_INFO!C70) -> Bekourou | D70: =IF(COUNTRY_INFO!$T$9:$T$1000="MDA1 (IVM+ALB)", COUNTRY_INFO!$T$9:$T$1000, " ") ->  | I70: 0
A71: =IF(COUNTRY_INFO!A71=0," ",COUNTRY_INFO!A71) -> Chad | B71: =IF(COUNTRY_INFO!B71=0," ",COUNTRY_INFO!B71) -> Mandoul | C71: =IF(COUNTRY_INFO!C71=0," ",COUNTRY_INFO!C71) -> Bouna | D71: =IF(COUNTRY_INFO!$T$9:$T$1000="MDA1 (IVM+ALB)", COUNTRY_INFO!$T$9:$T$1000, " ") ->  | I71: 0
A72: =IF(COUNTRY_INFO!A72=0," ",COUNTRY_INFO!A72) -> Chad | B72: =IF(COUNTRY_INFO!B72=0," ",COUNTRY_INFO!B72) -> Mandoul | C72: =IF(COUNTRY_INFO!C72=0," ",COUNTRY_INFO!C72) -> Goundi | D72: =IF(COUNTRY_INFO!$T$9:$T$1000="MDA1 (IVM+ALB)", COUNTRY_INFO!$T$9:$T$1000, " ") ->  | I72: 0
A73: =IF(COUNTRY_INFO!A73=0," ",COUNTRY_INFO!A73) -> Chad | B73: =IF(COUNTRY_INFO!B73=0," ",COUNTRY_INFO!B73) -> Mandoul | C73: =IF(COUNTRY_INFO!C73=0," ",COUNTRY_INFO!C73) -> Koumra | D73: =IF(COUNTRY_INFO!$T$9:$T$1000="MDA1 (IVM+ALB)", COUNTRY_INFO!$T$9:$T$1000, " ") -> MDA1 (IVM+ALB) | E73: 06-2017 | G73: 76189 | H73: 104509 | I73: 180698 | K73: 66773.07491 | L73: 107445.9251 | M73: 174219 | O73: 87.64135887 | P73: 102.8102126 | Q73: 96.41445948
A74: =IF(COUNTRY_INFO!A74=0," ",COUNTRY_INFO!A74) -> Chad | B74: =IF(COUNTRY_INFO!B74=0," ",COUNTRY_INFO!B74) -> Mandoul | C74: =IF(COUNTRY_INFO!C74=0," ",COUNTRY_INFO!C74) -> Moissala | D74: =IF(COUNTRY_INFO!$T$9:$T$1000="MDA1 (IVM+ALB)", COUNTRY_INFO!$T$9:$T$1000, " ") ->  | I74: =SUM(F74:H74) -> 0 | O74: =IF(G74<>0, IF(K74/G74*100=0, "-", K74/G74*100), " ") ->  | P74: =IF(H74<>0, IF(L74/H74*100=0, "-", L74/H74*100), " ") ->  | Q74: =IF(I74<>0, IF(M74/I74*100=0, "-", M74/I74*100), " ") -> 
A75: =IF(COUNTRY_INFO!A75=0," ",COUNTRY_INFO!A75) -> Chad | B75: =IF(COUNTRY_INFO!B75=0," ",COUNTRY_INFO!B75) -> Mayo Kebbi Est | C75: =IF(COUNTRY_INFO!C75=0," ",COUNTRY_INFO!C75) -> Bongor | D75: =IF(COUNTRY_INFO!$T$9:$T$1000="MDA1 (IVM+ALB)", COUNTRY_INFO!$T$9:$T$1000, " ") ->  | I75: 0
A76: =IF(COUNTRY_INFO!A76=0," ",COUNTRY_INFO!A76) -> Chad | B76: =IF(COUNTRY_INFO!B76=0," ",COUNTRY_INFO!B76) -> Mayo Kebbi Est | C76: =IF(COUNTRY_INFO!C76=0," ",COUNTRY_INFO!C76) -> Fianga | D76: =IF(COUNTRY_INFO!$T$9:$T$1000="MDA1 (IVM+ALB)", COUNTRY_INFO!$T$9:$T$1000, " ") ->  | I76: 0
A77: =IF(COUNTRY_INFO!A77=0," ",COUNTRY_INFO!A77) -> Chad | B77: =IF(COUNTRY_INFO!B77=0," ",COUNTRY_INFO!B77) -> Mayo Kebbi Est | C77: =IF(COUNTRY_INFO!C77=0," ",COUNTRY_INFO!C77) -> Gounou Gaya | D77: =IF(COUNTRY_INFO!$T$9:$T$1000="MDA1 (IVM+ALB)", COUNTRY_INFO!$T$9:$T$1000, " ") ->  | I77: 0
A78: =IF(COUNTRY_INFO!A78=0," ",COUNTRY_INFO!A78) -> Chad | B78: =IF(COUNTRY_INFO!B78=0," ",COUNTRY_INFO!B78) -> Mayo Kebbi Est | C78: =IF(COUNTRY_INFO!C78=0," ",COUNTRY_INFO!C78) -> Guelinding | D78: =IF(COUNTRY_INFO!$T$9:$T$1000="MDA1 (IVM+ALB)", COUNTRY_INFO!$T$9:$T$1000, " ") -> MDA1 (IVM+ALB) | E78: 06-2017 | G78: 28291 | H78: 38805 | I78: 67096 | K78: 25377.13358 | L78: 40834.86642 | M78: 66212 | O78: 89.70037674 | P78: 105.2309404 | Q78: 98.6824848
A79: =IF(COUNTRY_INFO!A79=0," ",COUNTRY_INFO!A79) -> Chad | B79: =IF(COUNTRY_INFO!B79=0," ",COUNTRY_INFO!B79) -> Mayo Kebbi Est | C79: =IF(COUNTRY_INFO!C79=0," ",COUNTRY_INFO!C79) -> Moulkou | D79: =IF(COUNTRY_INFO!$T$9:$T$1000="MDA1 (IVM+ALB)", COUNTRY_INFO!$T$9:$T$1000, " ") -> MDA1 (IVM+ALB) | E79: 06-2017 | G79: 23802 | H79: 32460 | I79: 56262 | K79: 21268.46941 | L79: 34223.53059 | M79: 55492 | O79: 89.35580797 | P79: 105.4329346 | Q79: 98.63140308
A80: =IF(COUNTRY_INFO!A80=0," ",COUNTRY_INFO!A80) -> Chad | B80: =IF(COUNTRY_INFO!B80=0," ",COUNTRY_INFO!B80) -> Mayo Kebbi Est | C80: =IF(COUNTRY_INFO!C80=0," ",COUNTRY_INFO!C80) -> Pont Carol | D80: =IF(COUNTRY_INFO!$T$9:$T$1000="MDA1 (IVM+ALB)", COUNTRY_INFO!$T$9:$T$1000, " ") ->  | I80: 0
A81: =IF(COUNTRY_INFO!A81=0," ",COUNTRY_INFO!A81) -> Chad | B81: =IF(COUNTRY_INFO!B81=0," ",COUNTRY_INFO!B81) -> Mayo Kebbi Est | C81: =IF(COUNTRY_INFO!C81=0," ",COUNTRY_INFO!C81) -> Youé | D81: =IF(COUNTRY_INFO!$T$9:$T$1000="MDA1 (IVM+ALB)", COUNTRY_INFO!$T$9:$T$1000, " ") ->  | I81: 0
A82: =IF(COUNTRY_INFO!A82=0," ",COUNTRY_INFO!A82) -> Chad | B82: =IF(COUNTRY_INFO!B82=0," ",COUNTRY_INFO!B82) -> Mayo Kebbi Ouest | C82: =IF(COUNTRY_INFO!C82=0," ",COUNTRY_INFO!C82) -> Binder | D82: =IF(COUNTRY_INFO!$T$9:$T$1000="MDA1 (IVM+ALB)", COUNTRY_INFO!$T$9:$T$1000, " ") ->  | I82: 0
A83: =IF(COUNTRY_INFO!A83=0," ",COUNTRY_INFO!A83) -> Chad | B83: =IF(COUNTRY_INFO!B83=0," ",COUNTRY_INFO!B83) -> Mayo Kebbi Ouest | C83: =IF(COUNTRY_INFO!C83=0," ",COUNTRY_INFO!C83) -> Gagal | D83: =IF(COUNTRY_INFO!$T$9:$T$1000="MDA1 (IVM+ALB)", COUNTRY_INFO!$T$9:$T$1000, " ") ->  | I83: 0
A84: =IF(COUNTRY_INFO!A84=0," ",COUNTRY_INFO!A84) -> Chad | B84: =IF(COUNTRY_INFO!B84=0," ",COUNTRY_INFO!B84) -> Mayo Kebbi Ouest | C84: =IF(COUNTRY_INFO!C84=0," ",COUNTRY_INFO!C84) -> Guegou | D84: =IF(COUNTRY_INFO!$T$9:$T$1000="MDA1 (IVM+ALB)", COUNTRY_INFO!$T$9:$T$1000, " ") ->  | I84: 0
A85: =IF(COUNTRY_INFO!A85=0," ",COUNTRY_INFO!A85) -> Chad | B85: =IF(COUNTRY_INFO!B85=0," ",COUNTRY_INFO!B85) -> Mayo Kebbi Ouest | C85: =IF(COUNTRY_INFO!C85=0," ",COUNTRY_INFO!C85) -> GUELO | D85: =IF(COUNTRY_INFO!$T$9:$T$1000="MDA1 (IVM+ALB)", COUNTRY_INFO!$T$9:$T$1000, " ") ->  | I85: 0
A86: =IF(COUNTRY_INFO!A86=0," ",COUNTRY_INFO!A86) -> Chad | B86: =IF(COUNTRY_INFO!B86=0," ",COUNTRY_INFO!B86) -> Mayo Kebbi Ouest | C86: =IF(COUNTRY_INFO!C86=0," ",COUNTRY_INFO!C86) -> Lagon | D86: =IF(COUNTRY_INFO!$T$9:$T$1000="MDA1 (IVM+ALB)", COUNTRY_INFO!$T$9:$T$1000, " ") ->  | I86: 0
A87: =IF(COUNTRY_INFO!A87=0," ",COUNTRY_INFO!A87) -> Chad | B87: =IF(COUNTRY_INFO!B87=0," ",COUNTRY_INFO!B87) -> Mayo Kebbi Ouest | C87: =IF(COUNTRY_INFO!C87=0," ",COUNTRY_INFO!C87) -> Lamé | D87: =IF(COUNTRY_INFO!$T$9:$T$1000="MDA1 (IVM+ALB)", COUNTRY_INFO!$T$9:$T$1000, " ") ->  | I87: 0
A88: =IF(COUNTRY_INFO!A88=0," ",COUNTRY_INFO!A88) -> Chad | B88: =IF(COUNTRY_INFO!B88=0," ",COUNTRY_INFO!B88) -> Mayo Kebbi Ouest | C88: =IF(COUNTRY_INFO!C88=0," ",COUNTRY_INFO!C88) -> Lere | D88: =IF(COUNTRY_INFO!$T$9:$T$1000="MDA1 (IVM+ALB)", COUNTRY_INFO!$T$9:$T$1000, " ") ->  | I88: 0
A89: =IF(COUNTRY_INFO!A89=0," ",COUNTRY_INFO!A89) -> Chad | B89: =IF(COUNTRY_INFO!B89=0," ",COUNTRY_INFO!B89) -> Mayo Kebbi Ouest | C89: =IF(COUNTRY_INFO!C89=0," ",COUNTRY_INFO!C89) -> Pala | D89: =IF(COUNTRY_INFO!$T$9:$T$1000="MDA1 (IVM+ALB)", COUNTRY_INFO!$T$9:$T$1000, " ") ->  | I89: 0
A90: =IF(COUNTRY_INFO!A90=0," ",COUNTRY_INFO!A90) -> Chad | B90: =IF(COUNTRY_INFO!B90=0," ",COUNTRY_INFO!B90) -> Mayo Kebbi Ouest | C90: =IF(COUNTRY_INFO!C90=0," ",COUNTRY_INFO!C90) -> Torrock | D90: =IF(COUNTRY_INFO!$T$9:$T$1000="MDA1 (IVM+ALB)", COUNTRY_INFO!$T$9:$T$1000, " ") ->  | I90: 0
A91: =IF(COUNTRY_INFO!A91=0," ",COUNTRY_INFO!A91) -> Chad | B91: =IF(COUNTRY_INFO!B91=0," ",COUNTRY_INFO!B91) -> Moyen Chari | C91: =IF(COUNTRY_INFO!C91=0," ",COUNTRY_INFO!C91) -> Biobe Singako | D91: =IF(COUNTRY_INFO!$T$9:$T$1000="MDA1 (IVM+ALB)", COUNTRY_INFO!$T$9:$T$1000, " ") -> MDA1 (IVM+ALB) | E91: 06-2017 | G91: 28671 | H91: 39001 | I91: 67672 | K91: 25865.03745 | L91: 41619.96255 | M91: 67485 | O91: 90.21323795 | P91: 106.7151164 | Q91: 99.7236671
A92: =IF(COUNTRY_INFO!A92=0," ",COUNTRY_INFO!A92) -> Chad | B92: =IF(COUNTRY_INFO!B92=0," ",COUNTRY_INFO!B92) -> Moyen Chari | C92: =IF(COUNTRY_INFO!C92=0," ",COUNTRY_INFO!C92) -> Danamadji | D92: =IF(COUNTRY_INFO!$T$9:$T$1000="MDA1 (IVM+ALB)", COUNTRY_INFO!$T$9:$T$1000, " ") -> MDA1 (IVM+ALB) | E92: 06-2017 | G92: 96504 | H92: 131272 | I92: 227776 | K92: 86324.87391 | L92: 138907.1261 | M92: 225232 | O92: 89.45212002 | P92: 105.816264 | Q92: 98.88311323
A93: =IF(COUNTRY_INFO!A93=0," ",COUNTRY_INFO!A93) -> Chad | B93: =IF(COUNTRY_INFO!B93=0," ",COUNTRY_INFO!B93) -> Moyen Chari | C93: =IF(COUNTRY_INFO!C93=0," ",COUNTRY_INFO!C93) -> Korbol | D93: =IF(COUNTRY_INFO!$T$9:$T$1000="MDA1 (IVM+ALB)", COUNTRY_INFO!$T$9:$T$1000, " ") -> MDA1 (IVM+ALB) | I93: 0
A94: =IF(COUNTRY_INFO!A94=0," ",COUNTRY_INFO!A94) -> Chad | B94: =IF(COUNTRY_INFO!B94=0," ",COUNTRY_INFO!B94) -> Moyen Chari | C94: =IF(COUNTRY_INFO!C94=0," ",COUNTRY_INFO!C94) -> Kyabe | D94: =IF(COUNTRY_INFO!$T$9:$T$1000="MDA1 (IVM+ALB)", COUNTRY_INFO!$T$9:$T$1000, " ") -> MDA1 (IVM+ALB) | E94: 06-2017 | G94: 38773 | H94: 52742 | I94: 91515 | K94: 34842.77528 | L94: 56066.22472 | M94: 90909 | O94: 89.8635011 | P94: 106.3028037 | Q94: 99.33781347
A95: =IF(COUNTRY_INFO!A95=0," ",COUNTRY_INFO!A95) -> Chad | B95: =IF(COUNTRY_INFO!B95=0," ",COUNTRY_INFO!B95) -> Moyen Chari | C95: =IF(COUNTRY_INFO!C95=0," ",COUNTRY_INFO!C95) -> Maro | D95: =IF(COUNTRY_INFO!$T$9:$T$1000="MDA1 (IVM+ALB)", COUNTRY_INFO!$T$9:$T$1000, " ") -> MDA1 (IVM+ALB) | E95: 06-2017 | G95: 82698 | H95: 113438 | I95: 196136 | K95: 75785.69039 | L95: 121948.3096 | M95: 197734 | O95: 91.64150329 | P95: 107.5021682 | Q95: 100.8147408
A96: =IF(COUNTRY_INFO!A96=0," ",COUNTRY_INFO!A96) -> Chad | B96: =IF(COUNTRY_INFO!B96=0," ",COUNTRY_INFO!B96) -> Moyen Chari | C96: =IF(COUNTRY_INFO!C96=0," ",COUNTRY_INFO!C96) -> Sarh | D96: =IF(COUNTRY_INFO!$T$9:$T$1000="MDA1 (IVM+ALB)", COUNTRY_INFO!$T$9:$T$1000, " ") ->  | I96: 0
A97: =IF(COUNTRY_INFO!A97=0," ",COUNTRY_INFO!A97) -> Chad | B97: =IF(COUNTRY_INFO!B97=0," ",COUNTRY_INFO!B97) -> N'Djaména | C97: =IF(COUNTRY_INFO!C97=0," ",COUNTRY_INFO!C97) -> N'Djaména Centre | D97: =IF(COUNTRY_INFO!$T$9:$T$1000="MDA1 (IVM+ALB)", COUNTRY_INFO!$T$9:$T$1000, " ") ->  | I97: 0
A98: =IF(COUNTRY_INFO!A98=0," ",COUNTRY_INFO!A98) -> Chad | B98: =IF(COUNTRY_INFO!B98=0," ",COUNTRY_INFO!B98) -> N'Djaména | C98: =IF(COUNTRY_INFO!C98=0," ",COUNTRY_INFO!C98) -> N'Djaména Est | D98: =IF(COUNTRY_INFO!$T$9:$T$1000="MDA1 (IVM+ALB)", COUNTRY_INFO!$T$9:$T$1000, " ") ->  | I98: 0
A99: =IF(COUNTRY_INFO!A99=0," ",COUNTRY_INFO!A99) -> Chad | B99: =IF(COUNTRY_INFO!B99=0," ",COUNTRY_INFO!B99) -> N'Djaména | C99: =IF(COUNTRY_INFO!C99=0," ",COUNTRY_INFO!C99) -> N'Djaména Nord | D99: =IF(COUNTRY_INFO!$T$9:$T$1000="MDA1 (IVM+ALB)", COUNTRY_INFO!$T$9:$T$1000, " ") ->  | I99: 0
A100: =IF(COUNTRY_INFO!A100=0," ",COUNTRY_INFO!A100) -> Chad | B100: =IF(COUNTRY_INFO!B100=0," ",COUNTRY_INFO!B100) -> N'Djaména | C100: =IF(COUNTRY_INFO!C100=0," ",COUNTRY_INFO!C100) -> N'Djaména Sud | D100: =IF(COUNTRY_INFO!$T$9:$T$1000="MDA1 (IVM+ALB)", COUNTRY_INFO!$T$9:$T$1000, " ") ->  | I100: 0
A101: =IF(COUNTRY_INFO!A101=0," ",COUNTRY_INFO!A101) -> Chad | B101: =IF(COUNTRY_INFO!B101=0," ",COUNTRY_INFO!B101) -> Ouaddai | C101: =IF(COUNTRY_INFO!C101=0," ",COUNTRY_INFO!C101) -> Abdi | D101: =IF(COUNTRY_INFO!$T$9:$T$1000="MDA1 (IVM+ALB)", COUNTRY_INFO!$T$9:$T$1000, " ") ->  | I101: 0
A102: =IF(COUNTRY_INFO!A102=0," ",COUNTRY_INFO!A102) -> Chad | B102: =IF(COUNTRY_INFO!B102=0," ",COUNTRY_INFO!B102) -> Ouaddai | C102: =IF(COUNTRY_INFO!C102=0," ",COUNTRY_INFO!C102) -> Abeche | D102: =IF(COUNTRY_INFO!$T$9:$T$1000="MDA1 (IVM+ALB)", COUNTRY_INFO!$T$9:$T$1000, " ") ->  | I102: 0
A103: =IF(COUNTRY_INFO!A103=0," ",COUNTRY_INFO!A103) -> Chad | B103: =IF(COUNTRY_INFO!B103=0," ",COUNTRY_INFO!B103) -> Ouaddai | C103: =IF(COUNTRY_INFO!C103=0," ",COUNTRY_INFO!C103) -> Abougoudam | D103: =IF(COUNTRY_INFO!$T$9:$T$1000="MDA1 (IVM+ALB)", COUNTRY_INFO!$T$9:$T$1000, " ") ->  | I103: 0
A104: =IF(COUNTRY_INFO!A104=0," ",COUNTRY_INFO!A104) -> Chad | B104: =IF(COUNTRY_INFO!B104=0," ",COUNTRY_INFO!B104) -> Ouaddai | C104: =IF(COUNTRY_INFO!C104=0," ",COUNTRY_INFO!C104) -> Adré | D104: =IF(COUNTRY_INFO!$T$9:$T$1000="MDA1 (IVM+ALB)", COUNTRY_INFO!$T$9:$T$1000, " ") ->  | I104: 0
A105: =IF(COUNTRY_INFO!A105=0," ",COUNTRY_INFO!A105) -> Chad | B105: =IF(COUNTRY_INFO!B105=0," ",COUNTRY_INFO!B105) -> Salamat | C105: =IF(COUNTRY_INFO!C105=0," ",COUNTRY_INFO!C105) -> Aboudeia | D105: =IF(COUNTRY_INFO!$T$9:$T$1000="MDA1 (IVM+ALB)", COUNTRY_INFO!$T$9:$T$1000, " ") ->  | I105: 0
A106: =IF(COUNTRY_INFO!A106=0," ",COUNTRY_INFO!A106) -> Chad | B106: =IF(COUNTRY_INFO!B106=0," ",COUNTRY_INFO!B106) -> Salamat | C106: =IF(COUNTRY_INFO!C106=0," ",COUNTRY_INFO!C106) -> Am-Timan | D106: =IF(COUNTRY_INFO!$T$9:$T$1000="MDA1 (IVM+ALB)", COUNTRY_INFO!$T$9:$T$1000, " ") ->  | I106: 0
A107: =IF(COUNTRY_INFO!A107=0," ",COUNTRY_INFO!A107) -> Chad | B107: =IF(COUNTRY_INFO!B107=0," ",COUNTRY_INFO!B107) -> Salamat | C107: =IF(COUNTRY_INFO!C107=0," ",COUNTRY_INFO!C107) -> Haraze | D107: =IF(COUNTRY_INFO!$T$9:$T$1000="MDA1 (IVM+ALB)", COUNTRY_INFO!$T$9:$T$1000, " ") ->  | I107: 0
A108: =IF(COUNTRY_INFO!A108=0," ",COUNTRY_INFO!A108) -> Chad | B108: =IF(COUNTRY_INFO!B108=0," ",COUNTRY_INFO!B108) -> Sila | C108: =IF(COUNTRY_INFO!C108=0," ",COUNTRY_INFO!C108) -> Am-dam | D108: =IF(COUNTRY_INFO!$T$9:$T$1000="MDA1 (IVM+ALB)", COUNTRY_INFO!$T$9:$T$1000, " ") ->  | I108: 0
A109: =IF(COUNTRY_INFO!A109=0," ",COUNTRY_INFO!A109) -> Chad | B109: =IF(COUNTRY_INFO!B109=0," ",COUNTRY_INFO!B109) -> Sila | C109: =IF(COUNTRY_INFO!C109=0," ",COUNTRY_INFO!C109) -> Goz-beida | D109: =IF(COUNTRY_INFO!$T$9:$T$1000="MDA1 (IVM+ALB)", COUNTRY_INFO!$T$9:$T$1000, " ") ->  | I109: 0
A110: =IF(COUNTRY_INFO!A110=0," ",COUNTRY_INFO!A110) -> Chad | B110: =IF(COUNTRY_INFO!B110=0," ",COUNTRY_INFO!B110) -> Sila | C110: =IF(COUNTRY_INFO!C110=0," ",COUNTRY_INFO!C110) -> Koukou | D110: =IF(COUNTRY_INFO!$T$9:$T$1000="MDA1 (IVM+ALB)", COUNTRY_INFO!$T$9:$T$1000, " ") ->  | I110: 0
A111: =IF(COUNTRY_INFO!A111=0," ",COUNTRY_INFO!A111) -> Chad | B111: =IF(COUNTRY_INFO!B111=0," ",COUNTRY_INFO!B111) -> Sila | C111: =IF(COUNTRY_INFO!C111=0," ",COUNTRY_INFO!C111) -> Tissi | D111: =IF(COUNTRY_INFO!$T$9:$T$1000="MDA1 (IVM+ALB)", COUNTRY_INFO!$T$9:$T$1000, " ") ->  | I111: 0
A112: =IF(COUNTRY_INFO!A112=0," ",COUNTRY_INFO!A112) -> Chad | B112: =IF(COUNTRY_INFO!B112=0," ",COUNTRY_INFO!B112) -> Tandjile | C112: =IF(COUNTRY_INFO!C112=0," ",COUNTRY_INFO!C112) -> Batchoro | D112: =IF(COUNTRY_INFO!$T$9:$T$1000="MDA1 (IVM+ALB)", COUNTRY_INFO!$T$9:$T$1000, " ") ->  | I112: 0
A113: =IF(COUNTRY_INFO!A113=0," ",COUNTRY_INFO!A113) -> Chad | B113: =IF(COUNTRY_INFO!B113=0," ",COUNTRY_INFO!B113) -> Tandjile | C113: =IF(COUNTRY_INFO!C113=0," ",COUNTRY_INFO!C113) -> Bere | D113: =IF(COUNTRY_INFO!$T$9:$T$1000="MDA1 (IVM+ALB)", COUNTRY_INFO!$T$9:$T$1000, " ") -> MDA1 (IVM+ALB) | E113: 06-2017 | G113: 55732 | H113: 75811 | I113: 131543 | K113: 49811.804 | L113: 80153.196 | M113: 129965 | O113: 89.37738462 | P113: 105.7276596 | Q113: 98.80039227
A114: =IF(COUNTRY_INFO!A114=0," ",COUNTRY_INFO!A114) -> Chad | B114: =IF(COUNTRY_INFO!B114=0," ",COUNTRY_INFO!B114) -> Tandjile | C114: =IF(COUNTRY_INFO!C114=0," ",COUNTRY_INFO!C114) -> Dafra | D114: =IF(COUNTRY_INFO!$T$9:$T$1000="MDA1 (IVM+ALB)", COUNTRY_INFO!$T$9:$T$1000, " ") -> MDA1 (IVM+ALB) | E114: 06-2017 | G114: 29712 | H114: 40417 | I114: 70129 | K114: 26636.5618 | L114: 42861.4382 | M114: 69498 | O114: 89.64917137 | P114: 106.0480446 | Q114: 99.10022958
A115: =IF(COUNTRY_INFO!A115=0," ",COUNTRY_INFO!A115) -> Chad | B115: =IF(COUNTRY_INFO!B115=0," ",COUNTRY_INFO!B115) -> Tandjile | C115: =IF(COUNTRY_INFO!C115=0," ",COUNTRY_INFO!C115) -> Donamanga | D115: =IF(COUNTRY_INFO!$T$9:$T$1000="MDA1 (IVM+ALB)", COUNTRY_INFO!$T$9:$T$1000, " ") -> MDA1 (IVM+ALB) | E115: 06-2017 | G115: 40114 | H115: 55026 | I115: 95140 | K115: 36054.6779 | L115: 58016.3221 | M115: 94071 | O115: 89.88053523 | P115: 105.4343803 | Q115: 98.87639268
A116: =IF(COUNTRY_INFO!A116=0," ",COUNTRY_INFO!A116) -> Chad | B116: =IF(COUNTRY_INFO!B116=0," ",COUNTRY_INFO!B116) -> Tandjile | C116: =IF(COUNTRY_INFO!C116=0," ",COUNTRY_INFO!C116) -> Guidari | D116: =IF(COUNTRY_INFO!$T$9:$T$1000="MDA1 (IVM+ALB)", COUNTRY_INFO!$T$9:$T$1000, " ") -> MDA1 (IVM+ALB) | I116: 0
A117: =IF(COUNTRY_INFO!A117=0," ",COUNTRY_INFO!A117) -> Chad | B117: =IF(COUNTRY_INFO!B117=0," ",COUNTRY_INFO!B117) -> Tandjile | C117: =IF(COUNTRY_INFO!C117=0," ",COUNTRY_INFO!C117) -> Kelo | D117: =IF(COUNTRY_INFO!$T$9:$T$1000="MDA1 (IVM+ALB)", COUNTRY_INFO!$T$9:$T$1000, " ") -> MDA1 (IVM+ALB) | E117: 06-2017 | G117: 73322 | H117: 99738 | I117: 173060 | K117: 65663.88889 | L117: 105661.1111 | M117: 171325 | O117: 89.55550706 | P117: 105.9386704 | Q117: 98.99745753
A118: =IF(COUNTRY_INFO!A118=0," ",COUNTRY_INFO!A118) -> Chad | B118: =IF(COUNTRY_INFO!B118=0," ",COUNTRY_INFO!B118) -> Tandjile | C118: =IF(COUNTRY_INFO!C118=0," ",COUNTRY_INFO!C118) -> Kolon | D118: =IF(COUNTRY_INFO!$T$9:$T$1000="MDA1 (IVM+ALB)", COUNTRY_INFO!$T$9:$T$1000, " ") ->  | I118: 0
A119: =IF(COUNTRY_INFO!A119=0," ",COUNTRY_INFO!A119) -> Chad | B119: =IF(COUNTRY_INFO!B119=0," ",COUNTRY_INFO!B119) -> Tandjile | C119: =IF(COUNTRY_INFO!C119=0," ",COUNTRY_INFO!C119) -> Lai | D119: =IF(COUNTRY_INFO!$T$9:$T$1000="MDA1 (IVM+ALB)", COUNTRY_INFO!$T$9:$T$1000, " ") -> MDA1 (IVM+ALB) | E119: 06-2017 | G119: 61626 | H119: 83829 | I119: 145455 | K119: 54494.60799 | L119: 87688.39201 | M119: 142183 | O119: 88.42794923 | P119: 104.6038865 | Q119: 97.75050703
A120: =IF(COUNTRY_INFO!A120=0," ",COUNTRY_INFO!A120) -> Chad | B120: =IF(COUNTRY_INFO!B120=0," ",COUNTRY_INFO!B120) -> Tibesti | C120: =IF(COUNTRY_INFO!C120=0," ",COUNTRY_INFO!C120) -> Bardaï | D120: =IF(COUNTRY_INFO!$T$9:$T$1000="MDA1 (IVM+ALB)", COUNTRY_INFO!$T$9:$T$1000, " ") ->  | I120: 0
A121: =IF(COUNTRY_INFO!A121=0," ",COUNTRY_INFO!A121) -> Chad | B121: =IF(COUNTRY_INFO!B121=0," ",COUNTRY_INFO!B121) -> Tibesti | C121: =IF(COUNTRY_INFO!C121=0," ",COUNTRY_INFO!C121) -> Zouar | D121: =IF(COUNTRY_INFO!$T$9:$T$1000="MDA1 (IVM+ALB)", COUNTRY_INFO!$T$9:$T$1000, " ") ->  | I121: 0
A122: =IF(COUNTRY_INFO!A122=0," ",COUNTRY_INFO!A122) -> Chad | B122: =IF(COUNTRY_INFO!B122=0," ",COUNTRY_INFO!B122) -> Wadi Fira | C122: =IF(COUNTRY_INFO!C122=0," ",COUNTRY_INFO!C122) -> amzoer | D122: =IF(COUNTRY_INFO!$T$9:$T$1000="MDA1 (IVM+ALB)", COUNTRY_INFO!$T$9:$T$1000, " ") ->  | I122: 0
A123: =IF(COUNTRY_INFO!A123=0," ",COUNTRY_INFO!A123) -> Chad | B123: =IF(COUNTRY_INFO!B123=0," ",COUNTRY_INFO!B123) -> Wadi Fira | C123: =IF(COUNTRY_INFO!C123=0," ",COUNTRY_INFO!C123) -> Arada | D123: =IF(COUNTRY_INFO!$T$9:$T$1000="MDA1 (IVM+ALB)", COUNTRY_INFO!$T$9:$T$1000, " ") ->  | I123: 0
A124: =IF(COUNTRY_INFO!A124=0," ",COUNTRY_INFO!A124) -> Chad | B124: =IF(COUNTRY_INFO!B124=0," ",COUNTRY_INFO!B124) -> Wadi Fira | C124: =IF(COUNTRY_INFO!C124=0," ",COUNTRY_INFO!C124) -> Biltine | D124: =IF(COUNTRY_INFO!$T$9:$T$1000="MDA1 (IVM+ALB)", COUNTRY_INFO!$T$9:$T$1000, " ") ->  | I124: 0
A125: =IF(COUNTRY_INFO!A125=0," ",COUNTRY_INFO!A125) -> Chad | B125: =IF(COUNTRY_INFO!B125=0," ",COUNTRY_INFO!B125) -> Wadi Fira | C125: =IF(COUNTRY_INFO!C125=0," ",COUNTRY_INFO!C125) -> Guéréda | D125: =IF(COUNTRY_INFO!$T$9:$T$1000="MDA1 (IVM+ALB)", COUNTRY_INFO!$T$9:$T$1000, " ") ->  | I125: 0
A126: =IF(COUNTRY_INFO!A126=0," ",COUNTRY_INFO!A126) -> Chad | B126: =IF(COUNTRY_INFO!B126=0," ",COUNTRY_INFO!B126) -> Wadi Fira | C126: =IF(COUNTRY_INFO!C126=0," ",COUNTRY_INFO!C126) -> Iriba | D126: =IF(COUNTRY_INFO!$T$9:$T$1000="MDA1 (IVM+ALB)", COUNTRY_INFO!$T$9:$T$1000, " ") ->  | I126: 0
A127: =IF(COUNTRY_INFO!A127=0," ",COUNTRY_INFO!A127) -> Chad | B127: =IF(COUNTRY_INFO!B127=0," ",COUNTRY_INFO!B127) -> Wadi Fira | C127: =IF(COUNTRY_INFO!C127=0," ",COUNTRY_INFO!C127) -> Matadjana | D127: =IF(COUNTRY_INFO!$T$9:$T$1000="MDA1 (IVM+ALB)", COUNTRY_INFO!$T$9:$T$1000, " ") ->  | I127: 0

Sheet MDA2 (hidden)
A1: MDA 2 - Diethylcarbamazine (DEC) + Albendazole (ALB)
A2: Structure administrative, population nécessitant une chimioprévention par groupe d'âge, population traitée par groupe d'âge et couverture
A4: TOTAL | F4: =SUM(F$9:F$1000) -> 0 | G4: =SUM(G$9:G$1000) -> 0 | H4: 0 | I4: 0 | J4: 0 | K4: 0 | L4: 0 | M4: 0 | N4: =IF(F4<>0, IF(J4/F4*100=0, "-", J4/F4*100), " ") ->  | O4: =IF(G4<>0, IF(K4/G4*100=0, "-", K4/G4*100), " ") ->  | P4: =IF(H4<>0, IF(L4/H4*100=0, "-", L4/H4*100), " ") ->  | Q4: =IF(I4<>0, IF(M4/I4*100=0, "-", M4/I4*100), " ") -> 
A6: Structure administrative du pays | D6: Mise en oeuvre de la CP | E6: Date | F6: Population ciblée pour MDA 2 | J6: Population traitée | N6: Couverture du Programme (%)
A7: Pays | B7: Région/Département | C7: District | F7: EAPréS | G7: EAS | H7: Adultes | I7: Total | J7: EAPréS | K7: EAS | L7: Adultes | M7: Total | N7: EAPréS | O7: EAS | P7: Adultes | Q7: Total
A9: =IF(COUNTRY_INFO!A9=0," ",COUNTRY_INFO!A9) -> Chad | B9: =IF(COUNTRY_INFO!B9=0," ",COUNTRY_INFO!B9) -> Bahr El Gazel | C9: =IF(COUNTRY_INFO!C9=0," ",COUNTRY_INFO!C9) -> Chadra | D9: =IF(COUNTRY_INFO!$T$9:$T$1000="MDA2 (DEC+ALB)", COUNTRY_INFO!$T$9:$T$1000, " ") ->  | I9: =SUM(F9:H9) -> 0 | M9: =SUM(J9:L9) -> 0 | N9: =IF(F9<>0, IF(J9/F9*100=0, "-", J9/F9*100), " ") -> 
A10: =IF(COUNTRY_INFO!A10=0," ",COUNTRY_INFO!A10) -> Chad | B10: =IF(COUNTRY_INFO!B10=0," ",COUNTRY_INFO!B10) -> Bahr El Gazel | C10: =IF(COUNTRY_INFO!C10=0," ",COUNTRY_INFO!C10) -> Michemire | D10: =IF(COUNTRY_INFO!$T$9:$T$1000="MDA2 (DEC+ALB)", COUNTRY_INFO!$T$9:$T$1000, " ") ->  | I10: =SUM(F10:H10) -> 0 | M10: =SUM(J10:L10) -> 0 | N10: =IF(F10<>0, IF(J10/F10*100=0, "-", J10/F10*100), " ") ->  | O10: =IF(G10<>0, IF(K10/G10*100=0, "-", K10/G10*100), " ") ->  | P10: =IF(H10<>0, IF(L10/H10*100=0, "-", L10/H10*100), " ") ->  | Q10: =IF(I10<>0, IF(M10/I10*100=0, "-", M10/I10*100), " ") -> 
A11: =IF(COUNTRY_INFO!A11=0," ",COUNTRY_INFO!A11) -> Chad | B11: =IF(COUNTRY_INFO!B11=0," ",COUNTRY_INFO!B11) -> Bahr El Gazel | C11: =IF(COUNTRY_INFO!C11=0," ",COUNTRY_INFO!C11) -> Moussoro | D11: =IF(COUNTRY_INFO!$T$9:$T$1000="MDA2 (DEC+ALB)", COUNTRY_INFO!$T$9:$T$1000, " ") ->  | I11: 0 | M11: 0
A12: =IF(COUNTRY_INFO!A12=0," ",COUNTRY_INFO!A12) -> Chad | B12: =IF(COUNTRY_INFO!B12=0," ",COUNTRY_INFO!B12) -> Bahr El Gazel | C12: =IF(COUNTRY_INFO!C12=0," ",COUNTRY_INFO!C12) -> Salal | D12: =IF(COUNTRY_INFO!$T$9:$T$1000="MDA2 (DEC+ALB)", COUNTRY_INFO!$T$9:$T$1000, " ") ->  | I12: 0 | M12: 0
A13: =IF(COUNTRY_INFO!A13=0," ",COUNTRY_INFO!A13) -> Chad | B13: =IF(COUNTRY_INFO!B13=0," ",COUNTRY_INFO!B13) -> Batha | C13: =IF(COUNTRY_INFO!C13=0," ",COUNTRY_INFO!C13) -> Alifa | D13: =IF(COUNTRY_INFO!$T$9:$T$1000="MDA2 (DEC+ALB)", COUNTRY_INFO!$T$9:$T$1000, " ") ->  | I13: 0 | M13: 0
A14: =IF(COUNTRY_INFO!A14=0," ",COUNTRY_INFO!A14) -> Chad | B14: =IF(COUNTRY_INFO!B14=0," ",COUNTRY_INFO!B14) -> Batha | C14: =IF(COUNTRY_INFO!C14=0," ",COUNTRY_INFO!C14) -> Assinet | D14: =IF(COUNTRY_INFO!$T$9:$T$1000="MDA2 (DEC+ALB)", COUNTRY_INFO!$T$9:$T$1000, " ") ->  | I14: 0 | M14: 0
A15: =IF(COUNTRY_INFO!A15=0," ",COUNTRY_INFO!A15) -> Chad | B15: =IF(COUNTRY_INFO!B15=0," ",COUNTRY_INFO!B15) -> Batha | C15: =IF(COUNTRY_INFO!C15=0," ",COUNTRY_INFO!C15) -> Ati | D15: =IF(COUNTRY_INFO!$T$9:$T$1000="MDA2 (DEC+ALB)", COUNTRY_INFO!$T$9:$T$1000, " ") ->  | I15: 0 | M15: 0
A16: =IF(COUNTRY_INFO!A16=0," ",COUNTRY_INFO!A16) -> Chad | B16: =IF(COUNTRY_INFO!B16=0," ",COUNTRY_INFO!B16) -> Batha | C16: =IF(COUNTRY_INFO!C16=0," ",COUNTRY_INFO!C16) -> Djedda | D16: =IF(COUNTRY_INFO!$T$9:$T$1000="MDA2 (DEC+ALB)", COUNTRY_INFO!$T$9:$T$1000, " ") ->  | I16: 0 | M16: 0
A17: =IF(COUNTRY_INFO!A17=0," ",COUNTRY_INFO!A17) -> Chad | B17: =IF(COUNTRY_INFO!B17=0," ",COUNTRY_INFO!B17) -> Batha | C17: =IF(COUNTRY_INFO!C17=0," ",COUNTRY_INFO!C17) -> Koundjourou | D17: =IF(COUNTRY_INFO!$T$9:$T$1000="MDA2 (DEC+ALB)", COUNTRY_INFO!$T$9:$T$1000, " ") ->  | I17: 0 | M17: 0
A18: =IF(COUNTRY_INFO!A18=0," ",COUNTRY_INFO!A18) -> Chad | B18: =IF(COUNTRY_INFO!B18=0," ",COUNTRY_INFO!B18) -> Batha | C18: =IF(COUNTRY_INFO!C18=0," ",COUNTRY_INFO!C18) -> Oum-Hadjer | D18: =IF(COUNTRY_INFO!$T$9:$T$1000="MDA2 (DEC+ALB)", COUNTRY_INFO!$T$9:$T$1000, " ") ->  | I18: 0 | M18: 0
A19: =IF(COUNTRY_INFO!A19=0," ",COUNTRY_INFO!A19) -> Chad | B19: =IF(COUNTRY_INFO!B19=0," ",COUNTRY_INFO!B19) -> Batha | C19: =IF(COUNTRY_INFO!C19=0," ",COUNTRY_INFO!C19) -> Yao | D19: =IF(COUNTRY_INFO!$T$9:$T$1000="MDA2 (DEC+ALB)", COUNTRY_INFO!$T$9:$T$1000, " ") ->  | I19: 0 | M19: 0
A20: =IF(COUNTRY_INFO!A20=0," ",COUNTRY_INFO!A20) -> Chad | B20: =IF(COUNTRY_INFO!B20=0," ",COUNTRY_INFO!B20) -> Borkou | C20: =IF(COUNTRY_INFO!C20=0," ",COUNTRY_INFO!C20) -> Faya | D20: =IF(COUNTRY_INFO!$T$9:$T$1000="MDA2 (DEC+ALB)", COUNTRY_INFO!$T$9:$T$1000, " ") ->  | I20: 0 | M20: 0
A21: =IF(COUNTRY_INFO!A21=0," ",COUNTRY_INFO!A21) -> Chad | B21: =IF(COUNTRY_INFO!B21=0," ",COUNTRY_INFO!B21) -> Borkou | C21: =IF(COUNTRY_INFO!C21=0," ",COUNTRY_INFO!C21) -> Kirdimi | D21: =IF(COUNTRY_INFO!$T$9:$T$1000="MDA2 (DEC+ALB)", COUNTRY_INFO!$T$9:$T$1000, " ") ->  | I21: 0 | M21: 0
A22: =IF(COUNTRY_INFO!A22=0," ",COUNTRY_INFO!A22) -> Chad | B22: =IF(COUNTRY_INFO!B22=0," ",COUNTRY_INFO!B22) -> Chari Baguirmi | C22: =IF(COUNTRY_INFO!C22=0," ",COUNTRY_INFO!C22) -> Ba-Illi | D22: =IF(COUNTRY_INFO!$T$9:$T$1000="MDA2 (DEC+ALB)", COUNTRY_INFO!$T$9:$T$1000, " ") ->  | I22: 0 | M22: 0
A23: =IF(COUNTRY_INFO!A23=0," ",COUNTRY_INFO!A23) -> Chad | B23: =IF(COUNTRY_INFO!B23=0," ",COUNTRY_INFO!B23) -> Chari Baguirmi | C23: =IF(COUNTRY_INFO!C23=0," ",COUNTRY_INFO!C23) -> Bousso | D23: =IF(COUNTRY_INFO!$T$9:$T$1000="MDA2 (DEC+ALB)", COUNTRY_INFO!$T$9:$T$1000, " ") ->  | I23: 0 | M23: 0
A24: =IF(COUNTRY_INFO!A24=0," ",COUNTRY_INFO!A24) -> Chad | B24: =IF(COUNTRY_INFO!B24=0," ",COUNTRY_INFO!B24) -> Chari Baguirmi | C24: =IF(COUNTRY_INFO!C24=0," ",COUNTRY_INFO!C24) -> Dourbali | D24: =IF(COUNTRY_INFO!$T$9:$T$1000="MDA2 (DEC+ALB)", COUNTRY_INFO!$T$9:$T$1000, " ") ->  | I24: 0 | M24: 0
A25: =IF(COUNTRY_INFO!A25=0," ",COUNTRY_INFO!A25) -> Chad | B25: =IF(COUNTRY_INFO!B25=0," ",COUNTRY_INFO!B25) -> Chari Baguirmi | C25: =IF(COUNTRY_INFO!C25=0," ",COUNTRY_INFO!C25) -> Kono | D25: =IF(COUNTRY_INFO!$T$9:$T$1000="MDA2 (DEC+ALB)", COUNTRY_INFO!$T$9:$T$1000, " ") ->  | I25: 0 | M25: 0
A26: =IF(COUNTRY_INFO!A26=0," ",COUNTRY_INFO!A26) -> Chad | B26: =IF(COUNTRY_INFO!B26=0," ",COUNTRY_INFO!B26) -> Chari Baguirmi | C26: =IF(COUNTRY_INFO!C26=0," ",COUNTRY_INFO!C26) -> Mandélia | D26: =IF(COUNTRY_INFO!$T$9:$T$1000="MDA2 (DEC+ALB)", COUNTRY_INFO!$T$9:$T$1000, " ") ->  | I26: 0 | M26: 0
A27: =IF(COUNTRY_INFO!A27=0," ",COUNTRY_INFO!A27) -> Chad | B27: =IF(COUNTRY_INFO!B27=0," ",COUNTRY_INFO!B27) -> Chari Baguirmi | C27: =IF(COUNTRY_INFO!C27=0," ",COUNTRY_INFO!C27) -> Massenya | D27: =IF(COUNTRY_INFO!$T$9:$T$1000="MDA2 (DEC+ALB)", COUNTRY_INFO!$T$9:$T$1000, " ") ->  | I27: 0 | M27: 0
A28: =IF(COUNTRY_INFO!A28=0," ",COUNTRY_INFO!A28) -> Chad | B28: =IF(COUNTRY_INFO!B28=0," ",COUNTRY_INFO!B28) -> Ennedi Est | C28: =IF(COUNTRY_INFO!C28=0," ",COUNTRY_INFO!C28) -> Amdjarass | D28: =IF(COUNTRY_INFO!$T$9:$T$1000="MDA2 (DEC+ALB)", COUNTRY_INFO!$T$9:$T$1000, " ") ->  | I28: 0 | M28: 0
A29: =IF(COUNTRY_INFO!A29=0," ",COUNTRY_INFO!A29) -> Chad | B29: =IF(COUNTRY_INFO!B29=0," ",COUNTRY_INFO!B29) -> Ennedi Est | C29: =IF(COUNTRY_INFO!C29=0," ",COUNTRY_INFO!C29) -> Bahaï | D29: =IF(COUNTRY_INFO!$T$9:$T$1000="MDA2 (DEC+ALB)", COUNTRY_INFO!$T$9:$T$1000, " ") ->  | I29: 0 | M29: 0
A30: =IF(COUNTRY_INFO!A30=0," ",COUNTRY_INFO!A30) -> Chad | B30: =IF(COUNTRY_INFO!B30=0," ",COUNTRY_INFO!B30) -> Ennedi Est | C30: =IF(COUNTRY_INFO!C30=0," ",COUNTRY_INFO!C30) -> Kaoura | D30: =IF(COUNTRY_INFO!$T$9:$T$1000="MDA2 (DEC+ALB)", COUNTRY_INFO!$T$9:$T$1000, " ") ->  | I30: 0 | M30: 0
A31: =IF(COUNTRY_INFO!A31=0," ",COUNTRY_INFO!A31) -> Chad | B31: =IF(COUNTRY_INFO!B31=0," ",COUNTRY_INFO!B31) -> Ennedi Ouest | C31: =IF(COUNTRY_INFO!C31=0," ",COUNTRY_INFO!C31) -> Fada | D31: =IF(COUNTRY_INFO!$T$9:$T$1000="MDA2 (DEC+ALB)", COUNTRY_INFO!$T$9:$T$1000, " ") ->  | I31: 0 | M31: 0
A32: =IF(COUNTRY_INFO!A32=0," ",COUNTRY_INFO!A32) -> Chad | B32: =IF(COUNTRY_INFO!B32=0," ",COUNTRY_INFO!B32) -> Ennedi Ouest | C32: =IF(COUNTRY_INFO!C32=0," ",COUNTRY_INFO!C32) -> Kalaït | D32: =IF(COUNTRY_INFO!$T$9:$T$1000="MDA2 (DEC+ALB)", COUNTRY_INFO!$T$9:$T$1000, " ") ->  | I32: 0 | M32: 0
A33: =IF(COUNTRY_INFO!A33=0," ",COUNTRY_INFO!A33) -> Chad | B33: =IF(COUNTRY_INFO!B33=0," ",COUNTRY_INFO!B33) -> Guéra | C33: =IF(COUNTRY_INFO!C33=0," ",COUNTRY_INFO!C33) -> Barou | D33: =IF(COUNTRY_INFO!$T$9:$T$1000="MDA2 (DEC+ALB)", COUNTRY_INFO!$T$9:$T$1000, " ") ->  | I33: 0 | M33: 0
A34: =IF(COUNTRY_INFO!A34=0," ",COUNTRY_INFO!A34) -> Chad | B34: =IF(COUNTRY_INFO!B34=0," ",COUNTRY_INFO!B34) -> Guéra | C34: =IF(COUNTRY_INFO!C34=0," ",COUNTRY_INFO!C34) -> Bitkine | D34: =IF(COUNTRY_INFO!$T$9:$T$1000="MDA2 (DEC+ALB)", COUNTRY_INFO!$T$9:$T$1000, " ") ->  | I34: 0 | M34: 0
A35: =IF(COUNTRY_INFO!A35=0," ",COUNTRY_INFO!A35) -> Chad | B35: =IF(COUNTRY_INFO!B35=0," ",COUNTRY_INFO!B35) -> Guéra | C35: =IF(COUNTRY_INFO!C35=0," ",COUNTRY_INFO!C35) -> Mangalmé | D35: =IF(COUNTRY_INFO!$T$9:$T$1000="MDA2 (DEC+ALB)", COUNTRY_INFO!$T$9:$T$1000, " ") ->  | I35: 0 | M35: 0
A36: =IF(COUNTRY_INFO!A36=0," ",COUNTRY_INFO!A36) -> Chad | B36: =IF(COUNTRY_INFO!B36=0," ",COUNTRY_INFO!B36) -> Guéra | C36: =IF(COUNTRY_INFO!C36=0," ",COUNTRY_INFO!C36) -> Melfi | D36: =IF(COUNTRY_INFO!$T$9:$T$1000="MDA2 (DEC+ALB)", COUNTRY_INFO!$T$9:$T$1000, " ") ->  | I36: 0 | M36: 0
A37: =IF(COUNTRY_INFO!A37=0," ",COUNTRY_INFO!A37) -> Chad | B37: =IF(COUNTRY_INFO!B37=0," ",COUNTRY_INFO!B37) -> Guéra | C37: =IF(COUNTRY_INFO!C37=0," ",COUNTRY_INFO!C37) -> Mongo | D37: =IF(COUNTRY_INFO!$T$9:$T$1000="MDA2 (DEC+ALB)", COUNTRY_INFO!$T$9:$T$1000, " ") ->  | I37: 0 | M37: 0
A38: =IF(COUNTRY_INFO!A38=0," ",COUNTRY_INFO!A38) -> Chad | B38: =IF(COUNTRY_INFO!B38=0," ",COUNTRY_INFO!B38) -> Hadjer Lamis | C38: =IF(COUNTRY_INFO!C38=0," ",COUNTRY_INFO!C38) -> Bokoro | D38: =IF(COUNTRY_INFO!$T$9:$T$1000="MDA2 (DEC+ALB)", COUNTRY_INFO!$T$9:$T$1000, " ") ->  | I38: 0 | M38: 0
A39: =IF(COUNTRY_INFO!A39=0," ",COUNTRY_INFO!A39) -> Chad | B39: =IF(COUNTRY_INFO!B39=0," ",COUNTRY_INFO!B39) -> Hadjer Lamis | C39: =IF(COUNTRY_INFO!C39=0," ",COUNTRY_INFO!C39) -> Gama | D39: =IF(COUNTRY_INFO!$T$9:$T$1000="MDA2 (DEC+ALB)", COUNTRY_INFO!$T$9:$T$1000, " ") ->  | I39: 0 | M39: 0
A40: =IF(COUNTRY_INFO!A40=0," ",COUNTRY_INFO!A40) -> Chad | B40: =IF(COUNTRY_INFO!B40=0," ",COUNTRY_INFO!B40) -> Hadjer Lamis | C40: =IF(COUNTRY_INFO!C40=0," ",COUNTRY_INFO!C40) -> Mani | D40: =IF(COUNTRY_INFO!$T$9:$T$1000="MDA2 (DEC+ALB)", COUNTRY_INFO!$T$9:$T$1000, " ") ->  | I40: 0 | M40: 0
A41: =IF(COUNTRY_INFO!A41=0," ",COUNTRY_INFO!A41) -> Chad | B41: =IF(COUNTRY_INFO!B41=0," ",COUNTRY_INFO!B41) -> Hadjer Lamis | C41: =IF(COUNTRY_INFO!C41=0," ",COUNTRY_INFO!C41) -> Massaguet | D41: =IF(COUNTRY_INFO!$T$9:$T$1000="MDA2 (DEC+ALB)", COUNTRY_INFO!$T$9:$T$1000, " ") ->  | I41: 0 | M41: 0
A42: =IF(COUNTRY_INFO!A42=0," ",COUNTRY_INFO!A42) -> Chad | B42: =IF(COUNTRY_INFO!B42=0," ",COUNTRY_INFO!B42) -> Hadjer Lamis | C42: =IF(COUNTRY_INFO!C42=0," ",COUNTRY_INFO!C42) -> Massakory | D42: =IF(COUNTRY_INFO!$T$9:$T$1000="MDA2 (DEC+ALB)", COUNTRY_INFO!$T$9:$T$1000, " ") ->  | I42: 0 | M42: 0
A43: =IF(COUNTRY_INFO!A43=0," ",COUNTRY_INFO!A43) -> Chad | B43: =IF(COUNTRY_INFO!B43=0," ",COUNTRY_INFO!B43) -> Kanem | C43: =IF(COUNTRY_INFO!C43=0," ",COUNTRY_INFO!C43) -> Mao | D43: =IF(COUNTRY_INFO!$T$9:$T$1000="MDA2 (DEC+ALB)", COUNTRY_INFO!$T$9:$T$1000, " ") ->  | I43: 0 | M43: 0
A44: =IF(COUNTRY_INFO!A44=0," ",COUNTRY_INFO!A44) -> Chad | B44: =IF(COUNTRY_INFO!B44=0," ",COUNTRY_INFO!B44) -> Kanem | C44: =IF(COUNTRY_INFO!C44=0," ",COUNTRY_INFO!C44) -> Mondo | D44: =IF(COUNTRY_INFO!$T$9:$T$1000="MDA2 (DEC+ALB)", COUNTRY_INFO!$T$9:$T$1000, " ") ->  | I44: 0 | M44: 0
A45: =IF(COUNTRY_INFO!A45=0," ",COUNTRY_INFO!A45) -> Chad | B45: =IF(COUNTRY_INFO!B45=0," ",COUNTRY_INFO!B45) -> Kanem | C45: =IF(COUNTRY_INFO!C45=0," ",COUNTRY_INFO!C45) -> Nokou | D45: =IF(COUNTRY_INFO!$T$9:$T$1000="MDA2 (DEC+ALB)", COUNTRY_INFO!$T$9:$T$1000, " ") ->  | I45: 0 | M45: 0
A46: =IF(COUNTRY_INFO!A46=0," ",COUNTRY_INFO!A46) -> Chad | B46: =IF(COUNTRY_INFO!B46=0," ",COUNTRY_INFO!B46) -> Kanem | C46: =IF(COUNTRY_INFO!C46=0," ",COUNTRY_INFO!C46) -> Ntiona | D46: =IF(COUNTRY_INFO!$T$9:$T$1000="MDA2 (DEC+ALB)", COUNTRY_INFO!$T$9:$T$1000, " ") ->  | I46: 0 | M46: 0
A47: =IF(COUNTRY_INFO!A47=0," ",COUNTRY_INFO!A47) -> Chad | B47: =IF(COUNTRY_INFO!B47=0," ",COUNTRY_INFO!B47) -> Kanem | C47: =IF(COUNTRY_INFO!C47=0," ",COUNTRY_INFO!C47) -> Rig-Rig | D47: =IF(COUNTRY_INFO!$T$9:$T$1000="MDA2 (DEC+ALB)", COUNTRY_INFO!$T$9:$T$1000, " ") ->  | I47: 0 | M47: 0
A48: =IF(COUNTRY_INFO!A48=0," ",COUNTRY_INFO!A48) -> Chad | B48: =IF(COUNTRY_INFO!B48=0," ",COUNTRY_INFO!B48) -> Lac | C48: =IF(COUNTRY_INFO!C48=0," ",COUNTRY_INFO!C48) -> Bagassola | D48: =IF(COUNTRY_INFO!$T$9:$T$1000="MDA2 (DEC+ALB)", COUNTRY_INFO!$T$9:$T$1000, " ") ->  | I48: 0 | M48: 0
A49: =IF(COUNTRY_INFO!A49=0," ",COUNTRY_INFO!A49) -> Chad | B49: =IF(COUNTRY_INFO!B49=0," ",COUNTRY_INFO!B49) -> Lac | C49: =IF(COUNTRY_INFO!C49=0," ",COUNTRY_INFO!C49) -> Bol | D49: =IF(COUNTRY_INFO!$T$9:$T$1000="MDA2 (DEC+ALB)", COUNTRY_INFO!$T$9:$T$1000, " ") ->  | I49: 0 | M49: 0
A50: =IF(COUNTRY_INFO!A50=0," ",COUNTRY_INFO!A50) -> Chad | B50: =IF(COUNTRY_INFO!B50=0," ",COUNTRY_INFO!B50) -> Lac | C50: =IF(COUNTRY_INFO!C50=0," ",COUNTRY_INFO!C50) -> Isserom | D50: =IF(COUNTRY_INFO!$T$9:$T$1000="MDA2 (DEC+ALB)", COUNTRY_INFO!$T$9:$T$1000, " ") ->  | I50: 0 | M50: 0
A51: =IF(COUNTRY_INFO!A51=0," ",COUNTRY_INFO!A51) -> Chad | B51: =IF(COUNTRY_INFO!B51=0," ",COUNTRY_INFO!B51) -> Lac | C51: =IF(COUNTRY_INFO!C51=0," ",COUNTRY_INFO!C51) -> Kouloudia | D51: =IF(COUNTRY_INFO!$T$9:$T$1000="MDA2 (DEC+ALB)", COUNTRY_INFO!$T$9:$T$1000, " ") ->  | I51: 0 | M51: 0
A52: =IF(COUNTRY_INFO!A52=0," ",COUNTRY_INFO!A52) -> Chad | B52: =IF(COUNTRY_INFO!B52=0," ",COUNTRY_INFO!B52) -> Lac | C52: =IF(COUNTRY_INFO!C52=0," ",COUNTRY_INFO!C52) -> Liwa | D52: =IF(COUNTRY_INFO!$T$9:$T$1000="MDA2 (DEC+ALB)", COUNTRY_INFO!$T$9:$T$1000, " ") ->  | I52: 0 | M52: 0
A53: =IF(COUNTRY_INFO!A53=0," ",COUNTRY_INFO!A53) -> Chad | B53: =IF(COUNTRY_INFO!B53=0," ",COUNTRY_INFO!B53) -> Lac | C53: =IF(COUNTRY_INFO!C53=0," ",COUNTRY_INFO!C53) -> Ngouri | D53: =IF(COUNTRY_INFO!$T$9:$T$1000="MDA2 (DEC+ALB)", COUNTRY_INFO!$T$9:$T$1000, " ") ->  | I53: 0 | M53: 0
A54: =IF(COUNTRY_INFO!A54=0," ",COUNTRY_INFO!A54) -> Chad | B54: =IF(COUNTRY_INFO!B54=0," ",COUNTRY_INFO!B54) -> Logone Occidental | C54: =IF(COUNTRY_INFO!C54=0," ",COUNTRY_INFO!C54) -> Benamar | D54: =IF(COUNTRY_INFO!$T$9:$T$1000="MDA2 (DEC+ALB)", COUNTRY_INFO!$T$9:$T$1000, " ") ->  | I54: 0 | M54: 0
A55: =IF(COUNTRY_INFO!A55=0," ",COUNTRY_INFO!A55) -> Chad | B55: =IF(COUNTRY_INFO!B55=0," ",COUNTRY_INFO!B55) -> Logone Occidental | C55: =IF(COUNTRY_INFO!C55=0," ",COUNTRY_INFO!C55) -> Benoye | D55: =IF(COUNTRY_INFO!$T$9:$T$1000="MDA2 (DEC+ALB)", COUNTRY_INFO!$T$9:$T$1000, " ") ->  | I55: 0 | M55: 0
A56: =IF(COUNTRY_INFO!A56=0," ",COUNTRY_INFO!A56) -> Chad | B56: =IF(COUNTRY_INFO!B56=0," ",COUNTRY_INFO!B56) -> Logone Occidental | C56: =IF(COUNTRY_INFO!C56=0," ",COUNTRY_INFO!C56) -> Laokassy | D56: =IF(COUNTRY_INFO!$T$9:$T$1000="MDA2 (DEC+ALB)", COUNTRY_INFO!$T$9:$T$1000, " ") ->  | I56: 0 | M56: 0
A57: =IF(COUNTRY_INFO!A57=0," ",COUNTRY_INFO!A57) -> Chad | B57: =IF(COUNTRY_INFO!B57=0," ",COUNTRY_INFO!B57) -> Logone Occidental | C57: =IF(COUNTRY_INFO!C57=0," ",COUNTRY_INFO!C57) -> Moundou | D57: =IF(COUNTRY_INFO!$T$9:$T$1000="MDA2 (DEC+ALB)", COUNTRY_INFO!$T$9:$T$1000, " ") ->  | I57: 0 | M57: 0
A58: =IF(COUNTRY_INFO!A58=0," ",COUNTRY_INFO!A58) -> Chad | B58: =IF(COUNTRY_INFO!B58=0," ",COUNTRY_INFO!B58) -> Logone Orientlal | C58: =IF(COUNTRY_INFO!C58=0," ",COUNTRY_INFO!C58) -> Baibokoum | D58: =IF(COUNTRY_INFO!$T$9:$T$1000="MDA2 (DEC+ALB)", COUNTRY_INFO!$T$9:$T$1000, " ") ->  | I58: 0 | M58: 0
A59: =IF(COUNTRY_INFO!A59=0," ",COUNTRY_INFO!A59) -> Chad | B59: =IF(COUNTRY_INFO!B59=0," ",COUNTRY_INFO!B59) -> Logone Orientlal | C59: =IF(COUNTRY_INFO!C59=0," ",COUNTRY_INFO!C59) -> Bebedja | D59: =IF(COUNTRY_INFO!$T$9:$T$1000="MDA2 (DEC+ALB)", COUNTRY_INFO!$T$9:$T$1000, " ") ->  | I59: 0 | M59: 0
A60: =IF(COUNTRY_INFO!A60=0," ",COUNTRY_INFO!A60) -> Chad | B60: =IF(COUNTRY_INFO!B60=0," ",COUNTRY_INFO!B60) -> Logone Orientlal | C60: =IF(COUNTRY_INFO!C60=0," ",COUNTRY_INFO!C60) -> Beboto | D60: =IF(COUNTRY_INFO!$T$9:$T$1000="MDA2 (DEC+ALB)", COUNTRY_INFO!$T$9:$T$1000, " ") ->  | I60: 0 | M60: 0
A61: =IF(COUNTRY_INFO!A61=0," ",COUNTRY_INFO!A61) -> Chad | B61: =IF(COUNTRY_INFO!B61=0," ",COUNTRY_INFO!B61) -> Logone Orientlal | C61: =IF(COUNTRY_INFO!C61=0," ",COUNTRY_INFO!C61) -> Bessao | D61: =IF(COUNTRY_INFO!$T$9:$T$1000="MDA2 (DEC+ALB)", COUNTRY_INFO!$T$9:$T$1000, " ") ->  | I61: 0 | M61: 0
A62: =IF(COUNTRY_INFO!A62=0," ",COUNTRY_INFO!A62) -> Chad | B62: =IF(COUNTRY_INFO!B62=0," ",COUNTRY_INFO!B62) -> Logone Orientlal | C62: =IF(COUNTRY_INFO!C62=0," ",COUNTRY_INFO!C62) -> Bodo | D62: =IF(COUNTRY_INFO!$T$9:$T$1000="MDA2 (DEC+ALB)", COUNTRY_INFO!$T$9:$T$1000, " ") ->  | I62: 0 | M62: 0
A63: =IF(COUNTRY_INFO!A63=0," ",COUNTRY_INFO!A63) -> Chad | B63: =IF(COUNTRY_INFO!B63=0," ",COUNTRY_INFO!B63) -> Logone Orientlal | C63: =IF(COUNTRY_INFO!C63=0," ",COUNTRY_INFO!C63) -> Doba | D63: =IF(COUNTRY_INFO!$T$9:$T$1000="MDA2 (DEC+ALB)", COUNTRY_INFO!$T$9:$T$1000, " ") ->  | I63: 0 | M63: 0
A64: =IF(COUNTRY_INFO!A64=0," ",COUNTRY_INFO!A64) -> Chad | B64: =IF(COUNTRY_INFO!B64=0," ",COUNTRY_INFO!B64) -> Logone Orientlal | C64: =IF(COUNTRY_INFO!C64=0," ",COUNTRY_INFO!C64) -> DONIA | D64: =IF(COUNTRY_INFO!$T$9:$T$1000="MDA2 (DEC+ALB)", COUNTRY_INFO!$T$9:$T$1000, " ") ->  | I64: 0 | M64: 0
A65: =IF(COUNTRY_INFO!A65=0," ",COUNTRY_INFO!A65) -> Chad | B65: =IF(COUNTRY_INFO!B65=0," ",COUNTRY_INFO!B65) -> Logone Orientlal | C65: =IF(COUNTRY_INFO!C65=0," ",COUNTRY_INFO!C65) -> Goré | D65: =IF(COUNTRY_INFO!$T$9:$T$1000="MDA2 (DEC+ALB)", COUNTRY_INFO!$T$9:$T$1000, " ") ->  | I65: 0 | M65: 0
A66: =IF(COUNTRY_INFO!A66=0," ",COUNTRY_INFO!A66) -> Chad | B66: =IF(COUNTRY_INFO!B66=0," ",COUNTRY_INFO!B66) -> Logone Orientlal | C66: =IF(COUNTRY_INFO!C66=0," ",COUNTRY_INFO!C66) -> Kara | D66: =IF(COUNTRY_INFO!$T$9:$T$1000="MDA2 (DEC+ALB)", COUNTRY_INFO!$T$9:$T$1000, " ") ->  | I66: 0 | M66: 0
A67: =IF(COUNTRY_INFO!A67=0," ",COUNTRY_INFO!A67) -> Chad | B67: =IF(COUNTRY_INFO!B67=0," ",COUNTRY_INFO!B67) -> Logone Orientlal | C67: =IF(COUNTRY_INFO!C67=0," ",COUNTRY_INFO!C67) -> Larmanaye | D67: =IF(COUNTRY_INFO!$T$9:$T$1000="MDA2 (DEC+ALB)", COUNTRY_INFO!$T$9:$T$1000, " ") ->  | I67: 0 | M67: 0
A68: =IF(COUNTRY_INFO!A68=0," ",COUNTRY_INFO!A68) -> Chad | B68: =IF(COUNTRY_INFO!B68=0," ",COUNTRY_INFO!B68) -> Mandoul | C68: =IF(COUNTRY_INFO!C68=0," ",COUNTRY_INFO!C68) -> Bedaya | D68: =IF(COUNTRY_INFO!$T$9:$T$1000="MDA2 (DEC+ALB)", COUNTRY_INFO!$T$9:$T$1000, " ") ->  | I68: 0 | M68: 0
A69: =IF(COUNTRY_INFO!A69=0," ",COUNTRY_INFO!A69) -> Chad | B69: =IF(COUNTRY_INFO!B69=0," ",COUNTRY_INFO!B69) -> Mandoul | C69: =IF(COUNTRY_INFO!C69=0," ",COUNTRY_INFO!C69) -> Bedjondo | D69: =IF(COUNTRY_INFO!$T$9:$T$1000="MDA2 (DEC+ALB)", COUNTRY_INFO!$T$9:$T$1000, " ") ->  | I69: 0 | M69: 0
A70: =IF(COUNTRY_INFO!A70=0," ",COUNTRY_INFO!A70) -> Chad | B70: =IF(COUNTRY_INFO!B70=0," ",COUNTRY_INFO!B70) -> Mandoul | C70: =IF(COUNTRY_INFO!C70=0," ",COUNTRY_INFO!C70) -> Bekourou | D70: =IF(COUNTRY_INFO!$T$9:$T$1000="MDA2 (DEC+ALB)", COUNTRY_INFO!$T$9:$T$1000, " ") ->  | I70: 0 | M70: 0
A71: =IF(COUNTRY_INFO!A71=0," ",COUNTRY_INFO!A71) -> Chad | B71: =IF(COUNTRY_INFO!B71=0," ",COUNTRY_INFO!B71) -> Mandoul | C71: =IF(COUNTRY_INFO!C71=0," ",COUNTRY_INFO!C71) -> Bouna | D71: =IF(COUNTRY_INFO!$T$9:$T$1000="MDA2 (DEC+ALB)", COUNTRY_INFO!$T$9:$T$1000, " ") ->  | I71: 0 | M71: 0
A72: =IF(COUNTRY_INFO!A72=0," ",COUNTRY_INFO!A72) -> Chad | B72: =IF(COUNTRY_INFO!B72=0," ",COUNTRY_INFO!B72) -> Mandoul | C72: =IF(COUNTRY_INFO!C72=0," ",COUNTRY_INFO!C72) -> Goundi | D72: =IF(COUNTRY_INFO!$T$9:$T$1000="MDA2 (DEC+ALB)", COUNTRY_INFO!$T$9:$T$1000, " ") ->  | I72: 0 | M72: 0
A73: =IF(COUNTRY_INFO!A73=0," ",COUNTRY_INFO!A73) -> Chad | B73: =IF(COUNTRY_INFO!B73=0," ",COUNTRY_INFO!B73) -> Mandoul | C73: =IF(COUNTRY_INFO!C73=0," ",COUNTRY_INFO!C73) -> Koumra | D73: =IF(COUNTRY_INFO!$T$9:$T$1000="MDA2 (DEC+ALB)", COUNTRY_INFO!$T$9:$T$1000, " ") ->  | I73: 0 | M73: 0
A74: =IF(COUNTRY_INFO!A74=0," ",COUNTRY_INFO!A74) -> Chad | B74: =IF(COUNTRY_INFO!B74=0," ",COUNTRY_INFO!B74) -> Mandoul | C74: =IF(COUNTRY_INFO!C74=0," ",COUNTRY_INFO!C74) -> Moissala | D74: =IF(COUNTRY_INFO!$T$9:$T$1000="MDA2 (DEC+ALB)", COUNTRY_INFO!$T$9:$T$1000, " ") ->  | I74: =SUM(F74:H74) -> 0 | M74: =SUM(J74:L74) -> 0 | N74: =IF(F74<>0, IF(J74/F74*100=0, "-", J74/F74*100), " ") ->  | O74: =IF(G74<>0, IF(K74/G74*100=0, "-", K74/G74*100), " ") ->  | P74: =IF(H74<>0, IF(L74/H74*100=0, "-", L74/H74*100), " ") ->  | Q74: =IF(I74<>0, IF(M74/I74*100=0, "-", M74/I74*100), " ") -> 
A75: =IF(COUNTRY_INFO!A75=0," ",COUNTRY_INFO!A75) -> Chad | B75: =IF(COUNTRY_INFO!B75=0," ",COUNTRY_INFO!B75) -> Mayo Kebbi Est | C75: =IF(COUNTRY_INFO!C75=0," ",COUNTRY_INFO!C75) -> Bongor | D75: =IF(COUNTRY_INFO!$T$9:$T$1000="MDA2 (DEC+ALB)", COUNTRY_INFO!$T$9:$T$1000, " ") ->  | I75: 0 | M75: 0
A76: =IF(COUNTRY_INFO!A76=0," ",COUNTRY_INFO!A76) -> Chad | B76: =IF(COUNTRY_INFO!B76=0," ",COUNTRY_INFO!B76) -> Mayo Kebbi Est | C76: =IF(COUNTRY_INFO!C76=0," ",COUNTRY_INFO!C76) -> Fianga | D76: =IF(COUNTRY_INFO!$T$9:$T$1000="MDA2 (DEC+ALB)", COUNTRY_INFO!$T$9:$T$1000, " ") ->  | I76: 0 | M76: 0
A77: =IF(COUNTRY_INFO!A77=0," ",COUNTRY_INFO!A77) -> Chad | B77: =IF(COUNTRY_INFO!B77=0," ",COUNTRY_INFO!B77) -> Mayo Kebbi Est | C77: =IF(COUNTRY_INFO!C77=0," ",COUNTRY_INFO!C77) -> Gounou Gaya | D77: =IF(COUNTRY_INFO!$T$9:$T$1000="MDA2 (DEC+ALB)", COUNTRY_INFO!$T$9:$T$1000, " ") ->  | I77: 0 | M77: 0
A78: =IF(COUNTRY_INFO!A78=0," ",COUNTRY_INFO!A78) -> Chad | B78: =IF(COUNTRY_INFO!B78=0," ",COUNTRY_INFO!B78) -> Mayo Kebbi Est | C78: =IF(COUNTRY_INFO!C78=0," ",COUNTRY_INFO!C78) -> Guelinding | D78: =IF(COUNTRY_INFO!$T$9:$T$1000="MDA2 (DEC+ALB)", COUNTRY_INFO!$T$9:$T$1000, " ") ->  | I78: 0 | M78: 0
A79: =IF(COUNTRY_INFO!A79=0," ",COUNTRY_INFO!A79) -> Chad | B79: =IF(COUNTRY_INFO!B79=0," ",COUNTRY_INFO!B79) -> Mayo Kebbi Est | C79: =IF(COUNTRY_INFO!C79=0," ",COUNTRY_INFO!C79) -> Moulkou | D79: =IF(COUNTRY_INFO!$T$9:$T$1000="MDA2 (DEC+ALB)", COUNTRY_INFO!$T$9:$T$1000, " ") ->  | I79: 0 | M79: 0
A80: =IF(COUNTRY_INFO!A80=0," ",COUNTRY_INFO!A80) -> Chad | B80: =IF(COUNTRY_INFO!B80=0," ",COUNTRY_INFO!B80) -> Mayo Kebbi Est | C80: =IF(COUNTRY_INFO!C80=0," ",COUNTRY_INFO!C80) -> Pont Carol | D80: =IF(COUNTRY_INFO!$T$9:$T$1000="MDA2 (DEC+ALB)", COUNTRY_INFO!$T$9:$T$1000, " ") ->  | I80: 0 | M80: 0
A81: =IF(COUNTRY_INFO!A81=0," ",COUNTRY_INFO!A81) -> Chad | B81: =IF(COUNTRY_INFO!B81=0," ",COUNTRY_INFO!B81) -> Mayo Kebbi Est | C81: =IF(COUNTRY_INFO!C81=0," ",COUNTRY_INFO!C81) -> Youé | D81: =IF(COUNTRY_INFO!$T$9:$T$1000="MDA2 (DEC+ALB)", COUNTRY_INFO!$T$9:$T$1000, " ") ->  | I81: 0 | M81: 0
A82: =IF(COUNTRY_INFO!A82=0," ",COUNTRY_INFO!A82) -> Chad | B82: =IF(COUNTRY_INFO!B82=0," ",COUNTRY_INFO!B82) -> Mayo Kebbi Ouest | C82: =IF(COUNTRY_INFO!C82=0," ",COUNTRY_INFO!C82) -> Binder | D82: =IF(COUNTRY_INFO!$T$9:$T$1000="MDA2 (DEC+ALB)", COUNTRY_INFO!$T$9:$T$1000, " ") ->  | I82: 0 | M82: 0
A83: =IF(COUNTRY_INFO!A83=0," ",COUNTRY_INFO!A83) -> Chad | B83: =IF(COUNTRY_INFO!B83=0," ",COUNTRY_INFO!B83) -> Mayo Kebbi Ouest | C83: =IF(COUNTRY_INFO!C83=0," ",COUNTRY_INFO!C83) -> Gagal | D83: =IF(COUNTRY_INFO!$T$9:$T$1000="MDA2 (DEC+ALB)", COUNTRY_INFO!$T$9:$T$1000, " ") ->  | I83: 0 | M83: 0
A84: =IF(COUNTRY_INFO!A84=0," ",COUNTRY_INFO!A84) -> Chad | B84: =IF(COUNTRY_INFO!B84=0," ",COUNTRY_INFO!B84) -> Mayo Kebbi Ouest | C84: =IF(COUNTRY_INFO!C84=0," ",COUNTRY_INFO!C84) -> Guegou | D84: =IF(COUNTRY_INFO!$T$9:$T$1000="MDA2 (DEC+ALB)", COUNTRY_INFO!$T$9:$T$1000, " ") ->  | I84: 0 | M84: 0
A85: =IF(COUNTRY_INFO!A85=0," ",COUNTRY_INFO!A85) -> Chad | B85: =IF(COUNTRY_INFO!B85=0," ",COUNTRY_INFO!B85) -> Mayo Kebbi Ouest | C85: =IF(COUNTRY_INFO!C85=0," ",COUNTRY_INFO!C85) -> GUELO | D85: =IF(COUNTRY_INFO!$T$9:$T$1000="MDA2 (DEC+ALB)", COUNTRY_INFO!$T$9:$T$1000, " ") ->  | I85: 0 | M85: 0
A86: =IF(COUNTRY_INFO!A86=0," ",COUNTRY_INFO!A86) -> Chad | B86: =IF(COUNTRY_INFO!B86=0," ",COUNTRY_INFO!B86) -> Mayo Kebbi Ouest | C86: =IF(COUNTRY_INFO!C86=0," ",COUNTRY_INFO!C86) -> Lagon | D86: =IF(COUNTRY_INFO!$T$9:$T$1000="MDA2 (DEC+ALB)", COUNTRY_INFO!$T$9:$T$1000, " ") ->  | I86: 0 | M86: 0
A87: =IF(COUNTRY_INFO!A87=0," ",COUNTRY_INFO!A87) -> Chad | B87: =IF(COUNTRY_INFO!B87=0," ",COUNTRY_INFO!B87) -> Mayo Kebbi Ouest | C87: =IF(COUNTRY_INFO!C87=0," ",COUNTRY_INFO!C87) -> Lamé | D87: =IF(COUNTRY_INFO!$T$9:$T$1000="MDA2 (DEC+ALB)", COUNTRY_INFO!$T$9:$T$1000, " ") ->  | I87: 0 | M87: 0
A88: =IF(COUNTRY_INFO!A88=0," ",COUNTRY_INFO!A88) -> Chad | B88: =IF(COUNTRY_INFO!B88=0," ",COUNTRY_INFO!B88) -> Mayo Kebbi Ouest | C88: =IF(COUNTRY_INFO!C88=0," ",COUNTRY_INFO!C88) -> Lere | D88: =IF(COUNTRY_INFO!$T$9:$T$1000="MDA2 (DEC+ALB)", COUNTRY_INFO!$T$9:$T$1000, " ") ->  | I88: 0 | M88: 0
A89: =IF(COUNTRY_INFO!A89=0," ",COUNTRY_INFO!A89) -> Chad | B89: =IF(COUNTRY_INFO!B89=0," ",COUNTRY_INFO!B89) -> Mayo Kebbi Ouest | C89: =IF(COUNTRY_INFO!C89=0," ",COUNTRY_INFO!C89) -> Pala | D89: =IF(COUNTRY_INFO!$T$9:$T$1000="MDA2 (DEC+ALB)", COUNTRY_INFO!$T$9:$T$1000, " ") ->  | I89: 0 | M89: 0
A90: =IF(COUNTRY_INFO!A90=0," ",COUNTRY_INFO!A90) -> Chad | B90: =IF(COUNTRY_INFO!B90=0," ",COUNTRY_INFO!B90) -> Mayo Kebbi Ouest | C90: =IF(COUNTRY_INFO!C90=0," ",COUNTRY_INFO!C90) -> Torrock | D90: =IF(COUNTRY_INFO!$T$9:$T$1000="MDA2 (DEC+ALB)", COUNTRY_INFO!$T$9:$T$1000, " ") ->  | I90: 0 | M90: 0
A91: =IF(COUNTRY_INFO!A91=0," ",COUNTRY_INFO!A91) -> Chad | B91: =IF(COUNTRY_INFO!B91=0," ",COUNTRY_INFO!B91) -> Moyen Chari | C91: =IF(COUNTRY_INFO!C91=0," ",COUNTRY_INFO!C91) -> Biobe Singako | D91: =IF(COUNTRY_INFO!$T$9:$T$1000="MDA2 (DEC+ALB)", COUNTRY_INFO!$T$9:$T$1000, " ") ->  | I91: 0 | M91: 0
A92: =IF(COUNTRY_INFO!A92=0," ",COUNTRY_INFO!A92) -> Chad | B92: =IF(COUNTRY_INFO!B92=0," ",COUNTRY_INFO!B92) -> Moyen Chari | C92: =IF(COUNTRY_INFO!C92=0," ",COUNTRY_INFO!C92) -> Danamadji | D92: =IF(COUNTRY_INFO!$T$9:$T$1000="MDA2 (DEC+ALB)", COUNTRY_INFO!$T$9:$T$1000, " ") ->  | I92: 0 | M92: 0
A93: =IF(COUNTRY_INFO!A93=0," ",COUNTRY_INFO!A93) -> Chad | B93: =IF(COUNTRY_INFO!B93=0," ",COUNTRY_INFO!B93) -> Moyen Chari | C93: =IF(COUNTRY_INFO!C93=0," ",COUNTRY_INFO!C93) -> Korbol | D93: =IF(COUNTRY_INFO!$T$9:$T$1000="MDA2 (DEC+ALB)", COUNTRY_INFO!$T$9:$T$1000, " ") ->  | I93: 0 | M93: 0
A94: =IF(COUNTRY_INFO!A94=0," ",COUNTRY_INFO!A94) -> Chad | B94: =IF(COUNTRY_INFO!B94=0," ",COUNTRY_INFO!B94) -> Moyen Chari | C94: =IF(COUNTRY_INFO!C94=0," ",COUNTRY_INFO!C94) -> Kyabe | D94: =IF(COUNTRY_INFO!$T$9:$T$1000="MDA2 (DEC+ALB)", COUNTRY_INFO!$T$9:$T$1000, " ") ->  | I94: 0 | M94: 0
A95: =IF(COUNTRY_INFO!A95=0," ",COUNTRY_INFO!A95) -> Chad | B95: =IF(COUNTRY_INFO!B95=0," ",COUNTRY_INFO!B95) -> Moyen Chari | C95: =IF(COUNTRY_INFO!C95=0," ",COUNTRY_INFO!C95) -> Maro | D95: =IF(COUNTRY_INFO!$T$9:$T$1000="MDA2 (DEC+ALB)", COUNTRY_INFO!$T$9:$T$1000, " ") ->  | I95: 0 | M95: 0
A96: =IF(COUNTRY_INFO!A96=0," ",COUNTRY_INFO!A96) -> Chad | B96: =IF(COUNTRY_INFO!B96=0," ",COUNTRY_INFO!B96) -> Moyen Chari | C96: =IF(COUNTRY_INFO!C96=0," ",COUNTRY_INFO!C96) -> Sarh | D96: =IF(COUNTRY_INFO!$T$9:$T$1000="MDA2 (DEC+ALB)", COUNTRY_INFO!$T$9:$T$1000, " ") ->  | I96: 0 | M96: 0
A97: =IF(COUNTRY_INFO!A97=0," ",COUNTRY_INFO!A97) -> Chad | B97: =IF(COUNTRY_INFO!B97=0," ",COUNTRY_INFO!B97) -> N'Djaména | C97: =IF(COUNTRY_INFO!C97=0," ",COUNTRY_INFO!C97) -> N'Djaména Centre | D97: =IF(COUNTRY_INFO!$T$9:$T$1000="MDA2 (DEC+ALB)", COUNTRY_INFO!$T$9:$T$1000, " ") ->  | I97: 0 | M97: 0
A98: =IF(COUNTRY_INFO!A98=0," ",COUNTRY_INFO!A98) -> Chad | B98: =IF(COUNTRY_INFO!B98=0," ",COUNTRY_INFO!B98) -> N'Djaména | C98: =IF(COUNTRY_INFO!C98=0," ",COUNTRY_INFO!C98) -> N'Djaména Est | D98: =IF(COUNTRY_INFO!$T$9:$T$1000="MDA2 (DEC+ALB)", COUNTRY_INFO!$T$9:$T$1000, " ") ->  | I98: 0 | M98: 0
A99: =IF(COUNTRY_INFO!A99=0," ",COUNTRY_INFO!A99) -> Chad | B99: =IF(COUNTRY_INFO!B99=0," ",COUNTRY_INFO!B99) -> N'Djaména | C99: =IF(COUNTRY_INFO!C99=0," ",COUNTRY_INFO!C99) -> N'Djaména Nord | D99: =IF(COUNTRY_INFO!$T$9:$T$1000="MDA2 (DEC+ALB)", COUNTRY_INFO!$T$9:$T$1000, " ") ->  | I99: 0 | M99: 0
A100: =IF(COUNTRY_INFO!A100=0," ",COUNTRY_INFO!A100) -> Chad | B100: =IF(COUNTRY_INFO!B100=0," ",COUNTRY_INFO!B100) -> N'Djaména | C100: =IF(COUNTRY_INFO!C100=0," ",COUNTRY_INFO!C100) -> N'Djaména Sud | D100: =IF(COUNTRY_INFO!$T$9:$T$1000="MDA2 (DEC+ALB)", COUNTRY_INFO!$T$9:$T$1000, " ") ->  | I100: 0 | M100: 0
A101: =IF(COUNTRY_INFO!A101=0," ",COUNTRY_INFO!A101) -> Chad | B101: =IF(COUNTRY_INFO!B101=0," ",COUNTRY_INFO!B101) -> Ouaddai | C101: =IF(COUNTRY_INFO!C101=0," ",COUNTRY_INFO!C101) -> Abdi | D101: =IF(COUNTRY_INFO!$T$9:$T$1000="MDA2 (DEC+ALB)", COUNTRY_INFO!$T$9:$T$1000, " ") ->  | I101: 0 | M101: 0
A102: =IF(COUNTRY_INFO!A102=0," ",COUNTRY_INFO!A102) -> Chad | B102: =IF(COUNTRY_INFO!B102=0," ",COUNTRY_INFO!B102) -> Ouaddai | C102: =IF(COUNTRY_INFO!C102=0," ",COUNTRY_INFO!C102) -> Abeche | D102: =IF(COUNTRY_INFO!$T$9:$T$1000="MDA2 (DEC+ALB)", COUNTRY_INFO!$T$9:$T$1000, " ") ->  | I102: 0 | M102: 0
A103: =IF(COUNTRY_INFO!A103=0," ",COUNTRY_INFO!A103) -> Chad | B103: =IF(COUNTRY_INFO!B103=0," ",COUNTRY_INFO!B103) -> Ouaddai | C103: =IF(COUNTRY_INFO!C103=0," ",COUNTRY_INFO!C103) -> Abougoudam | D103: =IF(COUNTRY_INFO!$T$9:$T$1000="MDA2 (DEC+ALB)", COUNTRY_INFO!$T$9:$T$1000, " ") ->  | I103: 0 | M103: 0
A104: =IF(COUNTRY_INFO!A104=0," ",COUNTRY_INFO!A104) -> Chad | B104: =IF(COUNTRY_INFO!B104=0," ",COUNTRY_INFO!B104) -> Ouaddai | C104: =IF(COUNTRY_INFO!C104=0," ",COUNTRY_INFO!C104) -> Adré | D104: =IF(COUNTRY_INFO!$T$9:$T$1000="MDA2 (DEC+ALB)", COUNTRY_INFO!$T$9:$T$1000, " ") ->  | I104: 0 | M104: 0
A105: =IF(COUNTRY_INFO!A105=0," ",COUNTRY_INFO!A105) -> Chad | B105: =IF(COUNTRY_INFO!B105=0," ",COUNTRY_INFO!B105) -> Salamat | C105: =IF(COUNTRY_INFO!C105=0," ",COUNTRY_INFO!C105) -> Aboudeia | D105: =IF(COUNTRY_INFO!$T$9:$T$1000="MDA2 (DEC+ALB)", COUNTRY_INFO!$T$9:$T$1000, " ") ->  | I105: 0 | M105: 0
A106: =IF(COUNTRY_INFO!A106=0," ",COUNTRY_INFO!A106) -> Chad | B106: =IF(COUNTRY_INFO!B106=0," ",COUNTRY_INFO!B106) -> Salamat | C106: =IF(COUNTRY_INFO!C106=0," ",COUNTRY_INFO!C106) -> Am-Timan | D106: =IF(COUNTRY_INFO!$T$9:$T$1000="MDA2 (DEC+ALB)", COUNTRY_INFO!$T$9:$T$1000, " ") ->  | I106: 0 | M106: 0
A107: =IF(COUNTRY_INFO!A107=0," ",COUNTRY_INFO!A107) -> Chad | B107: =IF(COUNTRY_INFO!B107=0," ",COUNTRY_INFO!B107) -> Salamat | C107: =IF(COUNTRY_INFO!C107=0," ",COUNTRY_INFO!C107) -> Haraze | D107: =IF(COUNTRY_INFO!$T$9:$T$1000="MDA2 (DEC+ALB)", COUNTRY_INFO!$T$9:$T$1000, " ") ->  | I107: 0 | M107: 0
A108: =IF(COUNTRY_INFO!A108=0," ",COUNTRY_INFO!A108) -> Chad | B108: =IF(COUNTRY_INFO!B108=0," ",COUNTRY_INFO!B108) -> Sila | C108: =IF(COUNTRY_INFO!C108=0," ",COUNTRY_INFO!C108) -> Am-dam | D108: =IF(COUNTRY_INFO!$T$9:$T$1000="MDA2 (DEC+ALB)", COUNTRY_INFO!$T$9:$T$1000, " ") ->  | I108: 0 | M108: 0
A109: =IF(COUNTRY_INFO!A109=0," ",COUNTRY_INFO!A109) -> Chad | B109: =IF(COUNTRY_INFO!B109=0," ",COUNTRY_INFO!B109) -> Sila | C109: =IF(COUNTRY_INFO!C109=0," ",COUNTRY_INFO!C109) -> Goz-beida | D109: =IF(COUNTRY_INFO!$T$9:$T$1000="MDA2 (DEC+ALB)", COUNTRY_INFO!$T$9:$T$1000, " ") ->  | I109: 0 | M109: 0
A110: =IF(COUNTRY_INFO!A110=0," ",COUNTRY_INFO!A110) -> Chad | B110: =IF(COUNTRY_INFO!B110=0," ",COUNTRY_INFO!B110) -> Sila | C110: =IF(COUNTRY_INFO!C110=0," ",COUNTRY_INFO!C110) -> Koukou | D110: =IF(COUNTRY_INFO!$T$9:$T$1000="MDA2 (DEC+ALB)", COUNTRY_INFO!$T$9:$T$1000, " ") ->  | I110: 0 | M110: 0
A111: =IF(COUNTRY_INFO!A111=0," ",COUNTRY_INFO!A111) -> Chad | B111: =IF(COUNTRY_INFO!B111=0," ",COUNTRY_INFO!B111) -> Sila | C111: =IF(COUNTRY_INFO!C111=0," ",COUNTRY_INFO!C111) -> Tissi | D111: =IF(COUNTRY_INFO!$T$9:$T$1000="MDA2 (DEC+ALB)", COUNTRY_INFO!$T$9:$T$1000, " ") ->  | I111: 0 | M111: 0
A112: =IF(COUNTRY_INFO!A112=0," ",COUNTRY_INFO!A112) -> Chad | B112: =IF(COUNTRY_INFO!B112=0," ",COUNTRY_INFO!B112) -> Tandjile | C112: =IF(COUNTRY_INFO!C112=0," ",COUNTRY_INFO!C112) -> Batchoro | D112: =IF(COUNTRY_INFO!$T$9:$T$1000="MDA2 (DEC+ALB)", COUNTRY_INFO!$T$9:$T$1000, " ") ->  | I112: 0 | M112: 0
A113: =IF(COUNTRY_INFO!A113=0," ",COUNTRY_INFO!A113) -> Chad | B113: =IF(COUNTRY_INFO!B113=0," ",COUNTRY_INFO!B113) -> Tandjile | C113: =IF(COUNTRY_INFO!C113=0," ",COUNTRY_INFO!C113) -> Bere | D113: =IF(COUNTRY_INFO!$T$9:$T$1000="MDA2 (DEC+ALB)", COUNTRY_INFO!$T$9:$T$1000, " ") ->  | I113: 0 | M113: 0
A114: =IF(COUNTRY_INFO!A114=0," ",COUNTRY_INFO!A114) -> Chad | B114: =IF(COUNTRY_INFO!B114=0," ",COUNTRY_INFO!B114) -> Tandjile | C114: =IF(COUNTRY_INFO!C114=0," ",COUNTRY_INFO!C114) -> Dafra | D114: =IF(COUNTRY_INFO!$T$9:$T$1000="MDA2 (DEC+ALB)", COUNTRY_INFO!$T$9:$T$1000, " ") ->  | I114: 0 | M114: 0
A115: =IF(COUNTRY_INFO!A115=0," ",COUNTRY_INFO!A115) -> Chad | B115: =IF(COUNTRY_INFO!B115=0," ",COUNTRY_INFO!B115) -> Tandjile | C115: =IF(COUNTRY_INFO!C115=0," ",COUNTRY_INFO!C115) -> Donamanga | D115: =IF(COUNTRY_INFO!$T$9:$T$1000="MDA2 (DEC+ALB)", COUNTRY_INFO!$T$9:$T$1000, " ") ->  | I115: 0 | M115: 0
A116: =IF(COUNTRY_INFO!A116=0," ",COUNTRY_INFO!A116) -> Chad | B116: =IF(COUNTRY_INFO!B116=0," ",COUNTRY_INFO!B116) -> Tandjile | C116: =IF(COUNTRY_INFO!C116=0," ",COUNTRY_INFO!C116) -> Guidari | D116: =IF(COUNTRY_INFO!$T$9:$T$1000="MDA2 (DEC+ALB)", COUNTRY_INFO!$T$9:$T$1000, " ") ->  | I116: 0 | M116: 0
A117: =IF(COUNTRY_INFO!A117=0," ",COUNTRY_INFO!A117) -> Chad | B117: =IF(COUNTRY_INFO!B117=0," ",COUNTRY_INFO!B117) -> Tandjile | C117: =IF(COUNTRY_INFO!C117=0," ",COUNTRY_INFO!C117) -> Kelo | D117: =IF(COUNTRY_INFO!$T$9:$T$1000="MDA2 (DEC+ALB)", COUNTRY_INFO!$T$9:$T$1000, " ") ->  | I117: 0 | M117: 0
A118: =IF(COUNTRY_INFO!A118=0," ",COUNTRY_INFO!A118) -> Chad | B118: =IF(COUNTRY_INFO!B118=0," ",COUNTRY_INFO!B118) -> Tandjile | C118: =IF(COUNTRY_INFO!C118=0," ",COUNTRY_INFO!C118) -> Kolon | D118: =IF(COUNTRY_INFO!$T$9:$T$1000="MDA2 (DEC+ALB)", COUNTRY_INFO!$T$9:$T$1000, " ") -> MDA2 (DEC+ALB) | I118: 0 | M118: 0
A119: =IF(COUNTRY_INFO!A119=0," ",COUNTRY_INFO!A119) -> Chad | B119: =IF(COUNTRY_INFO!B119=0," ",COUNTRY_INFO!B119) -> Tandjile | C119: =IF(COUNTRY_INFO!C119=0," ",COUNTRY_INFO!C119) -> Lai | D119: =IF(COUNTRY_INFO!$T$9:$T$1000="MDA2 (DEC+ALB)", COUNTRY_INFO!$T$9:$T$1000, " ") ->  | I119: 0 | M119: 0
A120: =IF(COUNTRY_INFO!A120=0," ",COUNTRY_INFO!A120) -> Chad | B120: =IF(COUNTRY_INFO!B120=0," ",COUNTRY_INFO!B120) -> Tibesti | C120: =IF(COUNTRY_INFO!C120=0," ",COUNTRY_INFO!C120) -> Bardaï | D120: =IF(COUNTRY_INFO!$T$9:$T$1000="MDA2 (DEC+ALB)", COUNTRY_INFO!$T$9:$T$1000, " ") ->  | I120: 0 | M120: 0
A121: =IF(COUNTRY_INFO!A121=0," ",COUNTRY_INFO!A121) -> Chad | B121: =IF(COUNTRY_INFO!B121=0," ",COUNTRY_INFO!B121) -> Tibesti | C121: =IF(COUNTRY_INFO!C121=0," ",COUNTRY_INFO!C121) -> Zouar | D121: =IF(COUNTRY_INFO!$T$9:$T$1000="MDA2 (DEC+ALB)", COUNTRY_INFO!$T$9:$T$1000, " ") ->  | I121: 0 | M121: 0
A122: =IF(COUNTRY_INFO!A122=0," ",COUNTRY_INFO!A122) -> Chad | B122: =IF(COUNTRY_INFO!B122=0," ",COUNTRY_INFO!B122) -> Wadi Fira | C122: =IF(COUNTRY_INFO!C122=0," ",COUNTRY_INFO!C122) -> amzoer | D122: =IF(COUNTRY_INFO!$T$9:$T$1000="MDA2 (DEC+ALB)", COUNTRY_INFO!$T$9:$T$1000, " ") ->  | I122: 0 | M122: 0
A123: =IF(COUNTRY_INFO!A123=0," ",COUNTRY_INFO!A123) -> Chad | B123: =IF(COUNTRY_INFO!B123=0," ",COUNTRY_INFO!B123) -> Wadi Fira | C123: =IF(COUNTRY_INFO!C123=0," ",COUNTRY_INFO!C123) -> Arada | D123: =IF(COUNTRY_INFO!$T$9:$T$1000="MDA2 (DEC+ALB)", COUNTRY_INFO!$T$9:$T$1000, " ") ->  | I123: 0 | M123: 0
A124: =IF(COUNTRY_INFO!A124=0," ",COUNTRY_INFO!A124) -> Chad | B124: =IF(COUNTRY_INFO!B124=0," ",COUNTRY_INFO!B124) -> Wadi Fira | C124: =IF(COUNTRY_INFO!C124=0," ",COUNTRY_INFO!C124) -> Biltine | D124: =IF(COUNTRY_INFO!$T$9:$T$1000="MDA2 (DEC+ALB)", COUNTRY_INFO!$T$9:$T$1000, " ") ->  | I124: 0 | M124: 0
A125: =IF(COUNTRY_INFO!A125=0," ",COUNTRY_INFO!A125) -> Chad | B125: =IF(COUNTRY_INFO!B125=0," ",COUNTRY_INFO!B125) -> Wadi Fira | C125: =IF(COUNTRY_INFO!C125=0," ",COUNTRY_INFO!C125) -> Guéréda | D125: =IF(COUNTRY_INFO!$T$9:$T$1000="MDA2 (DEC+ALB)", COUNTRY_INFO!$T$9:$T$1000, " ") ->  | I125: 0 | M125: 0
A126: =IF(COUNTRY_INFO!A126=0," ",COUNTRY_INFO!A126) -> Chad | B126: =IF(COUNTRY_INFO!B126=0," ",COUNTRY_INFO!B126) -> Wadi Fira | C126: =IF(COUNTRY_INFO!C126=0," ",COUNTRY_INFO!C126) -> Iriba | D126: =IF(COUNTRY_INFO!$T$9:$T$1000="MDA2 (DEC+ALB)", COUNTRY_INFO!$T$9:$T$1000, " ") ->  | I126: 0 | M126: 0
A127: =IF(COUNTRY_INFO!A127=0," ",COUNTRY_INFO!A127) -> Chad | B127: =IF(COUNTRY_INFO!B127=0," ",COUNTRY_INFO!B127) -> Wadi Fira | C127: =IF(COUNTRY_INFO!C127=0," ",COUNTRY_INFO!C127) -> Matadjana | D127: =IF(COUNTRY_INFO!$T$9:$T$1000="MDA2 (DEC+ALB)", COUNTRY_INFO!$T$9:$T$1000, " ") ->  | I127: 0 | M127: 0

Sheet MDA3
A1: MDA 3 - Ivermectine (IVM)
A2: Structure administrative, population nécessitant une chimioprévention par groupe d'âge, population traitée par groupe d'âge et couverture
A4: TOTAL | F4: =SUM(F$9:F$1000) -> 573137 | G4: 965629 | H4: 1538766 | I4: 501743.7828 | J4: 807366.2172 | K4: 1309110 | L4: 0 | M4: 0 | N4: 0 | O4: 501743.7828 | P4: 807366.2172 | Q4: 1309110 | R4: =IF(F4<>0, IF(O4/F4*100=0, "-", O4/F4*100), " ") -> 87.54342902 | S4: =IF(G4<>0, IF(P4/G4*100=0, "-", P4/G4*100), " ") -> 83.6103946 | T4: =IF(H4<>0, IF(Q4/H4*100=0, "-", Q4/H4*100), " ") -> 85.0753136
A6: Structure administrative du pays | D6: Mise en oeuvre de la CP | E6: Date | F6: Population ciblée pour MDA 3 | I6: Population traitée - tournée 1 | L6: Population traitée - tournée 2 | O6: Population traitée | R6: Couverture du Programme (%)
A7: Pays | B7: Région/Département | C7: District | F7: EAS | G7: Adultes | H7: Total | I7: EAS | J7: Adultes | K7: Total | L7: EAS | M7: Adultes | N7: Total | O7: EAS | P7: Adultes | Q7: Total | R7: EAS | S7: Adultes | T7: Total
A9: =IF(COUNTRY_INFO!A9=0," ",COUNTRY_INFO!A9) -> Chad | B9: =IF(COUNTRY_INFO!B9=0," ",COUNTRY_INFO!B9) -> Bahr El Gazel | C9: =IF(COUNTRY_INFO!C9=0," ",COUNTRY_INFO!C9) -> Chadra | D9: =IF(COUNTRY_INFO!$T$9:$T$1000="MDA3 (IVM)", COUNTRY_INFO!$T$9:$T$1000, " ") ->  | H9: =SUM(F9:G9) -> 0 | N9: =SUM(L9:M9) -> 0 | O9: =MAX(I9,L9) -> 0 | P9: 0 | Q9: =SUM(O9:P9) -> 0 | R9: =IF(F9<>0, IF(MAX(I9,L9)/F9*100=0, "-", MAX(I9,L9)/F9*100), " ") ->  | T9: =IF(H9<>0, IF((MAX(I9,L9)+MAX(J9,M9))/H9*100=0, "-",(MAX(I9,L9)+MAX(J9,M9))/H9*100), " ") -> 
A10: =IF(COUNTRY_INFO!A10=0," ",COUNTRY_INFO!A10) -> Chad | B10: =IF(COUNTRY_INFO!B10=0," ",COUNTRY_INFO!B10) -> Bahr El Gazel | C10: =IF(COUNTRY_INFO!C10=0," ",COUNTRY_INFO!C10) -> Michemire | D10: =IF(COUNTRY_INFO!$T$9:$T$1000="MDA3 (IVM)", COUNTRY_INFO!$T$9:$T$1000, " ") ->  | H10: =SUM(F10:G10) -> 0 | N10: =SUM(L10:M10) -> 0 | O10: =MAX(I10,L10) -> 0 | P10: =MAX(J10,M10) -> 0 | Q10: =SUM(O10:P10) -> 0 | R10: =IF(F10<>0, IF(MAX(I10,L10)/F10*100=0, "-", MAX(I10,L10)/F10*100), " ") ->  | S10: =IF(G10<>0, IF(MAX(J10,M10)/G10*100=0, "-", MAX(J10,M10)/G10*100), " ") ->  | T10: =IF(H10<>0, IF((MAX(I10,L10)+MAX(J10,M10))/H10*100=0, "-",(MAX(I10,L10)+MAX(J10,M10))/H10*100), " ") -> 
A11: =IF(COUNTRY_INFO!A11=0," ",COUNTRY_INFO!A11) -> Chad | B11: =IF(COUNTRY_INFO!B11=0," ",COUNTRY_INFO!B11) -> Bahr El Gazel | C11: =IF(COUNTRY_INFO!C11=0," ",COUNTRY_INFO!C11) -> Moussoro | D11: =IF(COUNTRY_INFO!$T$9:$T$1000="MDA3 (IVM)", COUNTRY_INFO!$T$9:$T$1000, " ") ->  | H11: 0 | N11: 0 | O11: 0 | P11: 0 | Q11: 0
A12: =IF(COUNTRY_INFO!A12=0," ",COUNTRY_INFO!A12) -> Chad | B12: =IF(COUNTRY_INFO!B12=0," ",COUNTRY_INFO!B12) -> Bahr El Gazel | C12: =IF(COUNTRY_INFO!C12=0," ",COUNTRY_INFO!C12) -> Salal | D12: =IF(COUNTRY_INFO!$T$9:$T$1000="MDA3 (IVM)", COUNTRY_INFO!$T$9:$T$1000, " ") ->  | H12: 0 | N12: 0 | O12: 0 | P12: 0 | Q12: 0
A13: =IF(COUNTRY_INFO!A13=0," ",COUNTRY_INFO!A13) -> Chad | B13: =IF(COUNTRY_INFO!B13=0," ",COUNTRY_INFO!B13) -> Batha | C13: =IF(COUNTRY_INFO!C13=0," ",COUNTRY_INFO!C13) -> Alifa | D13: =IF(COUNTRY_INFO!$T$9:$T$1000="MDA3 (IVM)", COUNTRY_INFO!$T$9:$T$1000, " ") ->  | H13: 0 | N13: 0 | O13: 0 | P13: 0 | Q13: 0
A14: =IF(COUNTRY_INFO!A14=0," ",COUNTRY_INFO!A14) -> Chad | B14: =IF(COUNTRY_INFO!B14=0," ",COUNTRY_INFO!B14) -> Batha | C14: =IF(COUNTRY_INFO!C14=0," ",COUNTRY_INFO!C14) -> Assinet | D14: =IF(COUNTRY_INFO!$T$9:$T$1000="MDA3 (IVM)", COUNTRY_INFO!$T$9:$T$1000, " ") ->  | H14: 0 | N14: 0 | O14: 0 | P14: 0 | Q14: 0
A15: =IF(COUNTRY_INFO!A15=0," ",COUNTRY_INFO!A15) -> Chad | B15: =IF(COUNTRY_INFO!B15=0," ",COUNTRY_INFO!B15) -> Batha | C15: =IF(COUNTRY_INFO!C15=0," ",COUNTRY_INFO!C15) -> Ati | D15: =IF(COUNTRY_INFO!$T$9:$T$1000="MDA3 (IVM)", COUNTRY_INFO!$T$9:$T$1000, " ") ->  | H15: 0 | N15: 0 | O15: 0 | P15: 0 | Q15: 0
A16: =IF(COUNTRY_INFO!A16=0," ",COUNTRY_INFO!A16) -> Chad | B16: =IF(COUNTRY_INFO!B16=0," ",COUNTRY_INFO!B16) -> Batha | C16: =IF(COUNTRY_INFO!C16=0," ",COUNTRY_INFO!C16) -> Djedda | D16: =IF(COUNTRY_INFO!$T$9:$T$1000="MDA3 (IVM)", COUNTRY_INFO!$T$9:$T$1000, " ") ->  | H16: 0 | N16: 0 | O16: 0 | P16: 0 | Q16: 0
A17: =IF(COUNTRY_INFO!A17=0," ",COUNTRY_INFO!A17) -> Chad | B17: =IF(COUNTRY_INFO!B17=0," ",COUNTRY_INFO!B17) -> Batha | C17: =IF(COUNTRY_INFO!C17=0," ",COUNTRY_INFO!C17) -> Koundjourou | D17: =IF(COUNTRY_INFO!$T$9:$T$1000="MDA3 (IVM)", COUNTRY_INFO!$T$9:$T$1000, " ") ->  | H17: 0 | N17: 0 | O17: 0 | P17: 0 | Q17: 0
A18: =IF(COUNTRY_INFO!A18=0," ",COUNTRY_INFO!A18) -> Chad | B18: =IF(COUNTRY_INFO!B18=0," ",COUNTRY_INFO!B18) -> Batha | C18: =IF(COUNTRY_INFO!C18=0," ",COUNTRY_INFO!C18) -> Oum-Hadjer | D18: =IF(COUNTRY_INFO!$T$9:$T$1000="MDA3 (IVM)", COUNTRY_INFO!$T$9:$T$1000, " ") ->  | H18: 0 | N18: 0 | O18: 0 | P18: 0 | Q18: 0
A19: =IF(COUNTRY_INFO!A19=0," ",COUNTRY_INFO!A19) -> Chad | B19: =IF(COUNTRY_INFO!B19=0," ",COUNTRY_INFO!B19) -> Batha | C19: =IF(COUNTRY_INFO!C19=0," ",COUNTRY_INFO!C19) -> Yao | D19: =IF(COUNTRY_INFO!$T$9:$T$1000="MDA3 (IVM)", COUNTRY_INFO!$T$9:$T$1000, " ") ->  | H19: 0 | N19: 0 | O19: 0 | P19: 0 | Q19: 0
A20: =IF(COUNTRY_INFO!A20=0," ",COUNTRY_INFO!A20) -> Chad | B20: =IF(COUNTRY_INFO!B20=0," ",COUNTRY_INFO!B20) -> Borkou | C20: =IF(COUNTRY_INFO!C20=0," ",COUNTRY_INFO!C20) -> Faya | D20: =IF(COUNTRY_INFO!$T$9:$T$1000="MDA3 (IVM)", COUNTRY_INFO!$T$9:$T$1000, " ") ->  | H20: 0 | N20: 0 | O20: 0 | P20: 0 | Q20: 0
A21: =IF(COUNTRY_INFO!A21=0," ",COUNTRY_INFO!A21) -> Chad | B21: =IF(COUNTRY_INFO!B21=0," ",COUNTRY_INFO!B21) -> Borkou | C21: =IF(COUNTRY_INFO!C21=0," ",COUNTRY_INFO!C21) -> Kirdimi | D21: =IF(COUNTRY_INFO!$T$9:$T$1000="MDA3 (IVM)", COUNTRY_INFO!$T$9:$T$1000, " ") ->  | H21: 0 | N21: 0 | O21: 0 | P21: 0 | Q21: 0
A22: =IF(COUNTRY_INFO!A22=0," ",COUNTRY_INFO!A22) -> Chad | B22: =IF(COUNTRY_INFO!B22=0," ",COUNTRY_INFO!B22) -> Chari Baguirmi | C22: =IF(COUNTRY_INFO!C22=0," ",COUNTRY_INFO!C22) -> Ba-Illi | D22: =IF(COUNTRY_INFO!$T$9:$T$1000="MDA3 (IVM)", COUNTRY_INFO!$T$9:$T$1000, " ") ->  | H22: 0 | N22: 0 | O22: 0 | P22: 0 | Q22: 0
A23: =IF(COUNTRY_INFO!A23=0," ",COUNTRY_INFO!A23) -> Chad | B23: =IF(COUNTRY_INFO!B23=0," ",COUNTRY_INFO!B23) -> Chari Baguirmi | C23: =IF(COUNTRY_INFO!C23=0," ",COUNTRY_INFO!C23) -> Bousso | D23: =IF(COUNTRY_INFO!$T$9:$T$1000="MDA3 (IVM)", COUNTRY_INFO!$T$9:$T$1000, " ") ->  | H23: 0 | N23: 0 | O23: 0 | P23: 0 | Q23: 0
A24: =IF(COUNTRY_INFO!A24=0," ",COUNTRY_INFO!A24) -> Chad | B24: =IF(COUNTRY_INFO!B24=0," ",COUNTRY_INFO!B24) -> Chari Baguirmi | C24: =IF(COUNTRY_INFO!C24=0," ",COUNTRY_INFO!C24) -> Dourbali | D24: =IF(COUNTRY_INFO!$T$9:$T$1000="MDA3 (IVM)", COUNTRY_INFO!$T$9:$T$1000, " ") ->  | H24: 0 | N24: 0 | O24: 0 | P24: 0 | Q24: 0
A25: =IF(COUNTRY_INFO!A25=0," ",COUNTRY_INFO!A25) -> Chad | B25: =IF(COUNTRY_INFO!B25=0," ",COUNTRY_INFO!B25) -> Chari Baguirmi | C25: =IF(COUNTRY_INFO!C25=0," ",COUNTRY_INFO!C25) -> Kono | D25: =IF(COUNTRY_INFO!$T$9:$T$1000="MDA3 (IVM)", COUNTRY_INFO!$T$9:$T$1000, " ") ->  | H25: 0 | N25: 0 | O25: 0 | P25: 0 | Q25: 0
A26: =IF(COUNTRY_INFO!A26=0," ",COUNTRY_INFO!A26) -> Chad | B26: =IF(COUNTRY_INFO!B26=0," ",COUNTRY_INFO!B26) -> Chari Baguirmi | C26: =IF(COUNTRY_INFO!C26=0," ",COUNTRY_INFO!C26) -> Mandélia | D26: =IF(COUNTRY_INFO!$T$9:$T$1000="MDA3 (IVM)", COUNTRY_INFO!$T$9:$T$1000, " ") ->  | H26: 0 | N26: 0 | O26: 0 | P26: 0 | Q26: 0
A27: =IF(COUNTRY_INFO!A27=0," ",COUNTRY_INFO!A27) -> Chad | B27: =IF(COUNTRY_INFO!B27=0," ",COUNTRY_INFO!B27) -> Chari Baguirmi | C27: =IF(COUNTRY_INFO!C27=0," ",COUNTRY_INFO!C27) -> Massenya | D27: =IF(COUNTRY_INFO!$T$9:$T$1000="MDA3 (IVM)", COUNTRY_INFO!$T$9:$T$1000, " ") ->  | H27: 0 | N27: 0 | O27: 0 | P27: 0 | Q27: 0
A28: =IF(COUNTRY_INFO!A28=0," ",COUNTRY_INFO!A28) -> Chad | B28: =IF(COUNTRY_INFO!B28=0," ",COUNTRY_INFO!B28) -> Ennedi Est | C28: =IF(COUNTRY_INFO!C28=0," ",COUNTRY_INFO!C28) -> Amdjarass | D28: =IF(COUNTRY_INFO!$T$9:$T$1000="MDA3 (IVM)", COUNTRY_INFO!$T$9:$T$1000, " ") ->  | H28: 0 | N28: 0 | O28: 0 | P28: 0 | Q28: 0
A29: =IF(COUNTRY_INFO!A29=0," ",COUNTRY_INFO!A29) -> Chad | B29: =IF(COUNTRY_INFO!B29=0," ",COUNTRY_INFO!B29) -> Ennedi Est | C29: =IF(COUNTRY_INFO!C29=0," ",COUNTRY_INFO!C29) -> Bahaï | D29: =IF(COUNTRY_INFO!$T$9:$T$1000="MDA3 (IVM)", COUNTRY_INFO!$T$9:$T$1000, " ") ->  | H29: 0 | N29: 0 | O29: 0 | P29: 0 | Q29: 0
A30: =IF(COUNTRY_INFO!A30=0," ",COUNTRY_INFO!A30) -> Chad | B30: =IF(COUNTRY_INFO!B30=0," ",COUNTRY_INFO!B30) -> Ennedi Est | C30: =IF(COUNTRY_INFO!C30=0," ",COUNTRY_INFO!C30) -> Kaoura | D30: =IF(COUNTRY_INFO!$T$9:$T$1000="MDA3 (IVM)", COUNTRY_INFO!$T$9:$T$1000, " ") ->  | H30: 0 | N30: 0 | O30: 0 | P30: 0 | Q30: 0
A31: =IF(COUNTRY_INFO!A31=0," ",COUNTRY_INFO!A31) -> Chad | B31: =IF(COUNTRY_INFO!B31=0," ",COUNTRY_INFO!B31) -> Ennedi Ouest | C31: =IF(COUNTRY_INFO!C31=0," ",COUNTRY_INFO!C31) -> Fada | D31: =IF(COUNTRY_INFO!$T$9:$T$1000="MDA3 (IVM)", COUNTRY_INFO!$T$9:$T$1000, " ") ->  | H31: 0 | N31: 0 | O31: 0 | P31: 0 | Q31: 0
A32: =IF(COUNTRY_INFO!A32=0," ",COUNTRY_INFO!A32) -> Chad | B32: =IF(COUNTRY_INFO!B32=0," ",COUNTRY_INFO!B32) -> Ennedi Ouest | C32: =IF(COUNTRY_INFO!C32=0," ",COUNTRY_INFO!C32) -> Kalaït | D32: =IF(COUNTRY_INFO!$T$9:$T$1000="MDA3 (IVM)", COUNTRY_INFO!$T$9:$T$1000, " ") ->  | H32: 0 | N32: 0 | O32: 0 | P32: 0 | Q32: 0
A33: =IF(COUNTRY_INFO!A33=0," ",COUNTRY_INFO!A33) -> Chad | B33: =IF(COUNTRY_INFO!B33=0," ",COUNTRY_INFO!B33) -> Guéra | C33: =IF(COUNTRY_INFO!C33=0," ",COUNTRY_INFO!C33) -> Barou | D33: =IF(COUNTRY_INFO!$T$9:$T$1000="MDA3 (IVM)", COUNTRY_INFO!$T$9:$T$1000, " ") ->  | H33: 0 | N33: 0 | O33: 0 | P33: 0 | Q33: 0
A34: =IF(COUNTRY_INFO!A34=0," ",COUNTRY_INFO!A34) -> Chad | B34: =IF(COUNTRY_INFO!B34=0," ",COUNTRY_INFO!B34) -> Guéra | C34: =IF(COUNTRY_INFO!C34=0," ",COUNTRY_INFO!C34) -> Bitkine | D34: =IF(COUNTRY_INFO!$T$9:$T$1000="MDA3 (IVM)", COUNTRY_INFO!$T$9:$T$1000, " ") ->  | H34: 0 | N34: 0 | O34: 0 | P34: 0 | Q34: 0
A35: =IF(COUNTRY_INFO!A35=0," ",COUNTRY_INFO!A35) -> Chad | B35: =IF(COUNTRY_INFO!B35=0," ",COUNTRY_INFO!B35) -> Guéra | C35: =IF(COUNTRY_INFO!C35=0," ",COUNTRY_INFO!C35) -> Mangalmé | D35: =IF(COUNTRY_INFO!$T$9:$T$1000="MDA3 (IVM)", COUNTRY_INFO!$T$9:$T$1000, " ") ->  | H35: 0 | N35: 0 | O35: 0 | P35: 0 | Q35: 0
A36: =IF(COUNTRY_INFO!A36=0," ",COUNTRY_INFO!A36) -> Chad | B36: =IF(COUNTRY_INFO!B36=0," ",COUNTRY_INFO!B36) -> Guéra | C36: =IF(COUNTRY_INFO!C36=0," ",COUNTRY_INFO!C36) -> Melfi | D36: =IF(COUNTRY_INFO!$T$9:$T$1000="MDA3 (IVM)", COUNTRY_INFO!$T$9:$T$1000, " ") ->  | H36: 0 | N36: 0 | O36: 0 | P36: 0 | Q36: 0
A37: =IF(COUNTRY_INFO!A37=0," ",COUNTRY_INFO!A37) -> Chad | B37: =IF(COUNTRY_INFO!B37=0," ",COUNTRY_INFO!B37) -> Guéra | C37: =IF(COUNTRY_INFO!C37=0," ",COUNTRY_INFO!C37) -> Mongo | D37: =IF(COUNTRY_INFO!$T$9:$T$1000="MDA3 (IVM)", COUNTRY_INFO!$T$9:$T$1000, " ") ->  | H37: 0 | N37: 0 | O37: 0 | P37: 0 | Q37: 0
A38: =IF(COUNTRY_INFO!A38=0," ",COUNTRY_INFO!A38) -> Chad | B38: =IF(COUNTRY_INFO!B38=0," ",COUNTRY_INFO!B38) -> Hadjer Lamis | C38: =IF(COUNTRY_INFO!C38=0," ",COUNTRY_INFO!C38) -> Bokoro | D38: =IF(COUNTRY_INFO!$T$9:$T$1000="MDA3 (IVM)", COUNTRY_INFO!$T$9:$T$1000, " ") ->  | H38: 0 | N38: 0 | O38: 0 | P38: 0 | Q38: 0
A39: =IF(COUNTRY_INFO!A39=0," ",COUNTRY_INFO!A39) -> Chad | B39: =IF(COUNTRY_INFO!B39=0," ",COUNTRY_INFO!B39) -> Hadjer Lamis | C39: =IF(COUNTRY_INFO!C39=0," ",COUNTRY_INFO!C39) -> Gama | D39: =IF(COUNTRY_INFO!$T$9:$T$1000="MDA3 (IVM)", COUNTRY_INFO!$T$9:$T$1000, " ") ->  | H39: 0 | N39: 0 | O39: 0 | P39: 0 | Q39: 0
A40: =IF(COUNTRY_INFO!A40=0," ",COUNTRY_INFO!A40) -> Chad | B40: =IF(COUNTRY_INFO!B40=0," ",COUNTRY_INFO!B40) -> Hadjer Lamis | C40: =IF(COUNTRY_INFO!C40=0," ",COUNTRY_INFO!C40) -> Mani | D40: =IF(COUNTRY_INFO!$T$9:$T$1000="MDA3 (IVM)", COUNTRY_INFO!$T$9:$T$1000, " ") ->  | H40: 0 | N40: 0 | O40: 0 | P40: 0 | Q40: 0
A41: =IF(COUNTRY_INFO!A41=0," ",COUNTRY_INFO!A41) -> Chad | B41: =IF(COUNTRY_INFO!B41=0," ",COUNTRY_INFO!B41) -> Hadjer Lamis | C41: =IF(COUNTRY_INFO!C41=0," ",COUNTRY_INFO!C41) -> Massaguet | D41: =IF(COUNTRY_INFO!$T$9:$T$1000="MDA3 (IVM)", COUNTRY_INFO!$T$9:$T$1000, " ") ->  | H41: 0 | N41: 0 | O41: 0 | P41: 0 | Q41: 0
A42: =IF(COUNTRY_INFO!A42=0," ",COUNTRY_INFO!A42) -> Chad | B42: =IF(COUNTRY_INFO!B42=0," ",COUNTRY_INFO!B42) -> Hadjer Lamis | C42: =IF(COUNTRY_INFO!C42=0," ",COUNTRY_INFO!C42) -> Massakory | D42: =IF(COUNTRY_INFO!$T$9:$T$1000="MDA3 (IVM)", COUNTRY_INFO!$T$9:$T$1000, " ") ->  | H42: 0 | N42: 0 | O42: 0 | P42: 0 | Q42: 0
A43: =IF(COUNTRY_INFO!A43=0," ",COUNTRY_INFO!A43) -> Chad | B43: =IF(COUNTRY_INFO!B43=0," ",COUNTRY_INFO!B43) -> Kanem | C43: =IF(COUNTRY_INFO!C43=0," ",COUNTRY_INFO!C43) -> Mao | D43: =IF(COUNTRY_INFO!$T$9:$T$1000="MDA3 (IVM)", COUNTRY_INFO!$T$9:$T$1000, " ") ->  | H43: 0 | N43: 0 | O43: 0 | P43: 0 | Q43: 0
A44: =IF(COUNTRY_INFO!A44=0," ",COUNTRY_INFO!A44) -> Chad | B44: =IF(COUNTRY_INFO!B44=0," ",COUNTRY_INFO!B44) -> Kanem | C44: =IF(COUNTRY_INFO!C44=0," ",COUNTRY_INFO!C44) -> Mondo | D44: =IF(COUNTRY_INFO!$T$9:$T$1000="MDA3 (IVM)", COUNTRY_INFO!$T$9:$T$1000, " ") ->  | H44: 0 | N44: 0 | O44: 0 | P44: 0 | Q44: 0
A45: =IF(COUNTRY_INFO!A45=0," ",COUNTRY_INFO!A45) -> Chad | B45: =IF(COUNTRY_INFO!B45=0," ",COUNTRY_INFO!B45) -> Kanem | C45: =IF(COUNTRY_INFO!C45=0," ",COUNTRY_INFO!C45) -> Nokou | D45: =IF(COUNTRY_INFO!$T$9:$T$1000="MDA3 (IVM)", COUNTRY_INFO!$T$9:$T$1000, " ") ->  | H45: 0 | N45: 0 | O45: 0 | P45: 0 | Q45: 0
A46: =IF(COUNTRY_INFO!A46=0," ",COUNTRY_INFO!A46) -> Chad | B46: =IF(COUNTRY_INFO!B46=0," ",COUNTRY_INFO!B46) -> Kanem | C46: =IF(COUNTRY_INFO!C46=0," ",COUNTRY_INFO!C46) -> Ntiona | D46: =IF(COUNTRY_INFO!$T$9:$T$1000="MDA3 (IVM)", COUNTRY_INFO!$T$9:$T$1000, " ") ->  | H46: 0 | N46: 0 | O46: 0 | P46: 0 | Q46: 0
A47: =IF(COUNTRY_INFO!A47=0," ",COUNTRY_INFO!A47) -> Chad | B47: =IF(COUNTRY_INFO!B47=0," ",COUNTRY_INFO!B47) -> Kanem | C47: =IF(COUNTRY_INFO!C47=0," ",COUNTRY_INFO!C47) -> Rig-Rig | D47: =IF(COUNTRY_INFO!$T$9:$T$1000="MDA3 (IVM)", COUNTRY_INFO!$T$9:$T$1000, " ") ->  | H47: 0 | N47: 0 | O47: 0 | P47: 0 | Q47: 0
A48: =IF(COUNTRY_INFO!A48=0," ",COUNTRY_INFO!A48) -> Chad | B48: =IF(COUNTRY_INFO!B48=0," ",COUNTRY_INFO!B48) -> Lac | C48: =IF(COUNTRY_INFO!C48=0," ",COUNTRY_INFO!C48) -> Bagassola | D48: =IF(COUNTRY_INFO!$T$9:$T$1000="MDA3 (IVM)", COUNTRY_INFO!$T$9:$T$1000, " ") ->  | H48: 0 | N48: 0 | O48: 0 | P48: 0 | Q48: 0
A49: =IF(COUNTRY_INFO!A49=0," ",COUNTRY_INFO!A49) -> Chad | B49: =IF(COUNTRY_INFO!B49=0," ",COUNTRY_INFO!B49) -> Lac | C49: =IF(COUNTRY_INFO!C49=0," ",COUNTRY_INFO!C49) -> Bol | D49: =IF(COUNTRY_INFO!$T$9:$T$1000="MDA3 (IVM)", COUNTRY_INFO!$T$9:$T$1000, " ") ->  | H49: 0 | N49: 0 | O49: 0 | P49: 0 | Q49: 0
A50: =IF(COUNTRY_INFO!A50=0," ",COUNTRY_INFO!A50) -> Chad | B50: =IF(COUNTRY_INFO!B50=0," ",COUNTRY_INFO!B50) -> Lac | C50: =IF(COUNTRY_INFO!C50=0," ",COUNTRY_INFO!C50) -> Isserom | D50: =IF(COUNTRY_INFO!$T$9:$T$1000="MDA3 (IVM)", COUNTRY_INFO!$T$9:$T$1000, " ") ->  | H50: 0 | N50: 0 | O50: 0 | P50: 0 | Q50: 0
A51: =IF(COUNTRY_INFO!A51=0," ",COUNTRY_INFO!A51) -> Chad | B51: =IF(COUNTRY_INFO!B51=0," ",COUNTRY_INFO!B51) -> Lac | C51: =IF(COUNTRY_INFO!C51=0," ",COUNTRY_INFO!C51) -> Kouloudia | D51: =IF(COUNTRY_INFO!$T$9:$T$1000="MDA3 (IVM)", COUNTRY_INFO!$T$9:$T$1000, " ") ->  | H51: 0 | N51: 0 | O51: 0 | P51: 0 | Q51: 0
A52: =IF(COUNTRY_INFO!A52=0," ",COUNTRY_INFO!A52) -> Chad | B52: =IF(COUNTRY_INFO!B52=0," ",COUNTRY_INFO!B52) -> Lac | C52: =IF(COUNTRY_INFO!C52=0," ",COUNTRY_INFO!C52) -> Liwa | D52: =IF(COUNTRY_INFO!$T$9:$T$1000="MDA3 (IVM)", COUNTRY_INFO!$T$9:$T$1000, " ") ->  | H52: 0 | N52: 0 | O52: 0 | P52: 0 | Q52: 0
A53: =IF(COUNTRY_INFO!A53=0," ",COUNTRY_INFO!A53) -> Chad | B53: =IF(COUNTRY_INFO!B53=0," ",COUNTRY_INFO!B53) -> Lac | C53: =IF(COUNTRY_INFO!C53=0," ",COUNTRY_INFO!C53) -> Ngouri | D53: =IF(COUNTRY_INFO!$T$9:$T$1000="MDA3 (IVM)", COUNTRY_INFO!$T$9:$T$1000, " ") ->  | H53: 0 | N53: 0 | O53: 0 | P53: 0 | Q53: 0
A54: =IF(COUNTRY_INFO!A54=0," ",COUNTRY_INFO!A54) -> Chad | B54: =IF(COUNTRY_INFO!B54=0," ",COUNTRY_INFO!B54) -> Logone Occidental | C54: =IF(COUNTRY_INFO!C54=0," ",COUNTRY_INFO!C54) -> Benamar | D54: =IF(COUNTRY_INFO!$T$9:$T$1000="MDA3 (IVM)", COUNTRY_INFO!$T$9:$T$1000, " ") ->  | H54: 0 | N54: 0 | O54: 0 | P54: 0 | Q54: 0
A55: =IF(COUNTRY_INFO!A55=0," ",COUNTRY_INFO!A55) -> Chad | B55: =IF(COUNTRY_INFO!B55=0," ",COUNTRY_INFO!B55) -> Logone Occidental | C55: =IF(COUNTRY_INFO!C55=0," ",COUNTRY_INFO!C55) -> Benoye | D55: =IF(COUNTRY_INFO!$T$9:$T$1000="MDA3 (IVM)", COUNTRY_INFO!$T$9:$T$1000, " ") ->  | H55: 0 | N55: 0 | O55: 0 | P55: 0 | Q55: 0
A56: =IF(COUNTRY_INFO!A56=0," ",COUNTRY_INFO!A56) -> Chad | B56: =IF(COUNTRY_INFO!B56=0," ",COUNTRY_INFO!B56) -> Logone Occidental | C56: =IF(COUNTRY_INFO!C56=0," ",COUNTRY_INFO!C56) -> Laokassy | D56: =IF(COUNTRY_INFO!$T$9:$T$1000="MDA3 (IVM)", COUNTRY_INFO!$T$9:$T$1000, " ") ->  | H56: 0 | N56: 0 | O56: 0 | P56: 0 | Q56: 0
A57: =IF(COUNTRY_INFO!A57=0," ",COUNTRY_INFO!A57) -> Chad | B57: =IF(COUNTRY_INFO!B57=0," ",COUNTRY_INFO!B57) -> Logone Occidental | C57: =IF(COUNTRY_INFO!C57=0," ",COUNTRY_INFO!C57) -> Moundou | D57: =IF(COUNTRY_INFO!$T$9:$T$1000="MDA3 (IVM)", COUNTRY_INFO!$T$9:$T$1000, " ") ->  | H57: 0 | N57: 0 | O57: 0 | P57: 0 | Q57: 0
A58: =IF(COUNTRY_INFO!A58=0," ",COUNTRY_INFO!A58) -> Chad | B58: =IF(COUNTRY_INFO!B58=0," ",COUNTRY_INFO!B58) -> Logone Orientlal | C58: =IF(COUNTRY_INFO!C58=0," ",COUNTRY_INFO!C58) -> Baibokoum | D58: =IF(COUNTRY_INFO!$T$9:$T$1000="MDA3 (IVM)", COUNTRY_INFO!$T$9:$T$1000, " ") ->  | H58: 0 | N58: 0 | O58: 0 | P58: 0 | Q58: 0
A59: =IF(COUNTRY_INFO!A59=0," ",COUNTRY_INFO!A59) -> Chad | B59: =IF(COUNTRY_INFO!B59=0," ",COUNTRY_INFO!B59) -> Logone Orientlal | C59: =IF(COUNTRY_INFO!C59=0," ",COUNTRY_INFO!C59) -> Bebedja | D59: =IF(COUNTRY_INFO!$T$9:$T$1000="MDA3 (IVM)", COUNTRY_INFO!$T$9:$T$1000, " ") ->  | H59: 0 | N59: 0 | O59: 0 | P59: 0 | Q59: 0
A60: =IF(COUNTRY_INFO!A60=0," ",COUNTRY_INFO!A60) -> Chad | B60: =IF(COUNTRY_INFO!B60=0," ",COUNTRY_INFO!B60) -> Logone Orientlal | C60: =IF(COUNTRY_INFO!C60=0," ",COUNTRY_INFO!C60) -> Beboto | D60: =IF(COUNTRY_INFO!$T$9:$T$1000="MDA3 (IVM)", COUNTRY_INFO!$T$9:$T$1000, " ") ->  | H60: 0 | N60: 0 | O60: 0 | P60: 0 | Q60: 0
A61: =IF(COUNTRY_INFO!A61=0," ",COUNTRY_INFO!A61) -> Chad | B61: =IF(COUNTRY_INFO!B61=0," ",COUNTRY_INFO!B61) -> Logone Orientlal | C61: =IF(COUNTRY_INFO!C61=0," ",COUNTRY_INFO!C61) -> Bessao | D61: =IF(COUNTRY_INFO!$T$9:$T$1000="MDA3 (IVM)", COUNTRY_INFO!$T$9:$T$1000, " ") ->  | H61: 0 | N61: 0 | O61: 0 | P61: 0 | Q61: 0
A62: =IF(COUNTRY_INFO!A62=0," ",COUNTRY_INFO!A62) -> Chad | B62: =IF(COUNTRY_INFO!B62=0," ",COUNTRY_INFO!B62) -> Logone Orientlal | C62: =IF(COUNTRY_INFO!C62=0," ",COUNTRY_INFO!C62) -> Bodo | D62: =IF(COUNTRY_INFO!$T$9:$T$1000="MDA3 (IVM)", COUNTRY_INFO!$T$9:$T$1000, " ") ->  | H62: 0 | N62: 0 | O62: 0 | P62: 0 | Q62: 0
A63: =IF(COUNTRY_INFO!A63=0," ",COUNTRY_INFO!A63) -> Chad | B63: =IF(COUNTRY_INFO!B63=0," ",COUNTRY_INFO!B63) -> Logone Orientlal | C63: =IF(COUNTRY_INFO!C63=0," ",COUNTRY_INFO!C63) -> Doba | D63: =IF(COUNTRY_INFO!$T$9:$T$1000="MDA3 (IVM)", COUNTRY_INFO!$T$9:$T$1000, " ") ->  | H63: 0 | N63: 0 | O63: 0 | P63: 0 | Q63: 0
A64: =IF(COUNTRY_INFO!A64=0," ",COUNTRY_INFO!A64) -> Chad | B64: =IF(COUNTRY_INFO!B64=0," ",COUNTRY_INFO!B64) -> Logone Orientlal | C64: =IF(COUNTRY_INFO!C64=0," ",COUNTRY_INFO!C64) -> DONIA | D64: =IF(COUNTRY_INFO!$T$9:$T$1000="MDA3 (IVM)", COUNTRY_INFO!$T$9:$T$1000, " ") ->  | H64: 0 | N64: 0 | O64: 0 | P64: 0 | Q64: 0
A65: =IF(COUNTRY_INFO!A65=0," ",COUNTRY_INFO!A65) -> Chad | B65: =IF(COUNTRY_INFO!B65=0," ",COUNTRY_INFO!B65) -> Logone Orientlal | C65: =IF(COUNTRY_INFO!C65=0," ",COUNTRY_INFO!C65) -> Goré | D65: =IF(COUNTRY_INFO!$T$9:$T$1000="MDA3 (IVM)", COUNTRY_INFO!$T$9:$T$1000, " ") ->  | H65: 0 | N65: 0 | O65: 0 | P65: 0 | Q65: 0
A66: =IF(COUNTRY_INFO!A66=0," ",COUNTRY_INFO!A66) -> Chad | B66: =IF(COUNTRY_INFO!B66=0," ",COUNTRY_INFO!B66) -> Logone Orientlal | C66: =IF(COUNTRY_INFO!C66=0," ",COUNTRY_INFO!C66) -> Kara | D66: =IF(COUNTRY_INFO!$T$9:$T$1000="MDA3 (IVM)", COUNTRY_INFO!$T$9:$T$1000, " ") ->  | H66: 0 | N66: 0 | O66: 0 | P66: 0 | Q66: 0
A67: =IF(COUNTRY_INFO!A67=0," ",COUNTRY_INFO!A67) -> Chad | B67: =IF(COUNTRY_INFO!B67=0," ",COUNTRY_INFO!B67) -> Logone Orientlal | C67: =IF(COUNTRY_INFO!C67=0," ",COUNTRY_INFO!C67) -> Larmanaye | D67: =IF(COUNTRY_INFO!$T$9:$T$1000="MDA3 (IVM)", COUNTRY_INFO!$T$9:$T$1000, " ") ->  | H67: 0 | N67: 0 | O67: 0 | P67: 0 | Q67: 0
A68: =IF(COUNTRY_INFO!A68=0," ",COUNTRY_INFO!A68) -> Chad | B68: =IF(COUNTRY_INFO!B68=0," ",COUNTRY_INFO!B68) -> Mandoul | C68: =IF(COUNTRY_INFO!C68=0," ",COUNTRY_INFO!C68) -> Bedaya | D68: =IF(COUNTRY_INFO!$T$9:$T$1000="MDA3 (IVM)", COUNTRY_INFO!$T$9:$T$1000, " ") -> MDA3 (IVM) | E68: 06-2017 | F68: 32306 | G68: 46284 | H68: 78590 | I68: 28966.0824 | J68: 46609.9176 | K68: 75576 | N68: 0 | O68: 28966.0824 | P68: 46609.9176 | Q68: 75576 | R68: 89.66161827 | S68: 100.704169 | T68: 96.16490648
A69: =IF(COUNTRY_INFO!A69=0," ",COUNTRY_INFO!A69) -> Chad | B69: =IF(COUNTRY_INFO!B69=0," ",COUNTRY_INFO!B69) -> Mandoul | C69: =IF(COUNTRY_INFO!C69=0," ",COUNTRY_INFO!C69) -> Bedjondo | D69: =IF(COUNTRY_INFO!$T$9:$T$1000="MDA3 (IVM)", COUNTRY_INFO!$T$9:$T$1000, " ") -> MDA3 (IVM) | E69: 06-2017 | F69: 39629 | G69: 53907 | H69: 93536 | I69: 34229.54182 | J69: 55079.45818 | K69: 89309 | N69: 0 | O69: 34229.54182 | P69: 55079.45818 | Q69: 89309 | R69: 86.37498252 | S69: 102.1749646 | T69: 95.48088437
A70: =IF(COUNTRY_INFO!A70=0," ",COUNTRY_INFO!A70) -> Chad | B70: =IF(COUNTRY_INFO!B70=0," ",COUNTRY_INFO!B70) -> Mandoul | C70: =IF(COUNTRY_INFO!C70=0," ",COUNTRY_INFO!C70) -> Bekourou | D70: =IF(COUNTRY_INFO!$T$9:$T$1000="MDA3 (IVM)", COUNTRY_INFO!$T$9:$T$1000, " ") -> MDA3 (IVM) | E70: 06-2017 | F70: 27346 | G70: 39351 | H70: 66697 | I70: 25002.29463 | J70: 40231.70537 | K70: 65234 | N70: 0 | O70: 25002.29463 | P70: 40231.70537 | Q70: 65234 | R70: 91.42943989 | S70: 102.2380762 | T70: 97.80649804
A71: =IF(COUNTRY_INFO!A71=0," ",COUNTRY_INFO!A71) -> Chad | B71: =IF(COUNTRY_INFO!B71=0," ",COUNTRY_INFO!B71) -> Mandoul | C71: =IF(COUNTRY_INFO!C71=0," ",COUNTRY_INFO!C71) -> Bouna | D71: =IF(COUNTRY_INFO!$T$9:$T$1000="MDA3 (IVM)", COUNTRY_INFO!$T$9:$T$1000, " ") -> MDA3 (IVM) | E71: 06-2017 | F71: 33741 | G71: 46284 | H71: 80025 | I71: 29877.11735 | J71: 48075.88265 | K71: 77953 | N71: 0 | O71: 29877.11735 | P71: 48075.88265 | Q71: 77953 | R71: 88.54840507 | S71: 103.8714948 | T71: 97.41080912
A72: =IF(COUNTRY_INFO!A72=0," ",COUNTRY_INFO!A72) -> Chad | B72: =IF(COUNTRY_INFO!B72=0," ",COUNTRY_INFO!B72) -> Mandoul | C72: =IF(COUNTRY_INFO!C72=0," ",COUNTRY_INFO!C72) -> Goundi | D72: =IF(COUNTRY_INFO!$T$9:$T$1000="MDA3 (IVM)", COUNTRY_INFO!$T$9:$T$1000, " ") ->  | H72: 0 | N72: 0 | O72: 0 | P72: 0 | Q72: 0
A73: =IF(COUNTRY_INFO!A73=0," ",COUNTRY_INFO!A73) -> Chad | B73: =IF(COUNTRY_INFO!B73=0," ",COUNTRY_INFO!B73) -> Mandoul | C73: =IF(COUNTRY_INFO!C73=0," ",COUNTRY_INFO!C73) -> Koumra | D73: =IF(COUNTRY_INFO!$T$9:$T$1000="MDA3 (IVM)", COUNTRY_INFO!$T$9:$T$1000, " ") ->  | H73: 0 | N73: 0 | O73: 0 | P73: 0 | Q73: 0
A74: =IF(COUNTRY_INFO!A74=0," ",COUNTRY_INFO!A74) -> Chad | B74: =IF(COUNTRY_INFO!B74=0," ",COUNTRY_INFO!B74) -> Mandoul | C74: =IF(COUNTRY_INFO!C74=0," ",COUNTRY_INFO!C74) -> Moissala | D74: =IF(COUNTRY_INFO!$T$9:$T$1000="MDA3 (IVM)", COUNTRY_INFO!$T$9:$T$1000, " ") -> MDA3 (IVM) | E74: 06-2017 | F74: 63728 | G74: 87417 | H74: =SUM(F74:G74) -> 151145 | I74: 55039.61923 | J74: 88565.38077 | K74: 143605 | N74: =SUM(L74:M74) -> 0 | O74: =MAX(I74,L74) -> 55039.61923 | P74: =MAX(J74,M74) -> 88565.38077 | Q74: =SUM(O74:P74) -> 143605 | R74: =IF(F74<>0, IF(MAX(I74,L74)/F74*100=0, "-", MAX(I74,L74)/F74*100), " ") -> 86.36646251 | S74: =IF(G74<>0, IF(MAX(J74,M74)/G74*100=0, "-", MAX(J74,M74)/G74*100), " ") -> 101.3136813 | T74: =IF(H74<>0, IF((MAX(I74,L74)+MAX(J74,M74))/H74*100=0, "-",(MAX(I74,L74)+MAX(J74,M74))/H74*100), " ") -> 95.01141288
A75: =IF(COUNTRY_INFO!A75=0," ",COUNTRY_INFO!A75) -> Chad | B75: =IF(COUNTRY_INFO!B75=0," ",COUNTRY_INFO!B75) -> Mayo Kebbi Est | C75: =IF(COUNTRY_INFO!C75=0," ",COUNTRY_INFO!C75) -> Bongor | D75: =IF(COUNTRY_INFO!$T$9:$T$1000="MDA3 (IVM)", COUNTRY_INFO!$T$9:$T$1000, " ") ->  | H75: 0 | N75: 0 | O75: 0 | P75: 0 | Q75: 0
A76: =IF(COUNTRY_INFO!A76=0," ",COUNTRY_INFO!A76) -> Chad | B76: =IF(COUNTRY_INFO!B76=0," ",COUNTRY_INFO!B76) -> Mayo Kebbi Est | C76: =IF(COUNTRY_INFO!C76=0," ",COUNTRY_INFO!C76) -> Fianga | D76: =IF(COUNTRY_INFO!$T$9:$T$1000="MDA3 (IVM)", COUNTRY_INFO!$T$9:$T$1000, " ") -> MDA3 (IVM) | E76: 06-2017 | F76: 46856 | G76: 64270 | H76: 111126 | I76: 40441.21348 | J76: 65074.78652 | K76: 105516 | N76: 0 | O76: 40441.21348 | P76: 65074.78652 | Q76: 105516 | R76: 86.30957291 | S76: 101.2521962 | T76: 94.95167648
A77: =IF(COUNTRY_INFO!A77=0," ",COUNTRY_INFO!A77) -> Chad | B77: =IF(COUNTRY_INFO!B77=0," ",COUNTRY_INFO!B77) -> Mayo Kebbi Est | C77: =IF(COUNTRY_INFO!C77=0," ",COUNTRY_INFO!C77) -> Gounou Gaya | D77: =IF(COUNTRY_INFO!$T$9:$T$1000="MDA3 (IVM)", COUNTRY_INFO!$T$9:$T$1000, " ") -> MDA3 (IVM) | E77: 06-2017 | F77: 40107 | G77: 55015 | H77: 95122 | I77: 34683.71785 | J77: 55810.28215 | K77: 90494 | N77: 0 | O77: 34683.71785 | P77: 55810.28215 | Q77: 90494 | R77: 86.47796607 | S77: 101.4455733 | T77: 95.13466916
A78: =IF(COUNTRY_INFO!A78=0," ",COUNTRY_INFO!A78) -> Chad | B78: =IF(COUNTRY_INFO!B78=0," ",COUNTRY_INFO!B78) -> Mayo Kebbi Est | C78: =IF(COUNTRY_INFO!C78=0," ",COUNTRY_INFO!C78) -> Guelinding | D78: =IF(COUNTRY_INFO!$T$9:$T$1000="MDA3 (IVM)", COUNTRY_INFO!$T$9:$T$1000, " ") ->  | H78: 0 | N78: 0 | O78: 0 | P78: 0 | Q78: 0
A79: =IF(COUNTRY_INFO!A79=0," ",COUNTRY_INFO!A79) -> Chad | B79: =IF(COUNTRY_INFO!B79=0," ",COUNTRY_INFO!B79) -> Mayo Kebbi Est | C79: =IF(COUNTRY_INFO!C79=0," ",COUNTRY_INFO!C79) -> Moulkou | D79: =IF(COUNTRY_INFO!$T$9:$T$1000="MDA3 (IVM)", COUNTRY_INFO!$T$9:$T$1000, " ") ->  | H79: 0 | N79: 0 | O79: 0 | P79: 0 | Q79: 0
A80: =IF(COUNTRY_INFO!A80=0," ",COUNTRY_INFO!A80) -> Chad | B80: =IF(COUNTRY_INFO!B80=0," ",COUNTRY_INFO!B80) -> Mayo Kebbi Est | C80: =IF(COUNTRY_INFO!C80=0," ",COUNTRY_INFO!C80) -> Pont Carol | D80: =IF(COUNTRY_INFO!$T$9:$T$1000="MDA3 (IVM)", COUNTRY_INFO!$T$9:$T$1000, " ") -> MDA3 (IVM) | E80: 06-2017 | F80: 26461 | G80: 36009 | H80: 62470 | I80: 23609.10487 | J80: 37989.89513 | K80: 61599 | N80: 0 | O80: 23609.10487 | P80: 37989.89513 | Q80: 61599 | R80: 89.22227002 | S80: 105.5011112 | T80: 98.60573075
A81: =IF(COUNTRY_INFO!A81=0," ",COUNTRY_INFO!A81) -> Chad | B81: =IF(COUNTRY_INFO!B81=0," ",COUNTRY_INFO!B81) -> Mayo Kebbi Est | C81: =IF(COUNTRY_INFO!C81=0," ",COUNTRY_INFO!C81) -> Youé | D81: =IF(COUNTRY_INFO!$T$9:$T$1000="MDA3 (IVM)", COUNTRY_INFO!$T$9:$T$1000, " ") -> MDA3 (IVM) | E81: 06-2017 | F81: 21586 | G81: 63152 | H81: 84738 | I81: 19159.32959 | J81: 30829.67041 | K81: 49989 | N81: 0 | O81: 19159.32959 | P81: 30829.67041 | Q81: 49989 | R81: 88.75812836 | S81: 48.81820118 | T81: 58.99242371
A82: =IF(COUNTRY_INFO!A82=0," ",COUNTRY_INFO!A82) -> Chad | B82: =IF(COUNTRY_INFO!B82=0," ",COUNTRY_INFO!B82) -> Mayo Kebbi Ouest | C82: =IF(COUNTRY_INFO!C82=0," ",COUNTRY_INFO!C82) -> Binder | D82: =IF(COUNTRY_INFO!$T$9:$T$1000="MDA3 (IVM)", COUNTRY_INFO!$T$9:$T$1000, " ") -> MDA3 (IVM) | E82: 06-2017 | F82: 25531 | G82: 35437 | H82: 60968 | I82: 22951.02871 | J82: 36930.97129 | K82: 59882 | N82: 0 | O82: 22951.02871 | P82: 36930.97129 | Q82: 59882 | R82: 89.89475036 | S82: 104.2158515 | T82: 98.2187377
A83: =IF(COUNTRY_INFO!A83=0," ",COUNTRY_INFO!A83) -> Chad | B83: =IF(COUNTRY_INFO!B83=0," ",COUNTRY_INFO!B83) -> Mayo Kebbi Ouest | C83: =IF(COUNTRY_INFO!C83=0," ",COUNTRY_INFO!C83) -> Gagal | D83: =IF(COUNTRY_INFO!$T$9:$T$1000="MDA3 (IVM)", COUNTRY_INFO!$T$9:$T$1000, " ") -> MDA3 (IVM) | E83: 06-2017 | F83: 47181 | G83: 64178 | H83: 111359 | I83: 40638.21473 | J83: 65391.78527 | K83: 106030 | N83: 0 | O83: 40638.21473 | P83: 65391.78527 | Q83: 106030 | R83: 86.13258458 | S83: 101.8912794 | T83: 95.21457628
A84: =IF(COUNTRY_INFO!A84=0," ",COUNTRY_INFO!A84) -> Chad | B84: =IF(COUNTRY_INFO!B84=0," ",COUNTRY_INFO!B84) -> Mayo Kebbi Ouest | C84: =IF(COUNTRY_INFO!C84=0," ",COUNTRY_INFO!C84) -> Guegou | D84: =IF(COUNTRY_INFO!$T$9:$T$1000="MDA3 (IVM)", COUNTRY_INFO!$T$9:$T$1000, " ") -> MDA3 (IVM) | H84: 0 | N84: 0 | O84: 0 | P84: 0 | Q84: 0
A85: =IF(COUNTRY_INFO!A85=0," ",COUNTRY_INFO!A85) -> Chad | B85: =IF(COUNTRY_INFO!B85=0," ",COUNTRY_INFO!B85) -> Mayo Kebbi Ouest | C85: =IF(COUNTRY_INFO!C85=0," ",COUNTRY_INFO!C85) -> GUELO | D85: =IF(COUNTRY_INFO!$T$9:$T$1000="MDA3 (IVM)", COUNTRY_INFO!$T$9:$T$1000, " ") -> MDA3 (IVM) | H85: 0 | N85: 0 | O85: 0 | P85: 0 | Q85: 0
A86: =IF(COUNTRY_INFO!A86=0," ",COUNTRY_INFO!A86) -> Chad | B86: =IF(COUNTRY_INFO!B86=0," ",COUNTRY_INFO!B86) -> Mayo Kebbi Ouest | C86: =IF(COUNTRY_INFO!C86=0," ",COUNTRY_INFO!C86) -> Lagon | D86: =IF(COUNTRY_INFO!$T$9:$T$1000="MDA3 (IVM)", COUNTRY_INFO!$T$9:$T$1000, " ") -> MDA3 (IVM) | E86: 06-2017 | F86: 26371 | G86: 35873 | H86: 62244 | I86: 23393.32335 | J86: 37642.67665 | K86: 61036 | N86: 0 | O86: 23393.32335 | P86: 37642.67665 | Q86: 61036 | R86: 88.70851824 | S86: 104.9331716 | T86: 98.05925069
A87: =IF(COUNTRY_INFO!A87=0," ",COUNTRY_INFO!A87) -> Chad | B87: =IF(COUNTRY_INFO!B87=0," ",COUNTRY_INFO!B87) -> Mayo Kebbi Ouest | C87: =IF(COUNTRY_INFO!C87=0," ",COUNTRY_INFO!C87) -> Lamé | D87: =IF(COUNTRY_INFO!$T$9:$T$1000="MDA3 (IVM)", COUNTRY_INFO!$T$9:$T$1000, " ") -> MDA3 (IVM) | E87: 06-2017 | F87: 28163 | G87: 38296 | H87: 66459 | I87: 24605.60924 | J87: 39593.39076 | K87: 64199 | N87: 0 | O87: 24605.60924 | P87: 39593.39076 | Q87: 64199 | R87: 87.36856599 | S87: 103.3877971 | T87: 96.59940715
A88: =IF(COUNTRY_INFO!A88=0," ",COUNTRY_INFO!A88) -> Chad | B88: =IF(COUNTRY_INFO!B88=0," ",COUNTRY_INFO!B88) -> Mayo Kebbi Ouest | C88: =IF(COUNTRY_INFO!C88=0," ",COUNTRY_INFO!C88) -> Lere | D88: =IF(COUNTRY_INFO!$T$9:$T$1000="MDA3 (IVM)", COUNTRY_INFO!$T$9:$T$1000, " ") -> MDA3 (IVM) | E88: 06-2017 | F88: 47183 | G88: 64721 | H88: 111904 | I88: 40788.07366 | J88: 65632.92634 | K88: 106421 | N88: 0 | O88: 40788.07366 | P88: 65632.92634 | Q88: 106421 | R88: 86.4465457 | S88: 101.4090115 | T88: 95.10026451
A89: =IF(COUNTRY_INFO!A89=0," ",COUNTRY_INFO!A89) -> Chad | B89: =IF(COUNTRY_INFO!B89=0," ",COUNTRY_INFO!B89) -> Mayo Kebbi Ouest | C89: =IF(COUNTRY_INFO!C89=0," ",COUNTRY_INFO!C89) -> Pala | D89: =IF(COUNTRY_INFO!$T$9:$T$1000="MDA3 (IVM)", COUNTRY_INFO!$T$9:$T$1000, " ") -> MDA3 (IVM) | E89: 06-2017 | F89: 43894 | G89: 202355 | H89: 246249 | I89: 37633.37079 | J89: 60556.62921 | K89: 98190 | N89: 0 | O89: 37633.37079 | P89: 60556.62921 | Q89: 98190 | R89: 85.73693622 | S89: 29.9259367 | T89: 39.8742736
A90: =IF(COUNTRY_INFO!A90=0," ",COUNTRY_INFO!A90) -> Chad | B90: =IF(COUNTRY_INFO!B90=0," ",COUNTRY_INFO!B90) -> Mayo Kebbi Ouest | C90: =IF(COUNTRY_INFO!C90=0," ",COUNTRY_INFO!C90) -> Torrock | D90: =IF(COUNTRY_INFO!$T$9:$T$1000="MDA3 (IVM)", COUNTRY_INFO!$T$9:$T$1000, " ") -> MDA3 (IVM) | E90: 06-2017 | F90: 23054 | G90: 33080 | H90: 56134 | I90: 20726.14107 | J90: 33350.85893 | K90: 54077 | N90: 0 | O90: 20726.14107 | P90: 33350.85893 | Q90: 54077 | R90: 89.90258122 | S90: 100.8187997 | T90: 96.33555421
A91: =IF(COUNTRY_INFO!A91=0," ",COUNTRY_INFO!A91) -> Chad | B91: =IF(COUNTRY_INFO!B91=0," ",COUNTRY_INFO!B91) -> Moyen Chari | C91: =IF(COUNTRY_INFO!C91=0," ",COUNTRY_INFO!C91) -> Biobe Singako | D91: =IF(COUNTRY_INFO!$T$9:$T$1000="MDA3 (IVM)", COUNTRY_INFO!$T$9:$T$1000, " ") ->  | H91: 0 | N91: 0 | O91: 0 | P91: 0 | Q91: 0
A92: =IF(COUNTRY_INFO!A92=0," ",COUNTRY_INFO!A92) -> Chad | B92: =IF(COUNTRY_INFO!B92=0," ",COUNTRY_INFO!B92) -> Moyen Chari | C92: =IF(COUNTRY_INFO!C92=0," ",COUNTRY_INFO!C92) -> Danamadji | D92: =IF(COUNTRY_INFO!$T$9:$T$1000="MDA3 (IVM)", COUNTRY_INFO!$T$9:$T$1000, " ") ->  | H92: 0 | N92: 0 | O92: 0 | P92: 0 | Q92: 0
A93: =IF(COUNTRY_INFO!A93=0," ",COUNTRY_INFO!A93) -> Chad | B93: =IF(COUNTRY_INFO!B93=0," ",COUNTRY_INFO!B93) -> Moyen Chari | C93: =IF(COUNTRY_INFO!C93=0," ",COUNTRY_INFO!C93) -> Korbol | D93: =IF(COUNTRY_INFO!$T$9:$T$1000="MDA3 (IVM)", COUNTRY_INFO!$T$9:$T$1000, " ") ->  | H93: 0 | N93: 0 | O93: 0 | P93: 0 | Q93: 0
A94: =IF(COUNTRY_INFO!A94=0," ",COUNTRY_INFO!A94) -> Chad | B94: =IF(COUNTRY_INFO!B94=0," ",COUNTRY_INFO!B94) -> Moyen Chari | C94: =IF(COUNTRY_INFO!C94=0," ",COUNTRY_INFO!C94) -> Kyabe | D94: =IF(COUNTRY_INFO!$T$9:$T$1000="MDA3 (IVM)", COUNTRY_INFO!$T$9:$T$1000, " ") ->  | H94: 0 | N94: 0 | O94: 0 | P94: 0 | Q94: 0
A95: =IF(COUNTRY_INFO!A95=0," ",COUNTRY_INFO!A95) -> Chad | B95: =IF(COUNTRY_INFO!B95=0," ",COUNTRY_INFO!B95) -> Moyen Chari | C95: =IF(COUNTRY_INFO!C95=0," ",COUNTRY_INFO!C95) -> Maro | D95: =IF(COUNTRY_INFO!$T$9:$T$1000="MDA3 (IVM)", COUNTRY_INFO!$T$9:$T$1000, " ") ->  | H95: 0 | N95: 0 | O95: 0 | P95: 0 | Q95: 0
A96: =IF(COUNTRY_INFO!A96=0," ",COUNTRY_INFO!A96) -> Chad | B96: =IF(COUNTRY_INFO!B96=0," ",COUNTRY_INFO!B96) -> Moyen Chari | C96: =IF(COUNTRY_INFO!C96=0," ",COUNTRY_INFO!C96) -> Sarh | D96: =IF(COUNTRY_INFO!$T$9:$T$1000="MDA3 (IVM)", COUNTRY_INFO!$T$9:$T$1000, " ") ->  | H96: 0 | N96: 0 | O96: 0 | P96: 0 | Q96: 0
A97: =IF(COUNTRY_INFO!A97=0," ",COUNTRY_INFO!A97) -> Chad | B97: =IF(COUNTRY_INFO!B97=0," ",COUNTRY_INFO!B97) -> N'Djaména | C97: =IF(COUNTRY_INFO!C97=0," ",COUNTRY_INFO!C97) -> N'Djaména Centre | D97: =IF(COUNTRY_INFO!$T$9:$T$1000="MDA3 (IVM)", COUNTRY_INFO!$T$9:$T$1000, " ") ->  | H97: 0 | N97: 0 | O97: 0 | P97: 0 | Q97: 0
A98: =IF(COUNTRY_INFO!A98=0," ",COUNTRY_INFO!A98) -> Chad | B98: =IF(COUNTRY_INFO!B98=0," ",COUNTRY_INFO!B98) -> N'Djaména | C98: =IF(COUNTRY_INFO!C98=0," ",COUNTRY_INFO!C98) -> N'Djaména Est | D98: =IF(COUNTRY_INFO!$T$9:$T$1000="MDA3 (IVM)", COUNTRY_INFO!$T$9:$T$1000, " ") ->  | H98: 0 | N98: 0 | O98: 0 | P98: 0 | Q98: 0
A99: =IF(COUNTRY_INFO!A99=0," ",COUNTRY_INFO!A99) -> Chad | B99: =IF(COUNTRY_INFO!B99=0," ",COUNTRY_INFO!B99) -> N'Djaména | C99: =IF(COUNTRY_INFO!C99=0," ",COUNTRY_INFO!C99) -> N'Djaména Nord | D99: =IF(COUNTRY_INFO!$T$9:$T$1000="MDA3 (IVM)", COUNTRY_INFO!$T$9:$T$1000, " ") ->  | H99: 0 | N99: 0 | O99: 0 | P99: 0 | Q99: 0
A100: =IF(COUNTRY_INFO!A100=0," ",COUNTRY_INFO!A100) -> Chad | B100: =IF(COUNTRY_INFO!B100=0," ",COUNTRY_INFO!B100) -> N'Djaména | C100: =IF(COUNTRY_INFO!C100=0," ",COUNTRY_INFO!C100) -> N'Djaména Sud | D100: =IF(COUNTRY_INFO!$T$9:$T$1000="MDA3 (IVM)", COUNTRY_INFO!$T$9:$T$1000, " ") ->  | H100: 0 | N100: 0 | O100: 0 | P100: 0 | Q100: 0
A101: =IF(COUNTRY_INFO!A101=0," ",COUNTRY_INFO!A101) -> Chad | B101: =IF(COUNTRY_INFO!B101=0," ",COUNTRY_INFO!B101) -> Ouaddai | C101: =IF(COUNTRY_INFO!C101=0," ",COUNTRY_INFO!C101) -> Abdi | D101: =IF(COUNTRY_INFO!$T$9:$T$1000="MDA3 (IVM)", COUNTRY_INFO!$T$9:$T$1000, " ") ->  | H101: 0 | N101: 0 | O101: 0 | P101: 0 | Q101: 0
A102: =IF(COUNTRY_INFO!A102=0," ",COUNTRY_INFO!A102) -> Chad | B102: =IF(COUNTRY_INFO!B102=0," ",COUNTRY_INFO!B102) -> Ouaddai | C102: =IF(COUNTRY_INFO!C102=0," ",COUNTRY_INFO!C102) -> Abeche | D102: =IF(COUNTRY_INFO!$T$9:$T$1000="MDA3 (IVM)", COUNTRY_INFO!$T$9:$T$1000, " ") ->  | H102: 0 | N102: 0 | O102: 0 | P102: 0 | Q102: 0
A103: =IF(COUNTRY_INFO!A103=0," ",COUNTRY_INFO!A103) -> Chad | B103: =IF(COUNTRY_INFO!B103=0," ",COUNTRY_INFO!B103) -> Ouaddai | C103: =IF(COUNTRY_INFO!C103=0," ",COUNTRY_INFO!C103) -> Abougoudam | D103: =IF(COUNTRY_INFO!$T$9:$T$1000="MDA3 (IVM)", COUNTRY_INFO!$T$9:$T$1000, " ") ->  | H103: 0 | N103: 0 | O103: 0 | P103: 0 | Q103: 0
A104: =IF(COUNTRY_INFO!A104=0," ",COUNTRY_INFO!A104) -> Chad | B104: =IF(COUNTRY_INFO!B104=0," ",COUNTRY_INFO!B104) -> Ouaddai | C104: =IF(COUNTRY_INFO!C104=0," ",COUNTRY_INFO!C104) -> Adré | D104: =IF(COUNTRY_INFO!$T$9:$T$1000="MDA3 (IVM)", COUNTRY_INFO!$T$9:$T$1000, " ") ->  | H104: 0 | N104: 0 | O104: 0 | P104: 0 | Q104: 0
A105: =IF(COUNTRY_INFO!A105=0," ",COUNTRY_INFO!A105) -> Chad | B105: =IF(COUNTRY_INFO!B105=0," ",COUNTRY_INFO!B105) -> Salamat | C105: =IF(COUNTRY_INFO!C105=0," ",COUNTRY_INFO!C105) -> Aboudeia | D105: =IF(COUNTRY_INFO!$T$9:$T$1000="MDA3 (IVM)", COUNTRY_INFO!$T$9:$T$1000, " ") ->  | H105: 0 | N105: 0 | O105: 0 | P105: 0 | Q105: 0
A106: =IF(COUNTRY_INFO!A106=0," ",COUNTRY_INFO!A106) -> Chad | B106: =IF(COUNTRY_INFO!B106=0," ",COUNTRY_INFO!B106) -> Salamat | C106: =IF(COUNTRY_INFO!C106=0," ",COUNTRY_INFO!C106) -> Am-Timan | D106: =IF(COUNTRY_INFO!$T$9:$T$1000="MDA3 (IVM)", COUNTRY_INFO!$T$9:$T$1000, " ") ->  | H106: 0 | N106: 0 | O106: 0 | P106: 0 | Q106: 0
A107: =IF(COUNTRY_INFO!A107=0," ",COUNTRY_INFO!A107) -> Chad | B107: =IF(COUNTRY_INFO!B107=0," ",COUNTRY_INFO!B107) -> Salamat | C107: =IF(COUNTRY_INFO!C107=0," ",COUNTRY_INFO!C107) -> Haraze | D107: =IF(COUNTRY_INFO!$T$9:$T$1000="MDA3 (IVM)", COUNTRY_INFO!$T$9:$T$1000, " ") ->  | H107: 0 | N107: 0 | O107: 0 | P107: 0 | Q107: 0
A108: =IF(COUNTRY_INFO!A108=0," ",COUNTRY_INFO!A108) -> Chad | B108: =IF(COUNTRY_INFO!B108=0," ",COUNTRY_INFO!B108) -> Sila | C108: =IF(COUNTRY_INFO!C108=0," ",COUNTRY_INFO!C108) -> Am-dam | D108: =IF(COUNTRY_INFO!$T$9:$T$1000="MDA3 (IVM)", COUNTRY_INFO!$T$9:$T$1000, " ") ->  | H108: 0 | N108: 0 | O108: 0 | P108: 0 | Q108: 0
A109: =IF(COUNTRY_INFO!A109=0," ",COUNTRY_INFO!A109) -> Chad | B109: =IF(COUNTRY_INFO!B109=0," ",COUNTRY_INFO!B109) -> Sila | C109: =IF(COUNTRY_INFO!C109=0," ",COUNTRY_INFO!C109) -> Goz-beida | D109: =IF(COUNTRY_INFO!$T$9:$T$1000="MDA3 (IVM)", COUNTRY_INFO!$T$9:$T$1000, " ") ->  | H109: 0 | N109: 0 | O109: 0 | P109: 0 | Q109: 0
A110: =IF(COUNTRY_INFO!A110=0," ",COUNTRY_INFO!A110) -> Chad | B110: =IF(COUNTRY_INFO!B110=0," ",COUNTRY_INFO!B110) -> Sila | C110: =IF(COUNTRY_INFO!C110=0," ",COUNTRY_INFO!C110) -> Koukou | D110: =IF(COUNTRY_INFO!$T$9:$T$1000="MDA3 (IVM)", COUNTRY_INFO!$T$9:$T$1000, " ") ->  | H110: 0 | N110: 0 | O110: 0 | P110: 0 | Q110: 0
A111: =IF(COUNTRY_INFO!A111=0," ",COUNTRY_INFO!A111) -> Chad | B111: =IF(COUNTRY_INFO!B111=0," ",COUNTRY_INFO!B111) -> Sila | C111: =IF(COUNTRY_INFO!C111=0," ",COUNTRY_INFO!C111) -> Tissi | D111: =IF(COUNTRY_INFO!$T$9:$T$1000="MDA3 (IVM)", COUNTRY_INFO!$T$9:$T$1000, " ") ->  | H111: 0 | N111: 0 | O111: 0 | P111: 0 | Q111: 0
A112: =IF(COUNTRY_INFO!A112=0," ",COUNTRY_INFO!A112) -> Chad | B112: =IF(COUNTRY_INFO!B112=0," ",COUNTRY_INFO!B112) -> Tandjile | C112: =IF(COUNTRY_INFO!C112=0," ",COUNTRY_INFO!C112) -> Batchoro | D112: =IF(COUNTRY_INFO!$T$9:$T$1000="MDA3 (IVM)", COUNTRY_INFO!$T$9:$T$1000, " ") ->  | H112: 0 | N112: 0 | O112: 0 | P112: 0 | Q112: 0
A113: =IF(COUNTRY_INFO!A113=0," ",COUNTRY_INFO!A113) -> Chad | B113: =IF(COUNTRY_INFO!B113=0," ",COUNTRY_INFO!B113) -> Tandjile | C113: =IF(COUNTRY_INFO!C113=0," ",COUNTRY_INFO!C113) -> Bere | D113: =IF(COUNTRY_INFO!$T$9:$T$1000="MDA3 (IVM)", COUNTRY_INFO!$T$9:$T$1000, " ") ->  | H113: 0 | N113: 0 | O113: 0 | P113: 0 | Q113: 0
A114: =IF(COUNTRY_INFO!A114=0," ",COUNTRY_INFO!A114) -> Chad | B114: =IF(COUNTRY_INFO!B114=0," ",COUNTRY_INFO!B114) -> Tandjile | C114: =IF(COUNTRY_INFO!C114=0," ",COUNTRY_INFO!C114) -> Dafra | D114: =IF(COUNTRY_INFO!$T$9:$T$1000="MDA3 (IVM)", COUNTRY_INFO!$T$9:$T$1000, " ") ->  | H114: 0 | N114: 0 | O114: 0 | P114: 0 | Q114: 0
A115: =IF(COUNTRY_INFO!A115=0," ",COUNTRY_INFO!A115) -> Chad | B115: =IF(COUNTRY_INFO!B115=0," ",COUNTRY_INFO!B115) -> Tandjile | C115: =IF(COUNTRY_INFO!C115=0," ",COUNTRY_INFO!C115) -> Donamanga | D115: =IF(COUNTRY_INFO!$T$9:$T$1000="MDA3 (IVM)", COUNTRY_INFO!$T$9:$T$1000, " ") ->  | H115: 0 | N115: 0 | O115: 0 | P115: 0 | Q115: 0
A116: =IF(COUNTRY_INFO!A116=0," ",COUNTRY_INFO!A116) -> Chad | B116: =IF(COUNTRY_INFO!B116=0," ",COUNTRY_INFO!B116) -> Tandjile | C116: =IF(COUNTRY_INFO!C116=0," ",COUNTRY_INFO!C116) -> Guidari | D116: =IF(COUNTRY_INFO!$T$9:$T$1000="MDA3 (IVM)", COUNTRY_INFO!$T$9:$T$1000, " ") ->  | H116: 0 | N116: 0 | O116: 0 | P116: 0 | Q116: 0
A117: =IF(COUNTRY_INFO!A117=0," ",COUNTRY_INFO!A117) -> Chad | B117: =IF(COUNTRY_INFO!B117=0," ",COUNTRY_INFO!B117) -> Tandjile | C117: =IF(COUNTRY_INFO!C117=0," ",COUNTRY_INFO!C117) -> Kelo | D117: =IF(COUNTRY_INFO!$T$9:$T$1000="MDA3 (IVM)", COUNTRY_INFO!$T$9:$T$1000, " ") ->  | H117: 0 | N117: 0 | O117: 0 | P117: 0 | Q117: 0
A118: =IF(COUNTRY_INFO!A118=0," ",COUNTRY_INFO!A118) -> Chad | B118: =IF(COUNTRY_INFO!B118=0," ",COUNTRY_INFO!B118) -> Tandjile | C118: =IF(COUNTRY_INFO!C118=0," ",COUNTRY_INFO!C118) -> Kolon | D118: =IF(COUNTRY_INFO!$T$9:$T$1000="MDA3 (IVM)", COUNTRY_INFO!$T$9:$T$1000, " ") ->  | H118: 0 | N118: 0 | O118: 0 | P118: 0 | Q118: 0
A119: =IF(COUNTRY_INFO!A119=0," ",COUNTRY_INFO!A119) -> Chad | B119: =IF(COUNTRY_INFO!B119=0," ",COUNTRY_INFO!B119) -> Tandjile | C119: =IF(COUNTRY_INFO!C119=0," ",COUNTRY_INFO!C119) -> Lai | D119: =IF(COUNTRY_INFO!$T$9:$T$1000="MDA3 (IVM)", COUNTRY_INFO!$T$9:$T$1000, " ") ->  | H119: 0 | N119: 0 | O119: 0 | P119: 0 | Q119: 0
A120: =IF(COUNTRY_INFO!A120=0," ",COUNTRY_INFO!A120) -> Chad | B120: =IF(COUNTRY_INFO!B120=0," ",COUNTRY_INFO!B120) -> Tibesti | C120: =IF(COUNTRY_INFO!C120=0," ",COUNTRY_INFO!C120) -> Bardaï | D120: =IF(COUNTRY_INFO!$T$9:$T$1000="MDA3 (IVM)", COUNTRY_INFO!$T$9:$T$1000, " ") ->  | H120: 0 | N120: 0 | O120: 0 | P120: 0 | Q120: 0
A121: =IF(COUNTRY_INFO!A121=0," ",COUNTRY_INFO!A121) -> Chad | B121: =IF(COUNTRY_INFO!B121=0," ",COUNTRY_INFO!B121) -> Tibesti | C121: =IF(COUNTRY_INFO!C121=0," ",COUNTRY_INFO!C121) -> Zouar | D121: =IF(COUNTRY_INFO!$T$9:$T$1000="MDA3 (IVM)", COUNTRY_INFO!$T$9:$T$1000, " ") ->  | H121: 0 | N121: 0 | O121: 0 | P121: 0 | Q121: 0
A122: =IF(COUNTRY_INFO!A122=0," ",COUNTRY_INFO!A122) -> Chad | B122: =IF(COUNTRY_INFO!B122=0," ",COUNTRY_INFO!B122) -> Wadi Fira | C122: =IF(COUNTRY_INFO!C122=0," ",COUNTRY_INFO!C122) -> amzoer | D122: =IF(COUNTRY_INFO!$T$9:$T$1000="MDA3 (IVM)", COUNTRY_INFO!$T$9:$T$1000, " ") ->  | H122: 0 | N122: 0 | O122: 0 | P122: 0 | Q122: 0
A123: =IF(COUNTRY_INFO!A123=0," ",COUNTRY_INFO!A123) -> Chad | B123: =IF(COUNTRY_INFO!B123=0," ",COUNTRY_INFO!B123) -> Wadi Fira | C123: =IF(COUNTRY_INFO!C123=0," ",COUNTRY_INFO!C123) -> Arada | D123: =IF(COUNTRY_INFO!$T$9:$T$1000="MDA3 (IVM)", COUNTRY_INFO!$T$9:$T$1000, " ") ->  | H123: 0 | N123: 0 | O123: 0 | P123: 0 | Q123: 0
A124: =IF(COUNTRY_INFO!A124=0," ",COUNTRY_INFO!A124) -> Chad | B124: =IF(COUNTRY_INFO!B124=0," ",COUNTRY_INFO!B124) -> Wadi Fira | C124: =IF(COUNTRY_INFO!C124=0," ",COUNTRY_INFO!C124) -> Biltine | D124: =IF(COUNTRY_INFO!$T$9:$T$1000="MDA3 (IVM)", COUNTRY_INFO!$T$9:$T$1000, " ") ->  | H124: 0 | N124: 0 | O124: 0 | P124: 0 | Q124: 0
A125: =IF(COUNTRY_INFO!A125=0," ",COUNTRY_INFO!A125) -> Chad | B125: =IF(COUNTRY_INFO!B125=0," ",COUNTRY_INFO!B125) -> Wadi Fira | C125: =IF(COUNTRY_INFO!C125=0," ",COUNTRY_INFO!C125) -> Guéréda | D125: =IF(COUNTRY_INFO!$T$9:$T$1000="MDA3 (IVM)", COUNTRY_INFO!$T$9:$T$1000, " ") ->  | H125: 0 | N125: 0 | O125: 0 | P125: 0 | Q125: 0
A126: =IF(COUNTRY_INFO!A126=0," ",COUNTRY_INFO!A126) -> Chad | B126: =IF(COUNTRY_INFO!B126=0," ",COUNTRY_INFO!B126) -> Wadi Fira | C126: =IF(COUNTRY_INFO!C126=0," ",COUNTRY_INFO!C126) -> Iriba | D126: =IF(COUNTRY_INFO!$T$9:$T$1000="MDA3 (IVM)", COUNTRY_INFO!$T$9:$T$1000, " ") ->  | H126: 0 | N126: 0 | O126: 0 | P126: 0 | Q126: 0
A127: =IF(COUNTRY_INFO!A127=0," ",COUNTRY_INFO!A127) -> Chad | B127: =IF(COUNTRY_INFO!B127=0," ",COUNTRY_INFO!B127) -> Wadi Fira | C127: =IF(COUNTRY_INFO!C127=0," ",COUNTRY_INFO!C127) -> Matadjana | D127: =IF(COUNTRY_INFO!$T$9:$T$1000="MDA3 (IVM)", COUNTRY_INFO!$T$9:$T$1000, " ") ->  | H127: 0 | N127: 0 | O127: 0 | P127: 0 | Q127: 0

Sheet T1
A1: T 1 - Praziquantel (PZQ) et Albendazole (ALB) ou Mebendazole (MBD)
A2: Structure administrative, population nécessitant une chimioprévention par groupe d'âge, population traitée par groupe d'âge et couverture
A4: TOTAL | G4: =SUM(G$9:G$1000) -> 0 | H4: 631164 | I4: 433214.05 | J4: 0 | K4: =SUM(K$9:K$1000) -> 654175 | L4: 0 | M4: 638775 | N4: 0 | O4: 638775 | P4: =IF(G4<>0, IF(L4/G4*100=0, "-", L4/G4*100), " ") ->  | Q4: =IF(OR(I4<>0,H4<>0), IF(M4/MAX(H4,I4)*100=0, "-", M4/MAX(H4,I4)*100), " ") -> 101.2058673 | R4: =IF(J4<>0, IF(N4/J4*100=0, "-", N4/J4*100), " ") ->  | S4: =IF(K4<>0, IF(O4/K4*100=0, "-", O4/K4*100), " ") -> 97.64588986
A6: Structure administrative du pays | D6: Mise en oeuvre de la CP | E6: Médica-ment | F6: Date | G6: Population ciblée pour T1 | L6: Population traitée | P6: Couverture du Programme (%)
A7: Pays | B7: Région/Département | C7: District | G7: EAPréS (ALB) | H7: EAS (ALB) | I7: EAS (PZQ) | J7: Adultes (PZQ) | K7: Total | L7: EAPréS | M7: EAS | N7: Adultes | O7: Total | P7: EAPréS | Q7: EAS | R7: Adultes | S7: Total
A9: =IF(COUNTRY_INFO!A9=0," ",COUNTRY_INFO!A9) -> Chad | B9: =IF(COUNTRY_INFO!B9=0," ",COUNTRY_INFO!B9) -> Bahr El Gazel | C9: =IF(COUNTRY_INFO!C9=0," ",COUNTRY_INFO!C9) -> Chadra | D9: =IF(OR(COUNTRY_INFO!$T$9:$T$1000="T1 (PZQ+ALB/MBD)",COUNTRY_INFO!$U$9:$U$1000="T1 (PZQ+ALB/MBD)"), "T1 (PZQ+ALB/MBD)", " ") ->  | I9: 0 | K9: =MAX(H9:I9)+G9+J9 -> 0 | O9: =SUM(L9:N9) -> 0 | P9: =IF(G9<>0, IF(L9/G9*100=0, "-", L9/G9*100), " ") ->  | Q9: =IF(OR(I9<>0,H9<>0), IF(M9/MAX(H9,I9)*100=0, "-", M9/MAX(H9,I9)*100), " ") ->  | R9: =IF(J9<>0, IF(N9/J9*100=0, "-", N9/J9*100), " ") -> 
A10: =IF(COUNTRY_INFO!A10=0," ",COUNTRY_INFO!A10) -> Chad | B10: =IF(COUNTRY_INFO!B10=0," ",COUNTRY_INFO!B10) -> Bahr El Gazel | C10: =IF(COUNTRY_INFO!C10=0," ",COUNTRY_INFO!C10) -> Michemire | D10: =IF(OR(COUNTRY_INFO!$T$9:$T$1000="T1 (PZQ+ALB/MBD)",COUNTRY_INFO!$U$9:$U$1000="T1 (PZQ+ALB/MBD)"), "T1 (PZQ+ALB/MBD)", " ") ->  | I10: 0 | K10: =MAX(H10:I10)+G10+J10 -> 0 | O10: =SUM(L10:N10) -> 0 | P10: =IF(G10<>0, IF(L10/G10*100=0, "-", L10/G10*100), " ") ->  | Q10: =IF(OR(I10<>0,H10<>0), IF(M10/MAX(H10,I10)*100=0, "-", M10/MAX(H10,I10)*100), " ") ->  | R10: =IF(J10<>0, IF(N10/J10*100=0, "-", N10/J10*100), " ") ->  | S10: =IF(K10<>0, IF(O10/K10*100=0, "-", O10/K10*100), " ") -> 
A11: =IF(COUNTRY_INFO!A11=0," ",COUNTRY_INFO!A11) -> Chad | B11: =IF(COUNTRY_INFO!B11=0," ",COUNTRY_INFO!B11) -> Bahr El Gazel | C11: =IF(COUNTRY_INFO!C11=0," ",COUNTRY_INFO!C11) -> Moussoro | D11: =IF(OR(COUNTRY_INFO!$T$9:$T$1000="T1 (PZQ+ALB/MBD)",COUNTRY_INFO!$U$9:$U$1000="T1 (PZQ+ALB/MBD)"), "T1 (PZQ+ALB/MBD)", " ") ->  | I11: 0 | K11: 0 | O11: 0
A12: =IF(COUNTRY_INFO!A12=0," ",COUNTRY_INFO!A12) -> Chad | B12: =IF(COUNTRY_INFO!B12=0," ",COUNTRY_INFO!B12) -> Bahr El Gazel | C12: =IF(COUNTRY_INFO!C12=0," ",COUNTRY_INFO!C12) -> Salal | D12: =IF(OR(COUNTRY_INFO!$T$9:$T$1000="T1 (PZQ+ALB/MBD)",COUNTRY_INFO!$U$9:$U$1000="T1 (PZQ+ALB/MBD)"), "T1 (PZQ+ALB/MBD)", " ") ->  | I12: 0 | K12: 0 | O12: 0
A13: =IF(COUNTRY_INFO!A13=0," ",COUNTRY_INFO!A13) -> Chad | B13: =IF(COUNTRY_INFO!B13=0," ",COUNTRY_INFO!B13) -> Batha | C13: =IF(COUNTRY_INFO!C13=0," ",COUNTRY_INFO!C13) -> Alifa | D13: =IF(OR(COUNTRY_INFO!$T$9:$T$1000="T1 (PZQ+ALB/MBD)",COUNTRY_INFO!$U$9:$U$1000="T1 (PZQ+ALB/MBD)"), "T1 (PZQ+ALB/MBD)", " ") ->  | I13: 0 | K13: 0 | O13: 0
A14: =IF(COUNTRY_INFO!A14=0," ",COUNTRY_INFO!A14) -> Chad | B14: =IF(COUNTRY_INFO!B14=0," ",COUNTRY_INFO!B14) -> Batha | C14: =IF(COUNTRY_INFO!C14=0," ",COUNTRY_INFO!C14) -> Assinet | D14: =IF(OR(COUNTRY_INFO!$T$9:$T$1000="T1 (PZQ+ALB/MBD)",COUNTRY_INFO!$U$9:$U$1000="T1 (PZQ+ALB/MBD)"), "T1 (PZQ+ALB/MBD)", " ") ->  | I14: 0 | K14: 0 | O14: 0
A15: =IF(COUNTRY_INFO!A15=0," ",COUNTRY_INFO!A15) -> Chad | B15: =IF(COUNTRY_INFO!B15=0," ",COUNTRY_INFO!B15) -> Batha | C15: =IF(COUNTRY_INFO!C15=0," ",COUNTRY_INFO!C15) -> Ati | D15: =IF(OR(COUNTRY_INFO!$T$9:$T$1000="T1 (PZQ+ALB/MBD)",COUNTRY_INFO!$U$9:$U$1000="T1 (PZQ+ALB/MBD)"), "T1 (PZQ+ALB/MBD)", " ") ->  | I15: 0 | K15: 0 | O15: 0
A16: =IF(COUNTRY_INFO!A16=0," ",COUNTRY_INFO!A16) -> Chad | B16: =IF(COUNTRY_INFO!B16=0," ",COUNTRY_INFO!B16) -> Batha | C16: =IF(COUNTRY_INFO!C16=0," ",COUNTRY_INFO!C16) -> Djedda | D16: =IF(OR(COUNTRY_INFO!$T$9:$T$1000="T1 (PZQ+ALB/MBD)",COUNTRY_INFO!$U$9:$U$1000="T1 (PZQ+ALB/MBD)"), "T1 (PZQ+ALB/MBD)", " ") ->  | I16: 0 | K16: 0 | O16: 0
A17: =IF(COUNTRY_INFO!A17=0," ",COUNTRY_INFO!A17) -> Chad | B17: =IF(COUNTRY_INFO!B17=0," ",COUNTRY_INFO!B17) -> Batha | C17: =IF(COUNTRY_INFO!C17=0," ",COUNTRY_INFO!C17) -> Koundjourou | D17: =IF(OR(COUNTRY_INFO!$T$9:$T$1000="T1 (PZQ+ALB/MBD)",COUNTRY_INFO!$U$9:$U$1000="T1 (PZQ+ALB/MBD)"), "T1 (PZQ+ALB/MBD)", " ") ->  | I17: 0 | K17: 0 | O17: 0
A18: =IF(COUNTRY_INFO!A18=0," ",COUNTRY_INFO!A18) -> Chad | B18: =IF(COUNTRY_INFO!B18=0," ",COUNTRY_INFO!B18) -> Batha | C18: =IF(COUNTRY_INFO!C18=0," ",COUNTRY_INFO!C18) -> Oum-Hadjer | D18: =IF(OR(COUNTRY_INFO!$T$9:$T$1000="T1 (PZQ+ALB/MBD)",COUNTRY_INFO!$U$9:$U$1000="T1 (PZQ+ALB/MBD)"), "T1 (PZQ+ALB/MBD)", " ") ->  | I18: 0 | K18: 0 | O18: 0
A19: =IF(COUNTRY_INFO!A19=0," ",COUNTRY_INFO!A19) -> Chad | B19: =IF(COUNTRY_INFO!B19=0," ",COUNTRY_INFO!B19) -> Batha | C19: =IF(COUNTRY_INFO!C19=0," ",COUNTRY_INFO!C19) -> Yao | D19: =IF(OR(COUNTRY_INFO!$T$9:$T$1000="T1 (PZQ+ALB/MBD)",COUNTRY_INFO!$U$9:$U$1000="T1 (PZQ+ALB/MBD)"), "T1 (PZQ+ALB/MBD)", " ") ->  | I19: 0 | K19: 0 | O19: 0
A20: =IF(COUNTRY_INFO!A20=0," ",COUNTRY_INFO!A20) -> Chad | B20: =IF(COUNTRY_INFO!B20=0," ",COUNTRY_INFO!B20) -> Borkou | C20: =IF(COUNTRY_INFO!C20=0," ",COUNTRY_INFO!C20) -> Faya | D20: =IF(OR(COUNTRY_INFO!$T$9:$T$1000="T1 (PZQ+ALB/MBD)",COUNTRY_INFO!$U$9:$U$1000="T1 (PZQ+ALB/MBD)"), "T1 (PZQ+ALB/MBD)", " ") ->  | I20: 0 | K20: 0 | O20: 0
A21: =IF(COUNTRY_INFO!A21=0," ",COUNTRY_INFO!A21) -> Chad | B21: =IF(COUNTRY_INFO!B21=0," ",COUNTRY_INFO!B21) -> Borkou | C21: =IF(COUNTRY_INFO!C21=0," ",COUNTRY_INFO!C21) -> Kirdimi | D21: =IF(OR(COUNTRY_INFO!$T$9:$T$1000="T1 (PZQ+ALB/MBD)",COUNTRY_INFO!$U$9:$U$1000="T1 (PZQ+ALB/MBD)"), "T1 (PZQ+ALB/MBD)", " ") ->  | I21: 0 | K21: 0 | O21: 0
A22: =IF(COUNTRY_INFO!A22=0," ",COUNTRY_INFO!A22) -> Chad | B22: =IF(COUNTRY_INFO!B22=0," ",COUNTRY_INFO!B22) -> Chari Baguirmi | C22: =IF(COUNTRY_INFO!C22=0," ",COUNTRY_INFO!C22) -> Ba-Illi | D22: =IF(OR(COUNTRY_INFO!$T$9:$T$1000="T1 (PZQ+ALB/MBD)",COUNTRY_INFO!$U$9:$U$1000="T1 (PZQ+ALB/MBD)"), "T1 (PZQ+ALB/MBD)", " ") -> T1 (PZQ+ALB/MBD) | E22: PZQ+MBD | H22: 30621 | I22: 15310.5 | K22: 30621 | M22: 29231 | O22: 29231 | Q22: 95.46063159 | S22: 95.46063159
A23: =IF(COUNTRY_INFO!A23=0," ",COUNTRY_INFO!A23) -> Chad | B23: =IF(COUNTRY_INFO!B23=0," ",COUNTRY_INFO!B23) -> Chari Baguirmi | C23: =IF(COUNTRY_INFO!C23=0," ",COUNTRY_INFO!C23) -> Bousso | D23: =IF(OR(COUNTRY_INFO!$T$9:$T$1000="T1 (PZQ+ALB/MBD)",COUNTRY_INFO!$U$9:$U$1000="T1 (PZQ+ALB/MBD)"), "T1 (PZQ+ALB/MBD)", " ") -> T1 (PZQ+ALB/MBD) | E23: PZQ+MBD | H23: 50012 | I23: 25006 | K23: 50012 | M23: 46361 | O23: 46361 | Q23: 92.69975206 | S23: 92.69975206
A24: =IF(COUNTRY_INFO!A24=0," ",COUNTRY_INFO!A24) -> Chad | B24: =IF(COUNTRY_INFO!B24=0," ",COUNTRY_INFO!B24) -> Chari Baguirmi | C24: =IF(COUNTRY_INFO!C24=0," ",COUNTRY_INFO!C24) -> Dourbali | D24: =IF(OR(COUNTRY_INFO!$T$9:$T$1000="T1 (PZQ+ALB/MBD)",COUNTRY_INFO!$U$9:$U$1000="T1 (PZQ+ALB/MBD)"), "T1 (PZQ+ALB/MBD)", " ") ->  | I24: 0 | K24: 0 | O24: 0
A25: =IF(COUNTRY_INFO!A25=0," ",COUNTRY_INFO!A25) -> Chad | B25: =IF(COUNTRY_INFO!B25=0," ",COUNTRY_INFO!B25) -> Chari Baguirmi | C25: =IF(COUNTRY_INFO!C25=0," ",COUNTRY_INFO!C25) -> Kono | D25: =IF(OR(COUNTRY_INFO!$T$9:$T$1000="T1 (PZQ+ALB/MBD)",COUNTRY_INFO!$U$9:$U$1000="T1 (PZQ+ALB/MBD)"), "T1 (PZQ+ALB/MBD)", " ") ->  | I25: 0 | K25: 0 | O25: 0
A26: =IF(COUNTRY_INFO!A26=0," ",COUNTRY_INFO!A26) -> Chad | B26: =IF(COUNTRY_INFO!B26=0," ",COUNTRY_INFO!B26) -> Chari Baguirmi | C26: =IF(COUNTRY_INFO!C26=0," ",COUNTRY_INFO!C26) -> Mandélia | D26: =IF(OR(COUNTRY_INFO!$T$9:$T$1000="T1 (PZQ+ALB/MBD)",COUNTRY_INFO!$U$9:$U$1000="T1 (PZQ+ALB/MBD)"), "T1 (PZQ+ALB/MBD)", " ") ->  | I26: 0 | K26: 0 | O26: 0
A27: =IF(COUNTRY_INFO!A27=0," ",COUNTRY_INFO!A27) -> Chad | B27: =IF(COUNTRY_INFO!B27=0," ",COUNTRY_INFO!B27) -> Chari Baguirmi | C27: =IF(COUNTRY_INFO!C27=0," ",COUNTRY_INFO!C27) -> Massenya | D27: =IF(OR(COUNTRY_INFO!$T$9:$T$1000="T1 (PZQ+ALB/MBD)",COUNTRY_INFO!$U$9:$U$1000="T1 (PZQ+ALB/MBD)"), "T1 (PZQ+ALB/MBD)", " ") ->  | I27: 0 | K27: 0 | O27: 0
A28: =IF(COUNTRY_INFO!A28=0," ",COUNTRY_INFO!A28) -> Chad | B28: =IF(COUNTRY_INFO!B28=0," ",COUNTRY_INFO!B28) -> Ennedi Est | C28: =IF(COUNTRY_INFO!C28=0," ",COUNTRY_INFO!C28) -> Amdjarass | D28: =IF(OR(COUNTRY_INFO!$T$9:$T$1000="T1 (PZQ+ALB/MBD)",COUNTRY_INFO!$U$9:$U$1000="T1 (PZQ+ALB/MBD)"), "T1 (PZQ+ALB/MBD)", " ") ->  | I28: 0 | K28: 0 | O28: 0
A29: =IF(COUNTRY_INFO!A29=0," ",COUNTRY_INFO!A29) -> Chad | B29: =IF(COUNTRY_INFO!B29=0," ",COUNTRY_INFO!B29) -> Ennedi Est | C29: =IF(COUNTRY_INFO!C29=0," ",COUNTRY_INFO!C29) -> Bahaï | D29: =IF(OR(COUNTRY_INFO!$T$9:$T$1000="T1 (PZQ+ALB/MBD)",COUNTRY_INFO!$U$9:$U$1000="T1 (PZQ+ALB/MBD)"), "T1 (PZQ+ALB/MBD)", " ") ->  | I29: 0 | K29: 0 | O29: 0
A30: =IF(COUNTRY_INFO!A30=0," ",COUNTRY_INFO!A30) -> Chad | B30: =IF(COUNTRY_INFO!B30=0," ",COUNTRY_INFO!B30) -> Ennedi Est | C30: =IF(COUNTRY_INFO!C30=0," ",COUNTRY_INFO!C30) -> Kaoura | D30: =IF(OR(COUNTRY_INFO!$T$9:$T$1000="T1 (PZQ+ALB/MBD)",COUNTRY_INFO!$U$9:$U$1000="T1 (PZQ+ALB/MBD)"), "T1 (PZQ+ALB/MBD)", " ") ->  | I30: 0 | K30: 0 | O30: 0
A31: =IF(COUNTRY_INFO!A31=0," ",COUNTRY_INFO!A31) -> Chad | B31: =IF(COUNTRY_INFO!B31=0," ",COUNTRY_INFO!B31) -> Ennedi Ouest | C31: =IF(COUNTRY_INFO!C31=0," ",COUNTRY_INFO!C31) -> Fada | D31: =IF(OR(COUNTRY_INFO!$T$9:$T$1000="T1 (PZQ+ALB/MBD)",COUNTRY_INFO!$U$9:$U$1000="T1 (PZQ+ALB/MBD)"), "T1 (PZQ+ALB/MBD)", " ") ->  | I31: 0 | K31: 0 | O31: 0
A32: =IF(COUNTRY_INFO!A32=0," ",COUNTRY_INFO!A32) -> Chad | B32: =IF(COUNTRY_INFO!B32=0," ",COUNTRY_INFO!B32) -> Ennedi Ouest | C32: =IF(COUNTRY_INFO!C32=0," ",COUNTRY_INFO!C32) -> Kalaït | D32: =IF(OR(COUNTRY_INFO!$T$9:$T$1000="T1 (PZQ+ALB/MBD)",COUNTRY_INFO!$U$9:$U$1000="T1 (PZQ+ALB/MBD)"), "T1 (PZQ+ALB/MBD)", " ") ->  | I32: 0 | K32: 0 | O32: 0
A33: =IF(COUNTRY_INFO!A33=0," ",COUNTRY_INFO!A33) -> Chad | B33: =IF(COUNTRY_INFO!B33=0," ",COUNTRY_INFO!B33) -> Guéra | C33: =IF(COUNTRY_INFO!C33=0," ",COUNTRY_INFO!C33) -> Barou | D33: =IF(OR(COUNTRY_INFO!$T$9:$T$1000="T1 (PZQ+ALB/MBD)",COUNTRY_INFO!$U$9:$U$1000="T1 (PZQ+ALB/MBD)"), "T1 (PZQ+ALB/MBD)", " ") ->  | I33: 0 | K33: 0 | O33: 0
A34: =IF(COUNTRY_INFO!A34=0," ",COUNTRY_INFO!A34) -> Chad | B34: =IF(COUNTRY_INFO!B34=0," ",COUNTRY_INFO!B34) -> Guéra | C34: =IF(COUNTRY_INFO!C34=0," ",COUNTRY_INFO!C34) -> Bitkine | D34: =IF(OR(COUNTRY_INFO!$T$9:$T$1000="T1 (PZQ+ALB/MBD)",COUNTRY_INFO!$U$9:$U$1000="T1 (PZQ+ALB/MBD)"), "T1 (PZQ+ALB/MBD)", " ") ->  | I34: 0 | K34: 0 | O34: 0
A35: =IF(COUNTRY_INFO!A35=0," ",COUNTRY_INFO!A35) -> Chad | B35: =IF(COUNTRY_INFO!B35=0," ",COUNTRY_INFO!B35) -> Guéra | C35: =IF(COUNTRY_INFO!C35=0," ",COUNTRY_INFO!C35) -> Mangalmé | D35: =IF(OR(COUNTRY_INFO!$T$9:$T$1000="T1 (PZQ+ALB/MBD)",COUNTRY_INFO!$U$9:$U$1000="T1 (PZQ+ALB/MBD)"), "T1 (PZQ+ALB/MBD)", " ") ->  | I35: 0 | K35: 0 | O35: 0
A36: =IF(COUNTRY_INFO!A36=0," ",COUNTRY_INFO!A36) -> Chad | B36: =IF(COUNTRY_INFO!B36=0," ",COUNTRY_INFO!B36) -> Guéra | C36: =IF(COUNTRY_INFO!C36=0," ",COUNTRY_INFO!C36) -> Melfi | D36: =IF(OR(COUNTRY_INFO!$T$9:$T$1000="T1 (PZQ+ALB/MBD)",COUNTRY_INFO!$U$9:$U$1000="T1 (PZQ+ALB/MBD)"), "T1 (PZQ+ALB/MBD)", " ") ->  | I36: 0 | K36: 0 | O36: 0
A37: =IF(COUNTRY_INFO!A37=0," ",COUNTRY_INFO!A37) -> Chad | B37: =IF(COUNTRY_INFO!B37=0," ",COUNTRY_INFO!B37) -> Guéra | C37: =IF(COUNTRY_INFO!C37=0," ",COUNTRY_INFO!C37) -> Mongo | D37: =IF(OR(COUNTRY_INFO!$T$9:$T$1000="T1 (PZQ+ALB/MBD)",COUNTRY_INFO!$U$9:$U$1000="T1 (PZQ+ALB/MBD)"), "T1 (PZQ+ALB/MBD)", " ") ->  | I37: 0 | K37: 0 | O37: 0
A38: =IF(COUNTRY_INFO!A38=0," ",COUNTRY_INFO!A38) -> Chad | B38: =IF(COUNTRY_INFO!B38=0," ",COUNTRY_INFO!B38) -> Hadjer Lamis | C38: =IF(COUNTRY_INFO!C38=0," ",COUNTRY_INFO!C38) -> Bokoro | D38: =IF(OR(COUNTRY_INFO!$T$9:$T$1000="T1 (PZQ+ALB/MBD)",COUNTRY_INFO!$U$9:$U$1000="T1 (PZQ+ALB/MBD)"), "T1 (PZQ+ALB/MBD)", " ") ->  | I38: 0 | K38: 0 | O38: 0
A39: =IF(COUNTRY_INFO!A39=0," ",COUNTRY_INFO!A39) -> Chad | B39: =IF(COUNTRY_INFO!B39=0," ",COUNTRY_INFO!B39) -> Hadjer Lamis | C39: =IF(COUNTRY_INFO!C39=0," ",COUNTRY_INFO!C39) -> Gama | D39: =IF(OR(COUNTRY_INFO!$T$9:$T$1000="T1 (PZQ+ALB/MBD)",COUNTRY_INFO!$U$9:$U$1000="T1 (PZQ+ALB/MBD)"), "T1 (PZQ+ALB/MBD)", " ") ->  | I39: 0 | K39: 0 | O39: 0
A40: =IF(COUNTRY_INFO!A40=0," ",COUNTRY_INFO!A40) -> Chad | B40: =IF(COUNTRY_INFO!B40=0," ",COUNTRY_INFO!B40) -> Hadjer Lamis | C40: =IF(COUNTRY_INFO!C40=0," ",COUNTRY_INFO!C40) -> Mani | D40: =IF(OR(COUNTRY_INFO!$T$9:$T$1000="T1 (PZQ+ALB/MBD)",COUNTRY_INFO!$U$9:$U$1000="T1 (PZQ+ALB/MBD)"), "T1 (PZQ+ALB/MBD)", " ") ->  | I40: 0 | K40: 0 | O40: 0
A41: =IF(COUNTRY_INFO!A41=0," ",COUNTRY_INFO!A41) -> Chad | B41: =IF(COUNTRY_INFO!B41=0," ",COUNTRY_INFO!B41) -> Hadjer Lamis | C41: =IF(COUNTRY_INFO!C41=0," ",COUNTRY_INFO!C41) -> Massaguet | D41: =IF(OR(COUNTRY_INFO!$T$9:$T$1000="T1 (PZQ+ALB/MBD)",COUNTRY_INFO!$U$9:$U$1000="T1 (PZQ+ALB/MBD)"), "T1 (PZQ+ALB/MBD)", " ") ->  | I41: 0 | K41: 0 | O41: 0
A42: =IF(COUNTRY_INFO!A42=0," ",COUNTRY_INFO!A42) -> Chad | B42: =IF(COUNTRY_INFO!B42=0," ",COUNTRY_INFO!B42) -> Hadjer Lamis | C42: =IF(COUNTRY_INFO!C42=0," ",COUNTRY_INFO!C42) -> Massakory | D42: =IF(OR(COUNTRY_INFO!$T$9:$T$1000="T1 (PZQ+ALB/MBD)",COUNTRY_INFO!$U$9:$U$1000="T1 (PZQ+ALB/MBD)"), "T1 (PZQ+ALB/MBD)", " ") ->  | I42: 0 | K42: 0 | O42: 0
A43: =IF(COUNTRY_INFO!A43=0," ",COUNTRY_INFO!A43) -> Chad | B43: =IF(COUNTRY_INFO!B43=0," ",COUNTRY_INFO!B43) -> Kanem | C43: =IF(COUNTRY_INFO!C43=0," ",COUNTRY_INFO!C43) -> Mao | D43: =IF(OR(COUNTRY_INFO!$T$9:$T$1000="T1 (PZQ+ALB/MBD)",COUNTRY_INFO!$U$9:$U$1000="T1 (PZQ+ALB/MBD)"), "T1 (PZQ+ALB/MBD)", " ") ->  | I43: 0 | K43: 0 | O43: 0
A44: =IF(COUNTRY_INFO!A44=0," ",COUNTRY_INFO!A44) -> Chad | B44: =IF(COUNTRY_INFO!B44=0," ",COUNTRY_INFO!B44) -> Kanem | C44: =IF(COUNTRY_INFO!C44=0," ",COUNTRY_INFO!C44) -> Mondo | D44: =IF(OR(COUNTRY_INFO!$T$9:$T$1000="T1 (PZQ+ALB/MBD)",COUNTRY_INFO!$U$9:$U$1000="T1 (PZQ+ALB/MBD)"), "T1 (PZQ+ALB/MBD)", " ") ->  | I44: 0 | K44: 0 | O44: 0
A45: =IF(COUNTRY_INFO!A45=0," ",COUNTRY_INFO!A45) -> Chad | B45: =IF(COUNTRY_INFO!B45=0," ",COUNTRY_INFO!B45) -> Kanem | C45: =IF(COUNTRY_INFO!C45=0," ",COUNTRY_INFO!C45) -> Nokou | D45: =IF(OR(COUNTRY_INFO!$T$9:$T$1000="T1 (PZQ+ALB/MBD)",COUNTRY_INFO!$U$9:$U$1000="T1 (PZQ+ALB/MBD)"), "T1 (PZQ+ALB/MBD)", " ") ->  | I45: 0 | K45: 0 | O45: 0
A46: =IF(COUNTRY_INFO!A46=0," ",COUNTRY_INFO!A46) -> Chad | B46: =IF(COUNTRY_INFO!B46=0," ",COUNTRY_INFO!B46) -> Kanem | C46: =IF(COUNTRY_INFO!C46=0," ",COUNTRY_INFO!C46) -> Ntiona | D46: =IF(OR(COUNTRY_INFO!$T$9:$T$1000="T1 (PZQ+ALB/MBD)",COUNTRY_INFO!$U$9:$U$1000="T1 (PZQ+ALB/MBD)"), "T1 (PZQ+ALB/MBD)", " ") ->  | I46: 0 | K46: 0 | O46: 0
A47: =IF(COUNTRY_INFO!A47=0," ",COUNTRY_INFO!A47) -> Chad | B47: =IF(COUNTRY_INFO!B47=0," ",COUNTRY_INFO!B47) -> Kanem | C47: =IF(COUNTRY_INFO!C47=0," ",COUNTRY_INFO!C47) -> Rig-Rig | D47: =IF(OR(COUNTRY_INFO!$T$9:$T$1000="T1 (PZQ+ALB/MBD)",COUNTRY_INFO!$U$9:$U$1000="T1 (PZQ+ALB/MBD)"), "T1 (PZQ+ALB/MBD)", " ") ->  | I47: 0 | K47: 0 | O47: 0
A48: =IF(COUNTRY_INFO!A48=0," ",COUNTRY_INFO!A48) -> Chad | B48: =IF(COUNTRY_INFO!B48=0," ",COUNTRY_INFO!B48) -> Lac | C48: =IF(COUNTRY_INFO!C48=0," ",COUNTRY_INFO!C48) -> Bagassola | D48: =IF(OR(COUNTRY_INFO!$T$9:$T$1000="T1 (PZQ+ALB/MBD)",COUNTRY_INFO!$U$9:$U$1000="T1 (PZQ+ALB/MBD)"), "T1 (PZQ+ALB/MBD)", " ") ->  | I48: 0 | K48: 0 | O48: 0
A49: =IF(COUNTRY_INFO!A49=0," ",COUNTRY_INFO!A49) -> Chad | B49: =IF(COUNTRY_INFO!B49=0," ",COUNTRY_INFO!B49) -> Lac | C49: =IF(COUNTRY_INFO!C49=0," ",COUNTRY_INFO!C49) -> Bol | D49: =IF(OR(COUNTRY_INFO!$T$9:$T$1000="T1 (PZQ+ALB/MBD)",COUNTRY_INFO!$U$9:$U$1000="T1 (PZQ+ALB/MBD)"), "T1 (PZQ+ALB/MBD)", " ") ->  | I49: 0 | K49: 0 | O49: 0
A50: =IF(COUNTRY_INFO!A50=0," ",COUNTRY_INFO!A50) -> Chad | B50: =IF(COUNTRY_INFO!B50=0," ",COUNTRY_INFO!B50) -> Lac | C50: =IF(COUNTRY_INFO!C50=0," ",COUNTRY_INFO!C50) -> Isserom | D50: =IF(OR(COUNTRY_INFO!$T$9:$T$1000="T1 (PZQ+ALB/MBD)",COUNTRY_INFO!$U$9:$U$1000="T1 (PZQ+ALB/MBD)"), "T1 (PZQ+ALB/MBD)", " ") ->  | I50: 0 | K50: 0 | O50: 0
A51: =IF(COUNTRY_INFO!A51=0," ",COUNTRY_INFO!A51) -> Chad | B51: =IF(COUNTRY_INFO!B51=0," ",COUNTRY_INFO!B51) -> Lac | C51: =IF(COUNTRY_INFO!C51=0," ",COUNTRY_INFO!C51) -> Kouloudia | D51: =IF(OR(COUNTRY_INFO!$T$9:$T$1000="T1 (PZQ+ALB/MBD)",COUNTRY_INFO!$U$9:$U$1000="T1 (PZQ+ALB/MBD)"), "T1 (PZQ+ALB/MBD)", " ") ->  | I51: 0 | K51: 0 | O51: 0
A52: =IF(COUNTRY_INFO!A52=0," ",COUNTRY_INFO!A52) -> Chad | B52: =IF(COUNTRY_INFO!B52=0," ",COUNTRY_INFO!B52) -> Lac | C52: =IF(COUNTRY_INFO!C52=0," ",COUNTRY_INFO!C52) -> Liwa | D52: =IF(OR(COUNTRY_INFO!$T$9:$T$1000="T1 (PZQ+ALB/MBD)",COUNTRY_INFO!$U$9:$U$1000="T1 (PZQ+ALB/MBD)"), "T1 (PZQ+ALB/MBD)", " ") ->  | I52: 0 | K52: 0 | O52: 0
A53: =IF(COUNTRY_INFO!A53=0," ",COUNTRY_INFO!A53) -> Chad | B53: =IF(COUNTRY_INFO!B53=0," ",COUNTRY_INFO!B53) -> Lac | C53: =IF(COUNTRY_INFO!C53=0," ",COUNTRY_INFO!C53) -> Ngouri | D53: =IF(OR(COUNTRY_INFO!$T$9:$T$1000="T1 (PZQ+ALB/MBD)",COUNTRY_INFO!$U$9:$U$1000="T1 (PZQ+ALB/MBD)"), "T1 (PZQ+ALB/MBD)", " ") ->  | I53: 0 | K53: 0 | O53: 0
A54: =IF(COUNTRY_INFO!A54=0," ",COUNTRY_INFO!A54) -> Chad | B54: =IF(COUNTRY_INFO!B54=0," ",COUNTRY_INFO!B54) -> Logone Occidental | C54: =IF(COUNTRY_INFO!C54=0," ",COUNTRY_INFO!C54) -> Benamar | D54: =IF(OR(COUNTRY_INFO!$T$9:$T$1000="T1 (PZQ+ALB/MBD)",COUNTRY_INFO!$U$9:$U$1000="T1 (PZQ+ALB/MBD)"), "T1 (PZQ+ALB/MBD)", " ") ->  | I54: 0 | K54: 0 | O54: 0
A55: =IF(COUNTRY_INFO!A55=0," ",COUNTRY_INFO!A55) -> Chad | B55: =IF(COUNTRY_INFO!B55=0," ",COUNTRY_INFO!B55) -> Logone Occidental | C55: =IF(COUNTRY_INFO!C55=0," ",COUNTRY_INFO!C55) -> Benoye | D55: =IF(OR(COUNTRY_INFO!$T$9:$T$1000="T1 (PZQ+ALB/MBD)",COUNTRY_INFO!$U$9:$U$1000="T1 (PZQ+ALB/MBD)"), "T1 (PZQ+ALB/MBD)", " ") ->  | I55: 0 | K55: 0 | O55: 0
A56: =IF(COUNTRY_INFO!A56=0," ",COUNTRY_INFO!A56) -> Chad | B56: =IF(COUNTRY_INFO!B56=0," ",COUNTRY_INFO!B56) -> Logone Occidental | C56: =IF(COUNTRY_INFO!C56=0," ",COUNTRY_INFO!C56) -> Laokassy | D56: =IF(OR(COUNTRY_INFO!$T$9:$T$1000="T1 (PZQ+ALB/MBD)",COUNTRY_INFO!$U$9:$U$1000="T1 (PZQ+ALB/MBD)"), "T1 (PZQ+ALB/MBD)", " ") ->  | I56: 0 | K56: 0 | O56: 0
A57: =IF(COUNTRY_INFO!A57=0," ",COUNTRY_INFO!A57) -> Chad | B57: =IF(COUNTRY_INFO!B57=0," ",COUNTRY_INFO!B57) -> Logone Occidental | C57: =IF(COUNTRY_INFO!C57=0," ",COUNTRY_INFO!C57) -> Moundou | D57: =IF(OR(COUNTRY_INFO!$T$9:$T$1000="T1 (PZQ+ALB/MBD)",COUNTRY_INFO!$U$9:$U$1000="T1 (PZQ+ALB/MBD)"), "T1 (PZQ+ALB/MBD)", " ") ->  | I57: 0 | K57: 0 | O57: 0
A58: =IF(COUNTRY_INFO!A58=0," ",COUNTRY_INFO!A58) -> Chad | B58: =IF(COUNTRY_INFO!B58=0," ",COUNTRY_INFO!B58) -> Logone Orientlal | C58: =IF(COUNTRY_INFO!C58=0," ",COUNTRY_INFO!C58) -> Baibokoum | D58: =IF(OR(COUNTRY_INFO!$T$9:$T$1000="T1 (PZQ+ALB/MBD)",COUNTRY_INFO!$U$9:$U$1000="T1 (PZQ+ALB/MBD)"), "T1 (PZQ+ALB/MBD)", " ") ->  | I58: 0 | K58: 0 | O58: 0
A59: =IF(COUNTRY_INFO!A59=0," ",COUNTRY_INFO!A59) -> Chad | B59: =IF(COUNTRY_INFO!B59=0," ",COUNTRY_INFO!B59) -> Logone Orientlal | C59: =IF(COUNTRY_INFO!C59=0," ",COUNTRY_INFO!C59) -> Bebedja | D59: =IF(OR(COUNTRY_INFO!$T$9:$T$1000="T1 (PZQ+ALB/MBD)",COUNTRY_INFO!$U$9:$U$1000="T1 (PZQ+ALB/MBD)"), "T1 (PZQ+ALB/MBD)", " ") ->  | I59: 0 | K59: 0 | O59: 0
A60: =IF(COUNTRY_INFO!A60=0," ",COUNTRY_INFO!A60) -> Chad | B60: =IF(COUNTRY_INFO!B60=0," ",COUNTRY_INFO!B60) -> Logone Orientlal | C60: =IF(COUNTRY_INFO!C60=0," ",COUNTRY_INFO!C60) -> Beboto | D60: =IF(OR(COUNTRY_INFO!$T$9:$T$1000="T1 (PZQ+ALB/MBD)",COUNTRY_INFO!$U$9:$U$1000="T1 (PZQ+ALB/MBD)"), "T1 (PZQ+ALB/MBD)", " ") ->  | I60: 0 | K60: 0 | O60: 0
A61: =IF(COUNTRY_INFO!A61=0," ",COUNTRY_INFO!A61) -> Chad | B61: =IF(COUNTRY_INFO!B61=0," ",COUNTRY_INFO!B61) -> Logone Orientlal | C61: =IF(COUNTRY_INFO!C61=0," ",COUNTRY_INFO!C61) -> Bessao | D61: =IF(OR(COUNTRY_INFO!$T$9:$T$1000="T1 (PZQ+ALB/MBD)",COUNTRY_INFO!$U$9:$U$1000="T1 (PZQ+ALB/MBD)"), "T1 (PZQ+ALB/MBD)", " ") ->  | I61: 0 | K61: 0 | O61: 0
A62: =IF(COUNTRY_INFO!A62=0," ",COUNTRY_INFO!A62) -> Chad | B62: =IF(COUNTRY_INFO!B62=0," ",COUNTRY_INFO!B62) -> Logone Orientlal | C62: =IF(COUNTRY_INFO!C62=0," ",COUNTRY_INFO!C62) -> Bodo | D62: =IF(OR(COUNTRY_INFO!$T$9:$T$1000="T1 (PZQ+ALB/MBD)",COUNTRY_INFO!$U$9:$U$1000="T1 (PZQ+ALB/MBD)"), "T1 (PZQ+ALB/MBD)", " ") ->  | I62: 0 | K62: 0 | O62: 0
A63: =IF(COUNTRY_INFO!A63=0," ",COUNTRY_INFO!A63) -> Chad | B63: =IF(COUNTRY_INFO!B63=0," ",COUNTRY_INFO!B63) -> Logone Orientlal | C63: =IF(COUNTRY_INFO!C63=0," ",COUNTRY_INFO!C63) -> Doba | D63: =IF(OR(COUNTRY_INFO!$T$9:$T$1000="T1 (PZQ+ALB/MBD)",COUNTRY_INFO!$U$9:$U$1000="T1 (PZQ+ALB/MBD)"), "T1 (PZQ+ALB/MBD)", " ") ->  | I63: 0 | K63: 0 | O63: 0
A64: =IF(COUNTRY_INFO!A64=0," ",COUNTRY_INFO!A64) -> Chad | B64: =IF(COUNTRY_INFO!B64=0," ",COUNTRY_INFO!B64) -> Logone Orientlal | C64: =IF(COUNTRY_INFO!C64=0," ",COUNTRY_INFO!C64) -> DONIA | D64: =IF(OR(COUNTRY_INFO!$T$9:$T$1000="T1 (PZQ+ALB/MBD)",COUNTRY_INFO!$U$9:$U$1000="T1 (PZQ+ALB/MBD)"), "T1 (PZQ+ALB/MBD)", " ") ->  | I64: 0 | K64: 0 | O64: 0
A65: =IF(COUNTRY_INFO!A65=0," ",COUNTRY_INFO!A65) -> Chad | B65: =IF(COUNTRY_INFO!B65=0," ",COUNTRY_INFO!B65) -> Logone Orientlal | C65: =IF(COUNTRY_INFO!C65=0," ",COUNTRY_INFO!C65) -> Goré | D65: =IF(OR(COUNTRY_INFO!$T$9:$T$1000="T1 (PZQ+ALB/MBD)",COUNTRY_INFO!$U$9:$U$1000="T1 (PZQ+ALB/MBD)"), "T1 (PZQ+ALB/MBD)", " ") ->  | I65: 0 | K65: 0 | O65: 0
A66: =IF(COUNTRY_INFO!A66=0," ",COUNTRY_INFO!A66) -> Chad | B66: =IF(COUNTRY_INFO!B66=0," ",COUNTRY_INFO!B66) -> Logone Orientlal | C66: =IF(COUNTRY_INFO!C66=0," ",COUNTRY_INFO!C66) -> Kara | D66: =IF(OR(COUNTRY_INFO!$T$9:$T$1000="T1 (PZQ+ALB/MBD)",COUNTRY_INFO!$U$9:$U$1000="T1 (PZQ+ALB/MBD)"), "T1 (PZQ+ALB/MBD)", " ") ->  | I66: 0 | K66: 0 | O66: 0
A67: =IF(COUNTRY_INFO!A67=0," ",COUNTRY_INFO!A67) -> Chad | B67: =IF(COUNTRY_INFO!B67=0," ",COUNTRY_INFO!B67) -> Logone Orientlal | C67: =IF(COUNTRY_INFO!C67=0," ",COUNTRY_INFO!C67) -> Larmanaye | D67: =IF(OR(COUNTRY_INFO!$T$9:$T$1000="T1 (PZQ+ALB/MBD)",COUNTRY_INFO!$U$9:$U$1000="T1 (PZQ+ALB/MBD)"), "T1 (PZQ+ALB/MBD)", " ") ->  | I67: 0 | K67: 0 | O67: 0
A68: =IF(COUNTRY_INFO!A68=0," ",COUNTRY_INFO!A68) -> Chad | B68: =IF(COUNTRY_INFO!B68=0," ",COUNTRY_INFO!B68) -> Mandoul | C68: =IF(COUNTRY_INFO!C68=0," ",COUNTRY_INFO!C68) -> Bedaya | D68: =IF(OR(COUNTRY_INFO!$T$9:$T$1000="T1 (PZQ+ALB/MBD)",COUNTRY_INFO!$U$9:$U$1000="T1 (PZQ+ALB/MBD)"), "T1 (PZQ+ALB/MBD)", " ") -> T1 (PZQ+ALB/MBD) | E68: PZQ+MBD | F68: 06-2017 | H68: 32306 | I68: 10660.98 | K68: 32306 | M68: 31934 | O68: 31934 | Q68: 98.84851111 | S68: 98.84851111
A69: =IF(COUNTRY_INFO!A69=0," ",COUNTRY_INFO!A69) -> Chad | B69: =IF(COUNTRY_INFO!B69=0," ",COUNTRY_INFO!B69) -> Mandoul | C69: =IF(COUNTRY_INFO!C69=0," ",COUNTRY_INFO!C69) -> Bedjondo | D69: =IF(OR(COUNTRY_INFO!$T$9:$T$1000="T1 (PZQ+ALB/MBD)",COUNTRY_INFO!$U$9:$U$1000="T1 (PZQ+ALB/MBD)"), "T1 (PZQ+ALB/MBD)", " ") -> T1 (PZQ+ALB/MBD) | E69: PZQ+MBD | F69: 06-2017 | H69: 39629 | I69: 13077.57 | K69: 39629 | M69: 38442 | O69: 38442 | Q69: 97.00471877 | S69: 97.00471877
A70: =IF(COUNTRY_INFO!A70=0," ",COUNTRY_INFO!A70) -> Chad | B70: =IF(COUNTRY_INFO!B70=0," ",COUNTRY_INFO!B70) -> Mandoul | C70: =IF(COUNTRY_INFO!C70=0," ",COUNTRY_INFO!C70) -> Bekourou | D70: =IF(OR(COUNTRY_INFO!$T$9:$T$1000="T1 (PZQ+ALB/MBD)",COUNTRY_INFO!$U$9:$U$1000="T1 (PZQ+ALB/MBD)"), "T1 (PZQ+ALB/MBD)", " ") ->  | I70: 0 | K70: 0 | O70: 0
A71: =IF(COUNTRY_INFO!A71=0," ",COUNTRY_INFO!A71) -> Chad | B71: =IF(COUNTRY_INFO!B71=0," ",COUNTRY_INFO!B71) -> Mandoul | C71: =IF(COUNTRY_INFO!C71=0," ",COUNTRY_INFO!C71) -> Bouna | D71: =IF(OR(COUNTRY_INFO!$T$9:$T$1000="T1 (PZQ+ALB/MBD)",COUNTRY_INFO!$U$9:$U$1000="T1 (PZQ+ALB/MBD)"), "T1 (PZQ+ALB/MBD)", " ") -> T1 (PZQ+ALB/MBD) | F71: 06-2017 | H71: 33741 | I71: 32241 | K71: 33741 | M71: 32241 | O71: 32241 | Q71: 95.55437005 | S71: 95.55437005
A72: =IF(COUNTRY_INFO!A72=0," ",COUNTRY_INFO!A72) -> Chad | B72: =IF(COUNTRY_INFO!B72=0," ",COUNTRY_INFO!B72) -> Mandoul | C72: =IF(COUNTRY_INFO!C72=0," ",COUNTRY_INFO!C72) -> Goundi | D72: =IF(OR(COUNTRY_INFO!$T$9:$T$1000="T1 (PZQ+ALB/MBD)",COUNTRY_INFO!$U$9:$U$1000="T1 (PZQ+ALB/MBD)"), "T1 (PZQ+ALB/MBD)", " ") ->  | I72: 0 | K72: 0 | O72: 0
A73: =IF(COUNTRY_INFO!A73=0," ",COUNTRY_INFO!A73) -> Chad | B73: =IF(COUNTRY_INFO!B73=0," ",COUNTRY_INFO!B73) -> Mandoul | C73: =IF(COUNTRY_INFO!C73=0," ",COUNTRY_INFO!C73) -> Koumra | D73: =IF(OR(COUNTRY_INFO!$T$9:$T$1000="T1 (PZQ+ALB/MBD)",COUNTRY_INFO!$U$9:$U$1000="T1 (PZQ+ALB/MBD)"), "T1 (PZQ+ALB/MBD)", " ") ->  | I73: 0 | K73: 0 | O73: 0
A74: =IF(COUNTRY_INFO!A74=0," ",COUNTRY_INFO!A74) -> Chad | B74: =IF(COUNTRY_INFO!B74=0," ",COUNTRY_INFO!B74) -> Mandoul | C74: =IF(COUNTRY_INFO!C74=0," ",COUNTRY_INFO!C74) -> Moissala | D74: =IF(OR(COUNTRY_INFO!$T$9:$T$1000="T1 (PZQ+ALB/MBD)",COUNTRY_INFO!$U$9:$U$1000="T1 (PZQ+ALB/MBD)"), "T1 (PZQ+ALB/MBD)", " ") -> T1 (PZQ+ALB/MBD) | E74: PZQ+MBD | F74: 06-2017 | H74: 63728 | I74: 63008 | K74: =MAX(H74:I74)+G74+J74 -> 63728 | M74: 63008 | O74: =SUM(L74:N74) -> 63008 | P74: =IF(G74<>0, IF(L74/G74*100=0, "-", L74/G74*100), " ") ->  | Q74: =IF(OR(I74<>0,H74<>0), IF(M74/MAX(H74,I74)*100=0, "-", M74/MAX(H74,I74)*100), " ") -> 98.87019834 | R74: =IF(J74<>0, IF(N74/J74*100=0, "-", N74/J74*100), " ") ->  | S74: =IF(K74<>0, IF(O74/K74*100=0, "-", O74/K74*100), " ") -> 98.87019834
A75: =IF(COUNTRY_INFO!A75=0," ",COUNTRY_INFO!A75) -> Chad | B75: =IF(COUNTRY_INFO!B75=0," ",COUNTRY_INFO!B75) -> Mayo Kebbi Est | C75: =IF(COUNTRY_INFO!C75=0," ",COUNTRY_INFO!C75) -> Bongor | D75: =IF(OR(COUNTRY_INFO!$T$9:$T$1000="T1 (PZQ+ALB/MBD)",COUNTRY_INFO!$U$9:$U$1000="T1 (PZQ+ALB/MBD)"), "T1 (PZQ+ALB/MBD)", " ") -> T1 (PZQ+ALB/MBD) | E75: PZQ+MBD | F75: 06-2017 | H75: 51596 | I75: 25798 | K75: 51596 | M75: 51231 | O75: 51231 | Q75: 99.29258082 | S75: 99.29258082
A76: =IF(COUNTRY_INFO!A76=0," ",COUNTRY_INFO!A76) -> Chad | B76: =IF(COUNTRY_INFO!B76=0," ",COUNTRY_INFO!B76) -> Mayo Kebbi Est | C76: =IF(COUNTRY_INFO!C76=0," ",COUNTRY_INFO!C76) -> Fianga | D76: =IF(OR(COUNTRY_INFO!$T$9:$T$1000="T1 (PZQ+ALB/MBD)",COUNTRY_INFO!$U$9:$U$1000="T1 (PZQ+ALB/MBD)"), "T1 (PZQ+ALB/MBD)", " ") ->  | E76: PZQ+MBD | I76: 0 | K76: 0 | O76: 0
A77: =IF(COUNTRY_INFO!A77=0," ",COUNTRY_INFO!A77) -> Chad | B77: =IF(COUNTRY_INFO!B77=0," ",COUNTRY_INFO!B77) -> Mayo Kebbi Est | C77: =IF(COUNTRY_INFO!C77=0," ",COUNTRY_INFO!C77) -> Gounou Gaya | D77: =IF(OR(COUNTRY_INFO!$T$9:$T$1000="T1 (PZQ+ALB/MBD)",COUNTRY_INFO!$U$9:$U$1000="T1 (PZQ+ALB/MBD)"), "T1 (PZQ+ALB/MBD)", " ") -> T1 (PZQ+ALB/MBD) | E77: PZQ+MBD | F77: 06-2017 | H77: 40107 | I77: 20053.5 | K77: 40107 | M77: 39461 | O77: 39461 | Q77: 98.3893086 | S77: 98.3893086
A78: =IF(COUNTRY_INFO!A78=0," ",COUNTRY_INFO!A78) -> Chad | B78: =IF(COUNTRY_INFO!B78=0," ",COUNTRY_INFO!B78) -> Mayo Kebbi Est | C78: =IF(COUNTRY_INFO!C78=0," ",COUNTRY_INFO!C78) -> Guelinding | D78: =IF(OR(COUNTRY_INFO!$T$9:$T$1000="T1 (PZQ+ALB/MBD)",COUNTRY_INFO!$U$9:$U$1000="T1 (PZQ+ALB/MBD)"), "T1 (PZQ+ALB/MBD)", " ") ->  | E78: PZQ+MBD | I78: 0 | K78: 0 | O78: 0
A79: =IF(COUNTRY_INFO!A79=0," ",COUNTRY_INFO!A79) -> Chad | B79: =IF(COUNTRY_INFO!B79=0," ",COUNTRY_INFO!B79) -> Mayo Kebbi Est | C79: =IF(COUNTRY_INFO!C79=0," ",COUNTRY_INFO!C79) -> Moulkou | D79: =IF(OR(COUNTRY_INFO!$T$9:$T$1000="T1 (PZQ+ALB/MBD)",COUNTRY_INFO!$U$9:$U$1000="T1 (PZQ+ALB/MBD)"), "T1 (PZQ+ALB/MBD)", " ") ->  | E79: PZQ+MBD | I79: 23011 | K79: 23011 | M79: 23011 | O79: 23011 | Q79: 100 | S79: 100
A80: =IF(COUNTRY_INFO!A80=0," ",COUNTRY_INFO!A80) -> Chad | B80: =IF(COUNTRY_INFO!B80=0," ",COUNTRY_INFO!B80) -> Mayo Kebbi Est | C80: =IF(COUNTRY_INFO!C80=0," ",COUNTRY_INFO!C80) -> Pont Carol | D80: =IF(OR(COUNTRY_INFO!$T$9:$T$1000="T1 (PZQ+ALB/MBD)",COUNTRY_INFO!$U$9:$U$1000="T1 (PZQ+ALB/MBD)"), "T1 (PZQ+ALB/MBD)", " ") -> T1 (PZQ+ALB/MBD) | E80: PZQ+MBD | F80: 06-2017 | H80: 26461 | I80: 13230.5 | K80: 26461 | M80: 25874 | O80: 25874 | Q80: 97.78164091 | S80: 97.78164091
A81: =IF(COUNTRY_INFO!A81=0," ",COUNTRY_INFO!A81) -> Chad | B81: =IF(COUNTRY_INFO!B81=0," ",COUNTRY_INFO!B81) -> Mayo Kebbi Est | C81: =IF(COUNTRY_INFO!C81=0," ",COUNTRY_INFO!C81) -> Youé | D81: =IF(OR(COUNTRY_INFO!$T$9:$T$1000="T1 (PZQ+ALB/MBD)",COUNTRY_INFO!$U$9:$U$1000="T1 (PZQ+ALB/MBD)"), "T1 (PZQ+ALB/MBD)", " ") -> T1 (PZQ+ALB/MBD) | E81: PZQ+MBD | F81: 06-2017 | H81: 21586 | I81: 21586 | K81: 21586 | M81: 21007 | O81: 21007 | Q81: 97.31770592 | S81: 97.31770592
A82: =IF(COUNTRY_INFO!A82=0," ",COUNTRY_INFO!A82) -> Chad | B82: =IF(COUNTRY_INFO!B82=0," ",COUNTRY_INFO!B82) -> Mayo Kebbi Ouest | C82: =IF(COUNTRY_INFO!C82=0," ",COUNTRY_INFO!C82) -> Binder | D82: =IF(OR(COUNTRY_INFO!$T$9:$T$1000="T1 (PZQ+ALB/MBD)",COUNTRY_INFO!$U$9:$U$1000="T1 (PZQ+ALB/MBD)"), "T1 (PZQ+ALB/MBD)", " ") -> T1 (PZQ+ALB/MBD) | E82: PZQ+MBD | F82: 06-2017 | H82: 25531 | I82: 25531 | K82: 25531 | M82: 25004 | O82: 25004 | Q82: 97.9358427 | S82: 97.9358427
A83: =IF(COUNTRY_INFO!A83=0," ",COUNTRY_INFO!A83) -> Chad | B83: =IF(COUNTRY_INFO!B83=0," ",COUNTRY_INFO!B83) -> Mayo Kebbi Ouest | C83: =IF(COUNTRY_INFO!C83=0," ",COUNTRY_INFO!C83) -> Gagal | D83: =IF(OR(COUNTRY_INFO!$T$9:$T$1000="T1 (PZQ+ALB/MBD)",COUNTRY_INFO!$U$9:$U$1000="T1 (PZQ+ALB/MBD)"), "T1 (PZQ+ALB/MBD)", " ") -> T1 (PZQ+ALB/MBD) | E83: PZQ+MBD | F83: 06-2017 | H83: 47181 | I83: 23590.5 | K83: 47181 | M83: 46824 | O83: 46824 | Q83: 99.24333948 | S83: 99.24333948
A84: =IF(COUNTRY_INFO!A84=0," ",COUNTRY_INFO!A84) -> Chad | B84: =IF(COUNTRY_INFO!B84=0," ",COUNTRY_INFO!B84) -> Mayo Kebbi Ouest | C84: =IF(COUNTRY_INFO!C84=0," ",COUNTRY_INFO!C84) -> Guegou | D84: =IF(OR(COUNTRY_INFO!$T$9:$T$1000="T1 (PZQ+ALB/MBD)",COUNTRY_INFO!$U$9:$U$1000="T1 (PZQ+ALB/MBD)"), "T1 (PZQ+ALB/MBD)", " ") ->  | E84: PZQ+MBD | I84: 0 | K84: 0 | O84: 0
A85: =IF(COUNTRY_INFO!A85=0," ",COUNTRY_INFO!A85) -> Chad | B85: =IF(COUNTRY_INFO!B85=0," ",COUNTRY_INFO!B85) -> Mayo Kebbi Ouest | C85: =IF(COUNTRY_INFO!C85=0," ",COUNTRY_INFO!C85) -> GUELO | D85: =IF(OR(COUNTRY_INFO!$T$9:$T$1000="T1 (PZQ+ALB/MBD)",COUNTRY_INFO!$U$9:$U$1000="T1 (PZQ+ALB/MBD)"), "T1 (PZQ+ALB/MBD)", " ") ->  | E85: PZQ+MBD | I85: 0 | K85: 0 | O85: 0
A86: =IF(COUNTRY_INFO!A86=0," ",COUNTRY_INFO!A86) -> Chad | B86: =IF(COUNTRY_INFO!B86=0," ",COUNTRY_INFO!B86) -> Mayo Kebbi Ouest | C86: =IF(COUNTRY_INFO!C86=0," ",COUNTRY_INFO!C86) -> Lagon | D86: =IF(OR(COUNTRY_INFO!$T$9:$T$1000="T1 (PZQ+ALB/MBD)",COUNTRY_INFO!$U$9:$U$1000="T1 (PZQ+ALB/MBD)"), "T1 (PZQ+ALB/MBD)", " ") -> T1 (PZQ+ALB/MBD) | E86: PZQ+MBD | F86: 06-2017 | H86: 26371 | I86: 26371 | K86: 26371 | M86: 25846 | O86: 25846 | Q86: 98.00917675 | S86: 98.00917675
A87: =IF(COUNTRY_INFO!A87=0," ",COUNTRY_INFO!A87) -> Chad | B87: =IF(COUNTRY_INFO!B87=0," ",COUNTRY_INFO!B87) -> Mayo Kebbi Ouest | C87: =IF(COUNTRY_INFO!C87=0," ",COUNTRY_INFO!C87) -> Lamé | D87: =IF(OR(COUNTRY_INFO!$T$9:$T$1000="T1 (PZQ+ALB/MBD)",COUNTRY_INFO!$U$9:$U$1000="T1 (PZQ+ALB/MBD)"), "T1 (PZQ+ALB/MBD)", " ") -> T1 (PZQ+ALB/MBD) | E87: PZQ+MBD | F87: 06-2017 | H87: 28163 | I87: 14081.5 | K87: 28163 | M87: 27088 | O87: 27088 | Q87: 96.18293506 | S87: 96.18293506
A88: =IF(COUNTRY_INFO!A88=0," ",COUNTRY_INFO!A88) -> Chad | B88: =IF(COUNTRY_INFO!B88=0," ",COUNTRY_INFO!B88) -> Mayo Kebbi Ouest | C88: =IF(COUNTRY_INFO!C88=0," ",COUNTRY_INFO!C88) -> Lere | D88: =IF(OR(COUNTRY_INFO!$T$9:$T$1000="T1 (PZQ+ALB/MBD)",COUNTRY_INFO!$U$9:$U$1000="T1 (PZQ+ALB/MBD)"), "T1 (PZQ+ALB/MBD)", " ") -> T1 (PZQ+ALB/MBD) | E88: PZQ+MBD | F88: 06-2017 | H88: 47183 | I88: 47183 | K88: 47183 | M88: 46228 | O88: 46228 | Q88: 97.97596592 | S88: 97.97596592
A89: =IF(COUNTRY_INFO!A89=0," ",COUNTRY_INFO!A89) -> Chad | B89: =IF(COUNTRY_INFO!B89=0," ",COUNTRY_INFO!B89) -> Mayo Kebbi Ouest | C89: =IF(COUNTRY_INFO!C89=0," ",COUNTRY_INFO!C89) -> Pala | D89: =IF(OR(COUNTRY_INFO!$T$9:$T$1000="T1 (PZQ+ALB/MBD)",COUNTRY_INFO!$U$9:$U$1000="T1 (PZQ+ALB/MBD)"), "T1 (PZQ+ALB/MBD)", " ") -> T1 (PZQ+ALB/MBD) | E89: PZQ+MBD | F89: 06-2017 | H89: 43894 | I89: 21947 | K89: 43894 | M89: 43108 | O89: 43108 | Q89: 98.20932246 | S89: 98.20932246
A90: =IF(COUNTRY_INFO!A90=0," ",COUNTRY_INFO!A90) -> Chad | B90: =IF(COUNTRY_INFO!B90=0," ",COUNTRY_INFO!B90) -> Mayo Kebbi Ouest | C90: =IF(COUNTRY_INFO!C90=0," ",COUNTRY_INFO!C90) -> Torrock | D90: =IF(OR(COUNTRY_INFO!$T$9:$T$1000="T1 (PZQ+ALB/MBD)",COUNTRY_INFO!$U$9:$U$1000="T1 (PZQ+ALB/MBD)"), "T1 (PZQ+ALB/MBD)", " ") -> T1 (PZQ+ALB/MBD) | E90: PZQ+MBD | F90: 06-2017 | H90: 23054 | I90: 11527 | K90: 23054 | M90: 22876 | O90: 22876 | Q90: 99.22789971 | S90: 99.22789971
A91: =IF(COUNTRY_INFO!A91=0," ",COUNTRY_INFO!A91) -> Chad | B91: =IF(COUNTRY_INFO!B91=0," ",COUNTRY_INFO!B91) -> Moyen Chari | C91: =IF(COUNTRY_INFO!C91=0," ",COUNTRY_INFO!C91) -> Biobe Singako | D91: =IF(OR(COUNTRY_INFO!$T$9:$T$1000="T1 (PZQ+ALB/MBD)",COUNTRY_INFO!$U$9:$U$1000="T1 (PZQ+ALB/MBD)"), "T1 (PZQ+ALB/MBD)", " ") ->  | I91: 0 | K91: 0 | O91: 0
A92: =IF(COUNTRY_INFO!A92=0," ",COUNTRY_INFO!A92) -> Chad | B92: =IF(COUNTRY_INFO!B92=0," ",COUNTRY_INFO!B92) -> Moyen Chari | C92: =IF(COUNTRY_INFO!C92=0," ",COUNTRY_INFO!C92) -> Danamadji | D92: =IF(OR(COUNTRY_INFO!$T$9:$T$1000="T1 (PZQ+ALB/MBD)",COUNTRY_INFO!$U$9:$U$1000="T1 (PZQ+ALB/MBD)"), "T1 (PZQ+ALB/MBD)", " ") ->  | I92: 0 | K92: 0 | O92: 0
A93: =IF(COUNTRY_INFO!A93=0," ",COUNTRY_INFO!A93) -> Chad | B93: =IF(COUNTRY_INFO!B93=0," ",COUNTRY_INFO!B93) -> Moyen Chari | C93: =IF(COUNTRY_INFO!C93=0," ",COUNTRY_INFO!C93) -> Korbol | D93: =IF(OR(COUNTRY_INFO!$T$9:$T$1000="T1 (PZQ+ALB/MBD)",COUNTRY_INFO!$U$9:$U$1000="T1 (PZQ+ALB/MBD)"), "T1 (PZQ+ALB/MBD)", " ") ->  | I93: 0 | K93: 0 | O93: 0
A94: =IF(COUNTRY_INFO!A94=0," ",COUNTRY_INFO!A94) -> Chad | B94: =IF(COUNTRY_INFO!B94=0," ",COUNTRY_INFO!B94) -> Moyen Chari | C94: =IF(COUNTRY_INFO!C94=0," ",COUNTRY_INFO!C94) -> Kyabe | D94: =IF(OR(COUNTRY_INFO!$T$9:$T$1000="T1 (PZQ+ALB/MBD)",COUNTRY_INFO!$U$9:$U$1000="T1 (PZQ+ALB/MBD)"), "T1 (PZQ+ALB/MBD)", " ") ->  | I94: 0 | K94: 0 | O94: 0
A95: =IF(COUNTRY_INFO!A95=0," ",COUNTRY_INFO!A95) -> Chad | B95: =IF(COUNTRY_INFO!B95=0," ",COUNTRY_INFO!B95) -> Moyen Chari | C95: =IF(COUNTRY_INFO!C95=0," ",COUNTRY_INFO!C95) -> Maro | D95: =IF(OR(COUNTRY_INFO!$T$9:$T$1000="T1 (PZQ+ALB/MBD)",COUNTRY_INFO!$U$9:$U$1000="T1 (PZQ+ALB/MBD)"), "T1 (PZQ+ALB/MBD)", " ") ->  | I95: 0 | K95: 0 | O95: 0
A96: =IF(COUNTRY_INFO!A96=0," ",COUNTRY_INFO!A96) -> Chad | B96: =IF(COUNTRY_INFO!B96=0," ",COUNTRY_INFO!B96) -> Moyen Chari | C96: =IF(COUNTRY_INFO!C96=0," ",COUNTRY_INFO!C96) -> Sarh | D96: =IF(OR(COUNTRY_INFO!$T$9:$T$1000="T1 (PZQ+ALB/MBD)",COUNTRY_INFO!$U$9:$U$1000="T1 (PZQ+ALB/MBD)"), "T1 (PZQ+ALB/MBD)", " ") ->  | I96: 0 | K96: 0 | O96: 0
A97: =IF(COUNTRY_INFO!A97=0," ",COUNTRY_INFO!A97) -> Chad | B97: =IF(COUNTRY_INFO!B97=0," ",COUNTRY_INFO!B97) -> N'Djaména | C97: =IF(COUNTRY_INFO!C97=0," ",COUNTRY_INFO!C97) -> N'Djaména Centre | D97: =IF(OR(COUNTRY_INFO!$T$9:$T$1000="T1 (PZQ+ALB/MBD)",COUNTRY_INFO!$U$9:$U$1000="T1 (PZQ+ALB/MBD)"), "T1 (PZQ+ALB/MBD)", " ") ->  | I97: 0 | K97: 0 | O97: 0
A98: =IF(COUNTRY_INFO!A98=0," ",COUNTRY_INFO!A98) -> Chad | B98: =IF(COUNTRY_INFO!B98=0," ",COUNTRY_INFO!B98) -> N'Djaména | C98: =IF(COUNTRY_INFO!C98=0," ",COUNTRY_INFO!C98) -> N'Djaména Est | D98: =IF(OR(COUNTRY_INFO!$T$9:$T$1000="T1 (PZQ+ALB/MBD)",COUNTRY_INFO!$U$9:$U$1000="T1 (PZQ+ALB/MBD)"), "T1 (PZQ+ALB/MBD)", " ") ->  | I98: 0 | K98: 0 | O98: 0
A99: =IF(COUNTRY_INFO!A99=0," ",COUNTRY_INFO!A99) -> Chad | B99: =IF(COUNTRY_INFO!B99=0," ",COUNTRY_INFO!B99) -> N'Djaména | C99: =IF(COUNTRY_INFO!C99=0," ",COUNTRY_INFO!C99) -> N'Djaména Nord | D99: =IF(OR(COUNTRY_INFO!$T$9:$T$1000="T1 (PZQ+ALB/MBD)",COUNTRY_INFO!$U$9:$U$1000="T1 (PZQ+ALB/MBD)"), "T1 (PZQ+ALB/MBD)", " ") ->  | I99: 0 | K99: 0 | O99: 0
A100: =IF(COUNTRY_INFO!A100=0," ",COUNTRY_INFO!A100) -> Chad | B100: =IF(COUNTRY_INFO!B100=0," ",COUNTRY_INFO!B100) -> N'Djaména | C100: =IF(COUNTRY_INFO!C100=0," ",COUNTRY_INFO!C100) -> N'Djaména Sud | D100: =IF(OR(COUNTRY_INFO!$T$9:$T$1000="T1 (PZQ+ALB/MBD)",COUNTRY_INFO!$U$9:$U$1000="T1 (PZQ+ALB/MBD)"), "T1 (PZQ+ALB/MBD)", " ") ->  | I100: 0 | K100: 0 | O100: 0
A101: =IF(COUNTRY_INFO!A101=0," ",COUNTRY_INFO!A101) -> Chad | B101: =IF(COUNTRY_INFO!B101=0," ",COUNTRY_INFO!B101) -> Ouaddai | C101: =IF(COUNTRY_INFO!C101=0," ",COUNTRY_INFO!C101) -> Abdi | D101: =IF(OR(COUNTRY_INFO!$T$9:$T$1000="T1 (PZQ+ALB/MBD)",COUNTRY_INFO!$U$9:$U$1000="T1 (PZQ+ALB/MBD)"), "T1 (PZQ+ALB/MBD)", " ") ->  | I101: 0 | K101: 0 | O101: 0
A102: =IF(COUNTRY_INFO!A102=0," ",COUNTRY_INFO!A102) -> Chad | B102: =IF(COUNTRY_INFO!B102=0," ",COUNTRY_INFO!B102) -> Ouaddai | C102: =IF(COUNTRY_INFO!C102=0," ",COUNTRY_INFO!C102) -> Abeche | D102: =IF(OR(COUNTRY_INFO!$T$9:$T$1000="T1 (PZQ+ALB/MBD)",COUNTRY_INFO!$U$9:$U$1000="T1 (PZQ+ALB/MBD)"), "T1 (PZQ+ALB/MBD)", " ") ->  | I102: 0 | K102: 0 | O102: 0
A103: =IF(COUNTRY_INFO!A103=0," ",COUNTRY_INFO!A103) -> Chad | B103: =IF(COUNTRY_INFO!B103=0," ",COUNTRY_INFO!B103) -> Ouaddai | C103: =IF(COUNTRY_INFO!C103=0," ",COUNTRY_INFO!C103) -> Abougoudam | D103: =IF(OR(COUNTRY_INFO!$T$9:$T$1000="T1 (PZQ+ALB/MBD)",COUNTRY_INFO!$U$9:$U$1000="T1 (PZQ+ALB/MBD)"), "T1 (PZQ+ALB/MBD)", " ") ->  | I103: 0 | K103: 0 | O103: 0
A104: =IF(COUNTRY_INFO!A104=0," ",COUNTRY_INFO!A104) -> Chad | B104: =IF(COUNTRY_INFO!B104=0," ",COUNTRY_INFO!B104) -> Ouaddai | C104: =IF(COUNTRY_INFO!C104=0," ",COUNTRY_INFO!C104) -> Adré | D104: =IF(OR(COUNTRY_INFO!$T$9:$T$1000="T1 (PZQ+ALB/MBD)",COUNTRY_INFO!$U$9:$U$1000="T1 (PZQ+ALB/MBD)"), "T1 (PZQ+ALB/MBD)", " ") ->  | I104: 0 | K104: 0 | O104: 0
A105: =IF(COUNTRY_INFO!A105=0," ",COUNTRY_INFO!A105) -> Chad | B105: =IF(COUNTRY_INFO!B105=0," ",COUNTRY_INFO!B105) -> Salamat | C105: =IF(COUNTRY_INFO!C105=0," ",COUNTRY_INFO!C105) -> Aboudeia | D105: =IF(OR(COUNTRY_INFO!$T$9:$T$1000="T1 (PZQ+ALB/MBD)",COUNTRY_INFO!$U$9:$U$1000="T1 (PZQ+ALB/MBD)"), "T1 (PZQ+ALB/MBD)", " ") ->  | I105: 0 | K105: 0 | O105: 0
A106: =IF(COUNTRY_INFO!A106=0," ",COUNTRY_INFO!A106) -> Chad | B106: =IF(COUNTRY_INFO!B106=0," ",COUNTRY_INFO!B106) -> Salamat | C106: =IF(COUNTRY_INFO!C106=0," ",COUNTRY_INFO!C106) -> Am-Timan | D106: =IF(OR(COUNTRY_INFO!$T$9:$T$1000="T1 (PZQ+ALB/MBD)",COUNTRY_INFO!$U$9:$U$1000="T1 (PZQ+ALB/MBD)"), "T1 (PZQ+ALB/MBD)", " ") ->  | I106: 0 | K106: 0 | O106: 0
A107: =IF(COUNTRY_INFO!A107=0," ",COUNTRY_INFO!A107) -> Chad | B107: =IF(COUNTRY_INFO!B107=0," ",COUNTRY_INFO!B107) -> Salamat | C107: =IF(COUNTRY_INFO!C107=0," ",COUNTRY_INFO!C107) -> Haraze | D107: =IF(OR(COUNTRY_INFO!$T$9:$T$1000="T1 (PZQ+ALB/MBD)",COUNTRY_INFO!$U$9:$U$1000="T1 (PZQ+ALB/MBD)"), "T1 (PZQ+ALB/MBD)", " ") ->  | I107: 0 | K107: 0 | O107: 0
A108: =IF(COUNTRY_INFO!A108=0," ",COUNTRY_INFO!A108) -> Chad | B108: =IF(COUNTRY_INFO!B108=0," ",COUNTRY_INFO!B108) -> Sila | C108: =IF(COUNTRY_INFO!C108=0," ",COUNTRY_INFO!C108) -> Am-dam | D108: =IF(OR(COUNTRY_INFO!$T$9:$T$1000="T1 (PZQ+ALB/MBD)",COUNTRY_INFO!$U$9:$U$1000="T1 (PZQ+ALB/MBD)"), "T1 (PZQ+ALB/MBD)", " ") ->  | I108: 0 | K108: 0 | O108: 0
A109: =IF(COUNTRY_INFO!A109=0," ",COUNTRY_INFO!A109) -> Chad | B109: =IF(COUNTRY_INFO!B109=0," ",COUNTRY_INFO!B109) -> Sila | C109: =IF(COUNTRY_INFO!C109=0," ",COUNTRY_INFO!C109) -> Goz-beida | D109: =IF(OR(COUNTRY_INFO!$T$9:$T$1000="T1 (PZQ+ALB/MBD)",COUNTRY_INFO!$U$9:$U$1000="T1 (PZQ+ALB/MBD)"), "T1 (PZQ+ALB/MBD)", " ") ->  | I109: 0 | K109: 0 | O109: 0
A110: =IF(COUNTRY_INFO!A110=0," ",COUNTRY_INFO!A110) -> Chad | B110: =IF(COUNTRY_INFO!B110=0," ",COUNTRY_INFO!B110) -> Sila | C110: =IF(COUNTRY_INFO!C110=0," ",COUNTRY_INFO!C110) -> Koukou | D110: =IF(OR(COUNTRY_INFO!$T$9:$T$1000="T1 (PZQ+ALB/MBD)",COUNTRY_INFO!$U$9:$U$1000="T1 (PZQ+ALB/MBD)"), "T1 (PZQ+ALB/MBD)", " ") ->  | I110: 0 | K110: 0 | O110: 0
A111: =IF(COUNTRY_INFO!A111=0," ",COUNTRY_INFO!A111) -> Chad | B111: =IF(COUNTRY_INFO!B111=0," ",COUNTRY_INFO!B111) -> Sila | C111: =IF(COUNTRY_INFO!C111=0," ",COUNTRY_INFO!C111) -> Tissi | D111: =IF(OR(COUNTRY_INFO!$T$9:$T$1000="T1 (PZQ+ALB/MBD)",COUNTRY_INFO!$U$9:$U$1000="T1 (PZQ+ALB/MBD)"), "T1 (PZQ+ALB/MBD)", " ") ->  | I111: 0 | K111: 0 | O111: 0
A112: =IF(COUNTRY_INFO!A112=0," ",COUNTRY_INFO!A112) -> Chad | B112: =IF(COUNTRY_INFO!B112=0," ",COUNTRY_INFO!B112) -> Tandjile | C112: =IF(COUNTRY_INFO!C112=0," ",COUNTRY_INFO!C112) -> Batchoro | D112: =IF(OR(COUNTRY_INFO!$T$9:$T$1000="T1 (PZQ+ALB/MBD)",COUNTRY_INFO!$U$9:$U$1000="T1 (PZQ+ALB/MBD)"), "T1 (PZQ+ALB/MBD)", " ") ->  | I112: 0 | K112: 0 | O112: 0
A113: =IF(COUNTRY_INFO!A113=0," ",COUNTRY_INFO!A113) -> Chad | B113: =IF(COUNTRY_INFO!B113=0," ",COUNTRY_INFO!B113) -> Tandjile | C113: =IF(COUNTRY_INFO!C113=0," ",COUNTRY_INFO!C113) -> Bere | D113: =IF(OR(COUNTRY_INFO!$T$9:$T$1000="T1 (PZQ+ALB/MBD)",COUNTRY_INFO!$U$9:$U$1000="T1 (PZQ+ALB/MBD)"), "T1 (PZQ+ALB/MBD)", " ") ->  | I113: 0 | K113: 0 | O113: 0
A114: =IF(COUNTRY_INFO!A114=0," ",COUNTRY_INFO!A114) -> Chad | B114: =IF(COUNTRY_INFO!B114=0," ",COUNTRY_INFO!B114) -> Tandjile | C114: =IF(COUNTRY_INFO!C114=0," ",COUNTRY_INFO!C114) -> Dafra | D114: =IF(OR(COUNTRY_INFO!$T$9:$T$1000="T1 (PZQ+ALB/MBD)",COUNTRY_INFO!$U$9:$U$1000="T1 (PZQ+ALB/MBD)"), "T1 (PZQ+ALB/MBD)", " ") ->  | I114: 0 | K114: 0 | O114: 0
A115: =IF(COUNTRY_INFO!A115=0," ",COUNTRY_INFO!A115) -> Chad | B115: =IF(COUNTRY_INFO!B115=0," ",COUNTRY_INFO!B115) -> Tandjile | C115: =IF(COUNTRY_INFO!C115=0," ",COUNTRY_INFO!C115) -> Donamanga | D115: =IF(OR(COUNTRY_INFO!$T$9:$T$1000="T1 (PZQ+ALB/MBD)",COUNTRY_INFO!$U$9:$U$1000="T1 (PZQ+ALB/MBD)"), "T1 (PZQ+ALB/MBD)", " ") ->  | I115: 0 | K115: 0 | O115: 0
A116: =IF(COUNTRY_INFO!A116=0," ",COUNTRY_INFO!A116) -> Chad | B116: =IF(COUNTRY_INFO!B116=0," ",COUNTRY_INFO!B116) -> Tandjile | C116: =IF(COUNTRY_INFO!C116=0," ",COUNTRY_INFO!C116) -> Guidari | D116: =IF(OR(COUNTRY_INFO!$T$9:$T$1000="T1 (PZQ+ALB/MBD)",COUNTRY_INFO!$U$9:$U$1000="T1 (PZQ+ALB/MBD)"), "T1 (PZQ+ALB/MBD)", " ") ->  | I116: 0 | K116: 0 | O116: 0
A117: =IF(COUNTRY_INFO!A117=0," ",COUNTRY_INFO!A117) -> Chad | B117: =IF(COUNTRY_INFO!B117=0," ",COUNTRY_INFO!B117) -> Tandjile | C117: =IF(COUNTRY_INFO!C117=0," ",COUNTRY_INFO!C117) -> Kelo | D117: =IF(OR(COUNTRY_INFO!$T$9:$T$1000="T1 (PZQ+ALB/MBD)",COUNTRY_INFO!$U$9:$U$1000="T1 (PZQ+ALB/MBD)"), "T1 (PZQ+ALB/MBD)", " ") ->  | I117: 0 | K117: 0 | O117: 0
A118: =IF(COUNTRY_INFO!A118=0," ",COUNTRY_INFO!A118) -> Chad | B118: =IF(COUNTRY_INFO!B118=0," ",COUNTRY_INFO!B118) -> Tandjile | C118: =IF(COUNTRY_INFO!C118=0," ",COUNTRY_INFO!C118) -> Kolon | D118: =IF(OR(COUNTRY_INFO!$T$9:$T$1000="T1 (PZQ+ALB/MBD)",COUNTRY_INFO!$U$9:$U$1000="T1 (PZQ+ALB/MBD)"), "T1 (PZQ+ALB/MBD)", " ") ->  | I118: 0 | K118: 0 | O118: 0
A119: =IF(COUNTRY_INFO!A119=0," ",COUNTRY_INFO!A119) -> Chad | B119: =IF(COUNTRY_INFO!B119=0," ",COUNTRY_INFO!B119) -> Tandjile | C119: =IF(COUNTRY_INFO!C119=0," ",COUNTRY_INFO!C119) -> Lai | D119: =IF(OR(COUNTRY_INFO!$T$9:$T$1000="T1 (PZQ+ALB/MBD)",COUNTRY_INFO!$U$9:$U$1000="T1 (PZQ+ALB/MBD)"), "T1 (PZQ+ALB/MBD)", " ") ->  | I119: 0 | K119: 0 | O119: 0
A120: =IF(COUNTRY_INFO!A120=0," ",COUNTRY_INFO!A120) -> Chad | B120: =IF(COUNTRY_INFO!B120=0," ",COUNTRY_INFO!B120) -> Tibesti | C120: =IF(COUNTRY_INFO!C120=0," ",COUNTRY_INFO!C120) -> Bardaï | D120: =IF(OR(COUNTRY_INFO!$T$9:$T$1000="T1 (PZQ+ALB/MBD)",COUNTRY_INFO!$U$9:$U$1000="T1 (PZQ+ALB/MBD)"), "T1 (PZQ+ALB/MBD)", " ") ->  | I120: 0 | K120: 0 | O120: 0
A121: =IF(COUNTRY_INFO!A121=0," ",COUNTRY_INFO!A121) -> Chad | B121: =IF(COUNTRY_INFO!B121=0," ",COUNTRY_INFO!B121) -> Tibesti | C121: =IF(COUNTRY_INFO!C121=0," ",COUNTRY_INFO!C121) -> Zouar | D121: =IF(OR(COUNTRY_INFO!$T$9:$T$1000="T1 (PZQ+ALB/MBD)",COUNTRY_INFO!$U$9:$U$1000="T1 (PZQ+ALB/MBD)"), "T1 (PZQ+ALB/MBD)", " ") ->  | I121: 0 | K121: 0 | O121: 0
A122: =IF(COUNTRY_INFO!A122=0," ",COUNTRY_INFO!A122) -> Chad | B122: =IF(COUNTRY_INFO!B122=0," ",COUNTRY_INFO!B122) -> Wadi Fira | C122: =IF(COUNTRY_INFO!C122=0," ",COUNTRY_INFO!C122) -> amzoer | D122: =IF(OR(COUNTRY_INFO!$T$9:$T$1000="T1 (PZQ+ALB/MBD)",COUNTRY_INFO!$U$9:$U$1000="T1 (PZQ+ALB/MBD)"), "T1 (PZQ+ALB/MBD)", " ") ->  | I122: 0 | K122: 0 | O122: 0
A123: =IF(COUNTRY_INFO!A123=0," ",COUNTRY_INFO!A123) -> Chad | B123: =IF(COUNTRY_INFO!B123=0," ",COUNTRY_INFO!B123) -> Wadi Fira | C123: =IF(COUNTRY_INFO!C123=0," ",COUNTRY_INFO!C123) -> Arada | D123: =IF(OR(COUNTRY_INFO!$T$9:$T$1000="T1 (PZQ+ALB/MBD)",COUNTRY_INFO!$U$9:$U$1000="T1 (PZQ+ALB/MBD)"), "T1 (PZQ+ALB/MBD)", " ") ->  | I123: 0 | K123: 0 | O123: 0
A124: =IF(COUNTRY_INFO!A124=0," ",COUNTRY_INFO!A124) -> Chad | B124: =IF(COUNTRY_INFO!B124=0," ",COUNTRY_INFO!B124) -> Wadi Fira | C124: =IF(COUNTRY_INFO!C124=0," ",COUNTRY_INFO!C124) -> Biltine | D124: =IF(OR(COUNTRY_INFO!$T$9:$T$1000="T1 (PZQ+ALB/MBD)",COUNTRY_INFO!$U$9:$U$1000="T1 (PZQ+ALB/MBD)"), "T1 (PZQ+ALB/MBD)", " ") ->  | I124: 0 | K124: 0 | O124: 0
A125: =IF(COUNTRY_INFO!A125=0," ",COUNTRY_INFO!A125) -> Chad | B125: =IF(COUNTRY_INFO!B125=0," ",COUNTRY_INFO!B125) -> Wadi Fira | C125: =IF(COUNTRY_INFO!C125=0," ",COUNTRY_INFO!C125) -> Guéréda | D125: =IF(OR(COUNTRY_INFO!$T$9:$T$1000="T1 (PZQ+ALB/MBD)",COUNTRY_INFO!$U$9:$U$1000="T1 (PZQ+ALB/MBD)"), "T1 (PZQ+ALB/MBD)", " ") ->  | I125: 0 | K125: 0 | O125: 0
A126: =IF(COUNTRY_INFO!A126=0," ",COUNTRY_INFO!A126) -> Chad | B126: =IF(COUNTRY_INFO!B126=0," ",COUNTRY_INFO!B126) -> Wadi Fira | C126: =IF(COUNTRY_INFO!C126=0," ",COUNTRY_INFO!C126) -> Iriba | D126: =IF(OR(COUNTRY_INFO!$T$9:$T$1000="T1 (PZQ+ALB/MBD)",COUNTRY_INFO!$U$9:$U$1000="T1 (PZQ+ALB/MBD)"), "T1 (PZQ+ALB/MBD)", " ") ->  | I126: 0 | K126: 0 | O126: 0
A127: =IF(COUNTRY_INFO!A127=0," ",COUNTRY_INFO!A127) -> Chad | B127: =IF(COUNTRY_INFO!B127=0," ",COUNTRY_INFO!B127) -> Wadi Fira | C127: =IF(COUNTRY_INFO!C127=0," ",COUNTRY_INFO!C127) -> Matadjana | D127: =IF(OR(COUNTRY_INFO!$T$9:$T$1000="T1 (PZQ+ALB/MBD)",COUNTRY_INFO!$U$9:$U$1000="T1 (PZQ+ALB/MBD)"), "T1 (PZQ+ALB/MBD)", " ") ->  | I127: 0 | K127: 0 | O127: 0

Sheet T2
A1: T 2 - Praziquantel (PZQ)
A2: Structure administrative, population nécessitant une chimioprévention par groupe d'âge, population traitée par groupe d'âge et couverture
A4: TOTAL | F4: =SUM(F$9:F$1000) -> 0 | G4: 1589726 | H4: 0 | I4: 1589726 | J4: 0 | K4: 1542995 | L4: 0 | M4: 1542995 | N4: =IF(F4<>0, IF(J4/F4*100=0, "-", J4/F4*100), " ") ->  | O4: =IF(G4<>0, IF(K4/G4*100=0, "-", K4/G4*100), " ") -> 97.06043683 | P4: =IF(H4<>0, IF(L4/H4*100=0, "-", L4/H4*100), " ") ->  | Q4: =IF(I4<>0, IF(M4/I4*100=0, "-", M4/I4*100), " ") -> 97.06043683
A6: Structure administrative du pays | D6: Mise en oeuvre de la CP | E6: Date | F6: Population ciblée pour T2 | J6: Population traitée | N6: Couverture du Programme (%)
A7: Pays | B7: Région/Département | C7: District | F7: EAPréS | G7: EAS | H7: Adultes | I7: Total | J7: EAPréS | K7: EAS | L7: Adultes | M7: Total | N7: EAPréS | O7: EAS | P7: Adultes | Q7: Total
A9: =IF(COUNTRY_INFO!A9=0," ",COUNTRY_INFO!A9) -> Chad | B9: =IF(COUNTRY_INFO!B9=0," ",COUNTRY_INFO!B9) -> Bahr El Gazel | C9: =IF(COUNTRY_INFO!C9=0," ",COUNTRY_INFO!C9) -> Chadra | D9: =IF(OR(COUNTRY_INFO!$T$9:$T$1000="T2 (PZQ)",COUNTRY_INFO!$U$9:$U$1000="T2 (PZQ)"), "T2 (PZQ)", " ") ->  | I9: =SUM(F9:H9) -> 0 | M9: =SUM(J9:L9) -> 0 | N9: =IF(F9<>0, IF(J9/F9*100=0, "-", J9/F9*100), " ") -> 
A10: =IF(COUNTRY_INFO!A10=0," ",COUNTRY_INFO!A10) -> Chad | B10: =IF(COUNTRY_INFO!B10=0," ",COUNTRY_INFO!B10) -> Bahr El Gazel | C10: =IF(COUNTRY_INFO!C10=0," ",COUNTRY_INFO!C10) -> Michemire | D10: =IF(OR(COUNTRY_INFO!$T$9:$T$1000="T2 (PZQ)",COUNTRY_INFO!$U$9:$U$1000="T2 (PZQ)"), "T2 (PZQ)", " ") ->  | I10: =SUM(F10:H10) -> 0 | M10: =SUM(J10:L10) -> 0 | N10: =IF(F10<>0, IF(J10/F10*100=0, "-", J10/F10*100), " ") ->  | O10: =IF(G10<>0, IF(K10/G10*100=0, "-", K10/G10*100), " ") ->  | P10: =IF(H10<>0, IF(L10/H10*100=0, "-", L10/H10*100), " ") ->  | Q10: =IF(I10<>0, IF(M10/I10*100=0, "-", M10/I10*100), " ") -> 
A11: =IF(COUNTRY_INFO!A11=0," ",COUNTRY_INFO!A11) -> Chad | B11: =IF(COUNTRY_INFO!B11=0," ",COUNTRY_INFO!B11) -> Bahr El Gazel | C11: =IF(COUNTRY_INFO!C11=0," ",COUNTRY_INFO!C11) -> Moussoro | D11: =IF(OR(COUNTRY_INFO!$T$9:$T$1000="T2 (PZQ)",COUNTRY_INFO!$U$9:$U$1000="T2 (PZQ)"), "T2 (PZQ)", " ") ->  | I11: 0 | M11: 0
A12: =IF(COUNTRY_INFO!A12=0," ",COUNTRY_INFO!A12) -> Chad | B12: =IF(COUNTRY_INFO!B12=0," ",COUNTRY_INFO!B12) -> Bahr El Gazel | C12: =IF(COUNTRY_INFO!C12=0," ",COUNTRY_INFO!C12) -> Salal | D12: =IF(OR(COUNTRY_INFO!$T$9:$T$1000="T2 (PZQ)",COUNTRY_INFO!$U$9:$U$1000="T2 (PZQ)"), "T2 (PZQ)", " ") ->  | I12: 0 | M12: 0
A13: =IF(COUNTRY_INFO!A13=0," ",COUNTRY_INFO!A13) -> Chad | B13: =IF(COUNTRY_INFO!B13=0," ",COUNTRY_INFO!B13) -> Batha | C13: =IF(COUNTRY_INFO!C13=0," ",COUNTRY_INFO!C13) -> Alifa | D13: =IF(OR(COUNTRY_INFO!$T$9:$T$1000="T2 (PZQ)",COUNTRY_INFO!$U$9:$U$1000="T2 (PZQ)"), "T2 (PZQ)", " ") ->  | I13: 0 | M13: 0
A14: =IF(COUNTRY_INFO!A14=0," ",COUNTRY_INFO!A14) -> Chad | B14: =IF(COUNTRY_INFO!B14=0," ",COUNTRY_INFO!B14) -> Batha | C14: =IF(COUNTRY_INFO!C14=0," ",COUNTRY_INFO!C14) -> Assinet | D14: =IF(OR(COUNTRY_INFO!$T$9:$T$1000="T2 (PZQ)",COUNTRY_INFO!$U$9:$U$1000="T2 (PZQ)"), "T2 (PZQ)", " ") ->  | I14: 0 | M14: 0
A15: =IF(COUNTRY_INFO!A15=0," ",COUNTRY_INFO!A15) -> Chad | B15: =IF(COUNTRY_INFO!B15=0," ",COUNTRY_INFO!B15) -> Batha | C15: =IF(COUNTRY_INFO!C15=0," ",COUNTRY_INFO!C15) -> Ati | D15: =IF(OR(COUNTRY_INFO!$T$9:$T$1000="T2 (PZQ)",COUNTRY_INFO!$U$9:$U$1000="T2 (PZQ)"), "T2 (PZQ)", " ") ->  | I15: 0 | M15: 0
A16: =IF(COUNTRY_INFO!A16=0," ",COUNTRY_INFO!A16) -> Chad | B16: =IF(COUNTRY_INFO!B16=0," ",COUNTRY_INFO!B16) -> Batha | C16: =IF(COUNTRY_INFO!C16=0," ",COUNTRY_INFO!C16) -> Djedda | D16: =IF(OR(COUNTRY_INFO!$T$9:$T$1000="T2 (PZQ)",COUNTRY_INFO!$U$9:$U$1000="T2 (PZQ)"), "T2 (PZQ)", " ") ->  | I16: 0 | M16: 0
A17: =IF(COUNTRY_INFO!A17=0," ",COUNTRY_INFO!A17) -> Chad | B17: =IF(COUNTRY_INFO!B17=0," ",COUNTRY_INFO!B17) -> Batha | C17: =IF(COUNTRY_INFO!C17=0," ",COUNTRY_INFO!C17) -> Koundjourou | D17: =IF(OR(COUNTRY_INFO!$T$9:$T$1000="T2 (PZQ)",COUNTRY_INFO!$U$9:$U$1000="T2 (PZQ)"), "T2 (PZQ)", " ") ->  | I17: 0 | M17: 0
A18: =IF(COUNTRY_INFO!A18=0," ",COUNTRY_INFO!A18) -> Chad | B18: =IF(COUNTRY_INFO!B18=0," ",COUNTRY_INFO!B18) -> Batha | C18: =IF(COUNTRY_INFO!C18=0," ",COUNTRY_INFO!C18) -> Oum-Hadjer | D18: =IF(OR(COUNTRY_INFO!$T$9:$T$1000="T2 (PZQ)",COUNTRY_INFO!$U$9:$U$1000="T2 (PZQ)"), "T2 (PZQ)", " ") ->  | I18: 0 | M18: 0
A19: =IF(COUNTRY_INFO!A19=0," ",COUNTRY_INFO!A19) -> Chad | B19: =IF(COUNTRY_INFO!B19=0," ",COUNTRY_INFO!B19) -> Batha | C19: =IF(COUNTRY_INFO!C19=0," ",COUNTRY_INFO!C19) -> Yao | D19: =IF(OR(COUNTRY_INFO!$T$9:$T$1000="T2 (PZQ)",COUNTRY_INFO!$U$9:$U$1000="T2 (PZQ)"), "T2 (PZQ)", " ") ->  | I19: 0 | M19: 0
A20: =IF(COUNTRY_INFO!A20=0," ",COUNTRY_INFO!A20) -> Chad | B20: =IF(COUNTRY_INFO!B20=0," ",COUNTRY_INFO!B20) -> Borkou | C20: =IF(COUNTRY_INFO!C20=0," ",COUNTRY_INFO!C20) -> Faya | D20: =IF(OR(COUNTRY_INFO!$T$9:$T$1000="T2 (PZQ)",COUNTRY_INFO!$U$9:$U$1000="T2 (PZQ)"), "T2 (PZQ)", " ") ->  | I20: 0 | M20: 0
A21: =IF(COUNTRY_INFO!A21=0," ",COUNTRY_INFO!A21) -> Chad | B21: =IF(COUNTRY_INFO!B21=0," ",COUNTRY_INFO!B21) -> Borkou | C21: =IF(COUNTRY_INFO!C21=0," ",COUNTRY_INFO!C21) -> Kirdimi | D21: =IF(OR(COUNTRY_INFO!$T$9:$T$1000="T2 (PZQ)",COUNTRY_INFO!$U$9:$U$1000="T2 (PZQ)"), "T2 (PZQ)", " ") ->  | I21: 0 | M21: 0
A22: =IF(COUNTRY_INFO!A22=0," ",COUNTRY_INFO!A22) -> Chad | B22: =IF(COUNTRY_INFO!B22=0," ",COUNTRY_INFO!B22) -> Chari Baguirmi | C22: =IF(COUNTRY_INFO!C22=0," ",COUNTRY_INFO!C22) -> Ba-Illi | D22: =IF(OR(COUNTRY_INFO!$T$9:$T$1000="T2 (PZQ)",COUNTRY_INFO!$U$9:$U$1000="T2 (PZQ)"), "T2 (PZQ)", " ") ->  | I22: 0 | M22: 0
A23: =IF(COUNTRY_INFO!A23=0," ",COUNTRY_INFO!A23) -> Chad | B23: =IF(COUNTRY_INFO!B23=0," ",COUNTRY_INFO!B23) -> Chari Baguirmi | C23: =IF(COUNTRY_INFO!C23=0," ",COUNTRY_INFO!C23) -> Bousso | D23: =IF(OR(COUNTRY_INFO!$T$9:$T$1000="T2 (PZQ)",COUNTRY_INFO!$U$9:$U$1000="T2 (PZQ)"), "T2 (PZQ)", " ") ->  | I23: 0 | M23: 0
A24: =IF(COUNTRY_INFO!A24=0," ",COUNTRY_INFO!A24) -> Chad | B24: =IF(COUNTRY_INFO!B24=0," ",COUNTRY_INFO!B24) -> Chari Baguirmi | C24: =IF(COUNTRY_INFO!C24=0," ",COUNTRY_INFO!C24) -> Dourbali | D24: =IF(OR(COUNTRY_INFO!$T$9:$T$1000="T2 (PZQ)",COUNTRY_INFO!$U$9:$U$1000="T2 (PZQ)"), "T2 (PZQ)", " ") -> T2 (PZQ) | E24: 06-2017 | G24: 54389 | I24: 54389 | K24: 49612 | M24: 49612 | O24: 91.21697402 | Q24: 91.21697402
A25: =IF(COUNTRY_INFO!A25=0," ",COUNTRY_INFO!A25) -> Chad | B25: =IF(COUNTRY_INFO!B25=0," ",COUNTRY_INFO!B25) -> Chari Baguirmi | C25: =IF(COUNTRY_INFO!C25=0," ",COUNTRY_INFO!C25) -> Kono | D25: =IF(OR(COUNTRY_INFO!$T$9:$T$1000="T2 (PZQ)",COUNTRY_INFO!$U$9:$U$1000="T2 (PZQ)"), "T2 (PZQ)", " ") -> T2 (PZQ) | E25: 06-2017 | G25: 88752 | I25: 88752 | K25: 78327 | M25: 78327 | O25: 88.25378583 | Q25: 88.25378583
A26: =IF(COUNTRY_INFO!A26=0," ",COUNTRY_INFO!A26) -> Chad | B26: =IF(COUNTRY_INFO!B26=0," ",COUNTRY_INFO!B26) -> Chari Baguirmi | C26: =IF(COUNTRY_INFO!C26=0," ",COUNTRY_INFO!C26) -> Mandélia | D26: =IF(OR(COUNTRY_INFO!$T$9:$T$1000="T2 (PZQ)",COUNTRY_INFO!$U$9:$U$1000="T2 (PZQ)"), "T2 (PZQ)", " ") -> T2 (PZQ) | E26: 06-2017 | G26: 47388 | I26: 47388 | K26: 40812 | M26: 40812 | O26: 86.12306913 | Q26: 86.12306913
A27: =IF(COUNTRY_INFO!A27=0," ",COUNTRY_INFO!A27) -> Chad | B27: =IF(COUNTRY_INFO!B27=0," ",COUNTRY_INFO!B27) -> Chari Baguirmi | C27: =IF(COUNTRY_INFO!C27=0," ",COUNTRY_INFO!C27) -> Massenya | D27: =IF(OR(COUNTRY_INFO!$T$9:$T$1000="T2 (PZQ)",COUNTRY_INFO!$U$9:$U$1000="T2 (PZQ)"), "T2 (PZQ)", " ") ->  | I27: 0 | M27: 0
A28: =IF(COUNTRY_INFO!A28=0," ",COUNTRY_INFO!A28) -> Chad | B28: =IF(COUNTRY_INFO!B28=0," ",COUNTRY_INFO!B28) -> Ennedi Est | C28: =IF(COUNTRY_INFO!C28=0," ",COUNTRY_INFO!C28) -> Amdjarass | D28: =IF(OR(COUNTRY_INFO!$T$9:$T$1000="T2 (PZQ)",COUNTRY_INFO!$U$9:$U$1000="T2 (PZQ)"), "T2 (PZQ)", " ") ->  | I28: 0 | M28: 0
A29: =IF(COUNTRY_INFO!A29=0," ",COUNTRY_INFO!A29) -> Chad | B29: =IF(COUNTRY_INFO!B29=0," ",COUNTRY_INFO!B29) -> Ennedi Est | C29: =IF(COUNTRY_INFO!C29=0," ",COUNTRY_INFO!C29) -> Bahaï | D29: =IF(OR(COUNTRY_INFO!$T$9:$T$1000="T2 (PZQ)",COUNTRY_INFO!$U$9:$U$1000="T2 (PZQ)"), "T2 (PZQ)", " ") ->  | I29: 0 | M29: 0
A30: =IF(COUNTRY_INFO!A30=0," ",COUNTRY_INFO!A30) -> Chad | B30: =IF(COUNTRY_INFO!B30=0," ",COUNTRY_INFO!B30) -> Ennedi Est | C30: =IF(COUNTRY_INFO!C30=0," ",COUNTRY_INFO!C30) -> Kaoura | D30: =IF(OR(COUNTRY_INFO!$T$9:$T$1000="T2 (PZQ)",COUNTRY_INFO!$U$9:$U$1000="T2 (PZQ)"), "T2 (PZQ)", " ") ->  | I30: 0 | M30: 0
A31: =IF(COUNTRY_INFO!A31=0," ",COUNTRY_INFO!A31) -> Chad | B31: =IF(COUNTRY_INFO!B31=0," ",COUNTRY_INFO!B31) -> Ennedi Ouest | C31: =IF(COUNTRY_INFO!C31=0," ",COUNTRY_INFO!C31) -> Fada | D31: =IF(OR(COUNTRY_INFO!$T$9:$T$1000="T2 (PZQ)",COUNTRY_INFO!$U$9:$U$1000="T2 (PZQ)"), "T2 (PZQ)", " ") ->  | I31: 0 | M31: 0
A32: =IF(COUNTRY_INFO!A32=0," ",COUNTRY_INFO!A32) -> Chad | B32: =IF(COUNTRY_INFO!B32=0," ",COUNTRY_INFO!B32) -> Ennedi Ouest | C32: =IF(COUNTRY_INFO!C32=0," ",COUNTRY_INFO!C32) -> Kalaït | D32: =IF(OR(COUNTRY_INFO!$T$9:$T$1000="T2 (PZQ)",COUNTRY_INFO!$U$9:$U$1000="T2 (PZQ)"), "T2 (PZQ)", " ") ->  | I32: 0 | M32: 0
A33: =IF(COUNTRY_INFO!A33=0," ",COUNTRY_INFO!A33) -> Chad | B33: =IF(COUNTRY_INFO!B33=0," ",COUNTRY_INFO!B33) -> Guéra | C33: =IF(COUNTRY_INFO!C33=0," ",COUNTRY_INFO!C33) -> Barou | D33: =IF(OR(COUNTRY_INFO!$T$9:$T$1000="T2 (PZQ)",COUNTRY_INFO!$U$9:$U$1000="T2 (PZQ)"), "T2 (PZQ)", " ") ->  | I33: 0 | M33: 0
A34: =IF(COUNTRY_INFO!A34=0," ",COUNTRY_INFO!A34) -> Chad | B34: =IF(COUNTRY_INFO!B34=0," ",COUNTRY_INFO!B34) -> Guéra | C34: =IF(COUNTRY_INFO!C34=0," ",COUNTRY_INFO!C34) -> Bitkine | D34: =IF(OR(COUNTRY_INFO!$T$9:$T$1000="T2 (PZQ)",COUNTRY_INFO!$U$9:$U$1000="T2 (PZQ)"), "T2 (PZQ)", " ") ->  | I34: 0 | M34: 0
A35: =IF(COUNTRY_INFO!A35=0," ",COUNTRY_INFO!A35) -> Chad | B35: =IF(COUNTRY_INFO!B35=0," ",COUNTRY_INFO!B35) -> Guéra | C35: =IF(COUNTRY_INFO!C35=0," ",COUNTRY_INFO!C35) -> Mangalmé | D35: =IF(OR(COUNTRY_INFO!$T$9:$T$1000="T2 (PZQ)",COUNTRY_INFO!$U$9:$U$1000="T2 (PZQ)"), "T2 (PZQ)", " ") ->  | I35: 0 | M35: 0
A36: =IF(COUNTRY_INFO!A36=0," ",COUNTRY_INFO!A36) -> Chad | B36: =IF(COUNTRY_INFO!B36=0," ",COUNTRY_INFO!B36) -> Guéra | C36: =IF(COUNTRY_INFO!C36=0," ",COUNTRY_INFO!C36) -> Melfi | D36: =IF(OR(COUNTRY_INFO!$T$9:$T$1000="T2 (PZQ)",COUNTRY_INFO!$U$9:$U$1000="T2 (PZQ)"), "T2 (PZQ)", " ") ->  | I36: 0 | M36: 0
A37: =IF(COUNTRY_INFO!A37=0," ",COUNTRY_INFO!A37) -> Chad | B37: =IF(COUNTRY_INFO!B37=0," ",COUNTRY_INFO!B37) -> Guéra | C37: =IF(COUNTRY_INFO!C37=0," ",COUNTRY_INFO!C37) -> Mongo | D37: =IF(OR(COUNTRY_INFO!$T$9:$T$1000="T2 (PZQ)",COUNTRY_INFO!$U$9:$U$1000="T2 (PZQ)"), "T2 (PZQ)", " ") ->  | I37: 0 | M37: 0
A38: =IF(COUNTRY_INFO!A38=0," ",COUNTRY_INFO!A38) -> Chad | B38: =IF(COUNTRY_INFO!B38=0," ",COUNTRY_INFO!B38) -> Hadjer Lamis | C38: =IF(COUNTRY_INFO!C38=0," ",COUNTRY_INFO!C38) -> Bokoro | D38: =IF(OR(COUNTRY_INFO!$T$9:$T$1000="T2 (PZQ)",COUNTRY_INFO!$U$9:$U$1000="T2 (PZQ)"), "T2 (PZQ)", " ") ->  | I38: 0 | M38: 0
A39: =IF(COUNTRY_INFO!A39=0," ",COUNTRY_INFO!A39) -> Chad | B39: =IF(COUNTRY_INFO!B39=0," ",COUNTRY_INFO!B39) -> Hadjer Lamis | C39: =IF(COUNTRY_INFO!C39=0," ",COUNTRY_INFO!C39) -> Gama | D39: =IF(OR(COUNTRY_INFO!$T$9:$T$1000="T2 (PZQ)",COUNTRY_INFO!$U$9:$U$1000="T2 (PZQ)"), "T2 (PZQ)", " ") ->  | I39: 0 | M39: 0
A40: =IF(COUNTRY_INFO!A40=0," ",COUNTRY_INFO!A40) -> Chad | B40: =IF(COUNTRY_INFO!B40=0," ",COUNTRY_INFO!B40) -> Hadjer Lamis | C40: =IF(COUNTRY_INFO!C40=0," ",COUNTRY_INFO!C40) -> Mani | D40: =IF(OR(COUNTRY_INFO!$T$9:$T$1000="T2 (PZQ)",COUNTRY_INFO!$U$9:$U$1000="T2 (PZQ)"), "T2 (PZQ)", " ") ->  | I40: 0 | M40: 0
A41: =IF(COUNTRY_INFO!A41=0," ",COUNTRY_INFO!A41) -> Chad | B41: =IF(COUNTRY_INFO!B41=0," ",COUNTRY_INFO!B41) -> Hadjer Lamis | C41: =IF(COUNTRY_INFO!C41=0," ",COUNTRY_INFO!C41) -> Massaguet | D41: =IF(OR(COUNTRY_INFO!$T$9:$T$1000="T2 (PZQ)",COUNTRY_INFO!$U$9:$U$1000="T2 (PZQ)"), "T2 (PZQ)", " ") ->  | I41: 0 | M41: 0
A42: =IF(COUNTRY_INFO!A42=0," ",COUNTRY_INFO!A42) -> Chad | B42: =IF(COUNTRY_INFO!B42=0," ",COUNTRY_INFO!B42) -> Hadjer Lamis | C42: =IF(COUNTRY_INFO!C42=0," ",COUNTRY_INFO!C42) -> Massakory | D42: =IF(OR(COUNTRY_INFO!$T$9:$T$1000="T2 (PZQ)",COUNTRY_INFO!$U$9:$U$1000="T2 (PZQ)"), "T2 (PZQ)", " ") ->  | I42: 0 | M42: 0
A43: =IF(COUNTRY_INFO!A43=0," ",COUNTRY_INFO!A43) -> Chad | B43: =IF(COUNTRY_INFO!B43=0," ",COUNTRY_INFO!B43) -> Kanem | C43: =IF(COUNTRY_INFO!C43=0," ",COUNTRY_INFO!C43) -> Mao | D43: =IF(OR(COUNTRY_INFO!$T$9:$T$1000="T2 (PZQ)",COUNTRY_INFO!$U$9:$U$1000="T2 (PZQ)"), "T2 (PZQ)", " ") ->  | I43: 0 | M43: 0
A44: =IF(COUNTRY_INFO!A44=0," ",COUNTRY_INFO!A44) -> Chad | B44: =IF(COUNTRY_INFO!B44=0," ",COUNTRY_INFO!B44) -> Kanem | C44: =IF(COUNTRY_INFO!C44=0," ",COUNTRY_INFO!C44) -> Mondo | D44: =IF(OR(COUNTRY_INFO!$T$9:$T$1000="T2 (PZQ)",COUNTRY_INFO!$U$9:$U$1000="T2 (PZQ)"), "T2 (PZQ)", " ") ->  | I44: 0 | M44: 0
A45: =IF(COUNTRY_INFO!A45=0," ",COUNTRY_INFO!A45) -> Chad | B45: =IF(COUNTRY_INFO!B45=0," ",COUNTRY_INFO!B45) -> Kanem | C45: =IF(COUNTRY_INFO!C45=0," ",COUNTRY_INFO!C45) -> Nokou | D45: =IF(OR(COUNTRY_INFO!$T$9:$T$1000="T2 (PZQ)",COUNTRY_INFO!$U$9:$U$1000="T2 (PZQ)"), "T2 (PZQ)", " ") ->  | I45: 0 | M45: 0
A46: =IF(COUNTRY_INFO!A46=0," ",COUNTRY_INFO!A46) -> Chad | B46: =IF(COUNTRY_INFO!B46=0," ",COUNTRY_INFO!B46) -> Kanem | C46: =IF(COUNTRY_INFO!C46=0," ",COUNTRY_INFO!C46) -> Ntiona | D46: =IF(OR(COUNTRY_INFO!$T$9:$T$1000="T2 (PZQ)",COUNTRY_INFO!$U$9:$U$1000="T2 (PZQ)"), "T2 (PZQ)", " ") ->  | I46: 0 | M46: 0
A47: =IF(COUNTRY_INFO!A47=0," ",COUNTRY_INFO!A47) -> Chad | B47: =IF(COUNTRY_INFO!B47=0," ",COUNTRY_INFO!B47) -> Kanem | C47: =IF(COUNTRY_INFO!C47=0," ",COUNTRY_INFO!C47) -> Rig-Rig | D47: =IF(OR(COUNTRY_INFO!$T$9:$T$1000="T2 (PZQ)",COUNTRY_INFO!$U$9:$U$1000="T2 (PZQ)"), "T2 (PZQ)", " ") ->  | I47: 0 | M47: 0
A48: =IF(COUNTRY_INFO!A48=0," ",COUNTRY_INFO!A48) -> Chad | B48: =IF(COUNTRY_INFO!B48=0," ",COUNTRY_INFO!B48) -> Lac | C48: =IF(COUNTRY_INFO!C48=0," ",COUNTRY_INFO!C48) -> Bagassola | D48: =IF(OR(COUNTRY_INFO!$T$9:$T$1000="T2 (PZQ)",COUNTRY_INFO!$U$9:$U$1000="T2 (PZQ)"), "T2 (PZQ)", " ") ->  | I48: 0 | M48: 0
A49: =IF(COUNTRY_INFO!A49=0," ",COUNTRY_INFO!A49) -> Chad | B49: =IF(COUNTRY_INFO!B49=0," ",COUNTRY_INFO!B49) -> Lac | C49: =IF(COUNTRY_INFO!C49=0," ",COUNTRY_INFO!C49) -> Bol | D49: =IF(OR(COUNTRY_INFO!$T$9:$T$1000="T2 (PZQ)",COUNTRY_INFO!$U$9:$U$1000="T2 (PZQ)"), "T2 (PZQ)", " ") ->  | I49: 0 | M49: 0
A50: =IF(COUNTRY_INFO!A50=0," ",COUNTRY_INFO!A50) -> Chad | B50: =IF(COUNTRY_INFO!B50=0," ",COUNTRY_INFO!B50) -> Lac | C50: =IF(COUNTRY_INFO!C50=0," ",COUNTRY_INFO!C50) -> Isserom | D50: =IF(OR(COUNTRY_INFO!$T$9:$T$1000="T2 (PZQ)",COUNTRY_INFO!$U$9:$U$1000="T2 (PZQ)"), "T2 (PZQ)", " ") ->  | I50: 0 | M50: 0
A51: =IF(COUNTRY_INFO!A51=0," ",COUNTRY_INFO!A51) -> Chad | B51: =IF(COUNTRY_INFO!B51=0," ",COUNTRY_INFO!B51) -> Lac | C51: =IF(COUNTRY_INFO!C51=0," ",COUNTRY_INFO!C51) -> Kouloudia | D51: =IF(OR(COUNTRY_INFO!$T$9:$T$1000="T2 (PZQ)",COUNTRY_INFO!$U$9:$U$1000="T2 (PZQ)"), "T2 (PZQ)", " ") ->  | I51: 0 | M51: 0
A52: =IF(COUNTRY_INFO!A52=0," ",COUNTRY_INFO!A52) -> Chad | B52: =IF(COUNTRY_INFO!B52=0," ",COUNTRY_INFO!B52) -> Lac | C52: =IF(COUNTRY_INFO!C52=0," ",COUNTRY_INFO!C52) -> Liwa | D52: =IF(OR(COUNTRY_INFO!$T$9:$T$1000="T2 (PZQ)",COUNTRY_INFO!$U$9:$U$1000="T2 (PZQ)"), "T2 (PZQ)", " ") ->  | I52: 0 | M52: 0
A53: =IF(COUNTRY_INFO!A53=0," ",COUNTRY_INFO!A53) -> Chad | B53: =IF(COUNTRY_INFO!B53=0," ",COUNTRY_INFO!B53) -> Lac | C53: =IF(COUNTRY_INFO!C53=0," ",COUNTRY_INFO!C53) -> Ngouri | D53: =IF(OR(COUNTRY_INFO!$T$9:$T$1000="T2 (PZQ)",COUNTRY_INFO!$U$9:$U$1000="T2 (PZQ)"), "T2 (PZQ)", " ") ->  | I53: 0 | M53: 0
A54: =IF(COUNTRY_INFO!A54=0," ",COUNTRY_INFO!A54) -> Chad | B54: =IF(COUNTRY_INFO!B54=0," ",COUNTRY_INFO!B54) -> Logone Occidental | C54: =IF(COUNTRY_INFO!C54=0," ",COUNTRY_INFO!C54) -> Benamar | D54: =IF(OR(COUNTRY_INFO!$T$9:$T$1000="T2 (PZQ)",COUNTRY_INFO!$U$9:$U$1000="T2 (PZQ)"), "T2 (PZQ)", " ") -> T2 (PZQ) | E54: 06-2017 | G54: 43717 | I54: 43717 | K54: 42523 | M54: 42523 | O54: 97.26879704 | Q54: 97.26879704
A55: =IF(COUNTRY_INFO!A55=0," ",COUNTRY_INFO!A55) -> Chad | B55: =IF(COUNTRY_INFO!B55=0," ",COUNTRY_INFO!B55) -> Logone Occidental | C55: =IF(COUNTRY_INFO!C55=0," ",COUNTRY_INFO!C55) -> Benoye | D55: =IF(OR(COUNTRY_INFO!$T$9:$T$1000="T2 (PZQ)",COUNTRY_INFO!$U$9:$U$1000="T2 (PZQ)"), "T2 (PZQ)", " ") -> T2 (PZQ) | E55: 06-2017 | G55: 59432 | I55: 59432 | K55: 58301 | M55: 58301 | O55: 98.09698479 | Q55: 98.09698479
A56: =IF(COUNTRY_INFO!A56=0," ",COUNTRY_INFO!A56) -> Chad | B56: =IF(COUNTRY_INFO!B56=0," ",COUNTRY_INFO!B56) -> Logone Occidental | C56: =IF(COUNTRY_INFO!C56=0," ",COUNTRY_INFO!C56) -> Laokassy | D56: =IF(OR(COUNTRY_INFO!$T$9:$T$1000="T2 (PZQ)",COUNTRY_INFO!$U$9:$U$1000="T2 (PZQ)"), "T2 (PZQ)", " ") -> T2 (PZQ) | E56: 06-2017 | G56: 63869 | I56: 63869 | K56: 62231 | M56: 62231 | O56: 97.43537553 | Q56: 97.43537553
A57: =IF(COUNTRY_INFO!A57=0," ",COUNTRY_INFO!A57) -> Chad | B57: =IF(COUNTRY_INFO!B57=0," ",COUNTRY_INFO!B57) -> Logone Occidental | C57: =IF(COUNTRY_INFO!C57=0," ",COUNTRY_INFO!C57) -> Moundou | D57: =IF(OR(COUNTRY_INFO!$T$9:$T$1000="T2 (PZQ)",COUNTRY_INFO!$U$9:$U$1000="T2 (PZQ)"), "T2 (PZQ)", " ") -> T2 (PZQ) | E57: 06-2017 | G57: 155557 | I57: 155557 | K57: 152183 | M57: 152183 | O57: 97.83102014 | Q57: 97.83102014
A58: =IF(COUNTRY_INFO!A58=0," ",COUNTRY_INFO!A58) -> Chad | B58: =IF(COUNTRY_INFO!B58=0," ",COUNTRY_INFO!B58) -> Logone Orientlal | C58: =IF(COUNTRY_INFO!C58=0," ",COUNTRY_INFO!C58) -> Baibokoum | D58: =IF(OR(COUNTRY_INFO!$T$9:$T$1000="T2 (PZQ)",COUNTRY_INFO!$U$9:$U$1000="T2 (PZQ)"), "T2 (PZQ)", " ") ->  | I58: 0 | M58: 0
A59: =IF(COUNTRY_INFO!A59=0," ",COUNTRY_INFO!A59) -> Chad | B59: =IF(COUNTRY_INFO!B59=0," ",COUNTRY_INFO!B59) -> Logone Orientlal | C59: =IF(COUNTRY_INFO!C59=0," ",COUNTRY_INFO!C59) -> Bebedja | D59: =IF(OR(COUNTRY_INFO!$T$9:$T$1000="T2 (PZQ)",COUNTRY_INFO!$U$9:$U$1000="T2 (PZQ)"), "T2 (PZQ)", " ") -> T2 (PZQ) | E59: 06-2017 | G59: 58555 | I59: 58555 | K59: 58002 | M59: 58002 | O59: 99.05558876 | Q59: 99.05558876
A60: =IF(COUNTRY_INFO!A60=0," ",COUNTRY_INFO!A60) -> Chad | B60: =IF(COUNTRY_INFO!B60=0," ",COUNTRY_INFO!B60) -> Logone Orientlal | C60: =IF(COUNTRY_INFO!C60=0," ",COUNTRY_INFO!C60) -> Beboto | D60: =IF(OR(COUNTRY_INFO!$T$9:$T$1000="T2 (PZQ)",COUNTRY_INFO!$U$9:$U$1000="T2 (PZQ)"), "T2 (PZQ)", " ") -> T2 (PZQ) | E60: 06-2017 | G60: 32043 | I60: 32043 | K60: 31622 | M60: 31622 | O60: 98.6861405 | Q60: 98.6861405
A61: =IF(COUNTRY_INFO!A61=0," ",COUNTRY_INFO!A61) -> Chad | B61: =IF(COUNTRY_INFO!B61=0," ",COUNTRY_INFO!B61) -> Logone Orientlal | C61: =IF(COUNTRY_INFO!C61=0," ",COUNTRY_INFO!C61) -> Bessao | D61: =IF(OR(COUNTRY_INFO!$T$9:$T$1000="T2 (PZQ)",COUNTRY_INFO!$U$9:$U$1000="T2 (PZQ)"), "T2 (PZQ)", " ") -> T2 (PZQ) | E61: 06-2017 | G61: 56558 | I61: 56558 | K61: 56008 | M61: 56008 | O61: 99.02754694 | Q61: 99.02754694
A62: =IF(COUNTRY_INFO!A62=0," ",COUNTRY_INFO!A62) -> Chad | B62: =IF(COUNTRY_INFO!B62=0," ",COUNTRY_INFO!B62) -> Logone Orientlal | C62: =IF(COUNTRY_INFO!C62=0," ",COUNTRY_INFO!C62) -> Bodo | D62: =IF(OR(COUNTRY_INFO!$T$9:$T$1000="T2 (PZQ)",COUNTRY_INFO!$U$9:$U$1000="T2 (PZQ)"), "T2 (PZQ)", " ") -> T2 (PZQ) | E62: 06-2017 | G62: 32003 | I62: 32003 | K62: 31582 | M62: 31582 | O62: 98.68449833 | Q62: 98.68449833
A63: =IF(COUNTRY_INFO!A63=0," ",COUNTRY_INFO!A63) -> Chad | B63: =IF(COUNTRY_INFO!B63=0," ",COUNTRY_INFO!B63) -> Logone Orientlal | C63: =IF(COUNTRY_INFO!C63=0," ",COUNTRY_INFO!C63) -> Doba | D63: =IF(OR(COUNTRY_INFO!$T$9:$T$1000="T2 (PZQ)",COUNTRY_INFO!$U$9:$U$1000="T2 (PZQ)"), "T2 (PZQ)", " ") -> T2 (PZQ) | E63: 06-2017 | G63: 65972 | I63: 65972 | K63: 65007 | M63: 65007 | O63: 98.53725823 | Q63: 98.53725823
A64: =IF(COUNTRY_INFO!A64=0," ",COUNTRY_INFO!A64) -> Chad | B64: =IF(COUNTRY_INFO!B64=0," ",COUNTRY_INFO!B64) -> Logone Orientlal | C64: =IF(COUNTRY_INFO!C64=0," ",COUNTRY_INFO!C64) -> DONIA | D64: =IF(OR(COUNTRY_INFO!$T$9:$T$1000="T2 (PZQ)",COUNTRY_INFO!$U$9:$U$1000="T2 (PZQ)"), "T2 (PZQ)", " ") -> T2 (PZQ) | E64: 06-2017 | G64: 27283 | I64: 27283 | K64: 26744 | M64: 26744 | O64: 98.02441081 | Q64: 98.02441081
A65: =IF(COUNTRY_INFO!A65=0," ",COUNTRY_INFO!A65) -> Chad | B65: =IF(COUNTRY_INFO!B65=0," ",COUNTRY_INFO!B65) -> Logone Orientlal | C65: =IF(COUNTRY_INFO!C65=0," ",COUNTRY_INFO!C65) -> Goré | D65: =IF(OR(COUNTRY_INFO!$T$9:$T$1000="T2 (PZQ)",COUNTRY_INFO!$U$9:$U$1000="T2 (PZQ)"), "T2 (PZQ)", " ") -> T2 (PZQ) | E65: 06-2017 | G65: 50977 | I65: 50977 | K65: 50023 | M65: 50023 | O65: 98.12856779 | Q65: 98.12856779
A66: =IF(COUNTRY_INFO!A66=0," ",COUNTRY_INFO!A66) -> Chad | B66: =IF(COUNTRY_INFO!B66=0," ",COUNTRY_INFO!B66) -> Logone Orientlal | C66: =IF(COUNTRY_INFO!C66=0," ",COUNTRY_INFO!C66) -> Kara | D66: =IF(OR(COUNTRY_INFO!$T$9:$T$1000="T2 (PZQ)",COUNTRY_INFO!$U$9:$U$1000="T2 (PZQ)"), "T2 (PZQ)", " ") -> T2 (PZQ) | E66: 06-2017 | G66: 20329 | I66: 20329 | K66: 19847 | M66: 19847 | O66: 97.6290029 | Q66: 97.6290029
A67: =IF(COUNTRY_INFO!A67=0," ",COUNTRY_INFO!A67) -> Chad | B67: =IF(COUNTRY_INFO!B67=0," ",COUNTRY_INFO!B67) -> Logone Orientlal | C67: =IF(COUNTRY_INFO!C67=0," ",COUNTRY_INFO!C67) -> Larmanaye | D67: =IF(OR(COUNTRY_INFO!$T$9:$T$1000="T2 (PZQ)",COUNTRY_INFO!$U$9:$U$1000="T2 (PZQ)"), "T2 (PZQ)", " ") -> T2 (PZQ) | E67: 06-2017 | G67: 26088 | I67: 26088 | K67: 25782 | M67: 25782 | O67: 98.82704692 | Q67: 98.82704692
A68: =IF(COUNTRY_INFO!A68=0," ",COUNTRY_INFO!A68) -> Chad | B68: =IF(COUNTRY_INFO!B68=0," ",COUNTRY_INFO!B68) -> Mandoul | C68: =IF(COUNTRY_INFO!C68=0," ",COUNTRY_INFO!C68) -> Bedaya | D68: =IF(OR(COUNTRY_INFO!$T$9:$T$1000="T2 (PZQ)",COUNTRY_INFO!$U$9:$U$1000="T2 (PZQ)"), "T2 (PZQ)", " ") ->  | I68: 0 | M68: 0
A69: =IF(COUNTRY_INFO!A69=0," ",COUNTRY_INFO!A69) -> Chad | B69: =IF(COUNTRY_INFO!B69=0," ",COUNTRY_INFO!B69) -> Mandoul | C69: =IF(COUNTRY_INFO!C69=0," ",COUNTRY_INFO!C69) -> Bedjondo | D69: =IF(OR(COUNTRY_INFO!$T$9:$T$1000="T2 (PZQ)",COUNTRY_INFO!$U$9:$U$1000="T2 (PZQ)"), "T2 (PZQ)", " ") ->  | I69: 0 | M69: 0
A70: =IF(COUNTRY_INFO!A70=0," ",COUNTRY_INFO!A70) -> Chad | B70: =IF(COUNTRY_INFO!B70=0," ",COUNTRY_INFO!B70) -> Mandoul | C70: =IF(COUNTRY_INFO!C70=0," ",COUNTRY_INFO!C70) -> Bekourou | D70: =IF(OR(COUNTRY_INFO!$T$9:$T$1000="T2 (PZQ)",COUNTRY_INFO!$U$9:$U$1000="T2 (PZQ)"), "T2 (PZQ)", " ") -> T2 (PZQ) | I70: 0 | M70: 0
A71: =IF(COUNTRY_INFO!A71=0," ",COUNTRY_INFO!A71) -> Chad | B71: =IF(COUNTRY_INFO!B71=0," ",COUNTRY_INFO!B71) -> Mandoul | C71: =IF(COUNTRY_INFO!C71=0," ",COUNTRY_INFO!C71) -> Bouna | D71: =IF(OR(COUNTRY_INFO!$T$9:$T$1000="T2 (PZQ)",COUNTRY_INFO!$U$9:$U$1000="T2 (PZQ)"), "T2 (PZQ)", " ") ->  | I71: 0 | M71: 0
A72: =IF(COUNTRY_INFO!A72=0," ",COUNTRY_INFO!A72) -> Chad | B72: =IF(COUNTRY_INFO!B72=0," ",COUNTRY_INFO!B72) -> Mandoul | C72: =IF(COUNTRY_INFO!C72=0," ",COUNTRY_INFO!C72) -> Goundi | D72: =IF(OR(COUNTRY_INFO!$T$9:$T$1000="T2 (PZQ)",COUNTRY_INFO!$U$9:$U$1000="T2 (PZQ)"), "T2 (PZQ)", " ") ->  | I72: 0 | M72: 0
A73: =IF(COUNTRY_INFO!A73=0," ",COUNTRY_INFO!A73) -> Chad | B73: =IF(COUNTRY_INFO!B73=0," ",COUNTRY_INFO!B73) -> Mandoul | C73: =IF(COUNTRY_INFO!C73=0," ",COUNTRY_INFO!C73) -> Koumra | D73: =IF(OR(COUNTRY_INFO!$T$9:$T$1000="T2 (PZQ)",COUNTRY_INFO!$U$9:$U$1000="T2 (PZQ)"), "T2 (PZQ)", " ") -> T2 (PZQ) | E73: 06-2017 | G73: 76189 | I73: 76189 | K73: 75077 | M73: 75077 | O73: 98.54047172 | Q73: 98.54047172
A74: =IF(COUNTRY_INFO!A74=0," ",COUNTRY_INFO!A74) -> Chad | B74: =IF(COUNTRY_INFO!B74=0," ",COUNTRY_INFO!B74) -> Mandoul | C74: =IF(COUNTRY_INFO!C74=0," ",COUNTRY_INFO!C74) -> Moissala | D74: =IF(OR(COUNTRY_INFO!$T$9:$T$1000="T2 (PZQ)",COUNTRY_INFO!$U$9:$U$1000="T2 (PZQ)"), "T2 (PZQ)", " ") ->  | I74: =SUM(F74:H74) -> 0 | M74: =SUM(J74:L74) -> 0 | N74: =IF(F74<>0, IF(J74/F74*100=0, "-", J74/F74*100), " ") ->  | O74: =IF(G74<>0, IF(K74/G74*100=0, "-", K74/G74*100), " ") ->  | P74: =IF(H74<>0, IF(L74/H74*100=0, "-", L74/H74*100), " ") ->  | Q74: =IF(I74<>0, IF(M74/I74*100=0, "-", M74/I74*100), " ") -> 
A75: =IF(COUNTRY_INFO!A75=0," ",COUNTRY_INFO!A75) -> Chad | B75: =IF(COUNTRY_INFO!B75=0," ",COUNTRY_INFO!B75) -> Mayo Kebbi Est | C75: =IF(COUNTRY_INFO!C75=0," ",COUNTRY_INFO!C75) -> Bongor | D75: =IF(OR(COUNTRY_INFO!$T$9:$T$1000="T2 (PZQ)",COUNTRY_INFO!$U$9:$U$1000="T2 (PZQ)"), "T2 (PZQ)", " ") ->  | I75: 0 | M75: 0
A76: =IF(COUNTRY_INFO!A76=0," ",COUNTRY_INFO!A76) -> Chad | B76: =IF(COUNTRY_INFO!B76=0," ",COUNTRY_INFO!B76) -> Mayo Kebbi Est | C76: =IF(COUNTRY_INFO!C76=0," ",COUNTRY_INFO!C76) -> Fianga | D76: =IF(OR(COUNTRY_INFO!$T$9:$T$1000="T2 (PZQ)",COUNTRY_INFO!$U$9:$U$1000="T2 (PZQ)"), "T2 (PZQ)", " ") -> T2 (PZQ) | E76: 06-2017 | G76: 46856 | I76: 46856 | K76: 46042 | M76: 46042 | O76: 98.26276251 | Q76: 98.26276251
A77: =IF(COUNTRY_INFO!A77=0," ",COUNTRY_INFO!A77) -> Chad | B77: =IF(COUNTRY_INFO!B77=0," ",COUNTRY_INFO!B77) -> Mayo Kebbi Est | C77: =IF(COUNTRY_INFO!C77=0," ",COUNTRY_INFO!C77) -> Gounou Gaya | D77: =IF(OR(COUNTRY_INFO!$T$9:$T$1000="T2 (PZQ)",COUNTRY_INFO!$U$9:$U$1000="T2 (PZQ)"), "T2 (PZQ)", " ") ->  | I77: 0 | M77: 0
A78: =IF(COUNTRY_INFO!A78=0," ",COUNTRY_INFO!A78) -> Chad | B78: =IF(COUNTRY_INFO!B78=0," ",COUNTRY_INFO!B78) -> Mayo Kebbi Est | C78: =IF(COUNTRY_INFO!C78=0," ",COUNTRY_INFO!C78) -> Guelinding | D78: =IF(OR(COUNTRY_INFO!$T$9:$T$1000="T2 (PZQ)",COUNTRY_INFO!$U$9:$U$1000="T2 (PZQ)"), "T2 (PZQ)", " ") -> T2 (PZQ) | E78: 06-2017 | G78: 28291 | I78: 28291 | K78: 27463 | M78: 27463 | O78: 97.07327419 | Q78: 97.07327419
A79: =IF(COUNTRY_INFO!A79=0," ",COUNTRY_INFO!A79) -> Chad | B79: =IF(COUNTRY_INFO!B79=0," ",COUNTRY_INFO!B79) -> Mayo Kebbi Est | C79: =IF(COUNTRY_INFO!C79=0," ",COUNTRY_INFO!C79) -> Moulkou | D79: =IF(OR(COUNTRY_INFO!$T$9:$T$1000="T2 (PZQ)",COUNTRY_INFO!$U$9:$U$1000="T2 (PZQ)"), "T2 (PZQ)", " ") -> T2 (PZQ) | I79: 0 | M79: 0
A80: =IF(COUNTRY_INFO!A80=0," ",COUNTRY_INFO!A80) -> Chad | B80: =IF(COUNTRY_INFO!B80=0," ",COUNTRY_INFO!B80) -> Mayo Kebbi Est | C80: =IF(COUNTRY_INFO!C80=0," ",COUNTRY_INFO!C80) -> Pont Carol | D80: =IF(OR(COUNTRY_INFO!$T$9:$T$1000="T2 (PZQ)",COUNTRY_INFO!$U$9:$U$1000="T2 (PZQ)"), "T2 (PZQ)", " ") ->  | I80: 0 | M80: 0
A81: =IF(COUNTRY_INFO!A81=0," ",COUNTRY_INFO!A81) -> Chad | B81: =IF(COUNTRY_INFO!B81=0," ",COUNTRY_INFO!B81) -> Mayo Kebbi Est | C81: =IF(COUNTRY_INFO!C81=0," ",COUNTRY_INFO!C81) -> Youé | D81: =IF(OR(COUNTRY_INFO!$T$9:$T$1000="T2 (PZQ)",COUNTRY_INFO!$U$9:$U$1000="T2 (PZQ)"), "T2 (PZQ)", " ") ->  | I81: 0 | M81: 0
A82: =IF(COUNTRY_INFO!A82=0," ",COUNTRY_INFO!A82) -> Chad | B82: =IF(COUNTRY_INFO!B82=0," ",COUNTRY_INFO!B82) -> Mayo Kebbi Ouest | C82: =IF(COUNTRY_INFO!C82=0," ",COUNTRY_INFO!C82) -> Binder | D82: =IF(OR(COUNTRY_INFO!$T$9:$T$1000="T2 (PZQ)",COUNTRY_INFO!$U$9:$U$1000="T2 (PZQ)"), "T2 (PZQ)", " ") ->  | I82: 0 | M82: 0
A83: =IF(COUNTRY_INFO!A83=0," ",COUNTRY_INFO!A83) -> Chad | B83: =IF(COUNTRY_INFO!B83=0," ",COUNTRY_INFO!B83) -> Mayo Kebbi Ouest | C83: =IF(COUNTRY_INFO!C83=0," ",COUNTRY_INFO!C83) -> Gagal | D83: =IF(OR(COUNTRY_INFO!$T$9:$T$1000="T2 (PZQ)",COUNTRY_INFO!$U$9:$U$1000="T2 (PZQ)"), "T2 (PZQ)", " ") ->  | I83: 0 | M83: 0
A84: =IF(COUNTRY_INFO!A84=0," ",COUNTRY_INFO!A84) -> Chad | B84: =IF(COUNTRY_INFO!B84=0," ",COUNTRY_INFO!B84) -> Mayo Kebbi Ouest | C84: =IF(COUNTRY_INFO!C84=0," ",COUNTRY_INFO!C84) -> Guegou | D84: =IF(OR(COUNTRY_INFO!$T$9:$T$1000="T2 (PZQ)",COUNTRY_INFO!$U$9:$U$1000="T2 (PZQ)"), "T2 (PZQ)", " ") -> T2 (PZQ) | I84: 0 | M84: 0
A85: =IF(COUNTRY_INFO!A85=0," ",COUNTRY_INFO!A85) -> Chad | B85: =IF(COUNTRY_INFO!B85=0," ",COUNTRY_INFO!B85) -> Mayo Kebbi Ouest | C85: =IF(COUNTRY_INFO!C85=0," ",COUNTRY_INFO!C85) -> GUELO | D85: =IF(OR(COUNTRY_INFO!$T$9:$T$1000="T2 (PZQ)",COUNTRY_INFO!$U$9:$U$1000="T2 (PZQ)"), "T2 (PZQ)", " ") -> T2 (PZQ) | I85: 0 | M85: 0
A86: =IF(COUNTRY_INFO!A86=0," ",COUNTRY_INFO!A86) -> Chad | B86: =IF(COUNTRY_INFO!B86=0," ",COUNTRY_INFO!B86) -> Mayo Kebbi Ouest | C86: =IF(COUNTRY_INFO!C86=0," ",COUNTRY_INFO!C86) -> Lagon | D86: =IF(OR(COUNTRY_INFO!$T$9:$T$1000="T2 (PZQ)",COUNTRY_INFO!$U$9:$U$1000="T2 (PZQ)"), "T2 (PZQ)", " ") ->  | I86: 0 | M86: 0
A87: =IF(COUNTRY_INFO!A87=0," ",COUNTRY_INFO!A87) -> Chad | B87: =IF(COUNTRY_INFO!B87=0," ",COUNTRY_INFO!B87) -> Mayo Kebbi Ouest | C87: =IF(COUNTRY_INFO!C87=0," ",COUNTRY_INFO!C87) -> Lamé | D87: =IF(OR(COUNTRY_INFO!$T$9:$T$1000="T2 (PZQ)",COUNTRY_INFO!$U$9:$U$1000="T2 (PZQ)"), "T2 (PZQ)", " ") ->  | I87: 0 | M87: 0
A88: =IF(COUNTRY_INFO!A88=0," ",COUNTRY_INFO!A88) -> Chad | B88: =IF(COUNTRY_INFO!B88=0," ",COUNTRY_INFO!B88) -> Mayo Kebbi Ouest | C88: =IF(COUNTRY_INFO!C88=0," ",COUNTRY_INFO!C88) -> Lere | D88: =IF(OR(COUNTRY_INFO!$T$9:$T$1000="T2 (PZQ)",COUNTRY_INFO!$U$9:$U$1000="T2 (PZQ)"), "T2 (PZQ)", " ") ->  | I88: 0 | M88: 0
A89: =IF(COUNTRY_INFO!A89=0," ",COUNTRY_INFO!A89) -> Chad | B89: =IF(COUNTRY_INFO!B89=0," ",COUNTRY_INFO!B89) -> Mayo Kebbi Ouest | C89: =IF(COUNTRY_INFO!C89=0," ",COUNTRY_INFO!C89) -> Pala | D89: =IF(OR(COUNTRY_INFO!$T$9:$T$1000="T2 (PZQ)",COUNTRY_INFO!$U$9:$U$1000="T2 (PZQ)"), "T2 (PZQ)", " ") ->  | I89: 0 | M89: 0
A90: =IF(COUNTRY_INFO!A90=0," ",COUNTRY_INFO!A90) -> Chad | B90: =IF(COUNTRY_INFO!B90=0," ",COUNTRY_INFO!B90) -> Mayo Kebbi Ouest | C90: =IF(COUNTRY_INFO!C90=0," ",COUNTRY_INFO!C90) -> Torrock | D90: =IF(OR(COUNTRY_INFO!$T$9:$T$1000="T2 (PZQ)",COUNTRY_INFO!$U$9:$U$1000="T2 (PZQ)"), "T2 (PZQ)", " ") ->  | I90: 0 | M90: 0
A91: =IF(COUNTRY_INFO!A91=0," ",COUNTRY_INFO!A91) -> Chad | B91: =IF(COUNTRY_INFO!B91=0," ",COUNTRY_INFO!B91) -> Moyen Chari | C91: =IF(COUNTRY_INFO!C91=0," ",COUNTRY_INFO!C91) -> Biobe Singako | D91: =IF(OR(COUNTRY_INFO!$T$9:$T$1000="T2 (PZQ)",COUNTRY_INFO!$U$9:$U$1000="T2 (PZQ)"), "T2 (PZQ)", " ") -> T2 (PZQ) | E91: 06-2017 | G91: 28671 | I91: 28671 | K91: 28002 | M91: 28002 | O91: 97.66663179 | Q91: 97.66663179
